Workbook

Sheet CEG edits
C2: Introduction
C3: As part of its Review of Expected Inflation 2017, the AER provided a model that calculates the long term term impact of inflation on revenue outcomes. It was envisioned that the model would be discussed at the 9 August 2017 technical workshop in Sydney. The AER also anticipated that stakeholders would submit additional models to be reviewed during the workshop. It is our understanding that the Review was organised in response to stakeholder concerns regarding a number of deficiencies in the treatment of inflation within the PTRM-RFM framework, many of which were discussed in a CEG report.[1]
C5: The AER model focuses on the NPV of expenditures and revenues before interest costs. The AER model demonstrates that on a $1,000 initial investment (followed by another $1,000 spread evenly over 10 years) the NPV of real cash-flows before interest (discounted using the same real WACC as adopted in the PTRM) is zero, or close to zero, in the inflation scenarios/regualtory approaches modelled.
C7: We have included additional modelling to highlight the NPV of cash-flows accruing to equity holders after interest. We have assumed that interest costs are 5.5% (default assumption) in nominal terms and that the cost of equity is the value that is consistent with this and the AER's assumed 5.0% real WACC. The adoption of a 5.5% nominal cost of debt is not important to the results (the same key results follow irrespective of the assumed nominal cost of debt). What is important is the assumption that the cost of debt is specified in nominal terms and is, therefore, not affected by actaul inflation falling below/rising above forecast. That is, equity holders are assumed to have to pay the PTRM cost of debt in nominal terms irrespective of whether actaul inflation deviates from forecast inflation. This is consistent with an assumption that the firm has issued nominal debt.
C8: Self contained simplified CEG model
C9: The sheet 'simplified model' is a self contained model of the RAB RFM PTRM interactions in a simple model with 2 one year regulatory periods. It illustrates the same general points (only in a much simpler framework) as does the modifications to the AER spreadsheet described below.
C11: CEG modifications to the AER's model
C12: 1. Separating WACC outcomes to individual debt and equity components
C13: The AER's LTAS v3.1 model generates the closing RAB and cashflow at the end of each year, using a simplified version of the PTRM-RFM framework, but does not separate the cashflows into debt and equity components. Our modification carries out such a separation as follows:
C14: - option for the user to set the assumed gearing (Inputs!B16) and nominal cost of debt, which generates an implied nominal return on equity (Inputs!F17) and real return on equity (Inputs!J17)
C15: - updated formula in Inputs!B18 to use the correct forecast inflation (original LTAS v3.1 model always assumed 2.5% forecast inflation even in scenarios 8 and 9
C16: - derived total debt as (gearing × closing RAB from previous year, e.g: Outcomes!E32)
C17: - derived cash-flow for net amount of debt raised as (amount of debt in the next year - the amount of debt in the currrent year, e.g: Outcomes!D33)
C18: - derived interest cost as (total debt × nominal cost of debt, e.g: Outcomes!E34)
C19: - derived total cash flow to equity as (nominal cash flow before interest + debt raised - interest cost, e.g: Outcomes!D36)
C20: - derived total cash flow to debt holders as (interest cost - debt raised, e.g: Outcomes!D37)
C21: - derived real cash flow to equity as (total cash flow to equity / cumulative actual inflation index, e.g: Outcomes!D38)
C22: - calculated the internal rates of return for WACC, equity, debt, and real cash flow to equity (e.g: Outcomes!B41:B44)
C23: - calculated the NPV of returns to equity investors (e.g.: Outcomes!C44)
C24: 2. Adding Approach H
C25: The AER's LTAS v3.1 model included Approaches A to G, each of which used different measures of inflation in various parts of the PTRM-RFM framework. We have added Approach H that implements a possible (one of many) modification, in which the PTRM is adjusted each year to use teh following value for inflation wherever inflation is being used to derive a real return [Gearing * Actual +(1-Gearing)* Forecast].
C26: - Added Approach H in Inputs!A136:B142
C27: - Added calculations of [Gearing * Actual +(1-Gearing)* Forecast] in row 10 of each calculation sheet, including the modifications stipulated in step (1) above
C28: - Added calculations for Approach H in rows 244 to 275 of the Outcomes sheet and rows 139 to 154 of all other calculation sheets
C30: 3. Comparison of the eight approaches in terms of NPV/IRR of real equity cash-flows
C31: The AER's LTAS v3.1 model compared Approaches A to G in terms of NPV and RAB outcomes (Summary!A35:O43). We have added Approach H, and further included comparisons of the approaches in terms of WACC, nominal equity, nominal debt, and real cash flow to equity (Summary!Q35:T43)
C33: The tables to the right compare the NPV and IRR (relative to target IRR) of the equity cash-flows. It can be seen that all approches have a zero NPV and a zero deviation between IRR and target RoE in scenario 1 (perfect forecast). However, it can be seen that in the scenarios where actual and forecast inflation deviate more materially Approach H generates an NPV that is much closer to zero than any of other approaches (equivalently it generates an IRR that is matierally closer to target).
C35: The reaon approach H generates an NPV much closer to zero is because it, in effect, does not treat debt as a real cost. That is, it does not assume that debt holders will accept lower nominal compensation than agreed at the time of debt issuance if actual inflation is lower than forecast (and, equivalently, it does not assume that debt holders can demand higher nominal compensation than agreed at the time of issuance if inflation is higher than expected). | E35: NPV of equity investments
F36: Scenario 1 | G36: Scenario 2 | H36: Scenario 3 | I36: Scenario 4 | J36: Scenario 5 | K36: Scenario 6 | L36: Scenario 7 | M36: Scenario 8 | N36: Scenario 9 | O36: Scenario 10
C37: [1] CEG, Best estimate of expected inflation, September 2016 | E37: Approach A | F37: -1.977749733e-13 | G37: -75.10281489 | H37: 74.37364409 | I37: 0.2787089205 | J37: -62.44002651 | K37: 61.42316879 | L37: -1.754964687 | M37: -64.52702174 | N37: 87.7053518 | O37: 1.883922522
E38: Approach B | F38: -1.977749733e-13 | G38: -63.1949598 | H38: 62.58140197 | I38: 1.095420175 | J38: -56.36235407 | K38: 55.69759515 | L38: -2.372974087 | M38: -54.37456841 | N38: 73.64599013 | O38: 4.646957103
E39: Approach C | F39: -1.977749733e-13 | G39: -75.10281489 | H39: 74.37364409 | I39: -1.556964236 | J39: -56.36235407 | K39: 55.69759515 | L39: 0.315737722 | M39: -64.52702174 | N39: 87.7053518 | O39: -3.607995899
E40: Approach D | F40: -1.977749733e-13 | G40: -75.10281489 | H40: 74.37364409 | I40: 1.086750066 | J40: -66.17566561 | K40: 65.39963011 | L40: -2.589867337 | M40: -64.52702174 | N40: 87.7053518 | O40: 5.323884248
E41: Approach E | F41: -1.977749733e-13 | G41: -75.10281489 | H41: 74.37364409 | I41: 0.2787089205 | J41: -62.44002651 | K41: 61.42316879 | L41: -1.754964687 | M41: -64.52702174 | N41: 87.7053518 | O41: 1.883922522
E42: Approach F | F42: -1.977749733e-13 | G42: -63.1949598 | H42: 62.58140197 | I42: 0.2913113125 | J42: -52.60201802 | K42: 51.74512374 | L42: -1.534031812 | M42: -54.37456841 | N42: 73.64599013 | O42: 1.205048066
E43: Approach G | F43: -1.977749733e-13 | G43: -63.1949598 | H43: 62.58140197 | I43: 1.917855091 | J43: -54.20272653 | K43: 52.8509283 | L43: -3.666580089 | M43: -54.37456841 | N43: 73.64599013 | O43: 11.25765309
E44: Approach H | F44: -2.246294711e-13 | G44: 9.00546638 | H44: -7.762147578 | I44: 0.1229438437 | J44: 4.29063157 | K44: -3.408769986 | L44: -0.2767035689 | M44: 8.355113706 | N44: -8.292556989 | O44: -1.063320369
E45: Difference between actual IRR and target real return on equity.
F46: Scenario 1 | G46: Scenario 2 | H46: Scenario 3 | I46: Scenario 4 | J46: Scenario 5 | K46: Scenario 6 | L46: Scenario 7 | M46: Scenario 8 | N46: Scenario 9 | O46: Scenario 10
E47: Approach A | F47: 3.331598886e-12 | G47: -0.01521086147 | H47: 0.01491693178 | I47: 5.638920081e-05 | J47: -0.01256349446 | K47: 0.01240037575 | L47: -0.0003523438887 | M47: -0.01491693177 | N47: 0.01521086147 | O47: 0.0003899309889
E48: Approach B | F48: 3.331598886e-12 | G48: -0.01275728898 | H48: 0.01258670691 | I48: 0.0002214620477 | J48: -0.01136880596 | K48: 0.011216612 | L48: -0.0004767930846 | M48: -0.01253578844 | N48: 0.01281533245 | O48: 0.0009577740833
E49: Approach C | F49: 3.331598886e-12 | G49: -0.01521086147 | H49: 0.01491693178 | I49: -0.0003142910692 | J49: -0.01136880596 | K49: 0.011216612 | L49: 6.352510224e-05 | M49: -0.01491693177 | N49: 0.01521086147 | O49: -0.0007466958173
E50: Approach D | F50: 3.331598886e-12 | G50: -0.01521086147 | H50: 0.01491693178 | I50: 0.000219815275 | J50: -0.01337650961 | K50: 0.01314751034 | L50: -0.0005201470805 | M50: -0.01491693177 | N50: 0.01521086147 | O50: 0.001097146353
E51: Approach E | F51: 3.331598886e-12 | G51: -0.01521086147 | H51: 0.01491693178 | I51: 5.638920081e-05 | J51: -0.01256349446 | K51: 0.01240037575 | L51: -0.0003523438887 | M51: -0.01491693177 | N51: 0.01521086147 | O51: 0.0003899309889
E52: Approach F | F52: 3.331598886e-12 | G52: -0.01275728898 | H52: 0.01258670691 | I52: 5.891015118e-05 | J52: -0.01056189653 | K52: 0.01046495592 | L52: -0.0003081189291 | M52: -0.01253578844 | N52: 0.01281533245 | O52: 0.0002494530942
E53: Approach G | F53: 3.331598886e-12 | G53: -0.01275728898 | H53: 0.01258670691 | I53: 0.000388481274 | J53: -0.01099955661 | K53: 0.01057702665 | L53: -0.0007353627454 | M53: -0.01253578844 | N53: 0.01281533245 | O53: 0.002319076833
E54: Approach H | F54: 3.331598886e-12 | G54: 0.001821509972 | H54: -0.001558387954 | I54: 2.474933603e-05 | J54: 0.0008690423446 | K54: -0.0006835042128 | L54: -5.585027036e-05 | M54: 0.001929093752 | N54: -0.00143972208 | O54: -0.0002188446595

Sheet Simplified model
A1: User notes: Nominal cost of capital is 7.625% as requested by the AER. Cost of debt is arbitrarily chosen to be 5.5% and the nominal cost of equity is 'backsolved' to be consistent with these assumptions and 60% gearing. Expected inflation is assumed to be 2.5% which results in the real expected returns at the time the PTRM is run in cells C5 to C7. B10 denotes actual inflation which can vary from expected inflation. B11 allows the user to choose what inflation is used in the RAB RFM: 1) 100% actual inflation (as is currently the case); 2) weighted average of expected inflation from the PTRM (60%) and actual inflation (40%); 3) 100% expected inflation. Rows 17 to 21 described the total nominal return on the RAB and its component elements (i.e., cash vs increase in RAB). Row 23 is the nominal cost of debt that is assumed to be fixed (i.e., independent of actual inflation). Rows 25/26 are the nominal/real return to shareholders after paying the fixed nominal cost of debt. Cells 25 and 26 summarise that: A) under the current regime (RAB RFM uses 100% actual inflation) the realised return on equity does not match the PTRM cost of equity (nominal or real) if actual inflation differs from expected; B) the realised real return on euity does match that implied by the PTRM if a weighted average of expected and actual inflation is used in the RAB RFM C) the realised nominal return on euity does match that implied by the PTRM if expected inflation is used in the RAB RFM
A4: PTRM values | B4: Nominal | C4: Real
A5: Cost of equity | B5: =(B7-B6*0.6)/0.4 -> 0.108125 | C5: =(B5-$B$8)/(1+$B$8) -> 0.08109756098
A6: Cost of debt | B6: 0.055 | C6: =(B6-$B$8)/(1+$B$8) -> 0.02926829268
A7: Nominal WACC | B7: =1.05*1.025-1 -> 0.07625 | C7: =(B7-$B$8)/(1+$B$8) -> 0.05
A8: Expected inflation | B8: 0.025
A9: RAB RFM values
A10: Actual inflation | B10: 0.015
A11: Adjustment to revenues for deviations of actual from expected inflation | B11: None (current regime)
A12: None (current regime) | B12: 0 | C12: 1. Describes current PTRM (no adjustment for deviations from expected inflation)
A13: Only adjust for debt portion of RAB (60%) | B13: =0.6*(B8-B10)*B17 -> 0.6 | C13: 2. Describes PTRM adjustment to target the nominal cost of debt
A14: Adjust for entire RAB | B14: =(B8-B10)*B17 -> 1 | C14: 3. Describes PTRM adjustment to target the nominal cost of debt and a nominal cost of equity
A15: Total compensation PTRM plus RAB RFM
B16: Opening | C16: Closing | D16: Return ($) | E16: Return (%) | F16: Component of % return
A17: RAB (RFM) | B17: 100 | C17: =B17*(1+B10) -> 101.5 | D17: =C17-B17 -> 1.5 | E17: =D17/B17 -> 0.015 | F17: RAB Growth
A18: =CONCATENATE("PTRM Equity compensation (40%*(",B5*100,"%-",B8*100,"%))") -> PTRM Equity compensation (40%*(10.8125%-2.5%)) | D18: =(B5-B8)*0.4*B17 -> 3.325 | E18: =D18/(0.4*B17) -> 0.083125 | F18: Cash
A19: =CONCATENATE("PTRM Debt compensation (60%*(",B6*100,"%-",B8*100,"%))") -> PTRM Debt compensation (60%*(5.5%-2.5%)) | D19: =(B6-B8)*0.6*B17 -> 1.8 | E19: =D19/(0.6*B17) -> 0.03 | F19: Cash
A20: Adjustment to PTRM revenues for inflation forecast error | D20: =IF(B11=A12,B12,IF(B11=A13,B13,B14)) -> 0 | E20: =D20/B17 -> 0
A21: RoR Cash (PTRM) | D21: =SUM(D18:D20) -> 5.125 | E21: =D21/B17 -> 0.05125 | F21: Total cash
A22: Overall return on RAB | D22: =SUM(D17,D21) -> 6.625 | E22: =D22/B17 -> 0.06625 | F22: Cash + RAB growth
A23: Cost of debt
A24: Cost of debt actually paid by business | D24: =B6*B17*0.6 -> 3.3 | E24: =D24/(0.6*B17) -> 0.055
A25: Return to shareholders
A26: Nominal | D26: =D22-D24 -> 3.325 | E26: =D26/(0.4*B17) -> 0.083125 | F26: =IF(ROUND(E26-B5,4)=0,"Matches nominal PTRM RoE","Does not Match nominal PTRM RoE") -> Does not Match nominal PTRM RoE
A27: Real | E27: =(E26-B10)/(1+B8) -> 0.06646341463 | F27: =IF(ROUND(E27-C5,4)=0,"Matches real PTRM RoE","Does not Match real PTRM RoE") -> Does not Match real PTRM RoE

Sheet Inputs
A1: Inputs to the model | L1: Error checking (vs slave PTRM and RFM)
L2: PTRM_ORAB | M2: =IF(ISERROR(MATCH("ERROR",PTRM_ORAB!$E$48:$X$48,0)),"OK","ERROR") -> ERROR
A3: Fixed assumptions (could be varied if the model was made more complicated) | L3: PTRM_Capex | M3: =IF(ISERROR(MATCH("ERROR",PTRM_Capex!$E$48:$X$48,0)),"OK","ERROR") -> ERROR
A4: Regulatory period length is fixed at 5 years | L4: PTRM_RealSLDepn | M4: =IF(ISERROR(MATCH("ERROR",PTRM_RealSLDepn!$E$48:$X$48,0)),"OK","ERROR") -> ERROR
A5: Real WACC is held constant across all regulatory periods | L5: PTRM_NomSLDepn | M5: =IF(ISERROR(MATCH("ERROR",PTRM_NomSLDepn!$E$49:$X$49,0)),"OK","ERROR") -> ERROR
A6: Real WACC drives return on capital (rather than nominal WACC); that is, we presume matched pair of nominal WACC and inflation | L6: PTRM_IndexRAB | M6: =IF(ISERROR(MATCH("ERROR",PTRM_IndexRAB!$E$48:$X$48,0)),"OK","ERROR") -> ERROR
A7: Capex inputs are allowed for year 0 (initial capital base) and years 1-10 only | L7: PTRM_RoC | M7: =IF(ISERROR(MATCH("ERROR",PTRM_RoC!$E$48:$X$48,0)),"OK","ERROR") -> ERROR
A8: Capex is incurred in a single payment in middle of year (note that the inputs conditions differs for RFM and PTRM) | L8: PTRM_MAR | M8: =IF(ISERROR(MATCH("ERROR",PTRM_MAR!$E$48:$X$48,0)),"OK","ERROR") -> ERROR
A9: We apply the AER standard "half WACC" six month adjustment to new capex to reflect the delay in entering the RAB | L9: RFM_RealCapex | M9: =IF(ISERROR(MATCH("ERROR",RFM_RealCapex!$E$48:$X$48,0)),"OK","ERROR") -> ERROR
A10: Actual capex always equals forecast capex | L10: RFM_RealWACCCapex | M10: =IF(ISERROR(MATCH("ERROR",RFM_RealWACCCapex!$E$48:$X$48,0)),"OK","ERROR") -> ERROR
A11: In the PTRM, actual = forecast in REAL terms (as per the current PTRM) | L11: RFM_NomCapex | M11: =IF(ISERROR(MATCH("ERROR",RFM_NomCapex!$E$48:$X$48,0)),"OK","ERROR") -> ERROR
A12: In the RFM, actual = forecast in NOMINAL Terms (as per the current RFM) | L12: RFM_ORAB | M12: =IF(ISERROR(MATCH("ERROR",RFM_ORAB!$E$48:$X$48,0)),"OK","ERROR") -> ERROR
A13: Remaining Life inputs must be integers (have used simplified SL calculations) | L13: RFM_RealSLDepn | M13: =IF(ISERROR(MATCH("ERROR",RFM_RealSLDepn!$E$48:$X$48,0)),"OK","ERROR") -> ERROR
L14: RFM_NomSLDepn | M14: =IF(ISERROR(MATCH("ERROR",RFM_NomSLDepn!$E$49:$X$49,0)),"OK","ERROR") -> ERROR
A15: Base inputs | L15: RFM_IndexRAB | M15: =IF(ISERROR(MATCH("ERROR",RFM_IndexRAB!$E$48:$X$48,0)),"OK","ERROR") -> ERROR
A16: Gearing | B16: 0.6 | E16: CoD nominal | F16: 0.055 | I16: Inflation forecast | J16: =GEOMEAN(1+INDEX($E$59:$BB$68,Inflation_Scenario,))-1 -> 0.02520245512
A17: Real WACC | B17: 0.05 | D17: This will be applied across all regulatory periods | E17: RoE nominal | F17: =(B18-B16*F16)/(1-B16) -> 0.1108705888 | I17: RoE real | J17: =(F17-J16)/(1+J16) -> 0.08356216202
A18: Nominal WACC | B18: =(1+Real_WACC)*(1+INDEX($E$59:$E$68,Inflation_Scenario))-1 -> 0.07734823551
A19: Capex Input Table | D19: In Real Year 0 dollars. Capex is incurred in the middle of the given year | P19: Table: target vs actaully achieved IRR
A20: Year | B20: NPV (constant WACC) | D20: 0 | E20: 1 | F20: 2 | G20: 3 | H20: 4 | I20: 5 | J20: 6 | K20: 7 | L20: 8 | M20: 9 | N20: 10 | Q20: Real equity IRR | R20: Target | S20: Difference to target | T20: Nominal equity IRR | U20: Target | V20: Difference to target
A21: Amount (Real year 0 dollars, mid year) | B21: =D21+NPV(Real_WACC,E21:N21) -> 1772.173493 | D21: 1000 | E21: 100 | F21: 100 | G21: 100 | H21: 100 | I21: 100 | J21: 100 | K21: 100 | L21: 100 | M21: 100 | N21: 100 | P21: Approach A | Q21: =Summary!T37 -> 0.08395209301 | R21: =$J$17 -> 0.08356216202 | S21: =Q21-$J$17 -> 0.0003899309889 | T21: =Summary!R37 -> 0.1134169346 | U21: =(1+R21)*(1+AVERAGE(Summary!$E$22:$BB$22))-1 -> 0.1116785894 | V21: =T21-U21 -> 0.001738345169
A22: Life | D22: 30 | E22: 30 | F22: 30 | G22: 30 | H22: 30 | I22: 30 | J22: 30 | K22: 30 | L22: 30 | M22: 30 | N22: 30 | P22: Approach B | Q22: =Summary!T38 -> 0.0845199361 | R22: =$J$17 -> 0.08356216202 | S22: 0.0009577740833 | T22: =Summary!R38 -> 0.1139832486 | U22: =(1+R22)*(1+AVERAGE(Summary!$E$22:$BB$22))-1 -> 0.1116785894 | V22: =T22-U22 -> 0.002304659177
A23: Converstion to Real End Year: actual inflation | B23: =B21*(1+D46)^0.5 -> 1794.188915 | D23: =INDEX(D$46:D$55,$B$42) -> 0.02751306421 | E23: =INDEX(E$46:E$55,$B$42) -> 0.01210003925 | F23: =INDEX(F$46:F$55,$B$42) -> 0.04940537631 | G23: 0.01879676772 | H23: 0.01916387812 | I23: 0.01898229851 | J23: 0.04424345176 | K23: 0.03371843145 | L23: 0.05776072522 | M23: 0.01647710241 | N23: -0.004289250067 | P23: Approach C | Q23: =Summary!T39 -> 0.0828154662 | R23: 0.08356216202 | S23: -0.0007466958173 | T23: =Summary!R39 -> 0.1122173182 | U23: =(1+R23)*(1+AVERAGE(Summary!$E$22:$BB$22))-1 -> 0.1116785894 | V23: 0.000538728813
A24: Amount (Real year 0 dollars, end year) | B24: =D24+NPV(Real_WACC,E24:N24) -> 1796.103055 | D24: =Capex_00_Amt*(1+D23)^0.5 -> 1013.663191 | E24: =Capex_01_Amt*((1+E23)^0.5) -> 100.6031828 | F24: =Capex_02_Amt*(1+F23)^0.5 -> 102.4404889 | G24: =Capex_03_Amt*(1+G23)^0.5 -> 100.9354629 | H24: =Capex_04_Amt*(1+H23)^0.5 -> 100.9536467 | I24: =Capex_05_Amt*(1+I23)^0.5 -> 100.9446531 | J24: =Capex_06_Amt*(1+J23)^0.5 -> 102.1882308 | K24: =Capex_07_Amt*(1+K23)^0.5 -> 101.6719446 | L24: =Capex_08_Amt*(1+L23)^0.5 -> 102.8474951 | M24: =Capex_09_Amt*(1+M23)^0.5 -> 100.8204891 | N24: =Capex_10_Amt*(1+N23)^0.5 -> 99.78530703 | O24: Note these figures do not include WACC compensation; they match input terms in PTRM | P24: Approach D | Q24: =Summary!T40 -> 0.08465930837 | R24: 0.08356216202 | S24: 0.001097146353 | T24: =Summary!R40 -> 0.1141517887 | U24: =(1+R24)*(1+AVERAGE(Summary!$E$22:$BB$22))-1 -> 0.1116785894 | V24: 0.002473199331
A25: Conversion to Nominal: actual inflation index | D25: 1 | E25: =D25*(1+INDEX(E$46:E$55,$B$42)) -> 1.012100039 | F25: 1.062103223 | G25: 1.08206733 | H25: 1.102803937 | I25: 1.12373769 | J25: 1.173455724 | K25: 1.213022811 | L25: 1.283087888 | M25: 1.304229459 | N25: 1.298635292 | P25: Approach E | Q25: =Summary!T41 -> 0.08395209301 | R25: 0.08356216202 | S25: 0.0003899309889 | T25: =Summary!R41 -> 0.1134169346 | U25: =(1+R25)*(1+AVERAGE(Summary!$E$22:$BB$22))-1 -> 0.1116785894 | V25: 0.001738345169
A26: Amount (Nominal dollars, mid year) | B26: =D26+NPV(((1+Real_WACC)*(1+$D$46)-1),E26:N26) -> 1781.456066 | D26: =D21*D25 -> 1000 | E26: =E21*E25 -> 101.2100039 | F26: =F21*F25 -> 106.2103223 | G26: 108.206733 | H26: 110.2803937 | I26: 112.373769 | J26: 117.3455724 | K26: 121.3022811 | L26: 128.3087888 | M26: 130.4229459 | N26: =N21*N25 -> 129.8635292 | O26: Note these figures do not include WACC compensation; they match input terms in RFM | P26: Approach F | Q26: =Summary!T42 -> 0.08381161511 | R26: 0.08356216202 | S26: 0.0002494530942 | T26: =Summary!R42 -> 0.1132471963 | U26: =(1+R26)*(1+AVERAGE(Summary!$E$22:$BB$22))-1 -> 0.1116785894 | V26: 0.001568606915
A27: Conversion to Nominal End Year: actual inflation | D27: =INDEX(D$46:D$55,$B$42) -> 0.02751306421 | E27: =INDEX(E$46:E$55,$B$42) -> 0.01210003925 | F27: =INDEX(F$46:F$55,$B$42) -> 0.04940537631 | G27: 0.01879676772 | H27: 0.01916387812 | I27: 0.01898229851 | J27: 0.04424345176 | K27: 0.03371843145 | L27: 0.05776072522 | M27: 0.01647710241 | N27: -0.004289250067 | P27: Approach G | Q27: =Summary!T43 -> 0.08588123885 | R27: 0.08356216202 | S27: 0.002319076833 | T27: =Summary!R43 -> 0.115329568 | U27: =(1+R27)*(1+AVERAGE(Summary!$E$22:$BB$22))-1 -> 0.1116785894 | V27: 0.003650978563
A28: Amount (Nominal dollars, end year) | B28: =D28+NPV(((1+Real_WACC)*(1+$D$46)-1),E28:N28) -> 1805.568294 | D28: =Capex_00_Amt_Nom*(1+D27)^0.5 -> 1013.663191 | E28: =Capex_01_Amt_Nom*(1+E27)^0.5 -> 101.8204853 | F28: =Capex_02_Amt_Nom*(1+F27)^0.5 -> 108.8023734 | G28: =Capex_03_Amt_Nom*(1+G27)^0.5 -> 109.2189669 | H28: =Capex_04_Amt_Nom*(1+H27)^0.5 -> 111.332079 | I28: =Capex_05_Amt_Nom*(1+I27)^0.5 -> 113.4353113 | J28: =Capex_06_Amt_Nom*(1+J27)^0.5 -> 119.9133644 | K28: =Capex_07_Amt_Nom*(1+K27)^0.5 -> 123.330388 | L28: =Capex_08_Amt_Nom*(1+L27)^0.5 -> 131.9623753 | M28: =Capex_09_Amt_Nom*(1+M27)^0.5 -> 131.4930519 | N28: =Capex_10_Amt_Nom*(1+N27)^0.5 -> 129.5847214 | P28: Approach H | Q28: =Summary!T44 -> 0.08334331736 | R28: 0.08356216202 | S28: -0.0002188446595 | T28: =Summary!R44 -> 0.1126105722 | U28: =(1+R28)*(1+AVERAGE(Summary!$E$22:$BB$22))-1 -> 0.1116785894 | V28: 0.000931982812
A29: Conversion Check | D29: =(Capex_00_Amt_EY*D25)-Capex_00_Amt_Nom_EY -> 0 | E29: =(Capex_01_Amt_EY*E25)-Capex_01_Amt_Nom_EY -> 0 | F29: =(Capex_02_Amt_EY*F25)-Capex_02_Amt_Nom_EY -> 0 | G29: =(Capex_03_Amt_EY*G25)-Capex_03_Amt_Nom_EY -> 0 | H29: =(Capex_04_Amt_EY*H25)-Capex_04_Amt_Nom_EY -> 0 | I29: =(Capex_05_Amt_EY*I25)-Capex_05_Amt_Nom_EY -> 0 | J29: =(Capex_06_Amt_EY*J25)-Capex_06_Amt_Nom_EY -> 0 | K29: =(Capex_07_Amt_EY*K25)-Capex_07_Amt_Nom_EY -> 0 | L29: =(Capex_08_Amt_EY*L25)-Capex_08_Amt_Nom_EY -> 0 | M29: =(Capex_09_Amt_EY*M25)-Capex_09_Amt_Nom_EY -> 0 | N29: =(Capex_10_Amt_EY*N25)-Capex_10_Amt_Nom_EY -> 0
A31: NPV of capex | Q31: Scenario 1 | R31: Scenario 2 | S31: Scenario 3 | T31: Scenario 4 | U31: Scenario 5 | V31: Scenario 6 | W31: Scenario 7 | X31: Scenario 8 | Y31: Scenario 9 | Z31: Scenario 10
A32: Time varying WACC: using actual inflation | D32: =(1+Real_WACC)*(1+D23)-1 -> 0.07888871742 | E32: 0.06270504121 | F32: 0.1018756451 | G32: 0.0697366061 | H32: 0.07012207202 | I32: 0.06993141344 | J32: 0.09645562435 | K32: 0.08540435302 | L32: 0.1106487615 | M32: 0.06730095753 | N32: 0.04549628743 | P32: Approach A | Q32: -1.977749733e-13 | R32: -75.10281489 | S32: 74.37364409 | T32: 0.2787089205 | U32: -62.44002651 | V32: 61.42316879 | W32: -1.754964687 | X32: -64.52702174 | Y32: 87.7053518 | Z32: 1.883922522
A33: Index | D33: 1 | E33: =D33*(1+E32) -> 1.062705041 | F33: 1.170968803 | G33: 1.252628193 | H33: 1.340465077 | I33: 1.434205695 | J33: 1.572542901 | K33: 1.70684491 | L33: 1.895705185 | M33: 2.023287959 | N33: 2.11534005 | P33: Approach B | Q33: -1.977749733e-13 | R33: -63.1949598 | S33: 62.58140197 | T33: 1.095420175 | U33: -56.36235407 | V33: 55.69759515 | W33: -2.372974087 | X33: -54.37456841 | Y33: 73.64599013 | Z33: 4.646957103
A34: NPV (time varying actual WACC) | B34: =SUM(D34:N34) -> 1796.103055 | D34: =D28/D33 -> 1013.663191 | E34: 95.81255506 | F34: 92.91654321 | G34: 87.19184791 | H34: 83.05481498 | I34: 79.09277705 | J34: 76.25443119 | K34: 72.25635281 | L34: 69.61123298 | M34: 64.98978622 | N34: 61.2595225 | P34: Approach C | Q34: -1.977749733e-13 | R34: -75.10281489 | S34: 74.37364409 | T34: -1.556964236 | U34: -56.36235407 | V34: 55.69759515 | W34: 0.315737722 | X34: -64.52702174 | Y34: 87.7053518 | Z34: -3.607995899
A35: Time varying WACC: using lagged inflation | E35: =(1+Real_WACC)*(1+D23)-1 -> 0.07888871742 | F35: 0.06270504121 | G35: 0.1018756451 | H35: 0.0697366061 | I35: 0.07012207202 | J35: 0.06993141344 | K35: 0.09645562435 | L35: 0.08540435302 | M35: 0.1106487615 | N35: 0.06730095753 | P35: Approach D | Q35: -1.977749733e-13 | R35: -75.10281489 | S35: 74.37364409 | T35: 1.086750066 | U35: -66.17566561 | V35: 65.39963011 | W35: -2.589867337 | X35: -64.52702174 | Y35: 87.7053518 | Z35: 5.323884248
A36: Index | D36: 1 | E36: =D36*(1+E35) -> 1.078888717 | F36: =E36*(1+F35) -> 1.146540479 | G36: 1.26334503 | H36: 1.351446425 | I36: 1.446212648 | J36: 1.547348343 | K36: 1.696598793 | L36: 1.841495715 | M36: 2.045254936 | N36: 2.182902551 | P36: Approach E | Q36: -1.977749733e-13 | R36: -75.10281489 | S36: 74.37364409 | T36: 0.2787089205 | U36: -62.44002651 | V36: 61.42316879 | W36: -1.754964687 | X36: -64.52702174 | Y36: 87.7053518 | Z36: 1.883922522
A37: NPV (time varying lagged WACC) | B37: =SUM(D37:N37) -> 1795.707484 | D37: =D28/D36 -> 1013.663191 | E37: =E28/E36 -> 94.37533606 | F37: 94.89623382 | G37: 86.45220768 | H37: 82.37994268 | I37: 78.4361217 | J37: 77.496037 | K37: 72.6927241 | L37: 71.66043026 | M37: 64.29176609 | N37: 59.36349348 | P37: Approach F | Q37: -1.977749733e-13 | R37: -63.1949598 | S37: 62.58140197 | T37: 0.2913113125 | U37: -52.60201802 | V37: 51.74512374 | W37: -1.534031812 | X37: -54.37456841 | Y37: 73.64599013 | Z37: 1.205048066
A38: Difference at capex input | B38: =B37-B34 -> -0.3955710355 | P38: Approach G | Q38: -1.977749733e-13 | R38: -63.1949598 | S38: 62.58140197 | T38: 1.917855091 | U38: -54.20272653 | V38: 52.8509283 | W38: -3.666580089 | X38: -54.37456841 | Y38: 73.64599013 | Z38: 11.25765309
P39: Approach H | Q39: -2.246294711e-13 | R39: 4.303213558 | S39: -4.125741876 | T39: -0.1853880245 | U39: 3.70474928 | V39: -3.568158952 | W39: 0.2359683791 | X39: 4.506860585 | Y39: -3.80768389 | Z39: -2.675780834
A40: Inflation inputs | Q40: -2.246294711e-13 | R40: 9.00546638 | S40: -7.762147578 | T40: 0.1229438437 | U40: 4.29063157 | V40: -3.408769986 | W40: -0.2767035689 | X40: 8.355113706 | Y40: -8.292556989 | Z40: -1.063320369
A42: Inflation scenario | B42: 10 | D42: Choose which of the inflation scenarios below will be applied to all approaches
A44: Actual Inflation Scenario Table | D44: Years
A45: Description | B45: Scenario | D45: 0 | E45: 1 | F45: 2 | G45: 3 | H45: 4 | I45: 5 | J45: 6 | K45: 7 | L45: 8 | M45: 9 | N45: 10 | O45: 11 | P45: 12 | Q45: 13 | R45: 14 | S45: 15 | T45: 16 | U45: 17 | V45: 18 | W45: 19 | X45: 20 | Y45: 21 | Z45: 22 | AA45: 23 | AB45: 24 | AC45: 25 | AD45: 26 | AE45: 27 | AF45: 28 | AG45: 29 | AH45: 30 | AI45: 31 | AJ45: 32 | AK45: 33 | AL45: 34 | AM45: 35 | AN45: 36 | AO45: 37 | AP45: 38 | AQ45: 39 | AR45: 40 | AS45: 41 | AT45: 42 | AU45: 43 | AV45: 44 | AW45: 45 | AX45: 46 | AY45: 47 | AZ45: 48 | BA45: 49 | BB45: 50
A46: Fcast 2.5%; Inflation outcome 2.50% all years | B46: 1 | D46: 0.025 | E46: 0.025 | F46: 0.025 | G46: 0.025 | H46: 0.025 | I46: 0.025 | J46: 0.025 | K46: 0.025 | L46: 0.025 | M46: 0.025 | N46: 0.025 | O46: 0.025 | P46: 0.025 | Q46: 0.025 | R46: 0.025 | S46: 0.025 | T46: 0.025 | U46: 0.025 | V46: 0.025 | W46: 0.025 | X46: 0.025 | Y46: 0.025 | Z46: 0.025 | AA46: 0.025 | AB46: 0.025 | AC46: 0.025 | AD46: 0.025 | AE46: 0.025 | AF46: 0.025 | AG46: 0.025 | AH46: 0.025 | AI46: 0.025 | AJ46: 0.025 | AK46: 0.025 | AL46: 0.025 | AM46: 0.025 | AN46: 0.025 | AO46: 0.025 | AP46: 0.025 | AQ46: 0.025 | AR46: 0.025 | AS46: 0.025 | AT46: 0.025 | AU46: 0.025 | AV46: 0.025 | AW46: 0.025 | AX46: 0.025 | AY46: 0.025 | AZ46: 0.025 | BA46: 0.025 | BB46: 0.025
A47: Fcast 2.5%; Inflation outcome 1.50% all years | B47: 2 | D47: 0.015 | E47: 0.015 | F47: 0.015 | G47: 0.015 | H47: 0.015 | I47: 0.015 | J47: 0.015 | K47: 0.015 | L47: 0.015 | M47: 0.015 | N47: 0.015 | O47: 0.015 | P47: 0.015 | Q47: 0.015 | R47: 0.015 | S47: 0.015 | T47: 0.015 | U47: 0.015 | V47: 0.015 | W47: 0.015 | X47: 0.015 | Y47: 0.015 | Z47: 0.015 | AA47: 0.015 | AB47: 0.015 | AC47: 0.015 | AD47: 0.015 | AE47: 0.015 | AF47: 0.015 | AG47: 0.015 | AH47: 0.015 | AI47: 0.015 | AJ47: 0.015 | AK47: 0.015 | AL47: 0.015 | AM47: 0.015 | AN47: 0.015 | AO47: 0.015 | AP47: 0.015 | AQ47: 0.015 | AR47: 0.015 | AS47: 0.015 | AT47: 0.015 | AU47: 0.015 | AV47: 0.015 | AW47: 0.015 | AX47: 0.015 | AY47: 0.015 | AZ47: 0.015 | BA47: 0.015 | BB47: 0.015
A48: Fcast 2.5%; Inflation outcome 3.50% all years | B48: 3 | D48: 0.035 | E48: 0.035 | F48: 0.035 | G48: 0.035 | H48: 0.035 | I48: 0.035 | J48: 0.035 | K48: 0.035 | L48: 0.035 | M48: 0.035 | N48: 0.035 | O48: 0.035 | P48: 0.035 | Q48: 0.035 | R48: 0.035 | S48: 0.035 | T48: 0.035 | U48: 0.035 | V48: 0.035 | W48: 0.035 | X48: 0.035 | Y48: 0.035 | Z48: 0.035 | AA48: 0.035 | AB48: 0.035 | AC48: 0.035 | AD48: 0.035 | AE48: 0.035 | AF48: 0.035 | AG48: 0.035 | AH48: 0.035 | AI48: 0.035 | AJ48: 0.035 | AK48: 0.035 | AL48: 0.035 | AM48: 0.035 | AN48: 0.035 | AO48: 0.035 | AP48: 0.035 | AQ48: 0.035 | AR48: 0.035 | AS48: 0.035 | AT48: 0.035 | AU48: 0.035 | AV48: 0.035 | AW48: 0.035 | AX48: 0.035 | AY48: 0.035 | AZ48: 0.035 | BA48: 0.035 | BB48: 0.035
A49: As in (1) but inflation varies around 2.50% | B49: 4 | D49: 0.025 | E49: 0.04 | F49: 0.03 | G49: 0.025 | H49: 0.02 | I49: 0.01 | J49: 0.01 | K49: 0.02 | L49: 0.025 | M49: 0.03 | N49: 0.04 | O49: 0.04 | P49: 0.03 | Q49: 0.025 | R49: 0.02 | S49: 0.01 | T49: 0.01 | U49: 0.02 | V49: 0.025 | W49: 0.03 | X49: 0.04 | Y49: 0.04 | Z49: 0.03 | AA49: 0.025 | AB49: 0.02 | AC49: 0.01 | AD49: 0.01 | AE49: 0.02 | AF49: 0.025 | AG49: 0.03 | AH49: 0.04 | AI49: 0.04 | AJ49: 0.03 | AK49: 0.025 | AL49: 0.02 | AM49: 0.01 | AN49: 0.01 | AO49: 0.02 | AP49: 0.025 | AQ49: 0.03 | AR49: 0.04 | AS49: 0.04 | AT49: 0.03 | AU49: 0.025 | AV49: 0.02 | AW49: 0.01 | AX49: 0.01 | AY49: 0.02 | AZ49: 0.025 | BA49: 0.03 | BB49: 0.04
A50: As in (2) but year 5 inflation is 2.50% | B50: 5 | D50: 0.025 | E50: 0.015 | F50: 0.015 | G50: 0.015 | H50: 0.015 | I50: 0.025 | J50: 0.015 | K50: 0.015 | L50: 0.015 | M50: 0.015 | N50: 0.025 | O50: 0.015 | P50: 0.015 | Q50: 0.015 | R50: 0.015 | S50: 0.025 | T50: 0.015 | U50: 0.015 | V50: 0.015 | W50: 0.015 | X50: 0.025 | Y50: 0.015 | Z50: 0.015 | AA50: 0.015 | AB50: 0.015 | AC50: 0.025 | AD50: 0.015 | AE50: 0.015 | AF50: 0.015 | AG50: 0.015 | AH50: 0.025 | AI50: 0.015 | AJ50: 0.015 | AK50: 0.015 | AL50: 0.015 | AM50: 0.025 | AN50: 0.015 | AO50: 0.015 | AP50: 0.015 | AQ50: 0.015 | AR50: 0.025 | AS50: 0.015 | AT50: 0.015 | AU50: 0.015 | AV50: 0.015 | AW50: 0.025 | AX50: 0.015 | AY50: 0.015 | AZ50: 0.015 | BA50: 0.015 | BB50: 0.025
A51: As in (3) but year 5 inflation is 2.50% | B51: 6 | D51: 0.025 | E51: 0.035 | F51: 0.035 | G51: 0.035 | H51: 0.035 | I51: 0.025 | J51: 0.035 | K51: 0.035 | L51: 0.035 | M51: 0.035 | N51: 0.025 | O51: 0.035 | P51: 0.035 | Q51: 0.035 | R51: 0.035 | S51: 0.025 | T51: 0.035 | U51: 0.035 | V51: 0.035 | W51: 0.035 | X51: 0.025 | Y51: 0.035 | Z51: 0.035 | AA51: 0.035 | AB51: 0.035 | AC51: 0.025 | AD51: 0.035 | AE51: 0.035 | AF51: 0.035 | AG51: 0.035 | AH51: 0.025 | AI51: 0.035 | AJ51: 0.035 | AK51: 0.035 | AL51: 0.035 | AM51: 0.025 | AN51: 0.035 | AO51: 0.035 | AP51: 0.035 | AQ51: 0.035 | AR51: 0.025 | AS51: 0.035 | AT51: 0.035 | AU51: 0.035 | AV51: 0.035 | AW51: 0.025 | AX51: 0.035 | AY51: 0.035 | AZ51: 0.035 | BA51: 0.035 | BB51: 0.025
A52: As in (4) but inverse inflation pattern | B52: 7 | D52: 0.025 | E52: 0.01 | F52: 0.02 | G52: 0.025 | H52: 0.03 | I52: 0.04 | J52: 0.04 | K52: 0.03 | L52: 0.025 | M52: 0.02 | N52: 0.01 | O52: 0.01 | P52: 0.02 | Q52: 0.025 | R52: 0.03 | S52: 0.04 | T52: 0.04 | U52: 0.03 | V52: 0.025 | W52: 0.02 | X52: 0.01 | Y52: 0.01 | Z52: 0.02 | AA52: 0.025 | AB52: 0.03 | AC52: 0.04 | AD52: 0.04 | AE52: 0.03 | AF52: 0.025 | AG52: 0.02 | AH52: 0.01 | AI52: 0.01 | AJ52: 0.02 | AK52: 0.025 | AL52: 0.03 | AM52: 0.04 | AN52: 0.04 | AO52: 0.03 | AP52: 0.025 | AQ52: 0.02 | AR52: 0.01 | AS52: 0.01 | AT52: 0.02 | AU52: 0.025 | AV52: 0.03 | AW52: 0.04 | AX52: 0.04 | AY52: 0.03 | AZ52: 0.025 | BA52: 0.02 | BB52: 0.01
A53: Fcast 3.50%; Inflation outcome 2.50% all years | B53: 8 | D53: 0.025 | E53: 0.025 | F53: 0.025 | G53: 0.025 | H53: 0.025 | I53: 0.025 | J53: 0.025 | K53: 0.025 | L53: 0.025 | M53: 0.025 | N53: 0.025 | O53: 0.025 | P53: 0.025 | Q53: 0.025 | R53: 0.025 | S53: 0.025 | T53: 0.025 | U53: 0.025 | V53: 0.025 | W53: 0.025 | X53: 0.025 | Y53: 0.025 | Z53: 0.025 | AA53: 0.025 | AB53: 0.025 | AC53: 0.025 | AD53: 0.025 | AE53: 0.025 | AF53: 0.025 | AG53: 0.025 | AH53: 0.025 | AI53: 0.025 | AJ53: 0.025 | AK53: 0.025 | AL53: 0.025 | AM53: 0.025 | AN53: 0.025 | AO53: 0.025 | AP53: 0.025 | AQ53: 0.025 | AR53: 0.025 | AS53: 0.025 | AT53: 0.025 | AU53: 0.025 | AV53: 0.025 | AW53: 0.025 | AX53: 0.025 | AY53: 0.025 | AZ53: 0.025 | BA53: 0.025 | BB53: 0.025
A54: Fcast 1.50%; Inflation outcome 2.50% all years | B54: 9 | D54: 0.025 | E54: 0.025 | F54: 0.025 | G54: 0.025 | H54: 0.025 | I54: 0.025 | J54: 0.025 | K54: 0.025 | L54: 0.025 | M54: 0.025 | N54: 0.025 | O54: 0.025 | P54: 0.025 | Q54: 0.025 | R54: 0.025 | S54: 0.025 | T54: 0.025 | U54: 0.025 | V54: 0.025 | W54: 0.025 | X54: 0.025 | Y54: 0.025 | Z54: 0.025 | AA54: 0.025 | AB54: 0.025 | AC54: 0.025 | AD54: 0.025 | AE54: 0.025 | AF54: 0.025 | AG54: 0.025 | AH54: 0.025 | AI54: 0.025 | AJ54: 0.025 | AK54: 0.025 | AL54: 0.025 | AM54: 0.025 | AN54: 0.025 | AO54: 0.025 | AP54: 0.025 | AQ54: 0.025 | AR54: 0.025 | AS54: 0.025 | AT54: 0.025 | AU54: 0.025 | AV54: 0.025 | AW54: 0.025 | AX54: 0.025 | AY54: 0.025 | AZ54: 0.025 | BA54: 0.025 | BB54: 0.025
A55: Monte Carlo auto generation (approach 1) | B55: 10 | D55: 0.02751306421 | E55: 0.01210003925 | F55: 0.04940537631 | G55: 0.01879676772 | H55: 0.01916387812 | I55: 0.01898229851 | J55: 0.04424345176 | K55: 0.03371843145 | L55: 0.05776072522 | M55: 0.01647710241 | N55: -0.004289250067 | O55: 0.03794801417 | P55: 0.01862590575 | Q55: 0.03281679668 | R55: 0.02739938407 | S55: 0.03336757525 | T55: 0.03702421163 | U55: 0.01533300458 | V55: 0.01161715552 | W55: 0.02053999578 | X55: 0.0215478861 | Y55: 0.02622264859 | Z55: 0.01786209806 | AA55: 0.03131943821 | AB55: 0.03567152024 | AC55: 0.02375338754 | AD55: 0.04042723729 | AE55: 0.02644233056 | AF55: 0.0315650229 | AG55: 0.03045708836 | AH55: 0.02660254158 | AI55: 0.02720850376 | AJ55: 0.01649898333 | AK55: 0.03822698211 | AL55: 0.03882382243 | AM55: 0.007471423187 | AN55: 0.01308563154 | AO55: 0.02177394872 | AP55: 0.04376762029 | AQ55: 0.01651252234 | AR55: 0.02120439059 | AS55: 0.02382572367 | AT55: 0.02665492232 | AU55: 0.02674667223 | AV55: 0.03511278157 | AW55: 0.01873718692 | AX55: 0.03182717029 | AY55: -0.001105073479 | AZ55: 0.03242438961 | BA55: 0.0229760279 | BB55: 0.0227315242
A57: Forecast Inflation Scenario Table
A58: Description | E58: Period 1 to 5 | J58: Period 6 to 10 | O58: Period 11 to 15
A59: =A46 -> Fcast 2.5%; Inflation outcome 2.50% all years | B59: 1 | E59: 0.025 | F59: =E59 -> 0.025 | G59: =E59 -> 0.025 | H59: =E59 -> 0.025 | I59: =E59 -> 0.025 | J59: 0.025 | K59: =J59 -> 0.025 | L59: =J59 -> 0.025 | M59: =J59 -> 0.025 | N59: =J59 -> 0.025 | O59: 0.025 | P59: =O59 -> 0.025 | Q59: =O59 -> 0.025 | R59: =O59 -> 0.025 | S59: =O59 -> 0.025 | T59: 0.025 | U59: =T59 -> 0.025 | V59: =T59 -> 0.025 | W59: =T59 -> 0.025 | X59: =T59 -> 0.025 | Y59: 0.025 | Z59: =Y59 -> 0.025 | AA59: =Y59 -> 0.025 | AB59: =Y59 -> 0.025 | AC59: =Y59 -> 0.025 | AD59: 0.025 | AE59: =AD59 -> 0.025 | AF59: =AD59 -> 0.025 | AG59: =AD59 -> 0.025 | AH59: =AD59 -> 0.025 | AI59: 0.025 | AJ59: =AI59 -> 0.025 | AK59: =AI59 -> 0.025 | AL59: =AI59 -> 0.025 | AM59: =AI59 -> 0.025 | AN59: 0.025 | AO59: =AN59 -> 0.025 | AP59: =AN59 -> 0.025 | AQ59: =AN59 -> 0.025 | AR59: =AN59 -> 0.025 | AS59: 0.025 | AT59: =AS59 -> 0.025 | AU59: =AS59 -> 0.025 | AV59: =AS59 -> 0.025 | AW59: =AS59 -> 0.025 | AX59: 0.025 | AY59: =AX59 -> 0.025 | AZ59: =AX59 -> 0.025 | BA59: =AX59 -> 0.025 | BB59: =AX59 -> 0.025
A60: Fcast 2.5%; Inflation outcome 1.50% all years | B60: 2 | E60: 0.025 | F60: 0.025 | G60: 0.025 | H60: 0.025 | I60: 0.025 | J60: 0.025 | K60: 0.025 | L60: 0.025 | M60: 0.025 | N60: 0.025 | O60: 0.025 | P60: 0.025 | Q60: 0.025 | R60: 0.025 | S60: 0.025 | T60: 0.025 | U60: 0.025 | V60: 0.025 | W60: 0.025 | X60: 0.025 | Y60: 0.025 | Z60: 0.025 | AA60: 0.025 | AB60: 0.025 | AC60: 0.025 | AD60: 0.025 | AE60: 0.025 | AF60: 0.025 | AG60: 0.025 | AH60: 0.025 | AI60: 0.025 | AJ60: 0.025 | AK60: 0.025 | AL60: 0.025 | AM60: 0.025 | AN60: 0.025 | AO60: 0.025 | AP60: 0.025 | AQ60: 0.025 | AR60: 0.025 | AS60: 0.025 | AT60: 0.025 | AU60: 0.025 | AV60: 0.025 | AW60: 0.025 | AX60: 0.025 | AY60: 0.025 | AZ60: 0.025 | BA60: 0.025 | BB60: 0.025
A61: Fcast 2.5%; Inflation outcome 3.50% all years | B61: 3 | E61: 0.025 | F61: 0.025 | G61: 0.025 | H61: 0.025 | I61: 0.025 | J61: 0.025 | K61: 0.025 | L61: 0.025 | M61: 0.025 | N61: 0.025 | O61: 0.025 | P61: 0.025 | Q61: 0.025 | R61: 0.025 | S61: 0.025 | T61: 0.025 | U61: 0.025 | V61: 0.025 | W61: 0.025 | X61: 0.025 | Y61: 0.025 | Z61: 0.025 | AA61: 0.025 | AB61: 0.025 | AC61: 0.025 | AD61: 0.025 | AE61: 0.025 | AF61: 0.025 | AG61: 0.025 | AH61: 0.025 | AI61: 0.025 | AJ61: 0.025 | AK61: 0.025 | AL61: 0.025 | AM61: 0.025 | AN61: 0.025 | AO61: 0.025 | AP61: 0.025 | AQ61: 0.025 | AR61: 0.025 | AS61: 0.025 | AT61: 0.025 | AU61: 0.025 | AV61: 0.025 | AW61: 0.025 | AX61: 0.025 | AY61: 0.025 | AZ61: 0.025 | BA61: 0.025 | BB61: 0.025
A62: As in (1) but inflation varies around 2.50% | B62: 4 | E62: 0.025 | F62: 0.025 | G62: 0.025 | H62: 0.025 | I62: 0.025 | J62: 0.025 | K62: 0.025 | L62: 0.025 | M62: 0.025 | N62: 0.025 | O62: 0.025 | P62: 0.025 | Q62: 0.025 | R62: 0.025 | S62: 0.025 | T62: 0.025 | U62: 0.025 | V62: 0.025 | W62: 0.025 | X62: 0.025 | Y62: 0.025 | Z62: 0.025 | AA62: 0.025 | AB62: 0.025 | AC62: 0.025 | AD62: 0.025 | AE62: 0.025 | AF62: 0.025 | AG62: 0.025 | AH62: 0.025 | AI62: 0.025 | AJ62: 0.025 | AK62: 0.025 | AL62: 0.025 | AM62: 0.025 | AN62: 0.025 | AO62: 0.025 | AP62: 0.025 | AQ62: 0.025 | AR62: 0.025 | AS62: 0.025 | AT62: 0.025 | AU62: 0.025 | AV62: 0.025 | AW62: 0.025 | AX62: 0.025 | AY62: 0.025 | AZ62: 0.025 | BA62: 0.025 | BB62: 0.025
A63: As in (2) but year 5 inflation is 2.50% | B63: 5 | E63: 0.025 | F63: 0.025 | G63: 0.025 | H63: 0.025 | I63: 0.025 | J63: 0.025 | K63: 0.025 | L63: 0.025 | M63: 0.025 | N63: 0.025 | O63: 0.025 | P63: 0.025 | Q63: 0.025 | R63: 0.025 | S63: 0.025 | T63: 0.025 | U63: 0.025 | V63: 0.025 | W63: 0.025 | X63: 0.025 | Y63: 0.025 | Z63: 0.025 | AA63: 0.025 | AB63: 0.025 | AC63: 0.025 | AD63: 0.025 | AE63: 0.025 | AF63: 0.025 | AG63: 0.025 | AH63: 0.025 | AI63: 0.025 | AJ63: 0.025 | AK63: 0.025 | AL63: 0.025 | AM63: 0.025 | AN63: 0.025 | AO63: 0.025 | AP63: 0.025 | AQ63: 0.025 | AR63: 0.025 | AS63: 0.025 | AT63: 0.025 | AU63: 0.025 | AV63: 0.025 | AW63: 0.025 | AX63: 0.025 | AY63: 0.025 | AZ63: 0.025 | BA63: 0.025 | BB63: 0.025
A64: As in (3) but year 5 inflation is 2.50% | B64: 6 | E64: 0.025 | F64: 0.025 | G64: 0.025 | H64: 0.025 | I64: 0.025 | J64: 0.025 | K64: 0.025 | L64: 0.025 | M64: 0.025 | N64: 0.025 | O64: 0.025 | P64: 0.025 | Q64: 0.025 | R64: 0.025 | S64: 0.025 | T64: 0.025 | U64: 0.025 | V64: 0.025 | W64: 0.025 | X64: 0.025 | Y64: 0.025 | Z64: 0.025 | AA64: 0.025 | AB64: 0.025 | AC64: 0.025 | AD64: 0.025 | AE64: 0.025 | AF64: 0.025 | AG64: 0.025 | AH64: 0.025 | AI64: 0.025 | AJ64: 0.025 | AK64: 0.025 | AL64: 0.025 | AM64: 0.025 | AN64: 0.025 | AO64: 0.025 | AP64: 0.025 | AQ64: 0.025 | AR64: 0.025 | AS64: 0.025 | AT64: 0.025 | AU64: 0.025 | AV64: 0.025 | AW64: 0.025 | AX64: 0.025 | AY64: 0.025 | AZ64: 0.025 | BA64: 0.025 | BB64: 0.025
A65: As in (4) but inverse inflation pattern | B65: 7 | E65: 0.025 | F65: 0.025 | G65: 0.025 | H65: 0.025 | I65: 0.025 | J65: 0.025 | K65: 0.025 | L65: 0.025 | M65: 0.025 | N65: 0.025 | O65: 0.025 | P65: 0.025 | Q65: 0.025 | R65: 0.025 | S65: 0.025 | T65: 0.025 | U65: 0.025 | V65: 0.025 | W65: 0.025 | X65: 0.025 | Y65: 0.025 | Z65: 0.025 | AA65: 0.025 | AB65: 0.025 | AC65: 0.025 | AD65: 0.025 | AE65: 0.025 | AF65: 0.025 | AG65: 0.025 | AH65: 0.025 | AI65: 0.025 | AJ65: 0.025 | AK65: 0.025 | AL65: 0.025 | AM65: 0.025 | AN65: 0.025 | AO65: 0.025 | AP65: 0.025 | AQ65: 0.025 | AR65: 0.025 | AS65: 0.025 | AT65: 0.025 | AU65: 0.025 | AV65: 0.025 | AW65: 0.025 | AX65: 0.025 | AY65: 0.025 | AZ65: 0.025 | BA65: 0.025 | BB65: 0.025
A66: Fcast 3.50%; Inflation outcome 2.50% all years | B66: 8 | E66: 0.035 | F66: 0.035 | G66: 0.035 | H66: 0.035 | I66: 0.035 | J66: 0.035 | K66: 0.035 | L66: 0.035 | M66: 0.035 | N66: 0.035 | O66: 0.035 | P66: 0.035 | Q66: 0.035 | R66: 0.035 | S66: 0.035 | T66: 0.035 | U66: 0.035 | V66: 0.035 | W66: 0.035 | X66: 0.035 | Y66: 0.035 | Z66: 0.035 | AA66: 0.035 | AB66: 0.035 | AC66: 0.035 | AD66: 0.035 | AE66: 0.035 | AF66: 0.035 | AG66: 0.035 | AH66: 0.035 | AI66: 0.035 | AJ66: 0.035 | AK66: 0.035 | AL66: 0.035 | AM66: 0.035 | AN66: 0.035 | AO66: 0.035 | AP66: 0.035 | AQ66: 0.035 | AR66: 0.035 | AS66: 0.035 | AT66: 0.035 | AU66: 0.035 | AV66: 0.035 | AW66: 0.035 | AX66: 0.035 | AY66: 0.035 | AZ66: 0.035 | BA66: 0.035 | BB66: 0.035
A67: Fcast 1.50%; Inflation outcome 2.50% all years | B67: 9 | E67: 0.015 | F67: 0.015 | G67: 0.015 | H67: 0.015 | I67: 0.015 | J67: 0.015 | K67: 0.015 | L67: 0.015 | M67: 0.015 | N67: 0.015 | O67: 0.015 | P67: 0.015 | Q67: 0.015 | R67: 0.015 | S67: 0.015 | T67: 0.015 | U67: 0.015 | V67: 0.015 | W67: 0.015 | X67: 0.015 | Y67: 0.015 | Z67: 0.015 | AA67: 0.015 | AB67: 0.015 | AC67: 0.015 | AD67: 0.015 | AE67: 0.015 | AF67: 0.015 | AG67: 0.015 | AH67: 0.015 | AI67: 0.015 | AJ67: 0.015 | AK67: 0.015 | AL67: 0.015 | AM67: 0.015 | AN67: 0.015 | AO67: 0.015 | AP67: 0.015 | AQ67: 0.015 | AR67: 0.015 | AS67: 0.015 | AT67: 0.015 | AU67: 0.015 | AV67: 0.015 | AW67: 0.015 | AX67: 0.015 | AY67: 0.015 | AZ67: 0.015 | BA67: 0.015 | BB67: 0.015
A68: Monte Carlo auto generation (approach 1) | B68: 10 | E68: 0.02604593858 | F68: 0.02604593858 | G68: 0.02604593858 | H68: 0.02604593858 | I68: 0.02604593858 | J68: 0.02758581278 | K68: 0.02758581278 | L68: 0.02758581278 | M68: 0.02758581278 | N68: 0.02758581278 | O68: 0.02584353599 | P68: 0.02584353599 | Q68: 0.02584353599 | R68: 0.02584353599 | S68: 0.02584353599 | T68: 0.02551139214 | U68: 0.02551139214 | V68: 0.02551139214 | W68: 0.02551139214 | X68: 0.02551139214 | Y68: 0.02469001404 | Z68: 0.02469001404 | AA68: 0.02469001404 | AB68: 0.02469001404 | AC68: 0.02469001404 | AD68: 0.02677693849 | AE68: 0.02677693849 | AF68: 0.02677693849 | AG68: 0.02677693849 | AH68: 0.02677693849 | AI68: 0.02437436599 | AJ68: 0.02437436599 | AK68: 0.02437436599 | AL68: 0.02437436599 | AM68: 0.02437436599 | AN68: 0.02341733587 | AO68: 0.02341733587 | AP68: 0.02341733587 | AQ68: 0.02341733587 | AR68: 0.02341733587 | AS68: 0.0249154789 | AT68: 0.0249154789 | AU68: 0.0249154789 | AV68: 0.0249154789 | AW68: 0.0249154789 | AX68: 0.02287301534 | AY68: 0.02287301534 | AZ68: 0.02287301534 | BA68: 0.02287301534 | BB68: 0.02287301534
A71: Approach inputs | B71: Seven different approaches are modelled simultaneously for a given set of inflation inputs; below you can set the inflation treatment under each step of each approach
A73: Approach A | B73: The 'True Model' where actual inflation was used in all locations (or equivalently that forecasts were perfectly accurate)
A74: Actual Inflation | B74: Used in PTRM (all areas)
A75: Actual Inflation | B75: Used in Pricing
A76: Actual Inflation | B76: Used in RFM to convert New Capex to real and back to nominal
A77: Actual Inflation | B77: Used in RFM to calculate half WACC on real capex
A78: Actual Inflation | B78: Used in RFM for Indexing RAB
A79: Actual Inflation | B79: Used in RFM for SL Depn
A82: Approach B | B82: The 'AER Standard' embodied in the current PTRM/Pricing/RFM
A83: Forecast Inflation | B83: Used in PTRM (all areas)
A84: Forecast Yr 1, Lagged Inflation Yrs 2-5 | B84: Used in Pricing
A85: Lagged Inflation | B85: Used in RFM to convert New Capex to real and back to nominal
A86: Actual Inflation | B86: Used in RFM to calculate half WACC on real capex
A87: Actual Inflation | B87: Used in RFM for Indexing RAB
A88: Lagged Inflation | B88: Used in RFM for SL Depn
A91: Approach C | B91: The 'AER Standard' but adjusting pricing to always use the lagged actual inflation series
A92: Forecast Inflation | B92: Used in PTRM (all areas)
A93: Lagged Inflation | B93: Used in Pricing
A94: Lagged Inflation | B94: Used in RFM to convert New Capex to real and back to nominal
A95: Actual Inflation | B95: Used in RFM to calculate half WACC on real capex
A96: Actual Inflation | B96: Used in RFM for Indexing RAB
A97: Lagged Inflation | B97: Used in RFM for SL Depn
A100: Approach D | B100: The 'AER Standard' but adjusting pricing to use (unlagged) actual inflation (VTS pricing)
A101: Forecast Inflation | B101: Used in PTRM (all areas)
A102: Actual Inflation | B102: Used in Pricing
A103: Lagged Inflation | B103: Used in RFM to convert New Capex to real and back to nominal
A104: Actual Inflation | B104: Used in RFM to calculate half WACC on real capex
A105: Actual Inflation | B105: Used in RFM for Indexing RAB
A106: Lagged Inflation | B106: Used in RFM for SL Depn
A109: Approach E | B109: Forecast inflation in PTRM; Actual inflation in pricing/RFM
A110: Forecast Inflation | B110: Used in PTRM (all areas)
A111: Actual Inflation | B111: Used in Pricing
A112: Actual Inflation | B112: Used in RFM to convert New Capex to real and back to nominal
A113: Actual Inflation | B113: Used in RFM to calculate half WACC on real capex
A114: Actual Inflation | B114: Used in RFM for Indexing RAB
A115: Actual Inflation | B115: Used in RFM for SL Depn
A118: Approach F | B118: Major RFM alternative - using actual inflation throughout the RFM
A119: Forecast Inflation | B119: Used in PTRM (all areas)
A120: Forecast Yr 1, Lagged Inflation Yrs 2-5 | B120: Used in Pricing
A121: Actual Inflation | B121: Used in RFM to convert New Capex to real and back to nominal
A122: Actual Inflation | B122: Used in RFM to calculate half WACC on real capex
A123: Actual Inflation | B123: Used in RFM for Indexing RAB
A124: Actual Inflation | B124: Used in RFM for SL Depn
A127: Approach G | B127: Major RFM alternative - using lagged inflation throughout RFM
A128: Forecast Inflation | B128: Used in PTRM (all areas)
A129: Forecast Yr 1, Lagged Inflation Yrs 2-5 | B129: Used in Pricing
A130: Lagged Inflation | B130: Used in RFM to convert New Capex to real and back to nominal
A131: Lagged Inflation | B131: Used in RFM to calculate half WACC on real capex
A132: Lagged Inflation | B132: Used in RFM for Indexing RAB
A133: Lagged Inflation | B133: Used in RFM for SL Depn
A137: Approach H
A138: Gearing*Actual +(1-Gearing)*Forecast | B138: PTRM ORAB, PTRM Index RAB, PTRM RoC, PTRM MAR, Pricing MAR
A139: Actual inflation | B139: PTRM_Capex, PTRM_NomSLDepn
A140: Lagged Inflation | B140: Used in RFM to convert New Capex to real and back to nominal
A141: Actual Inflation | B141: Used in RFM to calculate half WACC on real capex
A142: Actual Inflation | B142: Used in RFM for Indexing RAB
A143: Lagged Inflation | B143: Used in RFM for SL Depn

Sheet Outcomes
A1: Outcomes under current inflation scenario
A3: Year | D3: 0 | E3: 1 | F3: 2 | G3: 3 | H3: 4 | I3: 5 | J3: 6 | K3: 7 | L3: 8 | M3: 9 | N3: 10 | O3: 11 | P3: 12 | Q3: 13 | R3: 14 | S3: 15 | T3: 16 | U3: 17 | V3: 18 | W3: 19 | X3: 20 | Y3: 21 | Z3: 22 | AA3: 23 | AB3: 24 | AC3: 25 | AD3: 26 | AE3: 27 | AF3: 28 | AG3: 29 | AH3: 30 | AI3: 31 | AJ3: 32 | AK3: 33 | AL3: 34 | AM3: 35 | AN3: 36 | AO3: 37 | AP3: 38 | AQ3: 39 | AR3: 40 | AS3: 41 | AT3: 42 | AU3: 43 | AV3: 44 | AW3: 45 | AX3: 46 | AY3: 47 | AZ3: 48 | BA3: 49 | BB3: 50
B4: Gearing | C4: =Inputs!B16 -> 0.6
A5: Table of different inflation options | B5: CoD nominal | C5: =Inputs!F16 -> 0.055
A6: Forecast Inflation | B6: CoE nominal | C6: =Inputs!F17 -> 0.1108705888 | E6: =INDEX(Inputs!E$59:E$68,Inputs!$B$42) -> 0.02604593858 | F6: =INDEX(Inputs!F$59:F$68,Inputs!$B$42) -> 0.02604593858 | G6: =INDEX(Inputs!G$59:G$68,Inputs!$B$42) -> 0.02604593858 | H6: =INDEX(Inputs!H$59:H$68,Inputs!$B$42) -> 0.02604593858 | I6: =INDEX(Inputs!I$59:I$68,Inputs!$B$42) -> 0.02604593858 | J6: =INDEX(Inputs!J$59:J$68,Inputs!$B$42) -> 0.02758581278 | K6: =INDEX(Inputs!K$59:K$68,Inputs!$B$42) -> 0.02758581278 | L6: =INDEX(Inputs!L$59:L$68,Inputs!$B$42) -> 0.02758581278 | M6: =INDEX(Inputs!M$59:M$68,Inputs!$B$42) -> 0.02758581278 | N6: =INDEX(Inputs!N$59:N$68,Inputs!$B$42) -> 0.02758581278 | O6: =INDEX(Inputs!O$59:O$68,Inputs!$B$42) -> 0.02584353599 | P6: =INDEX(Inputs!P$59:P$68,Inputs!$B$42) -> 0.02584353599 | Q6: =INDEX(Inputs!Q$59:Q$68,Inputs!$B$42) -> 0.02584353599 | R6: =INDEX(Inputs!R$59:R$68,Inputs!$B$42) -> 0.02584353599 | S6: =INDEX(Inputs!S$59:S$68,Inputs!$B$42) -> 0.02584353599 | T6: =INDEX(Inputs!T$59:T$68,Inputs!$B$42) -> 0.02551139214 | U6: =INDEX(Inputs!U$59:U$68,Inputs!$B$42) -> 0.02551139214 | V6: =INDEX(Inputs!V$59:V$68,Inputs!$B$42) -> 0.02551139214 | W6: =INDEX(Inputs!W$59:W$68,Inputs!$B$42) -> 0.02551139214 | X6: =INDEX(Inputs!X$59:X$68,Inputs!$B$42) -> 0.02551139214 | Y6: =INDEX(Inputs!Y$59:Y$68,Inputs!$B$42) -> 0.02469001404 | Z6: =INDEX(Inputs!Z$59:Z$68,Inputs!$B$42) -> 0.02469001404 | AA6: =INDEX(Inputs!AA$59:AA$68,Inputs!$B$42) -> 0.02469001404 | AB6: =INDEX(Inputs!AB$59:AB$68,Inputs!$B$42) -> 0.02469001404 | AC6: =INDEX(Inputs!AC$59:AC$68,Inputs!$B$42) -> 0.02469001404 | AD6: =INDEX(Inputs!AD$59:AD$68,Inputs!$B$42) -> 0.02677693849 | AE6: =INDEX(Inputs!AE$59:AE$68,Inputs!$B$42) -> 0.02677693849 | AF6: =INDEX(Inputs!AF$59:AF$68,Inputs!$B$42) -> 0.02677693849 | AG6: =INDEX(Inputs!AG$59:AG$68,Inputs!$B$42) -> 0.02677693849 | AH6: =INDEX(Inputs!AH$59:AH$68,Inputs!$B$42) -> 0.02677693849 | AI6: =INDEX(Inputs!AI$59:AI$68,Inputs!$B$42) -> 0.02437436599 | AJ6: =INDEX(Inputs!AJ$59:AJ$68,Inputs!$B$42) -> 0.02437436599 | AK6: =INDEX(Inputs!AK$59:AK$68,Inputs!$B$42) -> 0.02437436599 | AL6: =INDEX(Inputs!AL$59:AL$68,Inputs!$B$42) -> 0.02437436599 | AM6: =INDEX(Inputs!AM$59:AM$68,Inputs!$B$42) -> 0.02437436599 | AN6: =INDEX(Inputs!AN$59:AN$68,Inputs!$B$42) -> 0.02341733587 | AO6: =INDEX(Inputs!AO$59:AO$68,Inputs!$B$42) -> 0.02341733587 | AP6: =INDEX(Inputs!AP$59:AP$68,Inputs!$B$42) -> 0.02341733587 | AQ6: =INDEX(Inputs!AQ$59:AQ$68,Inputs!$B$42) -> 0.02341733587 | AR6: =INDEX(Inputs!AR$59:AR$68,Inputs!$B$42) -> 0.02341733587 | AS6: =INDEX(Inputs!AS$59:AS$68,Inputs!$B$42) -> 0.0249154789 | AT6: =INDEX(Inputs!AT$59:AT$68,Inputs!$B$42) -> 0.0249154789 | AU6: =INDEX(Inputs!AU$59:AU$68,Inputs!$B$42) -> 0.0249154789 | AV6: =INDEX(Inputs!AV$59:AV$68,Inputs!$B$42) -> 0.0249154789 | AW6: =INDEX(Inputs!AW$59:AW$68,Inputs!$B$42) -> 0.0249154789 | AX6: =INDEX(Inputs!AX$59:AX$68,Inputs!$B$42) -> 0.02287301534 | AY6: =INDEX(Inputs!AY$59:AY$68,Inputs!$B$42) -> 0.02287301534 | AZ6: =INDEX(Inputs!AZ$59:AZ$68,Inputs!$B$42) -> 0.02287301534 | BA6: =INDEX(Inputs!BA$59:BA$68,Inputs!$B$42) -> 0.02287301534 | BB6: =INDEX(Inputs!BB$59:BB$68,Inputs!$B$42) -> 0.02287301534
A7: Actual Inflation | E7: =INDEX(Inputs!E$46:E$55,Inputs!$B$42) -> 0.01210003925 | F7: =INDEX(Inputs!F$46:F$55,Inputs!$B$42) -> 0.04940537631 | G7: =INDEX(Inputs!G$46:G$55,Inputs!$B$42) -> 0.01879676772 | H7: =INDEX(Inputs!H$46:H$55,Inputs!$B$42) -> 0.01916387812 | I7: =INDEX(Inputs!I$46:I$55,Inputs!$B$42) -> 0.01898229851 | J7: =INDEX(Inputs!J$46:J$55,Inputs!$B$42) -> 0.04424345176 | K7: =INDEX(Inputs!K$46:K$55,Inputs!$B$42) -> 0.03371843145 | L7: =INDEX(Inputs!L$46:L$55,Inputs!$B$42) -> 0.05776072522 | M7: =INDEX(Inputs!M$46:M$55,Inputs!$B$42) -> 0.01647710241 | N7: =INDEX(Inputs!N$46:N$55,Inputs!$B$42) -> -0.004289250067 | O7: =INDEX(Inputs!O$46:O$55,Inputs!$B$42) -> 0.03794801417 | P7: =INDEX(Inputs!P$46:P$55,Inputs!$B$42) -> 0.01862590575 | Q7: =INDEX(Inputs!Q$46:Q$55,Inputs!$B$42) -> 0.03281679668 | R7: =INDEX(Inputs!R$46:R$55,Inputs!$B$42) -> 0.02739938407 | S7: =INDEX(Inputs!S$46:S$55,Inputs!$B$42) -> 0.03336757525 | T7: =INDEX(Inputs!T$46:T$55,Inputs!$B$42) -> 0.03702421163 | U7: =INDEX(Inputs!U$46:U$55,Inputs!$B$42) -> 0.01533300458 | V7: =INDEX(Inputs!V$46:V$55,Inputs!$B$42) -> 0.01161715552 | W7: =INDEX(Inputs!W$46:W$55,Inputs!$B$42) -> 0.02053999578 | X7: =INDEX(Inputs!X$46:X$55,Inputs!$B$42) -> 0.0215478861 | Y7: =INDEX(Inputs!Y$46:Y$55,Inputs!$B$42) -> 0.02622264859 | Z7: =INDEX(Inputs!Z$46:Z$55,Inputs!$B$42) -> 0.01786209806 | AA7: =INDEX(Inputs!AA$46:AA$55,Inputs!$B$42) -> 0.03131943821 | AB7: =INDEX(Inputs!AB$46:AB$55,Inputs!$B$42) -> 0.03567152024 | AC7: =INDEX(Inputs!AC$46:AC$55,Inputs!$B$42) -> 0.02375338754 | AD7: =INDEX(Inputs!AD$46:AD$55,Inputs!$B$42) -> 0.04042723729 | AE7: =INDEX(Inputs!AE$46:AE$55,Inputs!$B$42) -> 0.02644233056 | AF7: =INDEX(Inputs!AF$46:AF$55,Inputs!$B$42) -> 0.0315650229 | AG7: =INDEX(Inputs!AG$46:AG$55,Inputs!$B$42) -> 0.03045708836 | AH7: =INDEX(Inputs!AH$46:AH$55,Inputs!$B$42) -> 0.02660254158 | AI7: =INDEX(Inputs!AI$46:AI$55,Inputs!$B$42) -> 0.02720850376 | AJ7: =INDEX(Inputs!AJ$46:AJ$55,Inputs!$B$42) -> 0.01649898333 | AK7: =INDEX(Inputs!AK$46:AK$55,Inputs!$B$42) -> 0.03822698211 | AL7: =INDEX(Inputs!AL$46:AL$55,Inputs!$B$42) -> 0.03882382243 | AM7: =INDEX(Inputs!AM$46:AM$55,Inputs!$B$42) -> 0.007471423187 | AN7: =INDEX(Inputs!AN$46:AN$55,Inputs!$B$42) -> 0.01308563154 | AO7: =INDEX(Inputs!AO$46:AO$55,Inputs!$B$42) -> 0.02177394872 | AP7: =INDEX(Inputs!AP$46:AP$55,Inputs!$B$42) -> 0.04376762029 | AQ7: =INDEX(Inputs!AQ$46:AQ$55,Inputs!$B$42) -> 0.01651252234 | AR7: =INDEX(Inputs!AR$46:AR$55,Inputs!$B$42) -> 0.02120439059 | AS7: =INDEX(Inputs!AS$46:AS$55,Inputs!$B$42) -> 0.02382572367 | AT7: =INDEX(Inputs!AT$46:AT$55,Inputs!$B$42) -> 0.02665492232 | AU7: =INDEX(Inputs!AU$46:AU$55,Inputs!$B$42) -> 0.02674667223 | AV7: =INDEX(Inputs!AV$46:AV$55,Inputs!$B$42) -> 0.03511278157 | AW7: =INDEX(Inputs!AW$46:AW$55,Inputs!$B$42) -> 0.01873718692 | AX7: =INDEX(Inputs!AX$46:AX$55,Inputs!$B$42) -> 0.03182717029 | AY7: =INDEX(Inputs!AY$46:AY$55,Inputs!$B$42) -> -0.001105073479 | AZ7: =INDEX(Inputs!AZ$46:AZ$55,Inputs!$B$42) -> 0.03242438961 | BA7: =INDEX(Inputs!BA$46:BA$55,Inputs!$B$42) -> 0.0229760279 | BB7: =INDEX(Inputs!BB$46:BB$55,Inputs!$B$42) -> 0.0227315242
A8: Lagged Inflation | E8: =INDEX(Inputs!D$46:D$55,Inputs!$B$42) -> 0.02751306421 | F8: =INDEX(Inputs!E$46:E$55,Inputs!$B$42) -> 0.01210003925 | G8: =INDEX(Inputs!F$46:F$55,Inputs!$B$42) -> 0.04940537631 | H8: =INDEX(Inputs!G$46:G$55,Inputs!$B$42) -> 0.01879676772 | I8: =INDEX(Inputs!H$46:H$55,Inputs!$B$42) -> 0.01916387812 | J8: =INDEX(Inputs!I$46:I$55,Inputs!$B$42) -> 0.01898229851 | K8: =INDEX(Inputs!J$46:J$55,Inputs!$B$42) -> 0.04424345176 | L8: =INDEX(Inputs!K$46:K$55,Inputs!$B$42) -> 0.03371843145 | M8: =INDEX(Inputs!L$46:L$55,Inputs!$B$42) -> 0.05776072522 | N8: =INDEX(Inputs!M$46:M$55,Inputs!$B$42) -> 0.01647710241 | O8: =INDEX(Inputs!N$46:N$55,Inputs!$B$42) -> -0.004289250067 | P8: =INDEX(Inputs!O$46:O$55,Inputs!$B$42) -> 0.03794801417 | Q8: =INDEX(Inputs!P$46:P$55,Inputs!$B$42) -> 0.01862590575 | R8: =INDEX(Inputs!Q$46:Q$55,Inputs!$B$42) -> 0.03281679668 | S8: =INDEX(Inputs!R$46:R$55,Inputs!$B$42) -> 0.02739938407 | T8: =INDEX(Inputs!S$46:S$55,Inputs!$B$42) -> 0.03336757525 | U8: =INDEX(Inputs!T$46:T$55,Inputs!$B$42) -> 0.03702421163 | V8: =INDEX(Inputs!U$46:U$55,Inputs!$B$42) -> 0.01533300458 | W8: =INDEX(Inputs!V$46:V$55,Inputs!$B$42) -> 0.01161715552 | X8: =INDEX(Inputs!W$46:W$55,Inputs!$B$42) -> 0.02053999578 | Y8: =INDEX(Inputs!X$46:X$55,Inputs!$B$42) -> 0.0215478861 | Z8: =INDEX(Inputs!Y$46:Y$55,Inputs!$B$42) -> 0.02622264859 | AA8: =INDEX(Inputs!Z$46:Z$55,Inputs!$B$42) -> 0.01786209806 | AB8: =INDEX(Inputs!AA$46:AA$55,Inputs!$B$42) -> 0.03131943821 | AC8: =INDEX(Inputs!AB$46:AB$55,Inputs!$B$42) -> 0.03567152024 | AD8: =INDEX(Inputs!AC$46:AC$55,Inputs!$B$42) -> 0.02375338754 | AE8: =INDEX(Inputs!AD$46:AD$55,Inputs!$B$42) -> 0.04042723729 | AF8: =INDEX(Inputs!AE$46:AE$55,Inputs!$B$42) -> 0.02644233056 | AG8: =INDEX(Inputs!AF$46:AF$55,Inputs!$B$42) -> 0.0315650229 | AH8: =INDEX(Inputs!AG$46:AG$55,Inputs!$B$42) -> 0.03045708836 | AI8: =INDEX(Inputs!AH$46:AH$55,Inputs!$B$42) -> 0.02660254158 | AJ8: =INDEX(Inputs!AI$46:AI$55,Inputs!$B$42) -> 0.02720850376 | AK8: =INDEX(Inputs!AJ$46:AJ$55,Inputs!$B$42) -> 0.01649898333 | AL8: =INDEX(Inputs!AK$46:AK$55,Inputs!$B$42) -> 0.03822698211 | AM8: =INDEX(Inputs!AL$46:AL$55,Inputs!$B$42) -> 0.03882382243 | AN8: =INDEX(Inputs!AM$46:AM$55,Inputs!$B$42) -> 0.007471423187 | AO8: =INDEX(Inputs!AN$46:AN$55,Inputs!$B$42) -> 0.01308563154 | AP8: =INDEX(Inputs!AO$46:AO$55,Inputs!$B$42) -> 0.02177394872 | AQ8: =INDEX(Inputs!AP$46:AP$55,Inputs!$B$42) -> 0.04376762029 | AR8: =INDEX(Inputs!AQ$46:AQ$55,Inputs!$B$42) -> 0.01651252234 | AS8: =INDEX(Inputs!AR$46:AR$55,Inputs!$B$42) -> 0.02120439059 | AT8: =INDEX(Inputs!AS$46:AS$55,Inputs!$B$42) -> 0.02382572367 | AU8: =INDEX(Inputs!AT$46:AT$55,Inputs!$B$42) -> 0.02665492232 | AV8: =INDEX(Inputs!AU$46:AU$55,Inputs!$B$42) -> 0.02674667223 | AW8: =INDEX(Inputs!AV$46:AV$55,Inputs!$B$42) -> 0.03511278157 | AX8: =INDEX(Inputs!AW$46:AW$55,Inputs!$B$42) -> 0.01873718692 | AY8: =INDEX(Inputs!AX$46:AX$55,Inputs!$B$42) -> 0.03182717029 | AZ8: =INDEX(Inputs!AY$46:AY$55,Inputs!$B$42) -> -0.001105073479 | BA8: =INDEX(Inputs!AZ$46:AZ$55,Inputs!$B$42) -> 0.03242438961 | BB8: =INDEX(Inputs!BA$46:BA$55,Inputs!$B$42) -> 0.0229760279
A9: Forecast Yr 1, Lagged Inflation Yrs 2-5 | E9: =INDEX(Inputs!E$59:E$68,Inputs!$B$42) -> 0.02604593858 | F9: =INDEX(Inputs!E$46:E$55,Inputs!$B$42) -> 0.01210003925 | G9: =INDEX(Inputs!F$46:F$55,Inputs!$B$42) -> 0.04940537631 | H9: =INDEX(Inputs!G$46:G$55,Inputs!$B$42) -> 0.01879676772 | I9: =INDEX(Inputs!H$46:H$55,Inputs!$B$42) -> 0.01916387812 | J9: =INDEX(Inputs!J$59:J$68,Inputs!$B$42) -> 0.02758581278 | K9: =INDEX(Inputs!J$46:J$55,Inputs!$B$42) -> 0.04424345176 | L9: =INDEX(Inputs!K$46:K$55,Inputs!$B$42) -> 0.03371843145 | M9: =INDEX(Inputs!L$46:L$55,Inputs!$B$42) -> 0.05776072522 | N9: =INDEX(Inputs!M$46:M$55,Inputs!$B$42) -> 0.01647710241 | O9: =INDEX(Inputs!O$59:O$68,Inputs!$B$42) -> 0.02584353599 | P9: =INDEX(Inputs!O$46:O$55,Inputs!$B$42) -> 0.03794801417 | Q9: =INDEX(Inputs!P$46:P$55,Inputs!$B$42) -> 0.01862590575 | R9: =INDEX(Inputs!Q$46:Q$55,Inputs!$B$42) -> 0.03281679668 | S9: =INDEX(Inputs!R$46:R$55,Inputs!$B$42) -> 0.02739938407 | T9: =INDEX(Inputs!T$59:T$68,Inputs!$B$42) -> 0.02551139214 | U9: =INDEX(Inputs!T$46:T$55,Inputs!$B$42) -> 0.03702421163 | V9: =INDEX(Inputs!U$46:U$55,Inputs!$B$42) -> 0.01533300458 | W9: =INDEX(Inputs!V$46:V$55,Inputs!$B$42) -> 0.01161715552 | X9: =INDEX(Inputs!W$46:W$55,Inputs!$B$42) -> 0.02053999578 | Y9: =INDEX(Inputs!Y$59:Y$68,Inputs!$B$42) -> 0.02469001404 | Z9: =INDEX(Inputs!Y$46:Y$55,Inputs!$B$42) -> 0.02622264859 | AA9: =INDEX(Inputs!Z$46:Z$55,Inputs!$B$42) -> 0.01786209806 | AB9: =INDEX(Inputs!AA$46:AA$55,Inputs!$B$42) -> 0.03131943821 | AC9: =INDEX(Inputs!AB$46:AB$55,Inputs!$B$42) -> 0.03567152024 | AD9: =INDEX(Inputs!AD$59:AD$68,Inputs!$B$42) -> 0.02677693849 | AE9: =INDEX(Inputs!AD$46:AD$55,Inputs!$B$42) -> 0.04042723729 | AF9: =INDEX(Inputs!AE$46:AE$55,Inputs!$B$42) -> 0.02644233056 | AG9: =INDEX(Inputs!AF$46:AF$55,Inputs!$B$42) -> 0.0315650229 | AH9: =INDEX(Inputs!AG$46:AG$55,Inputs!$B$42) -> 0.03045708836 | AI9: =INDEX(Inputs!AI$59:AI$68,Inputs!$B$42) -> 0.02437436599 | AJ9: =INDEX(Inputs!AI$46:AI$55,Inputs!$B$42) -> 0.02720850376 | AK9: =INDEX(Inputs!AJ$46:AJ$55,Inputs!$B$42) -> 0.01649898333 | AL9: =INDEX(Inputs!AK$46:AK$55,Inputs!$B$42) -> 0.03822698211 | AM9: =INDEX(Inputs!AL$46:AL$55,Inputs!$B$42) -> 0.03882382243 | AN9: =INDEX(Inputs!AN$59:AN$68,Inputs!$B$42) -> 0.02341733587 | AO9: =INDEX(Inputs!AN$46:AN$55,Inputs!$B$42) -> 0.01308563154 | AP9: =INDEX(Inputs!AO$46:AO$55,Inputs!$B$42) -> 0.02177394872 | AQ9: =INDEX(Inputs!AP$46:AP$55,Inputs!$B$42) -> 0.04376762029 | AR9: =INDEX(Inputs!AQ$46:AQ$55,Inputs!$B$42) -> 0.01651252234 | AS9: =INDEX(Inputs!AS$59:AS$68,Inputs!$B$42) -> 0.0249154789 | AT9: =INDEX(Inputs!AS$46:AS$55,Inputs!$B$42) -> 0.02382572367 | AU9: =INDEX(Inputs!AT$46:AT$55,Inputs!$B$42) -> 0.02665492232 | AV9: =INDEX(Inputs!AU$46:AU$55,Inputs!$B$42) -> 0.02674667223 | AW9: =INDEX(Inputs!AV$46:AV$55,Inputs!$B$42) -> 0.03511278157 | AX9: =INDEX(Inputs!AX$59:AX$68,Inputs!$B$42) -> 0.02287301534 | AY9: =INDEX(Inputs!AX$46:AX$55,Inputs!$B$42) -> 0.03182717029 | AZ9: =INDEX(Inputs!AY$46:AY$55,Inputs!$B$42) -> -0.001105073479 | BA9: =INDEX(Inputs!AZ$46:AZ$55,Inputs!$B$42) -> 0.03242438961 | BB9: =INDEX(Inputs!BA$46:BA$55,Inputs!$B$42) -> 0.0229760279
A10: Gearing*Actual +(1-Gearing)*Forecast | E10: =(1-Inputs!$B$16)*E6+Inputs!$B$16*E7 -> 0.01767839898 | F10: =(1-Inputs!$B$16)*F6+Inputs!$B$16*F7 -> 0.04006160122 | G10: =(1-Inputs!$B$16)*G6+Inputs!$B$16*G7 -> 0.02169643606 | H10: =(1-Inputs!$B$16)*H6+Inputs!$B$16*H7 -> 0.0219167023 | I10: =(1-Inputs!$B$16)*I6+Inputs!$B$16*I7 -> 0.02180775454 | J10: =(1-Inputs!$B$16)*J6+Inputs!$B$16*J7 -> 0.03758039617 | K10: =(1-Inputs!$B$16)*K6+Inputs!$B$16*K7 -> 0.03126538398 | L10: =(1-Inputs!$B$16)*L6+Inputs!$B$16*L7 -> 0.04569076025 | M10: =(1-Inputs!$B$16)*M6+Inputs!$B$16*M7 -> 0.02092058656 | N10: =(1-Inputs!$B$16)*N6+Inputs!$B$16*N7 -> 0.008460775073 | O10: =(1-Inputs!$B$16)*O6+Inputs!$B$16*O7 -> 0.0331062229 | P10: =(1-Inputs!$B$16)*P6+Inputs!$B$16*P7 -> 0.02151295785 | Q10: =(1-Inputs!$B$16)*Q6+Inputs!$B$16*Q7 -> 0.0300274924 | R10: =(1-Inputs!$B$16)*R6+Inputs!$B$16*R7 -> 0.02677704484 | S10: =(1-Inputs!$B$16)*S6+Inputs!$B$16*S7 -> 0.03035795954 | T10: =(1-Inputs!$B$16)*T6+Inputs!$B$16*T7 -> 0.03241908383 | U10: =(1-Inputs!$B$16)*U6+Inputs!$B$16*U7 -> 0.0194043596 | V10: =(1-Inputs!$B$16)*V6+Inputs!$B$16*V7 -> 0.01717485017 | W10: =(1-Inputs!$B$16)*W6+Inputs!$B$16*W7 -> 0.02252855432 | X10: =(1-Inputs!$B$16)*X6+Inputs!$B$16*X7 -> 0.02313328851 | Y10: =(1-Inputs!$B$16)*Y6+Inputs!$B$16*Y7 -> 0.02560959477 | Z10: =(1-Inputs!$B$16)*Z6+Inputs!$B$16*Z7 -> 0.02059326445 | AA10: =(1-Inputs!$B$16)*AA6+Inputs!$B$16*AA7 -> 0.02866766854 | AB10: =(1-Inputs!$B$16)*AB6+Inputs!$B$16*AB7 -> 0.03127891776 | AC10: =(1-Inputs!$B$16)*AC6+Inputs!$B$16*AC7 -> 0.02412803814 | AD10: =(1-Inputs!$B$16)*AD6+Inputs!$B$16*AD7 -> 0.03496711777 | AE10: =(1-Inputs!$B$16)*AE6+Inputs!$B$16*AE7 -> 0.02657617373 | AF10: =(1-Inputs!$B$16)*AF6+Inputs!$B$16*AF7 -> 0.02964978914 | AG10: =(1-Inputs!$B$16)*AG6+Inputs!$B$16*AG7 -> 0.02898502841 | AH10: =(1-Inputs!$B$16)*AH6+Inputs!$B$16*AH7 -> 0.02667230034 | AI10: =(1-Inputs!$B$16)*AI6+Inputs!$B$16*AI7 -> 0.02607484865 | AJ10: =(1-Inputs!$B$16)*AJ6+Inputs!$B$16*AJ7 -> 0.0196491364 | AK10: =(1-Inputs!$B$16)*AK6+Inputs!$B$16*AK7 -> 0.03268593567 | AL10: =(1-Inputs!$B$16)*AL6+Inputs!$B$16*AL7 -> 0.03304403985 | AM10: =(1-Inputs!$B$16)*AM6+Inputs!$B$16*AM7 -> 0.01423260031 | AN10: =(1-Inputs!$B$16)*AN6+Inputs!$B$16*AN7 -> 0.01721831327 | AO10: =(1-Inputs!$B$16)*AO6+Inputs!$B$16*AO7 -> 0.02243130358 | AP10: =(1-Inputs!$B$16)*AP6+Inputs!$B$16*AP7 -> 0.03562750653 | AQ10: =(1-Inputs!$B$16)*AQ6+Inputs!$B$16*AQ7 -> 0.01927444775 | AR10: =(1-Inputs!$B$16)*AR6+Inputs!$B$16*AR7 -> 0.0220895687 | AS10: =(1-Inputs!$B$16)*AS6+Inputs!$B$16*AS7 -> 0.02426162576 | AT10: =(1-Inputs!$B$16)*AT6+Inputs!$B$16*AT7 -> 0.02595914495 | AU10: =(1-Inputs!$B$16)*AU6+Inputs!$B$16*AU7 -> 0.02601419489 | AV10: =(1-Inputs!$B$16)*AV6+Inputs!$B$16*AV7 -> 0.0310338605 | AW10: =(1-Inputs!$B$16)*AW6+Inputs!$B$16*AW7 -> 0.02120850371 | AX10: =(1-Inputs!$B$16)*AX6+Inputs!$B$16*AX7 -> 0.02824550831 | AY10: =(1-Inputs!$B$16)*AY6+Inputs!$B$16*AY7 -> 0.008486162049 | AZ10: =(1-Inputs!$B$16)*AZ6+Inputs!$B$16*AZ7 -> 0.0286038399 | BA10: =(1-Inputs!$B$16)*BA6+Inputs!$B$16*BA7 -> 0.02293482288 | BB10: =(1-Inputs!$B$16)*BB6+Inputs!$B$16*BB7 -> 0.02278812066
A11: (Not required) | E11: NA | F11: NA | G11: NA | H11: NA | I11: NA | J11: NA | K11: NA | L11: NA | M11: NA | N11: NA | O11: NA | P11: NA | Q11: NA | R11: NA | S11: NA | T11: NA | U11: NA | V11: NA | W11: NA | X11: NA | Y11: NA | Z11: NA | AA11: NA | AB11: NA | AC11: NA | AD11: NA | AE11: NA | AF11: NA | AG11: NA | AH11: NA | AI11: NA | AJ11: NA | AK11: NA | AL11: NA | AM11: NA | AN11: NA | AO11: NA | AP11: NA | AQ11: NA | AR11: NA | AS11: NA | AT11: NA | AU11: NA | AV11: NA | AW11: NA | AX11: NA | AY11: NA | AZ11: NA | BA11: NA | BB11: NA
A13: Approach A
A14: Actual Inflation | B14: Chosen inflation | E14: =INDEX(E$6:E$11,MATCH($A14,$A$6:$A$11,0)) -> 0.01210003925 | F14: =INDEX(F$6:F$11,MATCH($A14,$A$6:$A$11,0)) -> 0.04940537631 | G14: =INDEX(G$6:G$11,MATCH($A14,$A$6:$A$11,0)) -> 0.01879676772 | H14: =INDEX(H$6:H$11,MATCH($A14,$A$6:$A$11,0)) -> 0.01916387812 | I14: =INDEX(I$6:I$11,MATCH($A14,$A$6:$A$11,0)) -> 0.01898229851 | J14: =INDEX(J$6:J$11,MATCH($A14,$A$6:$A$11,0)) -> 0.04424345176 | K14: 0.03371843145 | L14: 0.05776072522 | M14: 0.01647710241 | N14: -0.004289250067 | O14: 0.03794801417 | P14: 0.01862590575 | Q14: 0.03281679668 | R14: 0.02739938407 | S14: 0.03336757525 | T14: 0.03702421163 | U14: 0.01533300458 | V14: 0.01161715552 | W14: 0.02053999578 | X14: 0.0215478861 | Y14: 0.02622264859 | Z14: 0.01786209806 | AA14: 0.03131943821 | AB14: 0.03567152024 | AC14: 0.02375338754 | AD14: 0.04042723729 | AE14: 0.02644233056 | AF14: 0.0315650229 | AG14: 0.03045708836 | AH14: 0.02660254158 | AI14: 0.02720850376 | AJ14: 0.01649898333 | AK14: 0.03822698211 | AL14: 0.03882382243 | AM14: 0.007471423187 | AN14: 0.01308563154 | AO14: 0.02177394872 | AP14: 0.04376762029 | AQ14: 0.01651252234 | AR14: 0.02120439059 | AS14: 0.02382572367 | AT14: 0.02665492232 | AU14: 0.02674667223 | AV14: 0.03511278157 | AW14: 0.01873718692 | AX14: 0.03182717029 | AY14: -0.001105073479 | AZ14: 0.03242438961 | BA14: 0.0229760279 | BB14: 0.0227315242
B15: Constructed index | D15: 1 | E15: =IFERROR(D15*(1+E14),"NA") -> 1.012100039 | F15: 1.062103223 | G15: 1.08206733 | H15: 1.102803937 | I15: 1.12373769 | J15: 1.173455724 | K15: 1.213022811 | L15: 1.283087888 | M15: 1.304229459 | N15: 1.298635292 | O15: 1.347915923 | P15: 1.373022078 | Q15: 1.418080264 | R15: 1.45693479 | S15: 1.505549171 | T15: 1.561290942 | U15: 1.585230223 | V15: 1.603646089 | W15: 1.636584973 | X15: 1.67184992 | Y15: 1.715690253 | Z15: 1.74633608 | AA15: 1.801030345 | AB15: 1.865275836 | AC15: 1.909582456 | AD15: 1.986781599 | AE15: 2.039316734 | AF15: 2.103687814 | AG15: 2.167760019 | AH15: 2.225427945 | AI15: 2.28597851 | AJ15: 2.323694831 | AK15: 2.412522672 | AL15: 2.506186024 | AM15: 2.5249108 | AN15: 2.557950853 | AO15: 2.613647543 | AP15: 2.728040677 | AQ15: 2.773087509 | AR15: 2.83188914 | AS15: 2.899360948 | AT15: 2.976643189 | AU15: 3.056258489 | AV15: 3.163572226 | AW15: 3.22284867 | AX15: 3.325422823 | AY15: 3.321747986 | AZ15: 3.429453637 | BA15: 3.50824886 | BB15: 3.587996704
A17: Closing RAB (PTRM) | B17: Nominal | D17: =PTRM_ORAB!E28 -> 1038.695681 | E17: =PTRM_ORAB!F28 -> 1120.556758 | F17: =PTRM_ORAB!G28 -> 1246.984486 | G17: =PTRM_ORAB!H28 -> 1337.37086 | H17: =PTRM_ORAB!I28 -> 1427.448652 | I17: ='PTRM-RFM_Rollover'!H28 -> 1516.331616 | J17: =PTRM_ORAB!K28 -> 1645.389069 | K17: =PTRM_ORAB!L28 -> 1760.052579 | L17: =PTRM_ORAB!M28 -> 1921.406279 | M17: =PTRM_ORAB!N28 -> 2006.450213 | N17: ='PTRM-RFM_Rollover'!M28 -> 2045.150191 | O17: =PTRM_ORAB!P28 -> 2029.443027 | P17: =PTRM_ORAB!Q28 -> 1972.188584 | Q17: =PTRM_ORAB!R28 -> 1938.735449 | R17: =PTRM_ORAB!S28 -> 1890.991651 | S17: ='PTRM-RFM_Rollover'!R28 -> 1849.859916 | T17: =PTRM_ORAB!U28 -> 1810.260964 | U17: =PTRM_ORAB!V28 -> 1728.271823 | V17: =PTRM_ORAB!W28 -> 1637.328611 | W17: =PTRM_ORAB!X28 -> 1557.658152 | X17: ='PTRM-RFM_Rollover'!W28 -> 1475.47981 | Y17: =PTRM_ORAB!Z28 -> 1395.393138 | Z17: =PTRM_ORAB!AA28 -> 1299.418509 | AA17: =PTRM_ORAB!AB28 -> 1215.429791 | AB17: =PTRM_ORAB!AC28 -> 1129.652513 | AC17: ='PTRM-RFM_Rollover'!AB28 -> 1024.284722 | AD17: =PTRM_ORAB!AE28 -> 928.1483428 | AE17: =PTRM_ORAB!AF28 -> 811.5083469 | AF17: =PTRM_ORAB!AG28 -> 691.4847996 | AG17: =PTRM_ORAB!AH28 -> 562.4708518 | AH17: ='PTRM-RFM_Rollover'!AG28 -> 423.3670797 | AI17: =PTRM_ORAB!AJ28 -> 355.7752745 | AJ17: =PTRM_ORAB!AK28 -> 289.213767 | AK17: =PTRM_ORAB!AL28 -> 233.5107015 | AL17: =PTRM_ORAB!AM28 -> 181.8661443 | AM17: ='PTRM-RFM_Rollover'!AL28 -> 130.7674721 | AN17: =PTRM_ORAB!AO28 -> 88.1543373 | AO17: =PTRM_ORAB!AP28 -> 53.90703625 | AP17: =PTRM_ORAB!AQ28 -> 27.99054162 | AQ17: =PTRM_ORAB!AR28 -> 9.451561562 | AR17: ='PTRM-RFM_Rollover'!AQ28 -> 3.601308649e-14 | AS17: =PTRM_ORAB!AT28 -> 3.687112433e-14 | AT17: =PTRM_ORAB!AU28 -> 3.785392129e-14 | AU17: =PTRM_ORAB!AV28 -> 3.886638771e-14 | AV17: =PTRM_ORAB!AW28 -> 4.02310947e-14 | AW17: ='PTRM-RFM_Rollover'!AV28 -> 4.098491224e-14 | AX17: =PTRM_ORAB!AY28 -> 4.228934602e-14 | AY17: =PTRM_ORAB!AZ28 -> 4.224261318e-14 | AZ17: =PTRM_ORAB!BA28 -> 4.361230413e-14 | BA17: =PTRM_ORAB!BB28 -> 4.461434165e-14 | BB17: ='PTRM-RFM_Rollover'!BA28 -> 4.562849363e-14
A18: MAR (PTRM) | B18: Nominal | E18: =PTRM_MAR!E28 -> 87.60532828 | F18: =PTRM_MAR!F28 -> 99.21897056 | G18: =PTRM_MAR!G28 -> 108.4902304 | H18: =PTRM_MAR!H28 -> 117.7828565 | I18: =PTRM_MAR!I28 -> 127.1771427 | J18: =PTRM_MAR!J28 -> 140.0758938 | K18: =PTRM_MAR!K28 -> 152.2359205 | L18: =PTRM_MAR!L28 -> 168.6151343 | M18: =PTRM_MAR!M28 -> 179.0088315 | N18: =PTRM_MAR!N28 -> 185.3708834 | O18: =PTRM_MAR!O28 -> 199.4545312 | P18: =PTRM_MAR!P28 -> 198.4168196 | Q18: =PTRM_MAR!Q28 -> 200.0195217 | R18: =PTRM_MAR!R28 -> 200.4567356 | S18: =PTRM_MAR!S28 -> 201.9340138 | T18: =PTRM_MAR!T28 -> 204.0060336 | U18: =PTRM_MAR!U28 -> 201.646765 | V18: =PTRM_MAR!V28 -> 198.4382861 | W18: =PTRM_MAR!W28 -> 196.8491486 | X18: =PTRM_MAR!X28 -> 195.3037025 | Y18: =PTRM_MAR!Y28 -> 194.4861998 | Z18: =PTRM_MAR!Z28 -> 191.9151675 | AA18: =PTRM_MAR!AA28 -> 191.6915539 | AB18: =PTRM_MAR!AB28 -> 192.0728078 | AC18: =PTRM_MAR!AC28 -> 190.0251443 | AD18: =PTRM_MAR!AD28 -> 190.8300669 | AE18: =PTRM_MAR!AE28 -> 188.8169386 | AF18: =PTRM_MAR!AF28 -> 187.4950082 | AG18: =PTRM_MAR!AG28 -> 185.7018322 | AH18: =PTRM_MAR!AH28 -> 182.9386266 | AI18: =PTRM_MAR!AI28 -> 100.8553032 | AJ18: =PTRM_MAR!AJ28 -> 90.51369808 | AK18: =PTRM_MAR!AK28 -> 81.77231184 | AL18: =PTRM_MAR!AL28 -> 72.8391592 | AM18: =PTRM_MAR!AM28 -> 61.61871825 | AN18: =PTRM_MAR!AN28 -> 50.94824214 | AO18: =PTRM_MAR!AO28 -> 40.67045934 | AP18: =PTRM_MAR!AP28 -> 31.08919826 | AQ18: =PTRM_MAR!AQ28 -> 20.42381131 | AR18: =PTRM_MAR!AR28 -> 10.13457497 | AS18: =PTRM_MAR!AS28 -> 1.843556217e-15 | AT18: =PTRM_MAR!AT28 -> 1.892696064e-15 | AU18: =PTRM_MAR!AU28 -> 1.943319386e-15 | AV18: =PTRM_MAR!AV28 -> 2.011554735e-15 | AW18: =PTRM_MAR!AW28 -> 2.049245612e-15 | AX18: =PTRM_MAR!AX28 -> 2.114467301e-15 | AY18: =PTRM_MAR!AY28 -> 2.112130659e-15 | AZ18: =PTRM_MAR!AZ28 -> 2.180615207e-15 | BA18: =PTRM_MAR!BA28 -> 2.230717082e-15 | BB18: =PTRM_MAR!BB28 -> 2.281424682e-15
A19: MAR (Pricing) | B19: Nominal | E19: =Pricing_MAR!E28 -> 87.60532828 | F19: =Pricing_MAR!F28 -> 99.21897056 | G19: =Pricing_MAR!G28 -> 108.4902304 | H19: =Pricing_MAR!H28 -> 117.7828565 | I19: =Pricing_MAR!I28 -> 127.1771427 | J19: =Pricing_MAR!J28 -> 140.0758938 | K19: =Pricing_MAR!K28 -> 152.2359205 | L19: =Pricing_MAR!L28 -> 168.6151343 | M19: =Pricing_MAR!M28 -> 179.0088315 | N19: =Pricing_MAR!N28 -> 185.3708834 | O19: =Pricing_MAR!O28 -> 199.4545312 | P19: =Pricing_MAR!P28 -> 198.4168196 | Q19: =Pricing_MAR!Q28 -> 200.0195217 | R19: =Pricing_MAR!R28 -> 200.4567356 | S19: =Pricing_MAR!S28 -> 201.9340138 | T19: =Pricing_MAR!T28 -> 204.0060336 | U19: =Pricing_MAR!U28 -> 201.646765 | V19: =Pricing_MAR!V28 -> 198.4382861 | W19: =Pricing_MAR!W28 -> 196.8491486 | X19: =Pricing_MAR!X28 -> 195.3037025 | Y19: =Pricing_MAR!Y28 -> 194.4861998 | Z19: =Pricing_MAR!Z28 -> 191.9151675 | AA19: =Pricing_MAR!AA28 -> 191.6915539 | AB19: =Pricing_MAR!AB28 -> 192.0728078 | AC19: =Pricing_MAR!AC28 -> 190.0251443 | AD19: =Pricing_MAR!AD28 -> 190.8300669 | AE19: =Pricing_MAR!AE28 -> 188.8169386 | AF19: =Pricing_MAR!AF28 -> 187.4950082 | AG19: =Pricing_MAR!AG28 -> 185.7018322 | AH19: =Pricing_MAR!AH28 -> 182.9386266 | AI19: =Pricing_MAR!AI28 -> 100.8553032 | AJ19: =Pricing_MAR!AJ28 -> 90.51369808 | AK19: =Pricing_MAR!AK28 -> 81.77231184 | AL19: =Pricing_MAR!AL28 -> 72.8391592 | AM19: =Pricing_MAR!AM28 -> 61.61871825 | AN19: =Pricing_MAR!AN28 -> 50.94824214 | AO19: =Pricing_MAR!AO28 -> 40.67045934 | AP19: =Pricing_MAR!AP28 -> 31.08919826 | AQ19: =Pricing_MAR!AQ28 -> 20.42381131 | AR19: =Pricing_MAR!AR28 -> 10.13457497 | AS19: =Pricing_MAR!AS28 -> 1.843556217e-15 | AT19: =Pricing_MAR!AT28 -> 1.892696064e-15 | AU19: =Pricing_MAR!AU28 -> 1.943319386e-15 | AV19: =Pricing_MAR!AV28 -> 2.011554735e-15 | AW19: =Pricing_MAR!AW28 -> 2.049245612e-15 | AX19: =Pricing_MAR!AX28 -> 2.114467301e-15 | AY19: =Pricing_MAR!AY28 -> 2.112130659e-15 | AZ19: =Pricing_MAR!AZ28 -> 2.180615207e-15 | BA19: =Pricing_MAR!BA28 -> 2.230717082e-15 | BB19: =Pricing_MAR!BB28 -> 2.281424682e-15
A20: Opening RAB (RFM) | B20: Nominal | E20: =RFM_ORAB!E28 -> 1038.695681 | F20: =RFM_ORAB!F28 -> 1120.556758 | G20: =RFM_ORAB!G28 -> 1246.984486 | H20: =RFM_ORAB!H28 -> 1337.37086 | I20: =RFM_ORAB!I28 -> 1427.448652 | J20: =RFM_ORAB!J28 -> 1516.331616 | K20: =RFM_ORAB!K28 -> 1645.389069 | L20: =RFM_ORAB!L28 -> 1760.052579 | M20: =RFM_ORAB!M28 -> 1921.406279 | N20: =RFM_ORAB!N28 -> 2006.450213 | O20: =RFM_ORAB!O28 -> 2045.150191 | P20: =RFM_ORAB!P28 -> 2029.443027 | Q20: =RFM_ORAB!Q28 -> 1972.188584 | R20: =RFM_ORAB!R28 -> 1938.735449 | S20: =RFM_ORAB!S28 -> 1890.991651 | T20: =RFM_ORAB!T28 -> 1849.859916 | U20: =RFM_ORAB!U28 -> 1810.260964 | V20: =RFM_ORAB!V28 -> 1728.271823 | W20: =RFM_ORAB!W28 -> 1637.328611 | X20: =RFM_ORAB!X28 -> 1557.658152 | Y20: =RFM_ORAB!Y28 -> 1475.47981 | Z20: =RFM_ORAB!Z28 -> 1395.393138 | AA20: =RFM_ORAB!AA28 -> 1299.418509 | AB20: =RFM_ORAB!AB28 -> 1215.429791 | AC20: =RFM_ORAB!AC28 -> 1129.652513 | AD20: =RFM_ORAB!AD28 -> 1024.284722 | AE20: =RFM_ORAB!AE28 -> 928.1483428 | AF20: =RFM_ORAB!AF28 -> 811.5083469 | AG20: =RFM_ORAB!AG28 -> 691.4847996 | AH20: =RFM_ORAB!AH28 -> 562.4708518 | AI20: =RFM_ORAB!AI28 -> 423.3670797 | AJ20: =RFM_ORAB!AJ28 -> 355.7752745 | AK20: =RFM_ORAB!AK28 -> 289.213767 | AL20: =RFM_ORAB!AL28 -> 233.5107015 | AM20: =RFM_ORAB!AM28 -> 181.8661443 | AN20: =RFM_ORAB!AN28 -> 130.7674721 | AO20: =RFM_ORAB!AO28 -> 88.1543373 | AP20: =RFM_ORAB!AP28 -> 53.90703625 | AQ20: =RFM_ORAB!AQ28 -> 27.99054162 | AR20: =RFM_ORAB!AR28 -> 9.451561562 | AS20: =RFM_ORAB!AS28 -> 3.601308649e-14 | AT20: =RFM_ORAB!AT28 -> 3.687112433e-14 | AU20: =RFM_ORAB!AU28 -> 3.785392129e-14 | AV20: =RFM_ORAB!AV28 -> 3.886638771e-14 | AW20: =RFM_ORAB!AW28 -> 4.02310947e-14 | AX20: =RFM_ORAB!AX28 -> 4.098491224e-14 | AY20: =RFM_ORAB!AY28 -> 4.228934602e-14 | AZ20: =RFM_ORAB!AZ28 -> 4.224261318e-14 | BA20: =RFM_ORAB!BA28 -> 4.361230413e-14 | BB20: =RFM_ORAB!BB28 -> 4.461434165e-14
A21: Capex (RFM) | B21: Nominal | D21: =RFM_NomCapex!D28 -> 1024.695077 | E21: =RFM_NomCapex!E28 -> 104.33495 | F21: =RFM_NomCapex!F28 -> 111.4892563 | G21: =RFM_NomCapex!G28 -> 111.9161376 | H21: =RFM_NomCapex!H28 -> 114.0814332 | I21: =RFM_NomCapex!I28 -> 116.236605 | J21: =RFM_NomCapex!J28 -> 122.8746341 | K21: =RFM_NomCapex!K28 -> 126.3760414 | L21: =RFM_NomCapex!L28 -> 135.2211963 | M21: =RFM_NomCapex!M28 -> 134.7402829 | N21: =RFM_NomCapex!N28 -> 132.784826 | O21: =RFM_NomCapex!O28 -> 0 | P21: =RFM_NomCapex!P28 -> 0 | Q21: =RFM_NomCapex!Q28 -> 0 | R21: =RFM_NomCapex!R28 -> 0 | S21: =RFM_NomCapex!S28 -> 0 | T21: =RFM_NomCapex!T28 -> 0 | U21: =RFM_NomCapex!U28 -> 0 | V21: =RFM_NomCapex!V28 -> 0 | W21: =RFM_NomCapex!W28 -> 0 | X21: =RFM_NomCapex!X28 -> 0 | Y21: =RFM_NomCapex!Y28 -> 0 | Z21: =RFM_NomCapex!Z28 -> 0 | AA21: =RFM_NomCapex!AA28 -> 0 | AB21: =RFM_NomCapex!AB28 -> 0 | AC21: =RFM_NomCapex!AC28 -> 0 | AD21: =RFM_NomCapex!AD28 -> 0 | AE21: =RFM_NomCapex!AE28 -> 0 | AF21: =RFM_NomCapex!AF28 -> 0 | AG21: =RFM_NomCapex!AG28 -> 0 | AH21: =RFM_NomCapex!AH28 -> 0 | AI21: =RFM_NomCapex!AI28 -> 0 | AJ21: =RFM_NomCapex!AJ28 -> 0 | AK21: =RFM_NomCapex!AK28 -> 0 | AL21: =RFM_NomCapex!AL28 -> 0 | AM21: =RFM_NomCapex!AM28 -> 0 | AN21: =RFM_NomCapex!AN28 -> 0 | AO21: =RFM_NomCapex!AO28 -> 0 | AP21: =RFM_NomCapex!AP28 -> 0 | AQ21: =RFM_NomCapex!AQ28 -> 0 | AR21: =RFM_NomCapex!AR28 -> 0 | AS21: =RFM_NomCapex!AS28 -> 0 | AT21: =RFM_NomCapex!AT28 -> 0 | AU21: =RFM_NomCapex!AU28 -> 0 | AV21: =RFM_NomCapex!AV28 -> 0 | AW21: =RFM_NomCapex!AW28 -> 0 | AX21: =RFM_NomCapex!AX28 -> 0 | AY21: =RFM_NomCapex!AY28 -> 0 | AZ21: =RFM_NomCapex!AZ28 -> 0 | BA21: =RFM_NomCapex!BA28 -> 0 | BB21: =RFM_NomCapex!BB28 -> 0
A22: Reg Depreciation (RFM) | B22: Nominal | E22: =RFM_NomSLDepn!E28-RFM_IndexRAB!E28 -> 22.4738728 | F22: =RFM_NomSLDepn!F28-RFM_IndexRAB!F28 -> -14.93847206 | G22: =RFM_NomSLDepn!G28-RFM_IndexRAB!G28 -> 21.52976444 | H22: =RFM_NomSLDepn!H28-RFM_IndexRAB!H28 -> 24.00364076 | I22: =RFM_NomSLDepn!I28-RFM_IndexRAB!I28 -> 27.35364082 | J22: =RFM_NomSLDepn!J28-RFM_IndexRAB!J28 -> -6.182818952 | K22: =RFM_NomSLDepn!K28-RFM_IndexRAB!K28 -> 11.71253159 | L22: =RFM_NomSLDepn!L28-RFM_IndexRAB!L28 -> -26.13250368 | M22: =RFM_NomSLDepn!M28-RFM_IndexRAB!M28 -> 49.69634916 | N22: =RFM_NomSLDepn!N28-RFM_IndexRAB!N28 -> 94.08484784 | O22: =RFM_NomSLDepn!O28-RFM_IndexRAB!O28 -> 15.70716378 | P22: =RFM_NomSLDepn!P28-RFM_IndexRAB!P28 -> 57.25444297 | Q22: =RFM_NomSLDepn!Q28-RFM_IndexRAB!Q28 -> 33.4531351 | R22: =RFM_NomSLDepn!R28-RFM_IndexRAB!R28 -> 47.74379812 | S22: =RFM_NomSLDepn!S28-RFM_IndexRAB!S28 -> 41.13173472 | T22: =RFM_NomSLDepn!T28-RFM_IndexRAB!T28 -> 39.59895249 | U22: =RFM_NomSLDepn!U28-RFM_IndexRAB!U28 -> 81.98914021 | V22: =RFM_NomSLDepn!V28-RFM_IndexRAB!V28 -> 90.94321225 | W22: =RFM_NomSLDepn!W28-RFM_IndexRAB!W28 -> 79.67045911 | X22: =RFM_NomSLDepn!X28-RFM_IndexRAB!X28 -> 82.1783424 | Y22: =RFM_NomSLDepn!Y28-RFM_IndexRAB!Y28 -> 80.08667136 | Z22: =RFM_NomSLDepn!Z28-RFM_IndexRAB!Z28 -> 95.97462905 | AA22: =RFM_NomSLDepn!AA28-RFM_IndexRAB!AA28 -> 83.98871789 | AB22: =RFM_NomSLDepn!AB28-RFM_IndexRAB!AB28 -> 85.77727835 | AC22: =RFM_NomSLDepn!AC28-RFM_IndexRAB!AC28 -> 105.3677911 | AD22: =RFM_NomSLDepn!AD28-RFM_IndexRAB!AD28 -> 96.13637922 | AE22: =RFM_NomSLDepn!AE28-RFM_IndexRAB!AE28 -> 116.6399959 | AF22: =RFM_NomSLDepn!AF28-RFM_IndexRAB!AF28 -> 120.0235473 | AG22: =RFM_NomSLDepn!AG28-RFM_IndexRAB!AG28 -> 129.0139479 | AH22: =RFM_NomSLDepn!AH28-RFM_IndexRAB!AH28 -> 139.103772 | AI22: =RFM_NomSLDepn!AI28-RFM_IndexRAB!AI28 -> 67.59180519 | AJ22: =RFM_NomSLDepn!AJ28-RFM_IndexRAB!AJ28 -> 66.56150751 | AK22: =RFM_NomSLDepn!AK28-RFM_IndexRAB!AK28 -> 55.70306551 | AL22: =RFM_NomSLDepn!AL28-RFM_IndexRAB!AL28 -> 51.64455721 | AM22: =RFM_NomSLDepn!AM28-RFM_IndexRAB!AM28 -> 51.09867216 | AN22: =RFM_NomSLDepn!AN28-RFM_IndexRAB!AN28 -> 42.61313483 | AO22: =RFM_NomSLDepn!AO28-RFM_IndexRAB!AO28 -> 34.24730106 | AP22: =RFM_NomSLDepn!AP28-RFM_IndexRAB!AP28 -> 25.91649462 | AQ22: =RFM_NomSLDepn!AQ28-RFM_IndexRAB!AQ28 -> 18.53898006 | AR22: =RFM_NomSLDepn!AR28-RFM_IndexRAB!AR28 -> 9.451561562 | AS22: =RFM_NomSLDepn!AS28-RFM_IndexRAB!AS28 -> -8.580378469e-16 | AT22: =RFM_NomSLDepn!AT28-RFM_IndexRAB!AT28 -> -9.82796955e-16 | AU22: =RFM_NomSLDepn!AU28-RFM_IndexRAB!AU28 -> -1.012466425e-15 | AV22: =RFM_NomSLDepn!AV28-RFM_IndexRAB!AV28 -> -1.364706982e-15 | AW22: =RFM_NomSLDepn!AW28-RFM_IndexRAB!AW28 -> -7.538175415e-16 | AX22: =RFM_NomSLDepn!AX28-RFM_IndexRAB!AX28 -> -1.304433781e-15 | AY22: =RFM_NomSLDepn!AY28-RFM_IndexRAB!AY28 -> 4.673283472e-17 | AZ22: =RFM_NomSLDepn!AZ28-RFM_IndexRAB!AZ28 -> -1.369690948e-15 | BA22: =RFM_NomSLDepn!BA28-RFM_IndexRAB!BA28 -> -1.002037516e-15 | BB22: =RFM_NomSLDepn!BB28-RFM_IndexRAB!BB28 -> -1.014151987e-15
A23: Closing RAB (RFM) | B23: Nominal | D23: =RFM_ORAB!E28 -> 1038.695681 | E23: =RFM_ORAB!F28 -> 1120.556758 | F23: =RFM_ORAB!G28 -> 1246.984486 | G23: =RFM_ORAB!H28 -> 1337.37086 | H23: =RFM_ORAB!I28 -> 1427.448652 | I23: ='PTRM-RFM_Rollover'!I28 -> 1516.331616 | J23: =RFM_ORAB!K28 -> 1645.389069 | K23: =RFM_ORAB!L28 -> 1760.052579 | L23: =RFM_ORAB!M28 -> 1921.406279 | M23: =RFM_ORAB!N28 -> 2006.450213 | N23: ='PTRM-RFM_Rollover'!N28 -> 2045.150191 | O23: =RFM_ORAB!P28 -> 2029.443027 | P23: =RFM_ORAB!Q28 -> 1972.188584 | Q23: =RFM_ORAB!R28 -> 1938.735449 | R23: =RFM_ORAB!S28 -> 1890.991651 | S23: ='PTRM-RFM_Rollover'!S28 -> 1849.859916 | T23: =RFM_ORAB!U28 -> 1810.260964 | U23: =RFM_ORAB!V28 -> 1728.271823 | V23: =RFM_ORAB!W28 -> 1637.328611 | W23: =RFM_ORAB!X28 -> 1557.658152 | X23: ='PTRM-RFM_Rollover'!X28 -> 1475.47981 | Y23: =RFM_ORAB!Z28 -> 1395.393138 | Z23: =RFM_ORAB!AA28 -> 1299.418509 | AA23: =RFM_ORAB!AB28 -> 1215.429791 | AB23: =RFM_ORAB!AC28 -> 1129.652513 | AC23: ='PTRM-RFM_Rollover'!AC28 -> 1024.284722 | AD23: =RFM_ORAB!AE28 -> 928.1483428 | AE23: =RFM_ORAB!AF28 -> 811.5083469 | AF23: =RFM_ORAB!AG28 -> 691.4847996 | AG23: =RFM_ORAB!AH28 -> 562.4708518 | AH23: ='PTRM-RFM_Rollover'!AH28 -> 423.3670797 | AI23: =RFM_ORAB!AJ28 -> 355.7752745 | AJ23: =RFM_ORAB!AK28 -> 289.213767 | AK23: =RFM_ORAB!AL28 -> 233.5107015 | AL23: =RFM_ORAB!AM28 -> 181.8661443 | AM23: ='PTRM-RFM_Rollover'!AM28 -> 130.7674721 | AN23: =RFM_ORAB!AO28 -> 88.1543373 | AO23: =RFM_ORAB!AP28 -> 53.90703625 | AP23: =RFM_ORAB!AQ28 -> 27.99054162 | AQ23: =RFM_ORAB!AR28 -> 9.451561562 | AR23: ='PTRM-RFM_Rollover'!AR28 -> 3.601308649e-14 | AS23: =RFM_ORAB!AT28 -> 3.687112433e-14 | AT23: =RFM_ORAB!AU28 -> 3.785392129e-14 | AU23: =RFM_ORAB!AV28 -> 3.886638771e-14 | AV23: =RFM_ORAB!AW28 -> 4.02310947e-14 | AW23: ='PTRM-RFM_Rollover'!AW28 -> 4.098491224e-14 | AX23: =RFM_ORAB!AY28 -> 4.228934602e-14 | AY23: =RFM_ORAB!AZ28 -> 4.224261318e-14 | AZ23: =RFM_ORAB!BA28 -> 4.361230413e-14 | BA23: =RFM_ORAB!BB28 -> 4.461434165e-14 | BB23: ='PTRM-RFM_Rollover'!BB28 -> 4.562849363e-14
A25: Cash Flow | B25: Nominal | D25: =D19-(Capex_00_Amt_Nom_EY*(1+Real_WACC)^0.5) -> -1038.695681 | E25: =E19-(Capex_01_Amt_Nom_EY*(1+Real_WACC)^0.5) -> -16.72962168 | F25: =F19-(Capex_02_Amt_Nom_EY*(1+Real_WACC)^0.5) -> -12.27028575 | G25: =G19-(Capex_03_Amt_Nom_EY*(1+Real_WACC)^0.5) -> -3.425907262 | H25: =H19-(Capex_04_Amt_Nom_EY*(1+Real_WACC)^0.5) -> 3.701423296 | I25: =I19-(Capex_05_Amt_Nom_EY*(1+Real_WACC)^0.5) -> 10.94053769 | J25: =J19-(Capex_06_Amt_Nom_EY*(1+Real_WACC)^0.5) -> 17.20125968 | K25: =K19-(Capex_07_Amt_Nom_EY*(1+Real_WACC)^0.5) -> 25.85987916 | L25: =L19-(Capex_08_Amt_Nom_EY*(1+Real_WACC)^0.5) -> 33.39393806 | M25: =M19-(Capex_09_Amt_Nom_EY*(1+Real_WACC)^0.5) -> 44.26854863 | N25: =N19-(Capex_10_Amt_Nom_EY*(1+Real_WACC)^0.5) -> 52.58605745 | O25: =O19 -> 199.4545312 | P25: =P19 -> 198.4168196 | Q25: =Q19 -> 200.0195217 | R25: =R19 -> 200.4567356 | S25: =S19 -> 201.9340138 | T25: =T19 -> 204.0060336 | U25: 201.646765 | V25: 198.4382861 | W25: 196.8491486 | X25: 195.3037025 | Y25: 194.4861998 | Z25: 191.9151675 | AA25: 191.6915539 | AB25: 192.0728078 | AC25: 190.0251443 | AD25: 190.8300669 | AE25: 188.8169386 | AF25: 187.4950082 | AG25: 185.7018322 | AH25: 182.9386266 | AI25: 100.8553032 | AJ25: 90.51369808 | AK25: 81.77231184 | AL25: 72.8391592 | AM25: 61.61871825 | AN25: 50.94824214 | AO25: 40.67045934 | AP25: 31.08919826 | AQ25: 20.42381131 | AR25: 10.13457497 | AS25: 1.843556217e-15 | AT25: 1.892696064e-15 | AU25: 1.943319386e-15 | AV25: 2.011554735e-15 | AW25: 2.049245612e-15 | AX25: 2.114467301e-15 | AY25: 2.112130659e-15 | AZ25: 2.180615207e-15 | BA25: 2.230717082e-15 | BB25: 2.281424682e-15
A26: Cash Flow | B26: Real | D26: =D25/D15 -> -1038.695681 | E26: =E25/E15 -> -16.52961272 | F26: -11.55281849 | G26: -3.166075868 | H26: 3.356374759 | I26: 9.735846529 | J26: 14.65863545 | K26: 21.31854317 | L26: 26.02622811 | M26: 33.94230083 | N26: 40.49332231 | O26: 147.9725314 | P26: 144.511019 | Q26: 141.0495067 | R26: 137.5879943 | S26: 134.126482 | T26: 130.6649696 | U26: 127.2034573 | V26: 123.7419449 | W26: 120.2804326 | X26: 116.8189203 | Y26: 113.3574079 | Z26: 109.8958956 | AA26: 106.4343832 | AB26: 102.9728709 | AC26: 99.51135851 | AD26: 96.04984616 | AE26: 92.58833381 | AF26: 89.12682147 | AG26: 85.66530912 | AH26: 82.20379677 | AI26: 44.11909506 | AJ26: =AJ25/AJ15 -> 38.95248931 | AK26: 33.89494025 | AL26: 29.06374806 | AM26: 24.40431489 | AN26: 19.91760009 | AO26: 15.56080484 | AP26: 11.39616375 | AQ26: 7.365007862 | AR26: 3.578732949 | AS26: 6.358491576e-16 | AT26: 6.358491576e-16 | AU26: 6.358491576e-16 | AV26: 6.358491576e-16 | AW26: 6.358491576e-16 | AX26: 6.358491576e-16 | AY26: 6.358491576e-16 | AZ26: 6.358491576e-16 | BA26: 6.358491576e-16 | BB26: 6.358491576e-16
A27: NPV end period | I27: =NPV(Real_WACC,$E26:I26)+$D26+I23/I15/POWER(1+Real_WACC,I$3) -> 0 | N27: =NPV(Real_WACC,$E26:N26)+$D26+N23/N15/POWER(1+Real_WACC,N$3) -> 0 | S27: =NPV(Real_WACC,$E26:S26)+$D26+S23/S15/POWER(1+Real_WACC,S$3) -> 0 | X27: =NPV(Real_WACC,$E26:X26)+$D26+X23/X15/POWER(1+Real_WACC,X$3) -> 0 | AC27: =NPV(Real_WACC,$E26:AC26)+$D26+AC23/AC15/POWER(1+Real_WACC,AC$3) -> -4.263256415e-13 | AH27: =NPV(Real_WACC,$E26:AH26)+$D26+AH23/AH15/POWER(1+Real_WACC,AH$3) -> -3.97903932e-13 | AM27: =NPV(Real_WACC,$E26:AM26)+$D26+AM23/AM15/POWER(1+Real_WACC,AM$3) -> -5.009326287e-13 | AR27: =NPV(Real_WACC,$E26:AR26)+$D26+AR23/AR15/POWER(1+Real_WACC,AR$3) -> -6.803146338e-13 | AW27: =NPV(Real_WACC,$E26:AW26)+$D26+AW23/AW15/POWER(1+Real_WACC,AW$3) -> -6.807056705e-13 | BB27: =NPV(Real_WACC,$E26:BB26)+$D26+BB23/BB15/POWER(1+Real_WACC,BB$3) -> -6.81012058e-13
A28: NPV overall | D28: =NPV(Real_WACC,E26:BB26)+D26 -> 0
A29: NPV change this period (% of MAR) | I29: =IFERROR((I27-D27)/ROUND(SUM(E18/E15,F18/F15,G18/G15,H18/H15,I18/I15),6),0) -> 0 | N29: =IFERROR((N27-I27)/ROUND(SUM(J18/J15,K18/K15,L18/L15,M18/M15,N18/N15),6),0) -> 0 | S29: =IFERROR((S27-N27)/ROUND(SUM(O18/O15,P18/P15,Q18/Q15,R18/R15,S18/S15),6),0) -> 0 | X29: =IFERROR((X27-S27)/ROUND(SUM(T18/T15,U18/U15,V18/V15,W18/W15,X18/X15),6),0) -> 0 | AC29: =IFERROR((AC27-X27)/ROUND(SUM(Y18/Y15,Z18/Z15,AA18/AA15,AB18/AB15,AC18/AC15),6),0) -> -8.011051103e-16 | AH29: =IFERROR((AH27-AC27)/ROUND(SUM(AD18/AD15,AE18/AE15,AF18/AF15,AG18/AG15,AH18/AH15),6),0) -> 6.37781287e-17 | AM29: =IFERROR((AM27-AH27)/ROUND(SUM(AI18/AI15,AJ18/AJ15,AK18/AK15,AL18/AL15,AM18/AM15),6),0) -> -6.045057983e-16 | AR29: =IFERROR((AR27-AM27)/ROUND(SUM(AN18/AN15,AO18/AO15,AP18/AP15,AQ18/AQ15,AR18/AR15),6),0) -> -3.102512131e-15 | AW29: =IFERROR((AW27-AR27)/ROUND(SUM(AS18/AS15,AT18/AT15,AU18/AU15,AV18/AV15,AW18/AW15),6),0) -> 0 | BB29: =IFERROR((BB27-AW27)/ROUND(SUM(AX18/AX15,AY18/AY15,AZ18/AZ15,BA18/BA15,BB18/BB15),6),0) -> 0
I30: =I27/(I23/I15) -> 0 | N30: =N27/(N23/N15) -> 0 | S30: =S27/(S23/S15) -> 0
A32: Debt | E32: =$C$4*D23 -> 623.2174085 | F32: 672.3340548 | G32: 748.1906918 | H32: 802.4225157 | I32: 856.4691912 | J32: 909.7989697 | K32: 987.2334416 | L32: 1056.031547 | M32: 1152.843767 | N32: 1203.870128 | O32: 1227.090115 | P32: 1217.665816 | Q32: 1183.31315 | R32: 1163.241269 | S32: 1134.594991 | T32: 1109.91595 | U32: 1086.156578 | V32: 1036.963094 | W32: 982.3971667 | X32: 934.5948913 | Y32: 885.2878858 | Z32: 837.235883 | AA32: 779.6511056 | AB32: 729.2578749 | AC32: 677.7915079 | AD32: 614.5708332 | AE32: 556.8890057 | AF32: 486.9050082 | AG32: 414.8908798 | AH32: 337.4825111 | AI32: 254.0202478 | AJ32: 213.4651647 | AK32: =$C$4*AJ23 -> 173.5282602 | AL32: 140.1064209 | AM32: 109.1196866 | AN32: 78.46048328 | AO32: 52.89260238 | AP32: 32.34422175 | AQ32: 16.79432497 | AR32: 5.670936937 | AS32: 2.160785189e-14 | AT32: 2.21226746e-14 | AU32: 2.271235277e-14 | AV32: 2.331983263e-14 | AW32: 2.413865682e-14 | AX32: 2.459094734e-14 | AY32: 2.537360761e-14 | AZ32: 2.534556791e-14 | BA32: 2.616738248e-14 | BB32: 2.676860499e-14
A33: Incremental debt raised | D33: =E32-D32 -> 623.2174085 | E33: =F32-E32 -> 49.11664629 | F33: 75.85663702 | G33: 54.23182392 | H33: 54.04667547 | I33: 53.3297785 | J33: 77.43447185 | K33: 68.79810586 | L33: 96.81221997 | M33: 51.02636025 | N33: 23.21998688 | O33: -9.424298268 | P33: -34.35266578 | Q33: -20.07188106 | R33: -28.64627887 | S33: -24.67904083 | T33: -23.75937149 | U33: -49.19348412 | V33: -54.56592735 | W33: -47.80227547 | X33: -49.30700544 | Y33: -48.05200282 | Z33: -57.58477743 | AA33: -50.39323073 | AB33: -51.46636701 | AC33: -63.22067464 | AD33: -57.68182753 | AE33: -69.98399752 | AF33: -72.01412839 | AG33: -77.40836871 | AH33: -83.46226322 | AI33: -40.55508311 | AJ33: -39.93690451 | AK33: -33.42183931 | AL33: -30.98673433 | AM33: -30.6592033 | AN33: -25.5678809 | AO33: -20.54838064 | AP33: -15.54989677 | AQ33: -11.12338804 | AR33: -5.670936937 | AS33: 5.148227082e-16 | AT33: 5.89678173e-16 | AU33: 6.074798551e-16 | AV33: 8.188241894e-16 | AW33: 4.522905249e-16 | AX33: 7.826602685e-16 | AY33: -2.803970083e-17 | AZ33: 8.218145688e-16 | BA33: 6.012225099e-16 | BB33: -2.676860499e-14
A34: Nominal interest cost | E34: =E32*$C$5 -> 34.27695747 | F34: =F32*$C$5 -> 36.97837301 | G34: 41.15048805 | H34: 44.13323837 | I34: 47.10580552 | J34: 50.03894333 | K34: 54.29783929 | L34: 58.08173511 | M34: 63.40640721 | N34: 66.21285702 | O34: 67.4899563 | P34: 66.97161989 | Q34: 65.08222328 | R34: 63.97826982 | S34: 62.40272448 | T34: 61.04537723 | U34: 59.7386118 | V34: 57.03297018 | W34: 54.03184417 | X34: 51.40271902 | Y34: 48.69083372 | Z34: 46.04797357 | AA34: 42.88081081 | AB34: 40.10918312 | AC34: 37.27853293 | AD34: 33.80139583 | AE34: 30.62889531 | AF34: 26.77977545 | AG34: 22.81899839 | AH34: 18.56153811 | AI34: 13.97111363 | AJ34: 11.74058406 | AK34: 9.544054312 | AL34: 7.70585315 | AM34: 6.001582762 | AN34: 4.31532658 | AO34: 2.909093131 | AP34: 1.778932196 | AQ34: 0.9236878736 | AR34: 0.3119015316 | AS34: 1.188431854e-15 | AT34: 1.216747103e-15 | AU34: 1.249179402e-15 | AV34: 1.282590795e-15 | AW34: 1.327626125e-15 | AX34: 1.352502104e-15 | AY34: 1.395548419e-15 | AZ34: 1.394006235e-15 | BA34: 1.439206036e-15 | BB34: 1.472273274e-15
A36: Total cash flow to equity | D36: =D25+D33-D34 -> -415.4782723 | E36: =E25+E33-E34 -> -1.889932854 | F36: 26.60797826 | G36: 9.655428611 | H36: 13.6148604 | I36: 17.16451067 | J36: 44.59678819 | K36: 40.36014573 | L36: 72.12442293 | M36: 31.88850167 | N36: 9.593187315 | O36: 122.5402766 | P36: 97.09253393 | Q36: 114.8654173 | R36: 107.8321869 | S36: 114.8522485 | T36: 119.2012848 | U36: 92.71466909 | V36: 86.83938858 | W36: 95.01502894 | X36: 94.59397801 | Y36: 97.74336329 | Z36: 88.2824165 | AA36: 98.4175124 | AB36: 100.4972576 | AC36: 89.52593677 | AD36: 99.34684354 | AE36: 88.20404572 | AF36: 88.70110436 | AG36: 85.47446506 | AH36: 80.91482523 | AI36: 46.32910645 | AJ36: =AJ25+AJ33-AJ34 -> 38.83620951 | AK36: 38.80641822 | AL36: 34.14657172 | AM36: 24.95793219 | AN36: 21.06503466 | AO36: 17.21298558 | AP36: 13.76036929 | AQ36: 8.376735398 | AR36: 4.151736505 | AS36: 1.169947071e-15 | AT36: 1.265627134e-15 | AU36: 1.301619838e-15 | AV36: 1.54778813e-15 | AW36: 1.173910012e-15 | AX36: 1.544625466e-15 | AY36: 6.885425397e-16 | AZ36: 1.60842354e-15 | BA36: 1.392733556e-15 | BB36: -2.595945358e-14
A37: Total cash flow to debt holders | D37: =-D33+D34 -> -623.2174085 | E37: =-E33+E34 -> -14.83968883 | F37: -38.87826401 | G37: -13.08133587 | H37: -9.913437099 | I37: -6.223972979 | J37: -27.39552852 | K37: -14.50026658 | L37: -38.73048486 | M37: 12.38004696 | N37: 42.99287014 | O37: 76.91425457 | P37: 101.3242857 | Q37: 85.15410434 | R37: 92.62454869 | S37: 87.08176531 | T37: 84.80474873 | U37: 108.9320959 | V37: 111.5988975 | W37: 101.8341196 | X37: 100.7097245 | Y37: 96.74283654 | Z37: 103.632751 | AA37: 93.27404154 | AB37: 91.57555013 | AC37: 100.4992076 | AD37: 91.48322336 | AE37: 100.6128928 | AF37: 98.79390384 | AG37: 100.2273671 | AH37: 102.0238013 | AI37: 54.52619674 | AJ37: 51.67748857 | AK37: 42.96589362 | AL37: 38.69258748 | AM37: 36.66078606 | AN37: 29.88320748 | AO37: 23.45747377 | AP37: 17.32882897 | AQ37: 12.04707591 | AR37: 5.982838469 | AS37: 6.736091459e-16 | AT37: 6.2706893e-16 | AU37: 6.416995474e-16 | AV37: 4.637666051e-16 | AW37: 8.753356001e-16 | AX37: 5.698418353e-16 | AY37: 1.423588119e-15 | AZ37: 5.721916662e-16 | BA37: 8.379835264e-16 | BB37: 2.824087826e-14
A38: Real cash flow to equity | D38: =D36/D15 -> -415.4782723 | E38: =E36/E15 -> -1.867337991 | F38: 25.05215848 | G38: 8.923131068 | H38: 12.34567628 | I38: 15.2744816 | J38: 38.00466202 | K38: 33.27237161 | L38: 56.21159984 | M38: 24.45007009 | N38: 7.387129683 | O38: 90.91091999 | P38: 70.71447394 | Q38: 81.00064592 | R38: 74.01304964 | S38: 76.28594979 | T38: 76.34790007 | U38: 58.48656411 | V38: 54.15121775 | W38: 58.05688705 | X38: 56.5804244 | Y38: 56.97028536 | Z38: 50.55293623 | AA38: 54.64511615 | AB38: 53.8779604 | AC38: 46.88246716 | AD38: 50.00390763 | AE38: 43.25176381 | AF38: 42.16457584 | AG38: 39.42985584 | AH38: 36.35922043 | AI38: 20.26664129 | AJ38: 16.71312816 | AK38: 16.08541079 | AL38: 13.62491507 | AM38: 9.884678773 | AN38: 8.235120953 | AO38: 6.58580979 | AP38: 5.04404843 | AQ38: 3.020725228 | AR38: 1.466066043 | AS38: 4.035189449e-16 | AT38: 4.251860415e-16 | AU38: 4.258866987e-16 | AV38: 4.892532932e-16 | AW38: 3.642460854e-16 | AX38: 4.644899454e-16 | AY38: 2.072831962e-16 | AZ38: 4.690028531e-16 | BA38: 3.969882444e-16 | BB38: -7.235082896e-15
B40: IRR | C40: NPV
A41: All capital | B41: =IRR(D25:BB25) -> 0.07823540351
A42: Nominal Equity | B42: =IRR(D36:BB36) -> 0.1134169346
A43: Nominal Debt | B43: =IRR(D37:BB37) -> 0.05499999999
A44: Real Equity | B44: 0.08395209301 | C44: =NPV(Inputs!$J$17,D38:BB38) -> 1.883922522
A45: Variation from target real RoE | B45: =B44-Inputs!$J$17 -> 0.0003899309889
A46: Approach B
A47: Actual Inflation | B47: Chosen inflation | E47: =INDEX(E$6:E$11,MATCH($A47,$A$6:$A$11,0)) -> 0.01210003925 | F47: =INDEX(F$6:F$11,MATCH($A47,$A$6:$A$11,0)) -> 0.04940537631 | G47: =INDEX(G$6:G$11,MATCH($A47,$A$6:$A$11,0)) -> 0.01879676772 | H47: =INDEX(H$6:H$11,MATCH($A47,$A$6:$A$11,0)) -> 0.01916387812 | I47: =INDEX(I$6:I$11,MATCH($A47,$A$6:$A$11,0)) -> 0.01898229851 | J47: =INDEX(J$6:J$11,MATCH($A47,$A$6:$A$11,0)) -> 0.04424345176 | K47: 0.03371843145 | L47: 0.05776072522 | M47: 0.01647710241 | N47: -0.004289250067 | O47: 0.03794801417 | P47: 0.01862590575 | Q47: 0.03281679668 | R47: 0.02739938407 | S47: 0.03336757525 | T47: 0.03702421163 | U47: 0.01533300458 | V47: 0.01161715552 | W47: 0.02053999578 | X47: 0.0215478861 | Y47: 0.02622264859 | Z47: 0.01786209806 | AA47: 0.03131943821 | AB47: 0.03567152024 | AC47: 0.02375338754 | AD47: 0.04042723729 | AE47: 0.02644233056 | AF47: 0.0315650229 | AG47: 0.03045708836 | AH47: 0.02660254158 | AI47: 0.02720850376 | AJ47: 0.01649898333 | AK47: 0.03822698211 | AL47: 0.03882382243 | AM47: 0.007471423187 | AN47: 0.01308563154 | AO47: 0.02177394872 | AP47: 0.04376762029 | AQ47: 0.01651252234 | AR47: 0.02120439059 | AS47: 0.02382572367 | AT47: 0.02665492232 | AU47: 0.02674667223 | AV47: 0.03511278157 | AW47: 0.01873718692 | AX47: 0.03182717029 | AY47: -0.001105073479 | AZ47: 0.03242438961 | BA47: 0.0229760279 | BB47: 0.0227315242
B48: Constructed index | D48: 1 | E48: =IFERROR(D48*(1+E47),"NA") -> 1.012100039 | F48: 1.062103223 | G48: 1.08206733 | H48: 1.102803937 | I48: 1.12373769 | J48: 1.173455724 | K48: 1.213022811 | L48: 1.283087888 | M48: 1.304229459 | N48: 1.298635292 | O48: 1.347915923 | P48: 1.373022078 | Q48: 1.418080264 | R48: 1.45693479 | S48: 1.505549171 | T48: 1.561290942 | U48: 1.585230223 | V48: 1.603646089 | W48: 1.636584973 | X48: 1.67184992 | Y48: 1.715690253 | Z48: 1.74633608 | AA48: 1.801030345 | AB48: 1.865275836 | AC48: 1.909582456 | AD48: 1.986781599 | AE48: 2.039316734 | AF48: 2.103687814 | AG48: 2.167760019 | AH48: 2.225427945 | AI48: 2.28597851 | AJ48: 2.323694831 | AK48: =IFERROR(AJ48*(1+AK47),"NA") -> 2.412522672 | AL48: 2.506186024 | AM48: 2.5249108 | AN48: 2.557950853 | AO48: 2.613647543 | AP48: 2.728040677 | AQ48: 2.773087509 | AR48: 2.83188914 | AS48: 2.899360948 | AT48: 2.976643189 | AU48: 3.056258489 | AV48: 3.163572226 | AW48: 3.22284867 | AX48: 3.325422823 | AY48: 3.321747986 | AZ48: 3.429453637 | BA48: 3.50824886 | BB48: 3.587996704
A50: Closing RAB (PTRM) | B50: Nominal | D50: =PTRM_ORAB!E46 -> 1038.695681 | E50: =PTRM_ORAB!F46 -> 1135.997101 | F50: =PTRM_ORAB!G46 -> 1236.026936 | G50: =PTRM_ORAB!H46 -> 1335.051404 | H50: =PTRM_ORAB!I46 -> 1434.59532 | I50: ='PTRM-RFM_Rollover'!H46 -> 1534.487204 | J50: =PTRM_ORAB!K46 -> 1618.259917 | K50: =PTRM_ORAB!L46 -> 1720.831896 | L50: =PTRM_ORAB!M46 -> 1825.065834 | M50: =PTRM_ORAB!N46 -> 1926.736999 | N50: ='PTRM-RFM_Rollover'!M46 -> 2026.829143 | O50: =PTRM_ORAB!P46 -> 2007.177784 | P50: =PTRM_ORAB!Q46 -> 1964.354113 | Q50: =PTRM_ORAB!R46 -> 1917.976441 | R50: =PTRM_ORAB!S46 -> 1867.889673 | S50: ='PTRM-RFM_Rollover'!R46 -> 1813.933073 | T50: =PTRM_ORAB!U46 -> 1808.07719 | U50: =PTRM_ORAB!V46 -> 1743.427303 | V50: =PTRM_ORAB!W46 -> 1674.302045 | W50: =PTRM_ORAB!X46 -> 1600.515147 | X50: ='PTRM-RFM_Rollover'!W46 -> 1521.873749 | Y50: =PTRM_ORAB!Z46 -> 1400.327112 | Z50: =PTRM_ORAB!AA46 -> 1312.699551 | AA50: =PTRM_ORAB!AB46 -> 1219.891304 | AB50: =PTRM_ORAB!AC46 -> 1121.699965 | AC50: ='PTRM-RFM_Rollover'!AB46 -> 1017.916294 | AD50: =PTRM_ORAB!AE46 -> 923.2771617 | AE50: =PTRM_ORAB!AF46 -> 807.294611 | AF50: =PTRM_ORAB!AG46 -> 684.4387513 | AG50: =PTRM_ORAB!AH46 -> 554.4246502 | AH50: ='PTRM-RFM_Rollover'!AG46 -> 416.9570443 | AI50: =PTRM_ORAB!AJ46 -> 360.9696898 | AJ50: =PTRM_ORAB!AK46 -> 295.3766982 | AK50: =PTRM_ORAB!AL46 -> 234.9535941 | AL50: =PTRM_ORAB!AM46 -> 180.043684 | AM50: ='PTRM-RFM_Rollover'!AL46 -> 131.1322637 | AN50: =PTRM_ORAB!AO46 -> 89.69168304 | AO50: =PTRM_ORAB!AP46 -> 54.94383644 | AP50: =PTRM_ORAB!AQ46 -> 27.98770532 | AQ50: =PTRM_ORAB!AR46 -> 9.516432261 | AR50: ='PTRM-RFM_Rollover'!AQ46 -> -4.659068825e-15 | AS50: =PTRM_ORAB!AT46 -> 1.769743327 | AT50: =PTRM_ORAB!AU46 -> 1.360377997 | AU50: =PTRM_ORAB!AV46 -> 0.9295149775 | AV50: =PTRM_ORAB!AW46 -> 0.4763371441 | AW50: ='PTRM-RFM_Rollover'!AV46 -> -9.716780806e-17 | AX50: =PTRM_ORAB!AY46 -> 0.009761568809 | AY50: =PTRM_ORAB!AZ46 -> 0.007488550021 | AZ50: =PTRM_ORAB!BA46 -> 0.005106442639 | BA50: =PTRM_ORAB!BB46 -> 0.002611445479 | BB50: ='PTRM-RFM_Rollover'!BA46 -> -3.594595842e-07
A51: MAR (PTRM) | B51: Nominal | E51: =PTRM_MAR!E46 -> 88.81245706 | F51: =PTRM_MAR!F46 -> 98.34710979 | G51: =PTRM_MAR!G46 -> 108.3020715 | H51: =PTRM_MAR!H46 -> 118.3725484 | I51: =PTRM_MAR!I46 -> 128.6998807 | J51: =PTRM_MAR!J46 -> 137.7595171 | K51: =PTRM_MAR!K46 -> 148.8364138 | L51: =PTRM_MAR!L46 -> 160.1530575 | M51: =PTRM_MAR!M46 -> 171.8890106 | N51: =PTRM_MAR!N46 -> 183.7015789 | O51: =PTRM_MAR!O46 -> 197.2850298 | P51: =PTRM_MAR!P46 -> 197.6487604 | Q51: =PTRM_MAR!Q46 -> 197.8995268 | R51: =PTRM_MAR!R46 -> 198.0312473 | S51: =PTRM_MAR!S46 -> 198.0376013 | T51: =PTRM_MAR!T46 -> 203.8255897 | U51: =PTRM_MAR!U46 -> 203.4866416 | V51: =PTRM_MAR!V46 -> 202.9977433 | W51: =PTRM_MAR!W46 -> 202.3514647 | X51: =PTRM_MAR!X46 -> 201.5400939 | Y51: =PTRM_MAR!Y46 -> 195.2364104 | Z51: =PTRM_MAR!Z46 -> 193.9467173 | AA51: =PTRM_MAR!AA46 -> 192.4743236 | AB51: =PTRM_MAR!AB46 -> 190.8109938 | AC51: =PTRM_MAR!AC46 -> 188.9481969 | AD51: =PTRM_MAR!AD46 -> 190.0513328 | AE51: =PTRM_MAR!AE46 -> 188.1050713 | AF51: =PTRM_MAR!AF46 -> 185.9183123 | AG51: =PTRM_MAR!AG46 -> 183.4795718 | AH51: =PTRM_MAR!AH46 -> 180.7769229 | AI51: =PTRM_MAR!AI46 -> 102.9358148 | AJ51: =PTRM_MAR!AJ46 -> 92.87980379 | AK51: =PTRM_MAR!AK46 -> 82.75153976 | AL51: =PTRM_MAR!AL46 -> 72.67077688 | AM51: =PTRM_MAR!AM46 -> 62.5214777 | AN51: =PTRM_MAR!AN46 -> 51.80000632 | AO51: =PTRM_MAR!AO46 -> 41.43778802 | AP51: =PTRM_MAR!AP46 -> 31.05429313 | AQ51: =PTRM_MAR!AQ46 -> 20.55882569 | AR51: =PTRM_MAR!AR46 -> 10.22624584 | AS51: =PTRM_MAR!AS46 -> 0.5530447896 | AT51: =PTRM_MAR!AT46 -> 0.5441511988 | AU51: =PTRM_MAR!AU46 -> 0.5344711121 | AV51: =PTRM_MAR!AV46 -> 0.5239708586 | AW51: =PTRM_MAR!AW46 -> 0.5126155778 | AX51: =PTRM_MAR!AX46 -> 0.00305057645 | AY51: =PTRM_MAR!AY46 -> 0.002995537567 | AZ51: =PTRM_MAR!AZ46 -> 0.002936384888 | BA51: =PTRM_MAR!BA46 -> 0.00287295902 | BB51: =PTRM_MAR!BB46 -> 0.002805095427
A52: MAR (Pricing) | B52: Nominal | E52: =Pricing_MAR!E46 -> 88.81245706 | F52: =Pricing_MAR!F46 -> 97.01038709 | G52: =Pricing_MAR!G46 -> 109.2621844 | H52: =Pricing_MAR!H46 -> 118.5782033 | I52: =Pricing_MAR!I46 -> 128.0587415 | J52: =Pricing_MAR!J46 -> 137.7595171 | K52: =Pricing_MAR!K46 -> 151.2491206 | L52: =Pricing_MAR!L46 -> 163.7204974 | M52: =Pricing_MAR!M46 -> 180.8778016 | N52: =Pricing_MAR!N46 -> 191.2183421 | O52: =Pricing_MAR!O46 -> 197.2850298 | P52: =Pricing_MAR!P46 -> 199.9809242 | Q52: =Pricing_MAR!Q46 -> 198.8258385 | R52: =Pricing_MAR!R46 -> 200.3106111 | S52: =Pricing_MAR!S46 -> 200.6208495 | T52: =Pricing_MAR!T46 -> 203.8255897 | U52: =Pricing_MAR!U46 -> 205.7710677 | V52: =Pricing_MAR!V46 -> 203.2392724 | W52: =Pricing_MAR!W46 -> 199.8473851 | X52: =Pricing_MAR!X46 -> 198.0811346 | Y52: =Pricing_MAR!Y46 -> 195.2364104 | Z52: =Pricing_MAR!Z46 -> 194.2368045 | AA52: =Pricing_MAR!AA46 -> 191.4777575 | AB52: =Pricing_MAR!AB46 -> 191.0511355 | AC52: =Pricing_MAR!AC46 -> 191.2134827 | AD52: =Pricing_MAR!AD46 -> 190.0513328 | AE52: =Pricing_MAR!AE46 -> 190.6057999 | AF52: =Pricing_MAR!AF46 -> 188.3285766 | AG52: =Pricing_MAR!AG46 -> 186.7249173 | AH52: =Pricing_MAR!AH46 -> 184.6338616 | AI52: =Pricing_MAR!AI46 -> 102.9358148 | AJ52: =Pricing_MAR!AJ46 -> 93.13677445 | AK52: =Pricing_MAR!AK46 -> 82.34253515 | AL52: =Pricing_MAR!AL46 -> 73.2894669 | AM52: =Pricing_MAR!AM46 -> 63.9431743 | AN52: =Pricing_MAR!AN46 -> 51.80000632 | AO52: =Pricing_MAR!AO46 -> 41.01946115 | AP52: =Pricing_MAR!AP46 -> 30.69142768 | AQ52: =Pricing_MAR!AQ46 -> 20.72262644 | AR52: =Pricing_MAR!AR46 -> 10.23817825 | AS52: =Pricing_MAR!AS46 -> 0.5530447896 | AT52: =Pricing_MAR!AT46 -> 0.5435726227 | AU52: =Pricing_MAR!AU46 -> 0.5348089458 | AV52: =Pricing_MAR!AV46 -> 0.5252388139 | AW52: =Pricing_MAR!AW46 -> 0.5189686183 | AX52: =Pricing_MAR!AX46 -> 0.00305057645 | AY52: =Pricing_MAR!AY46 -> 0.003021760282 | AZ52: =Pricing_MAR!AZ46 -> 0.002892652767 | BA52: =Pricing_MAR!BA46 -> 0.002856599061 | BB52: =Pricing_MAR!BB46 -> 0.002789402805
A53: Opening RAB (RFM) | B53: Nominal | E53: =RFM_ORAB!E46 -> 1038.695681 | F53: =RFM_ORAB!F46 -> 1120.02311 | G53: =RFM_ORAB!G46 -> 1247.321368 | H53: =RFM_ORAB!H46 -> 1337.304236 | I53: =RFM_ORAB!I46 -> 1426.981088 | J53: =RFM_ORAB!J46 -> 1515.438151 | K53: =RFM_ORAB!K46 -> 1645.965113 | L53: =RFM_ORAB!L46 -> 1761.539717 | M53: =RFM_ORAB!M46 -> 1925.617792 | N53: =RFM_ORAB!N46 -> 2010.217787 | O53: =RFM_ORAB!O46 -> 2046.597089 | P53: =RFM_ORAB!P46 -> 2034.662275 | Q53: =RFM_ORAB!Q46 -> 1979.560486 | R53: =RFM_ORAB!R46 -> 1949.791908 | S53: =RFM_ORAB!S46 -> 1905.374812 | T53: =RFM_ORAB!T46 -> 1868.431595 | U53: =RFM_ORAB!U46 -> 1828.760587 | V53: =RFM_ORAB!V46 -> 1743.922747 | W53: =RFM_ORAB!W46 -> 1649.573172 | X53: =RFM_ORAB!X46 -> 1567.514971 | Y53: =RFM_ORAB!Y46 -> 1482.969763 | Z53: =RFM_ORAB!Z46 -> 1402.965655 | AA53: =RFM_ORAB!AA46 -> 1306.016412 | AB53: =RFM_ORAB!AB46 -> 1222.73162 | AC53: =RFM_ORAB!AC46 -> 1138.27031 | AD53: =RFM_ORAB!AD46 -> 1032.661343 | AE53: =RFM_ORAB!AE46 -> 937.7768267 | AF53: =RFM_ORAB!AF46 -> 820.4180097 | AG53: =RFM_ORAB!AG46 -> 700.3997699 | AH53: =RFM_ORAB!AH46 -> 571.2113519 | AI53: =RFM_ORAB!AI46 -> 431.3020522 | AJ53: =RFM_ORAB!AJ46 -> 362.0162085 | AK53: =RFM_ORAB!AK46 -> 293.2296294 | AL53: =RFM_ORAB!AL46 -> 237.0040558 | AM53: =RFM_ORAB!AM46 -> 184.9194497 | AN53: =RFM_ORAB!AN46 -> 131.6706149 | AO53: =RFM_ORAB!AO46 -> 89.03341905 | AP53: =RFM_ORAB!AP46 -> 55.06417202 | AQ53: =RFM_ORAB!AQ46 -> 29.9963535 | AR53: =RFM_ORAB!AR46 -> 11.51299617 | AS53: =RFM_ORAB!AS46 -> 2.15840155 | AT53: =RFM_ORAB!AT46 -> 1.768993201 | AU53: =RFM_ORAB!AU46 -> 1.364808565 | AV53: =RFM_ORAB!AV46 -> 0.937945286 | AW53: =RFM_ORAB!AW46 -> 0.495118253 | AX53: =RFM_ORAB!AX46 -> 0.01192918663 | AY53: =RFM_ORAB!AY46 -> 0.009878252273 | AZ53: =RFM_ORAB!AZ46 -> 0.007359370133 | BA53: =RFM_ORAB!BA46 -> 0.005092798758 | BB53: =RFM_ORAB!BB46 -> 0.002623387184
A54: Capex (RFM) | B54: Nominal | D54: =RFM_NomCapex!D46 -> 1024.695077 | E54: =RFM_NomCapex!E46 -> 104.33495 | F54: =RFM_NomCapex!F46 -> 111.4892563 | G54: =RFM_NomCapex!G46 -> 111.9161376 | H54: =RFM_NomCapex!H46 -> 114.0814332 | I54: =RFM_NomCapex!I46 -> 116.236605 | J54: =RFM_NomCapex!J46 -> 122.8746341 | K54: =RFM_NomCapex!K46 -> 126.3760414 | L54: =RFM_NomCapex!L46 -> 135.2211963 | M54: =RFM_NomCapex!M46 -> 134.7402829 | N54: =RFM_NomCapex!N46 -> 132.784826 | O54: =RFM_NomCapex!O46 -> 0 | P54: =RFM_NomCapex!P46 -> 0 | Q54: =RFM_NomCapex!Q46 -> 0 | R54: =RFM_NomCapex!R46 -> 0 | S54: =RFM_NomCapex!S46 -> 0 | T54: =RFM_NomCapex!T46 -> 0 | U54: =RFM_NomCapex!U46 -> 0 | V54: =RFM_NomCapex!V46 -> 0 | W54: =RFM_NomCapex!W46 -> 0 | X54: =RFM_NomCapex!X46 -> 0 | Y54: =RFM_NomCapex!Y46 -> 0 | Z54: =RFM_NomCapex!Z46 -> 0 | AA54: =RFM_NomCapex!AA46 -> 0 | AB54: =RFM_NomCapex!AB46 -> 0 | AC54: =RFM_NomCapex!AC46 -> 0 | AD54: =RFM_NomCapex!AD46 -> 0 | AE54: =RFM_NomCapex!AE46 -> 0 | AF54: =RFM_NomCapex!AF46 -> 0 | AG54: =RFM_NomCapex!AG46 -> 0 | AH54: =RFM_NomCapex!AH46 -> 0 | AI54: =RFM_NomCapex!AI46 -> 0 | AJ54: =RFM_NomCapex!AJ46 -> 0 | AK54: =RFM_NomCapex!AK46 -> 0 | AL54: =RFM_NomCapex!AL46 -> 0 | AM54: =RFM_NomCapex!AM46 -> 0 | AN54: =RFM_NomCapex!AN46 -> 0 | AO54: =RFM_NomCapex!AO46 -> 0 | AP54: =RFM_NomCapex!AP46 -> 0 | AQ54: =RFM_NomCapex!AQ46 -> 0 | AR54: =RFM_NomCapex!AR46 -> 0 | AS54: =RFM_NomCapex!AS46 -> 0 | AT54: =RFM_NomCapex!AT46 -> 0 | AU54: =RFM_NomCapex!AU46 -> 0 | AV54: =RFM_NomCapex!AV46 -> 0 | AW54: =RFM_NomCapex!AW46 -> 0 | AX54: =RFM_NomCapex!AX46 -> 0 | AY54: =RFM_NomCapex!AY46 -> 0 | AZ54: =RFM_NomCapex!AZ46 -> 0 | BA54: =RFM_NomCapex!BA46 -> 0 | BB54: =RFM_NomCapex!BB46 -> 0
A55: Reg Depreciation (RFM) | B55: Nominal | E55: =RFM_NomSLDepn!E46-RFM_IndexRAB!E46 -> 23.00752089 | F55: =RFM_NomSLDepn!F46-RFM_IndexRAB!F46 -> -15.80900193 | G55: =RFM_NomSLDepn!G46-RFM_IndexRAB!G46 -> 21.9332703 | H55: =RFM_NomSLDepn!H46-RFM_IndexRAB!H46 -> 24.4045812 | I55: =RFM_NomSLDepn!I46-RFM_IndexRAB!I46 -> 27.77954184 | J55: =RFM_NomSLDepn!J46-RFM_IndexRAB!J46 -> -7.652328623 | K55: =RFM_NomSLDepn!K46-RFM_IndexRAB!K46 -> 10.80143768 | L55: =RFM_NomSLDepn!L46-RFM_IndexRAB!L46 -> -28.85687831 | M55: =RFM_NomSLDepn!M46-RFM_IndexRAB!M46 -> 50.14028723 | N55: =RFM_NomSLDepn!N46-RFM_IndexRAB!N46 -> 96.4055247 | O55: =RFM_NomSLDepn!O46-RFM_IndexRAB!O46 -> 11.93481365 | P55: =RFM_NomSLDepn!P46-RFM_IndexRAB!P46 -> 55.10178946 | Q55: =RFM_NomSLDepn!Q46-RFM_IndexRAB!Q46 -> 29.76857791 | R55: =RFM_NomSLDepn!R46-RFM_IndexRAB!R46 -> 44.41709604 | S55: =RFM_NomSLDepn!S46-RFM_IndexRAB!S46 -> 36.94321701 | T55: =RFM_NomSLDepn!T46-RFM_IndexRAB!T46 -> 39.67100788 | U55: =RFM_NomSLDepn!U46-RFM_IndexRAB!U46 -> 84.83783953 | V55: =RFM_NomSLDepn!V46-RFM_IndexRAB!V46 -> 94.34957469 | W55: =RFM_NomSLDepn!W46-RFM_IndexRAB!W46 -> 82.058201 | X55: =RFM_NomSLDepn!X46-RFM_IndexRAB!X46 -> 84.54520882 | Y55: =RFM_NomSLDepn!Y46-RFM_IndexRAB!Y46 -> 80.00410773 | Z55: =RFM_NomSLDepn!Z46-RFM_IndexRAB!Z46 -> 96.94924267 | AA55: =RFM_NomSLDepn!AA46-RFM_IndexRAB!AA46 -> 83.28479191 | AB55: =RFM_NomSLDepn!AB46-RFM_IndexRAB!AB46 -> 84.4613103 | AC55: =RFM_NomSLDepn!AC46-RFM_IndexRAB!AC46 -> 105.6089674 | AD55: =RFM_NomSLDepn!AD46-RFM_IndexRAB!AD46 -> 94.88451592 | AE55: =RFM_NomSLDepn!AE46-RFM_IndexRAB!AE46 -> 117.358817 | AF55: =RFM_NomSLDepn!AF46-RFM_IndexRAB!AF46 -> 120.0182398 | AG55: =RFM_NomSLDepn!AG46-RFM_IndexRAB!AG46 -> 129.1884179 | AH55: =RFM_NomSLDepn!AH46-RFM_IndexRAB!AH46 -> 139.9092997 | AI55: =RFM_NomSLDepn!AI46-RFM_IndexRAB!AI46 -> 69.28584376 | AJ55: =RFM_NomSLDepn!AJ46-RFM_IndexRAB!AJ46 -> 68.78657901 | AK55: =RFM_NomSLDepn!AK46-RFM_IndexRAB!AK46 -> 56.22557364 | AL55: =RFM_NomSLDepn!AL46-RFM_IndexRAB!AL46 -> 52.0846061 | AM55: =RFM_NomSLDepn!AM46-RFM_IndexRAB!AM46 -> 53.24883485 | AN55: =RFM_NomSLDepn!AN46-RFM_IndexRAB!AN46 -> 42.6371958 | AO55: =RFM_NomSLDepn!AO46-RFM_IndexRAB!AO46 -> 33.96924703 | AP55: =RFM_NomSLDepn!AP46-RFM_IndexRAB!AP46 -> 25.06781853 | AQ55: =RFM_NomSLDepn!AQ46-RFM_IndexRAB!AQ46 -> 18.48335733 | AR55: =RFM_NomSLDepn!AR46-RFM_IndexRAB!AR46 -> 9.354594619 | AS55: =RFM_NomSLDepn!AS46-RFM_IndexRAB!AS46 -> 0.389408349 | AT55: =RFM_NomSLDepn!AT46-RFM_IndexRAB!AT46 -> 0.4041846365 | AU55: =RFM_NomSLDepn!AU46-RFM_IndexRAB!AU46 -> 0.4268632786 | AV55: =RFM_NomSLDepn!AV46-RFM_IndexRAB!AV46 -> 0.442827033 | AW55: =RFM_NomSLDepn!AW46-RFM_IndexRAB!AW46 -> 0.4831890663 | AX55: =RFM_NomSLDepn!AX46-RFM_IndexRAB!AX46 -> 0.002050934361 | AY55: =RFM_NomSLDepn!AY46-RFM_IndexRAB!AY46 -> 0.00251888214 | AZ55: =RFM_NomSLDepn!AZ46-RFM_IndexRAB!AZ46 -> 0.002266571375 | BA55: =RFM_NomSLDepn!BA46-RFM_IndexRAB!BA46 -> 0.002469411574 | BB55: =RFM_NomSLDepn!BB46-RFM_IndexRAB!BB46 -> 0.002586216018
A56: Closing RAB (RFM) | B56: Nominal | D56: =RFM_ORAB!E46 -> 1038.695681 | E56: =RFM_ORAB!F46 -> 1120.02311 | F56: =RFM_ORAB!G46 -> 1247.321368 | G56: =RFM_ORAB!H46 -> 1337.304236 | H56: =RFM_ORAB!I46 -> 1426.981088 | I56: ='PTRM-RFM_Rollover'!I46 -> 1515.438151 | J56: =RFM_ORAB!K46 -> 1645.965113 | K56: =RFM_ORAB!L46 -> 1761.539717 | L56: =RFM_ORAB!M46 -> 1925.617792 | M56: =RFM_ORAB!N46 -> 2010.217787 | N56: ='PTRM-RFM_Rollover'!N46 -> 2046.597089 | O56: =RFM_ORAB!P46 -> 2034.662275 | P56: =RFM_ORAB!Q46 -> 1979.560486 | Q56: =RFM_ORAB!R46 -> 1949.791908 | R56: =RFM_ORAB!S46 -> 1905.374812 | S56: ='PTRM-RFM_Rollover'!S46 -> 1868.431595 | T56: =RFM_ORAB!U46 -> 1828.760587 | U56: =RFM_ORAB!V46 -> 1743.922747 | V56: =RFM_ORAB!W46 -> 1649.573172 | W56: =RFM_ORAB!X46 -> 1567.514971 | X56: ='PTRM-RFM_Rollover'!X46 -> 1482.969763 | Y56: =RFM_ORAB!Z46 -> 1402.965655 | Z56: =RFM_ORAB!AA46 -> 1306.016412 | AA56: =RFM_ORAB!AB46 -> 1222.73162 | AB56: =RFM_ORAB!AC46 -> 1138.27031 | AC56: ='PTRM-RFM_Rollover'!AC46 -> 1032.661343 | AD56: =RFM_ORAB!AE46 -> 937.7768267 | AE56: =RFM_ORAB!AF46 -> 820.4180097 | AF56: =RFM_ORAB!AG46 -> 700.3997699 | AG56: =RFM_ORAB!AH46 -> 571.2113519 | AH56: ='PTRM-RFM_Rollover'!AH46 -> 431.3020522 | AI56: =RFM_ORAB!AJ46 -> 362.0162085 | AJ56: =RFM_ORAB!AK46 -> 293.2296294 | AK56: =RFM_ORAB!AL46 -> 237.0040558 | AL56: =RFM_ORAB!AM46 -> 184.9194497 | AM56: ='PTRM-RFM_Rollover'!AM46 -> 131.6706149 | AN56: =RFM_ORAB!AO46 -> 89.03341905 | AO56: =RFM_ORAB!AP46 -> 55.06417202 | AP56: =RFM_ORAB!AQ46 -> 29.9963535 | AQ56: =RFM_ORAB!AR46 -> 11.51299617 | AR56: ='PTRM-RFM_Rollover'!AR46 -> 2.15840155 | AS56: =RFM_ORAB!AT46 -> 1.768993201 | AT56: =RFM_ORAB!AU46 -> 1.364808565 | AU56: =RFM_ORAB!AV46 -> 0.937945286 | AV56: =RFM_ORAB!AW46 -> 0.495118253 | AW56: ='PTRM-RFM_Rollover'!AW46 -> 0.01192918663 | AX56: =RFM_ORAB!AY46 -> 0.009878252273 | AY56: =RFM_ORAB!AZ46 -> 0.007359370133 | AZ56: =RFM_ORAB!BA46 -> 0.005092798758 | BA56: =RFM_ORAB!BB46 -> 0.002623387184 | BB56: ='PTRM-RFM_Rollover'!BB46 -> 3.717116622e-05
A58: Cash Flow | B58: Nominal | D58: =D52-(Capex_00_Amt_Nom_EY*(1+Real_WACC)^0.5) -> -1038.695681 | E58: =E52-(Capex_01_Amt_Nom_EY*(1+Real_WACC)^0.5) -> -15.5224929 | F58: =F52-(Capex_02_Amt_Nom_EY*(1+Real_WACC)^0.5) -> -14.47886922 | G58: =G52-(Capex_03_Amt_Nom_EY*(1+Real_WACC)^0.5) -> -2.653953284 | H58: =H52-(Capex_04_Amt_Nom_EY*(1+Real_WACC)^0.5) -> 4.496770107 | I58: =I52-(Capex_05_Amt_Nom_EY*(1+Real_WACC)^0.5) -> 11.82213648 | J58: =J52-(Capex_06_Amt_Nom_EY*(1+Real_WACC)^0.5) -> 14.884883 | K58: =K52-(Capex_07_Amt_Nom_EY*(1+Real_WACC)^0.5) -> 24.87307921 | L58: =L52-(Capex_08_Amt_Nom_EY*(1+Real_WACC)^0.5) -> 28.49930115 | M58: =M52-(Capex_09_Amt_Nom_EY*(1+Real_WACC)^0.5) -> 46.13751872 | N58: =N52-(Capex_10_Amt_Nom_EY*(1+Real_WACC)^0.5) -> 58.43351616 | O58: =O52 -> 197.2850298 | P58: =P52 -> 199.9809242 | Q58: =Q52 -> 198.8258385 | R58: =R52 -> 200.3106111 | S58: =S52 -> 200.6208495 | T58: =T52 -> 203.8255897 | U58: 205.7710677 | V58: 203.2392724 | W58: 199.8473851 | X58: 198.0811346 | Y58: 195.2364104 | Z58: 194.2368045 | AA58: 191.4777575 | AB58: 191.0511355 | AC58: 191.2134827 | AD58: 190.0513328 | AE58: 190.6057999 | AF58: 188.3285766 | AG58: 186.7249173 | AH58: 184.6338616 | AI58: 102.9358148 | AJ58: 93.13677445 | AK58: 82.34253515 | AL58: 73.2894669 | AM58: 63.9431743 | AN58: 51.80000632 | AO58: 41.01946115 | AP58: 30.69142768 | AQ58: 20.72262644 | AR58: 10.23817825 | AS58: 0.5530447896 | AT58: 0.5435726227 | AU58: 0.5348089458 | AV58: 0.5252388139 | AW58: 0.5189686183 | AX58: 0.00305057645 | AY58: 0.003021760282 | AZ58: 0.002892652767 | BA58: 0.002856599061 | BB58: 0.002789402805
A59: Cash Flow | B59: Real | D59: =D58/D48 -> -1038.695681 | E59: -15.33691561 | F59: -13.63226183 | G59: -2.452669266 | H59: 4.077578941 | I59: 10.52037017 | J59: 12.68465668 | K59: 20.50503831 | L59: 22.21149573 | M59: 35.37530794 | N59: 44.99609437 | O59: 146.3630086 | P59: 145.6501883 | Q59: 140.2077467 | R59: 137.4876985 | S59: 133.2542659 | T59: 130.5493962 | U59: 129.8051631 | V59: 126.7357391 | W59: 122.1124405 | X59: 118.480213 | Y59: 113.7946725 | Z59: 111.2253287 | AA59: 106.3156753 | AB59: 102.4251383 | AC59: 100.1336613 | AD59: 95.65788856 | AE59: 93.46552041 | AF59: 89.52306294 | AG59: 86.13726408 | AH59: 82.96555363 | AI59: 45.02921368 | AJ59: =AJ58/AJ48 -> 40.08132789 | AK59: 34.13130003 | AL59: 29.24342654 | AM59: 25.32492407 | AN59: 20.25058701 | AO59: 15.69433539 | AP59: 11.25035559 | AQ59: 7.472763253 | AR59: 3.615317458 | AS59: 0.1907471334 | AT59: 0.1826126237 | AU59: 0.1749881261 | AV59: 0.166027129 | AW59: 0.1610279202 | AX59: 0.0009173499468 | AY59: 0.0009096898061 | AZ59: 0.0008434733555 | BA59: 0.0008142521171 | BB59: 0.0007774262452
A60: NPV end period | I60: =NPV(Real_WACC,$E59:I59)+$D59+I56/I48/POWER(1+Real_WACC,I$3) -> 0.4511154263 | N60: =NPV(Real_WACC,$E59:N59)+$D59+N56/N48/POWER(1+Real_WACC,N$3) -> 0.8130102688 | S60: =NPV(Real_WACC,$E59:S59)+$D59+S56/S48/POWER(1+Real_WACC,S$3) -> 4.839253817 | X60: =NPV(Real_WACC,$E59:X59)+$D59+X56/X48/POWER(1+Real_WACC,X$3) -> 4.271419334 | AC60: =NPV(Real_WACC,$E59:AC59)+$D59+AC56/AC48/POWER(1+Real_WACC,AC$3) -> 4.465026919 | AH60: =NPV(Real_WACC,$E59:AH59)+$D59+AH56/AH48/POWER(1+Real_WACC,AH$3) -> 4.511352949 | AM60: =NPV(Real_WACC,$E59:AM59)+$D59+AM56/AM48/POWER(1+Real_WACC,AM$3) -> 4.43700144 | AR60: =NPV(Real_WACC,$E59:AR59)+$D59+AR56/AR48/POWER(1+Real_WACC,AR$3) -> 4.558302851 | AW60: =NPV(Real_WACC,$E59:AW59)+$D59+AW56/AW48/POWER(1+Real_WACC,AW$3) -> 4.558578947 | BB60: =NPV(Real_WACC,$E59:BB59)+$D59+BB56/BB48/POWER(1+Real_WACC,BB$3) -> 4.558580405
A61: NPV overall | D61: =NPV(Real_WACC,E59:BB59)+D59 -> 4.558579502
A62: NPV change this period (% of MAR) | I62: =IFERROR((I60-D60)/ROUND(SUM(E51/E48,F51/F48,G51/G48,H51/H48,I51/I48),6),0) -> 0.0008980968338 | N62: =IFERROR((N60-I60)/ROUND(SUM(J51/J48,K51/K48,L51/L48,M51/M48,N51/N48),6),0) -> 0.0005670869799 | S62: =IFERROR((S60-N60)/ROUND(SUM(O51/O48,P51/P48,Q51/Q48,R51/R48,S51/S48),6),0) -> 0.005773792629 | X62: =IFERROR((X60-S60)/ROUND(SUM(T51/T48,U51/U48,V51/V48,W51/W48,X51/X48),6),0) -> -0.0009017679084 | AC62: =IFERROR((AC60-X60)/ROUND(SUM(Y51/Y48,Z51/Z48,AA51/AA48,AB51/AB48,AC51/AC48),6),0) -> 0.0003632639576 | AH62: =IFERROR((AH60-AC60)/ROUND(SUM(AD51/AD48,AE51/AE48,AF51/AF48,AG51/AG48,AH51/AH48),6),0) -> 0.0001047751563 | AM62: =IFERROR((AM60-AH60)/ROUND(SUM(AI51/AI48,AJ51/AJ48,AK51/AK48,AL51/AL48,AM51/AM48),6),0) -> -0.0004296304756 | AR62: =IFERROR((AR60-AM60)/ROUND(SUM(AN51/AN48,AO51/AO48,AP51/AP48,AQ51/AQ48,AR51/AR48),6),0) -> 0.002073062578 | AW62: =IFERROR((AW60-AR60)/ROUND(SUM(AS51/AS48,AT51/AT48,AU51/AU48,AV51/AV48,AW51/AW48),6),0) -> 0.0003162193306 | BB62: =IFERROR((BB60-AW60)/ROUND(SUM(AX51/AX48,AY51/AY48,AZ51/AZ48,BA51/BA48,BB51/BB48),6),0) -> 0.0003410367461
I63: =(I60-D60)/(I56/I48) -> 0.0003345140855 | N63: =(N60-I60)/(N56/N48) -> 0.0002296345564 | S63: =(S60-N60)/(S56/S48) -> 0.003244275924
A65: Debt | E65: =$C$4*D56 -> 623.2174085 | F65: 672.013866 | G65: 748.3928209 | H65: 802.3825413 | I65: 856.1886525 | J65: 909.2628904 | K65: 987.579068 | L65: 1056.92383 | M65: 1155.370675 | N65: 1206.130672 | O65: 1227.958253 | P65: 1220.797365 | Q65: 1187.736291 | R65: 1169.875145 | S65: 1143.224887 | T65: 1121.058957 | U65: 1097.256352 | V65: 1046.353648 | W65: 989.7439035 | X65: 940.5089829 | Y65: 889.7818576 | Z65: 841.7793929 | AA65: 783.6098473 | AB65: 733.6389722 | AC65: 682.962186 | AD65: 619.5968056 | AE65: 562.666096 | AF65: 492.2508058 | AG65: 420.2398619 | AH65: 342.7268112 | AI65: 258.7812313 | AJ65: 217.2097251 | AK65: =$C$4*AJ56 -> 175.9377777 | AL65: 142.2024335 | AM65: 110.9516698 | AN65: 79.00236891 | AO65: 53.42005143 | AP65: 33.03850321 | AQ65: 17.9978121 | AR65: 6.907797701 | AS65: 1.29504093 | AT65: 1.061395921 | AU65: 0.8188851387 | AV65: 0.5627671716 | AW65: 0.2970709518 | AX65: 0.007157511981 | AY65: 0.005926951364 | AZ65: 0.00441562208 | BA65: 0.003055679255 | BB65: 0.00157403231
A66: Incremental debt raised | D66: =E65-D65 -> 623.2174085 | E66: =F65-E65 -> 48.79645744 | F66: =G65-F65 -> 76.37895495 | G66: =H65-G65 -> 53.98972041 | H66: =I65-H65 -> 53.8061112 | I66: =J65-I65 -> 53.07423788 | J66: =K65-J65 -> 78.31617765 | K66: =L65-K65 -> 69.34476221 | L66: =M65-L65 -> 98.44684474 | M66: =N65-M65 -> 50.75999741 | N66: =O65-N65 -> 21.82758077 | O66: =P65-O65 -> -7.160888188 | P66: =Q65-P65 -> -33.06107368 | Q66: =R65-Q65 -> -17.86114675 | R66: =S65-R65 -> -26.65025762 | S66: =T65-S65 -> -22.1659302 | T66: =U65-T65 -> -23.80260473 | U66: =V65-U65 -> -50.90270372 | V66: =W65-V65 -> -56.60974482 | W66: =X65-W65 -> -49.2349206 | X66: =Y65-X65 -> -50.72712529 | Y66: =Z65-Y65 -> -48.00246464 | Z66: =AA65-Z65 -> -58.1695456 | AA66: =AB65-AA65 -> -49.97087515 | AB66: =AC65-AB65 -> -50.67678618 | AC66: =AD65-AC65 -> -63.36538046 | AD66: =AE65-AD65 -> -56.93070955 | AE66: =AF65-AE65 -> -70.4152902 | AF66: =AG65-AF65 -> -72.01094389 | AG66: =AH65-AG65 -> -77.51305075 | AH66: =AI65-AH65 -> -83.94557983 | AI66: =AJ65-AI65 -> -41.57150626 | AJ66: =AK65-AJ65 -> -41.27194741 | AK66: =AL65-AK65 -> -33.73534418 | AL66: =AM65-AL65 -> -31.25076366 | AM66: =AN65-AM65 -> -31.94930091 | AN66: =AO65-AN65 -> -25.58231748 | AO66: =AP65-AO65 -> -20.38154822 | AP66: =AQ65-AP65 -> -15.04069112 | AQ66: =AR65-AQ65 -> -11.0900144 | AR66: =AS65-AR65 -> -5.612756771 | AS66: =AT65-AS65 -> -0.2336450094 | AT66: =AU65-AT65 -> -0.2425107819 | AU66: =AV65-AU65 -> -0.2561179672 | AV66: =AW65-AV65 -> -0.2656962198 | AW66: =AX65-AW65 -> -0.2899134398 | AX66: =AY65-AX65 -> -0.001230560617 | AY66: =AZ65-AY65 -> -0.001511329284 | AZ66: =BA65-AZ65 -> -0.001359942825 | BA66: =BB65-BA65 -> -0.001481646944 | BB66: =BC65-BB65 -> -0.00157403231
A67: Nominal interest cost | E67: =E65*$C$5 -> 34.27695747 | F67: =F65*$C$5 -> 36.96076263 | G67: 41.16160515 | H67: 44.13103977 | I67: 47.09037589 | J67: 50.00945897 | K67: 54.31684874 | L67: 58.13081066 | M67: 63.54538713 | N67: 66.33718698 | O67: 67.53770392 | P67: 67.14385507 | Q67: 65.32549602 | R67: 64.34313295 | S67: 62.87736878 | T67: 61.65824262 | U67: 60.34909936 | V67: 57.54945066 | W67: 54.43591469 | X67: 51.72799406 | Y67: 48.93800217 | Z67: 46.29786661 | AA67: 43.0985416 | AB67: 40.35014347 | AC67: 37.56292023 | AD67: 34.07782431 | AE67: 30.94663528 | AF67: 27.07379432 | AG67: 23.11319241 | AH67: 18.84997461 | AI67: 14.23296772 | AJ67: 11.94653488 | AK67: 9.676577771 | AL67: 7.821133841 | AM67: 6.10234184 | AN67: 4.34513029 | AO67: 2.938102829 | AP67: 1.817117677 | AQ67: 0.9898796654 | AR67: 0.3799288736 | AS67: 0.07122725116 | AT67: 0.05837677564 | AU67: 0.04503868263 | AV67: 0.03095219444 | AW67: 0.01633890235 | AX67: 0.0003936631589 | AY67: 0.000325982325 | AZ67: 0.0002428592144 | BA67: 0.000168062359 | BB67: 8.657177708e-05
A69: Total cash flow to equity | D69: =D58+D66-D67 -> -415.4782723 | E69: =E58+E66-E67 -> -1.002992919 | F69: 24.9393231 | G69: 10.17416197 | H69: 14.17184154 | I69: 17.80599847 | J69: 43.19160168 | K69: 39.90099268 | L69: 68.81533523 | M69: 33.35212901 | N69: 13.92390994 | O69: 122.5864377 | P69: 99.77599541 | Q69: 115.6391957 | R69: 109.3172205 | S69: 115.5775505 | T69: 118.3647424 | U69: 94.5192646 | V69: 89.08007689 | W69: 96.17654984 | X69: 95.62601521 | Y69: 98.29594364 | Z69: 89.76939228 | AA69: 98.40834072 | AB69: 100.0242059 | AC69: 90.28518206 | AD69: 99.0427989 | AE69: 89.24387438 | AF69: 89.24383835 | AG69: 86.0986741 | AH69: 81.8383071 | AI69: 47.13134083 | AJ69: 39.91829217 | AK69: 38.9306132 | AL69: 34.2175694 | AM69: 25.89153156 | AN69: 21.87255855 | AO69: 17.6998101 | AP69: 13.83361889 | AQ69: 8.642732375 | AR69: 4.245492603 | AS69: 0.248172529 | AT69: 0.2426850651 | AU69: 0.233652296 | AV69: 0.2285903996 | AW69: 0.2127162761 | AX69: 0.001426352674 | AY69: 0.001184448672 | AZ69: 0.001289850728 | BA69: 0.001206889758 | BB69: 0.001128798718
A70: Total cash flow to debt holders | D70: =-D66+D67 -> -623.2174085 | E70: =-E66+E67 -> -14.51949998 | F70: -39.41819232 | G70: -12.82811526 | H70: -9.675071432 | I70: -5.983861994 | J70: -28.30671868 | K70: -15.02791347 | L70: -40.31603408 | M70: 12.78538972 | N70: 44.50960622 | O70: 74.69859211 | P70: 100.2049288 | Q70: 83.18664277 | R70: 90.99339057 | S70: 85.04329899 | T70: 85.46084735 | U70: 111.2518031 | V70: 114.1591955 | W70: 103.6708353 | X70: 102.4551194 | Y70: 96.94046681 | Z70: 104.4674122 | AA70: 93.06941675 | AB70: 91.02692965 | AC70: 100.9283007 | AD70: 91.00853386 | AE70: 101.3619255 | AF70: 99.08473821 | AG70: 100.6262432 | AH70: 102.7955544 | AI70: 55.80447398 | AJ70: 53.21848229 | AK70: 43.41192196 | AL70: 39.0718975 | AM70: 38.05164275 | AN70: 29.92744777 | AO70: 23.31965105 | AP70: 16.85780879 | AQ70: 12.07989406 | AR70: 5.992685645 | AS70: 0.3048722606 | AT70: 0.3008875576 | AU70: 0.3011566498 | AV70: 0.2966484143 | AW70: 0.3062523421 | AX70: 0.001624223775 | AY70: 0.001837311609 | AZ70: 0.001602802039 | BA70: 0.001649709303 | BB70: 0.001660604088
A71: Real cash flow to equity | D71: =D69/D48 -> -415.4782723 | E71: =E69/E48 -> -0.9910017591 | F71: 23.48107281 | G71: 9.402522089 | H71: 12.85073536 | I71: 15.84533351 | J71: 36.80718478 | K71: 32.89385189 | L71: 53.6325967 | M71: 25.57228622 | N71: 10.7219556 | O71: 90.94516623 | P71: 72.6688937 | Q71: 81.54629796 | R71: 75.03233588 | S71: 76.76770227 | T71: 75.8120983 | U71: 59.62494482 | V71: 55.54846389 | W71: 58.76660938 | X71: 57.19772694 | Y71: 57.29236001 | Z71: 51.4044194 | AA71: 54.64002368 | AB71: 53.62435087 | AC71: 47.2800647 | AD71: 49.85087388 | AE71: 43.76165451 | AF71: 42.42256753 | AG71: 39.71780701 | AH71: 36.77418865 | AI71: 20.61757826 | AJ71: =AJ69/AJ48 -> 17.17880146 | AK71: 16.13689009 | AL71: 13.65324404 | AM71: 10.25443416 | AN71: 8.550812667 | AO71: 6.772072289 | AP71: 5.070899054 | AQ71: 3.116646101 | AR71: 1.499173306 | AS71: 0.08559559622 | AT71: 0.08152978026 | AU71: 0.07645043667 | AV71: 0.07225705099 | AW71: 0.06600256417 | AX71: 0.0004289237039 | AY71: 0.0003565739114 | AZ71: 0.0003761096852 | BA71: 0.000344014865 | BB71: 0.0003146041679
B73: IRR | C73: NPV
A74: All capital | B74: =IRR(D58:BB58) -> 0.07848552676
A75: Nominal Equity | B75: =IRR(D69:BB69) -> 0.1139832486
A76: Nominal Debt | B76: =IRR(D70:BB70) -> 0.05499999999
A77: Real Equity | B77: 0.0845199361 | C77: =NPV(Inputs!$J$17,D71:BB71) -> 4.646957103
A78: Variation from target real RoE | B78: =B77-Inputs!$J$17 -> 0.0009577740833
A79: Approach C
A80: Actual Inflation | B80: Chosen inflation | E80: =INDEX(E$6:E$11,MATCH($A80,$A$6:$A$11,0)) -> 0.01210003925 | F80: =INDEX(F$6:F$11,MATCH($A80,$A$6:$A$11,0)) -> 0.04940537631 | G80: =INDEX(G$6:G$11,MATCH($A80,$A$6:$A$11,0)) -> 0.01879676772 | H80: =INDEX(H$6:H$11,MATCH($A80,$A$6:$A$11,0)) -> 0.01916387812 | I80: =INDEX(I$6:I$11,MATCH($A80,$A$6:$A$11,0)) -> 0.01898229851 | J80: =INDEX(J$6:J$11,MATCH($A80,$A$6:$A$11,0)) -> 0.04424345176 | K80: 0.03371843145 | L80: 0.05776072522 | M80: 0.01647710241 | N80: -0.004289250067 | O80: 0.03794801417 | P80: 0.01862590575 | Q80: 0.03281679668 | R80: 0.02739938407 | S80: 0.03336757525 | T80: 0.03702421163 | U80: 0.01533300458 | V80: 0.01161715552 | W80: 0.02053999578 | X80: 0.0215478861 | Y80: 0.02622264859 | Z80: 0.01786209806 | AA80: 0.03131943821 | AB80: 0.03567152024 | AC80: 0.02375338754 | AD80: 0.04042723729 | AE80: 0.02644233056 | AF80: 0.0315650229 | AG80: 0.03045708836 | AH80: 0.02660254158 | AI80: 0.02720850376 | AJ80: 0.01649898333 | AK80: 0.03822698211 | AL80: 0.03882382243 | AM80: 0.007471423187 | AN80: 0.01308563154 | AO80: 0.02177394872 | AP80: 0.04376762029 | AQ80: 0.01651252234 | AR80: 0.02120439059 | AS80: 0.02382572367 | AT80: 0.02665492232 | AU80: 0.02674667223 | AV80: 0.03511278157 | AW80: 0.01873718692 | AX80: 0.03182717029 | AY80: -0.001105073479 | AZ80: 0.03242438961 | BA80: 0.0229760279 | BB80: 0.0227315242
B81: Constructed index | D81: 1 | E81: =IFERROR(D81*(1+E80),"NA") -> 1.012100039 | F81: 1.062103223 | G81: 1.08206733 | H81: 1.102803937 | I81: 1.12373769 | J81: 1.173455724 | K81: 1.213022811 | L81: 1.283087888 | M81: 1.304229459 | N81: 1.298635292 | O81: 1.347915923 | P81: 1.373022078 | Q81: 1.418080264 | R81: 1.45693479 | S81: 1.505549171 | T81: 1.561290942 | U81: 1.585230223 | V81: 1.603646089 | W81: 1.636584973 | X81: 1.67184992 | Y81: 1.715690253 | Z81: 1.74633608 | AA81: 1.801030345 | AB81: 1.865275836 | AC81: 1.909582456 | AD81: 1.986781599 | AE81: 2.039316734 | AF81: 2.103687814 | AG81: 2.167760019 | AH81: 2.225427945 | AI81: 2.28597851 | AJ81: 2.323694831 | AK81: =IFERROR(AJ81*(1+AK80),"NA") -> 2.412522672 | AL81: 2.506186024 | AM81: 2.5249108 | AN81: 2.557950853 | AO81: 2.613647543 | AP81: 2.728040677 | AQ81: 2.773087509 | AR81: 2.83188914 | AS81: 2.899360948 | AT81: 2.976643189 | AU81: 3.056258489 | AV81: 3.163572226 | AW81: 3.22284867 | AX81: 3.325422823 | AY81: 3.321747986 | AZ81: 3.429453637 | BA81: 3.50824886 | BB81: 3.587996704
A83: Closing RAB (PTRM) | B83: Nominal | D83: =PTRM_ORAB!E64 -> 1038.695681 | E83: =PTRM_ORAB!F64 -> 1135.997101 | F83: =PTRM_ORAB!G64 -> 1236.026936 | G83: =PTRM_ORAB!H64 -> 1335.051404 | H83: =PTRM_ORAB!I64 -> 1434.59532 | I83: ='PTRM-RFM_Rollover'!H64 -> 1534.487204 | J83: =PTRM_ORAB!K64 -> 1618.259917 | K83: =PTRM_ORAB!L64 -> 1720.831896 | L83: =PTRM_ORAB!M64 -> 1825.065834 | M83: =PTRM_ORAB!N64 -> 1926.736999 | N83: ='PTRM-RFM_Rollover'!M64 -> 2026.829143 | O83: =PTRM_ORAB!P64 -> 2007.177784 | P83: =PTRM_ORAB!Q64 -> 1964.354113 | Q83: =PTRM_ORAB!R64 -> 1917.976441 | R83: =PTRM_ORAB!S64 -> 1867.889673 | S83: ='PTRM-RFM_Rollover'!R64 -> 1813.933073 | T83: =PTRM_ORAB!U64 -> 1808.07719 | U83: =PTRM_ORAB!V64 -> 1743.427303 | V83: =PTRM_ORAB!W64 -> 1674.302045 | W83: =PTRM_ORAB!X64 -> 1600.515147 | X83: ='PTRM-RFM_Rollover'!W64 -> 1521.873749 | Y83: =PTRM_ORAB!Z64 -> 1400.327112 | Z83: =PTRM_ORAB!AA64 -> 1312.699551 | AA83: =PTRM_ORAB!AB64 -> 1219.891304 | AB83: =PTRM_ORAB!AC64 -> 1121.699965 | AC83: ='PTRM-RFM_Rollover'!AB64 -> 1017.916294 | AD83: =PTRM_ORAB!AE64 -> 923.2771617 | AE83: =PTRM_ORAB!AF64 -> 807.294611 | AF83: =PTRM_ORAB!AG64 -> 684.4387513 | AG83: =PTRM_ORAB!AH64 -> 554.4246502 | AH83: ='PTRM-RFM_Rollover'!AG64 -> 416.9570443 | AI83: =PTRM_ORAB!AJ64 -> 360.9696898 | AJ83: =PTRM_ORAB!AK64 -> 295.3766982 | AK83: =PTRM_ORAB!AL64 -> 234.9535941 | AL83: =PTRM_ORAB!AM64 -> 180.043684 | AM83: ='PTRM-RFM_Rollover'!AL64 -> 131.1322637 | AN83: =PTRM_ORAB!AO64 -> 89.69168304 | AO83: =PTRM_ORAB!AP64 -> 54.94383644 | AP83: =PTRM_ORAB!AQ64 -> 27.98770532 | AQ83: =PTRM_ORAB!AR64 -> 9.516432261 | AR83: ='PTRM-RFM_Rollover'!AQ64 -> -4.659068825e-15 | AS83: =PTRM_ORAB!AT64 -> 1.769743327 | AT83: =PTRM_ORAB!AU64 -> 1.360377997 | AU83: =PTRM_ORAB!AV64 -> 0.9295149775 | AV83: =PTRM_ORAB!AW64 -> 0.4763371441 | AW83: ='PTRM-RFM_Rollover'!AV64 -> -9.716780806e-17 | AX83: =PTRM_ORAB!AY64 -> 0.009761568809 | AY83: =PTRM_ORAB!AZ64 -> 0.007488550021 | AZ83: =PTRM_ORAB!BA64 -> 0.005106442639 | BA83: =PTRM_ORAB!BB64 -> 0.002611445479 | BB83: ='PTRM-RFM_Rollover'!BA64 -> -3.594595842e-07
A84: MAR (PTRM) | B84: Nominal | E84: =PTRM_MAR!E64 -> 88.81245706 | F84: =PTRM_MAR!F64 -> 98.34710979 | G84: =PTRM_MAR!G64 -> 108.3020715 | H84: =PTRM_MAR!H64 -> 118.3725484 | I84: =PTRM_MAR!I64 -> 128.6998807 | J84: =PTRM_MAR!J64 -> 137.7595171 | K84: =PTRM_MAR!K64 -> 148.8364138 | L84: =PTRM_MAR!L64 -> 160.1530575 | M84: =PTRM_MAR!M64 -> 171.8890106 | N84: =PTRM_MAR!N64 -> 183.7015789 | O84: =PTRM_MAR!O64 -> 197.2850298 | P84: =PTRM_MAR!P64 -> 197.6487604 | Q84: =PTRM_MAR!Q64 -> 197.8995268 | R84: =PTRM_MAR!R64 -> 198.0312473 | S84: =PTRM_MAR!S64 -> 198.0376013 | T84: =PTRM_MAR!T64 -> 203.8255897 | U84: =PTRM_MAR!U64 -> 203.4866416 | V84: =PTRM_MAR!V64 -> 202.9977433 | W84: =PTRM_MAR!W64 -> 202.3514647 | X84: =PTRM_MAR!X64 -> 201.5400939 | Y84: =PTRM_MAR!Y64 -> 195.2364104 | Z84: =PTRM_MAR!Z64 -> 193.9467173 | AA84: =PTRM_MAR!AA64 -> 192.4743236 | AB84: =PTRM_MAR!AB64 -> 190.8109938 | AC84: =PTRM_MAR!AC64 -> 188.9481969 | AD84: =PTRM_MAR!AD64 -> 190.0513328 | AE84: =PTRM_MAR!AE64 -> 188.1050713 | AF84: =PTRM_MAR!AF64 -> 185.9183123 | AG84: =PTRM_MAR!AG64 -> 183.4795718 | AH84: =PTRM_MAR!AH64 -> 180.7769229 | AI84: =PTRM_MAR!AI64 -> 102.9358148 | AJ84: =PTRM_MAR!AJ64 -> 92.87980379 | AK84: =PTRM_MAR!AK64 -> 82.75153976 | AL84: =PTRM_MAR!AL64 -> 72.67077688 | AM84: =PTRM_MAR!AM64 -> 62.5214777 | AN84: =PTRM_MAR!AN64 -> 51.80000632 | AO84: =PTRM_MAR!AO64 -> 41.43778802 | AP84: =PTRM_MAR!AP64 -> 31.05429313 | AQ84: =PTRM_MAR!AQ64 -> 20.55882569 | AR84: =PTRM_MAR!AR64 -> 10.22624584 | AS84: =PTRM_MAR!AS64 -> 0.5530447896 | AT84: =PTRM_MAR!AT64 -> 0.5441511988 | AU84: =PTRM_MAR!AU64 -> 0.5344711121 | AV84: =PTRM_MAR!AV64 -> 0.5239708586 | AW84: =PTRM_MAR!AW64 -> 0.5126155778 | AX84: =PTRM_MAR!AX64 -> 0.00305057645 | AY84: =PTRM_MAR!AY64 -> 0.002995537567 | AZ84: =PTRM_MAR!AZ64 -> 0.002936384888 | BA84: =PTRM_MAR!BA64 -> 0.00287295902 | BB84: =PTRM_MAR!BB64 -> 0.002805095427
A85: MAR (Pricing) | B85: Nominal | E85: =Pricing_MAR!E64 -> 88.93944848 | F85: =Pricing_MAR!F64 -> 97.14910059 | G85: =Pricing_MAR!G64 -> 109.4184165 | H85: =Pricing_MAR!H64 -> 118.7477563 | I85: =Pricing_MAR!I64 -> 128.2418505 | J85: =Pricing_MAR!J64 -> 136.6061186 | K85: =Pricing_MAR!K64 -> 149.9827797 | L85: =Pricing_MAR!L64 -> 162.3497393 | M85: =Pricing_MAR!M64 -> 179.3633931 | N85: =Pricing_MAR!N64 -> 189.6173569 | O85: =Pricing_MAR!O64 -> 191.4900451 | P85: =Pricing_MAR!P64 -> 194.1067512 | Q85: =Pricing_MAR!Q64 -> 192.9855946 | R85: =Pricing_MAR!R64 -> 194.426754 | S85: =Pricing_MAR!S64 -> 194.7278796 | T85: =Pricing_MAR!T64 -> 205.387046 | U85: =Pricing_MAR!U64 -> 207.3474277 | V85: =Pricing_MAR!V64 -> 204.796237 | W85: =Pricing_MAR!W64 -> 201.3783653 | X85: =Pricing_MAR!X64 -> 199.598584 | Y85: =Pricing_MAR!Y64 -> 194.637734 | Z85: =Pricing_MAR!Z64 -> 193.6411933 | AA85: =Pricing_MAR!AA64 -> 190.8906066 | AB85: =Pricing_MAR!AB64 -> 190.4652929 | AC85: =Pricing_MAR!AC64 -> 190.6271423 | AD85: =Pricing_MAR!AD64 -> 189.4916884 | AE85: =Pricing_MAR!AE64 -> 190.0445228 | AF85: =Pricing_MAR!AF64 -> 187.7740052 | AG85: =Pricing_MAR!AG64 -> 186.1750682 | AH85: =Pricing_MAR!AH64 -> 184.0901701 | AI85: =Pricing_MAR!AI64 -> 103.1597164 | AJ85: =Pricing_MAR!AJ64 -> 93.33936161 | AK85: =Pricing_MAR!AK64 -> 82.52164314 | AL85: =Pricing_MAR!AL64 -> 73.44888303 | AM85: =Pricing_MAR!AM64 -> 64.08226078 | AN85: =Pricing_MAR!AN64 -> 50.99290804 | AO85: =Pricing_MAR!AO64 -> 40.38033503 | AP85: =Pricing_MAR!AP64 -> 30.21322313 | AQ85: =Pricing_MAR!AQ64 -> 20.39974624 | AR85: =Pricing_MAR!AR64 -> 10.07865672 | AS85: =Pricing_MAR!AS64 -> 0.5510422849 | AT85: =Pricing_MAR!AT64 -> 0.5416044155 | AU85: =Pricing_MAR!AU64 -> 0.5328724708 | AV85: =Pricing_MAR!AV64 -> 0.5233369911 | AW85: =Pricing_MAR!AW64 -> 0.5170894991 | AX85: =Pricing_MAR!AX64 -> 0.003038241917 | AY85: =Pricing_MAR!AY64 -> 0.003009542263 | AZ85: =Pricing_MAR!AZ64 -> 0.002880956774 | BA85: =Pricing_MAR!BA64 -> 0.002845048846 | BB85: =Pricing_MAR!BB64 -> 0.002778124287
A86: Opening RAB (RFM) | B86: Nominal | E86: =RFM_ORAB!E64 -> 1038.695681 | F86: =RFM_ORAB!F64 -> 1120.02311 | G86: =RFM_ORAB!G64 -> 1247.321368 | H86: =RFM_ORAB!H64 -> 1337.304236 | I86: =RFM_ORAB!I64 -> 1426.981088 | J86: =RFM_ORAB!J64 -> 1515.438151 | K86: =RFM_ORAB!K64 -> 1645.965113 | L86: =RFM_ORAB!L64 -> 1761.539717 | M86: =RFM_ORAB!M64 -> 1925.617792 | N86: =RFM_ORAB!N64 -> 2010.217787 | O86: =RFM_ORAB!O64 -> 2046.597089 | P86: =RFM_ORAB!P64 -> 2034.662275 | Q86: =RFM_ORAB!Q64 -> 1979.560486 | R86: =RFM_ORAB!R64 -> 1949.791908 | S86: =RFM_ORAB!S64 -> 1905.374812 | T86: =RFM_ORAB!T64 -> 1868.431595 | U86: =RFM_ORAB!U64 -> 1828.760587 | V86: =RFM_ORAB!V64 -> 1743.922747 | W86: =RFM_ORAB!W64 -> 1649.573172 | X86: =RFM_ORAB!X64 -> 1567.514971 | Y86: =RFM_ORAB!Y64 -> 1482.969763 | Z86: =RFM_ORAB!Z64 -> 1402.965655 | AA86: =RFM_ORAB!AA64 -> 1306.016412 | AB86: =RFM_ORAB!AB64 -> 1222.73162 | AC86: =RFM_ORAB!AC64 -> 1138.27031 | AD86: =RFM_ORAB!AD64 -> 1032.661343 | AE86: =RFM_ORAB!AE64 -> 937.7768267 | AF86: =RFM_ORAB!AF64 -> 820.4180097 | AG86: =RFM_ORAB!AG64 -> 700.3997699 | AH86: =RFM_ORAB!AH64 -> 571.2113519 | AI86: =RFM_ORAB!AI64 -> 431.3020522 | AJ86: =RFM_ORAB!AJ64 -> 362.0162085 | AK86: =RFM_ORAB!AK64 -> 293.2296294 | AL86: =RFM_ORAB!AL64 -> 237.0040558 | AM86: =RFM_ORAB!AM64 -> 184.9194497 | AN86: =RFM_ORAB!AN64 -> 131.6706149 | AO86: =RFM_ORAB!AO64 -> 89.03341905 | AP86: =RFM_ORAB!AP64 -> 55.06417202 | AQ86: =RFM_ORAB!AQ64 -> 29.9963535 | AR86: =RFM_ORAB!AR64 -> 11.51299617 | AS86: =RFM_ORAB!AS64 -> 2.15840155 | AT86: =RFM_ORAB!AT64 -> 1.768993201 | AU86: =RFM_ORAB!AU64 -> 1.364808565 | AV86: =RFM_ORAB!AV64 -> 0.937945286 | AW86: =RFM_ORAB!AW64 -> 0.495118253 | AX86: =RFM_ORAB!AX64 -> 0.01192918663 | AY86: =RFM_ORAB!AY64 -> 0.009878252273 | AZ86: =RFM_ORAB!AZ64 -> 0.007359370133 | BA86: =RFM_ORAB!BA64 -> 0.005092798758 | BB86: =RFM_ORAB!BB64 -> 0.002623387184
A87: Capex (RFM) | B87: Nominal | D87: =RFM_NomCapex!D64 -> 1024.695077 | E87: =RFM_NomCapex!E64 -> 104.33495 | F87: =RFM_NomCapex!F64 -> 111.4892563 | G87: =RFM_NomCapex!G64 -> 111.9161376 | H87: =RFM_NomCapex!H64 -> 114.0814332 | I87: =RFM_NomCapex!I64 -> 116.236605 | J87: =RFM_NomCapex!J64 -> 122.8746341 | K87: =RFM_NomCapex!K64 -> 126.3760414 | L87: =RFM_NomCapex!L64 -> 135.2211963 | M87: =RFM_NomCapex!M64 -> 134.7402829 | N87: =RFM_NomCapex!N64 -> 132.784826 | O87: =RFM_NomCapex!O64 -> 0 | P87: =RFM_NomCapex!P64 -> 0 | Q87: =RFM_NomCapex!Q64 -> 0 | R87: =RFM_NomCapex!R64 -> 0 | S87: =RFM_NomCapex!S64 -> 0 | T87: =RFM_NomCapex!T64 -> 0 | U87: =RFM_NomCapex!U64 -> 0 | V87: =RFM_NomCapex!V64 -> 0 | W87: =RFM_NomCapex!W64 -> 0 | X87: =RFM_NomCapex!X64 -> 0 | Y87: =RFM_NomCapex!Y64 -> 0 | Z87: =RFM_NomCapex!Z64 -> 0 | AA87: =RFM_NomCapex!AA64 -> 0 | AB87: =RFM_NomCapex!AB64 -> 0 | AC87: =RFM_NomCapex!AC64 -> 0 | AD87: =RFM_NomCapex!AD64 -> 0 | AE87: =RFM_NomCapex!AE64 -> 0 | AF87: =RFM_NomCapex!AF64 -> 0 | AG87: =RFM_NomCapex!AG64 -> 0 | AH87: =RFM_NomCapex!AH64 -> 0 | AI87: =RFM_NomCapex!AI64 -> 0 | AJ87: =RFM_NomCapex!AJ64 -> 0 | AK87: =RFM_NomCapex!AK64 -> 0 | AL87: =RFM_NomCapex!AL64 -> 0 | AM87: =RFM_NomCapex!AM64 -> 0 | AN87: =RFM_NomCapex!AN64 -> 0 | AO87: =RFM_NomCapex!AO64 -> 0 | AP87: =RFM_NomCapex!AP64 -> 0 | AQ87: =RFM_NomCapex!AQ64 -> 0 | AR87: =RFM_NomCapex!AR64 -> 0 | AS87: =RFM_NomCapex!AS64 -> 0 | AT87: =RFM_NomCapex!AT64 -> 0 | AU87: =RFM_NomCapex!AU64 -> 0 | AV87: =RFM_NomCapex!AV64 -> 0 | AW87: =RFM_NomCapex!AW64 -> 0 | AX87: =RFM_NomCapex!AX64 -> 0 | AY87: =RFM_NomCapex!AY64 -> 0 | AZ87: =RFM_NomCapex!AZ64 -> 0 | BA87: =RFM_NomCapex!BA64 -> 0 | BB87: =RFM_NomCapex!BB64 -> 0
A88: Reg Depreciation (RFM) | B88: Nominal | E88: =RFM_NomSLDepn!E64-RFM_IndexRAB!E64 -> 23.00752089 | F88: =RFM_NomSLDepn!F64-RFM_IndexRAB!F64 -> -15.80900193 | G88: =RFM_NomSLDepn!G64-RFM_IndexRAB!G64 -> 21.9332703 | H88: =RFM_NomSLDepn!H64-RFM_IndexRAB!H64 -> 24.4045812 | I88: =RFM_NomSLDepn!I64-RFM_IndexRAB!I64 -> 27.77954184 | J88: =RFM_NomSLDepn!J64-RFM_IndexRAB!J64 -> -7.652328623 | K88: =RFM_NomSLDepn!K64-RFM_IndexRAB!K64 -> 10.80143768 | L88: =RFM_NomSLDepn!L64-RFM_IndexRAB!L64 -> -28.85687831 | M88: =RFM_NomSLDepn!M64-RFM_IndexRAB!M64 -> 50.14028723 | N88: =RFM_NomSLDepn!N64-RFM_IndexRAB!N64 -> 96.4055247 | O88: =RFM_NomSLDepn!O64-RFM_IndexRAB!O64 -> 11.93481365 | P88: =RFM_NomSLDepn!P64-RFM_IndexRAB!P64 -> 55.10178946 | Q88: =RFM_NomSLDepn!Q64-RFM_IndexRAB!Q64 -> 29.76857791 | R88: =RFM_NomSLDepn!R64-RFM_IndexRAB!R64 -> 44.41709604 | S88: =RFM_NomSLDepn!S64-RFM_IndexRAB!S64 -> 36.94321701 | T88: =RFM_NomSLDepn!T64-RFM_IndexRAB!T64 -> 39.67100788 | U88: =RFM_NomSLDepn!U64-RFM_IndexRAB!U64 -> 84.83783953 | V88: =RFM_NomSLDepn!V64-RFM_IndexRAB!V64 -> 94.34957469 | W88: =RFM_NomSLDepn!W64-RFM_IndexRAB!W64 -> 82.058201 | X88: =RFM_NomSLDepn!X64-RFM_IndexRAB!X64 -> 84.54520882 | Y88: =RFM_NomSLDepn!Y64-RFM_IndexRAB!Y64 -> 80.00410773 | Z88: =RFM_NomSLDepn!Z64-RFM_IndexRAB!Z64 -> 96.94924267 | AA88: =RFM_NomSLDepn!AA64-RFM_IndexRAB!AA64 -> 83.28479191 | AB88: =RFM_NomSLDepn!AB64-RFM_IndexRAB!AB64 -> 84.4613103 | AC88: =RFM_NomSLDepn!AC64-RFM_IndexRAB!AC64 -> 105.6089674 | AD88: =RFM_NomSLDepn!AD64-RFM_IndexRAB!AD64 -> 94.88451592 | AE88: =RFM_NomSLDepn!AE64-RFM_IndexRAB!AE64 -> 117.358817 | AF88: =RFM_NomSLDepn!AF64-RFM_IndexRAB!AF64 -> 120.0182398 | AG88: =RFM_NomSLDepn!AG64-RFM_IndexRAB!AG64 -> 129.1884179 | AH88: =RFM_NomSLDepn!AH64-RFM_IndexRAB!AH64 -> 139.9092997 | AI88: =RFM_NomSLDepn!AI64-RFM_IndexRAB!AI64 -> 69.28584376 | AJ88: =RFM_NomSLDepn!AJ64-RFM_IndexRAB!AJ64 -> 68.78657901 | AK88: =RFM_NomSLDepn!AK64-RFM_IndexRAB!AK64 -> 56.22557364 | AL88: =RFM_NomSLDepn!AL64-RFM_IndexRAB!AL64 -> 52.0846061 | AM88: =RFM_NomSLDepn!AM64-RFM_IndexRAB!AM64 -> 53.24883485 | AN88: =RFM_NomSLDepn!AN64-RFM_IndexRAB!AN64 -> 42.6371958 | AO88: =RFM_NomSLDepn!AO64-RFM_IndexRAB!AO64 -> 33.96924703 | AP88: =RFM_NomSLDepn!AP64-RFM_IndexRAB!AP64 -> 25.06781853 | AQ88: =RFM_NomSLDepn!AQ64-RFM_IndexRAB!AQ64 -> 18.48335733 | AR88: =RFM_NomSLDepn!AR64-RFM_IndexRAB!AR64 -> 9.354594619 | AS88: =RFM_NomSLDepn!AS64-RFM_IndexRAB!AS64 -> 0.389408349 | AT88: =RFM_NomSLDepn!AT64-RFM_IndexRAB!AT64 -> 0.4041846365 | AU88: =RFM_NomSLDepn!AU64-RFM_IndexRAB!AU64 -> 0.4268632786 | AV88: =RFM_NomSLDepn!AV64-RFM_IndexRAB!AV64 -> 0.442827033 | AW88: =RFM_NomSLDepn!AW64-RFM_IndexRAB!AW64 -> 0.4831890663 | AX88: =RFM_NomSLDepn!AX64-RFM_IndexRAB!AX64 -> 0.002050934361 | AY88: =RFM_NomSLDepn!AY64-RFM_IndexRAB!AY64 -> 0.00251888214 | AZ88: =RFM_NomSLDepn!AZ64-RFM_IndexRAB!AZ64 -> 0.002266571375 | BA88: =RFM_NomSLDepn!BA64-RFM_IndexRAB!BA64 -> 0.002469411574 | BB88: =RFM_NomSLDepn!BB64-RFM_IndexRAB!BB64 -> 0.002586216018
A89: Closing RAB (RFM) | B89: Nominal | D89: =RFM_ORAB!E64 -> 1038.695681 | E89: =RFM_ORAB!F64 -> 1120.02311 | F89: =RFM_ORAB!G64 -> 1247.321368 | G89: =RFM_ORAB!H64 -> 1337.304236 | H89: =RFM_ORAB!I64 -> 1426.981088 | I89: ='PTRM-RFM_Rollover'!I64 -> 1515.438151 | J89: =RFM_ORAB!K64 -> 1645.965113 | K89: =RFM_ORAB!L64 -> 1761.539717 | L89: =RFM_ORAB!M64 -> 1925.617792 | M89: =RFM_ORAB!N64 -> 2010.217787 | N89: ='PTRM-RFM_Rollover'!N64 -> 2046.597089 | O89: =RFM_ORAB!P64 -> 2034.662275 | P89: =RFM_ORAB!Q64 -> 1979.560486 | Q89: =RFM_ORAB!R64 -> 1949.791908 | R89: =RFM_ORAB!S64 -> 1905.374812 | S89: ='PTRM-RFM_Rollover'!S64 -> 1868.431595 | T89: =RFM_ORAB!U64 -> 1828.760587 | U89: =RFM_ORAB!V64 -> 1743.922747 | V89: =RFM_ORAB!W64 -> 1649.573172 | W89: =RFM_ORAB!X64 -> 1567.514971 | X89: ='PTRM-RFM_Rollover'!X64 -> 1482.969763 | Y89: =RFM_ORAB!Z64 -> 1402.965655 | Z89: =RFM_ORAB!AA64 -> 1306.016412 | AA89: =RFM_ORAB!AB64 -> 1222.73162 | AB89: =RFM_ORAB!AC64 -> 1138.27031 | AC89: ='PTRM-RFM_Rollover'!AC64 -> 1032.661343 | AD89: =RFM_ORAB!AE64 -> 937.7768267 | AE89: =RFM_ORAB!AF64 -> 820.4180097 | AF89: =RFM_ORAB!AG64 -> 700.3997699 | AG89: =RFM_ORAB!AH64 -> 571.2113519 | AH89: ='PTRM-RFM_Rollover'!AH64 -> 431.3020522 | AI89: =RFM_ORAB!AJ64 -> 362.0162085 | AJ89: =RFM_ORAB!AK64 -> 293.2296294 | AK89: =RFM_ORAB!AL64 -> 237.0040558 | AL89: =RFM_ORAB!AM64 -> 184.9194497 | AM89: ='PTRM-RFM_Rollover'!AM64 -> 131.6706149 | AN89: =RFM_ORAB!AO64 -> 89.03341905 | AO89: =RFM_ORAB!AP64 -> 55.06417202 | AP89: =RFM_ORAB!AQ64 -> 29.9963535 | AQ89: =RFM_ORAB!AR64 -> 11.51299617 | AR89: ='PTRM-RFM_Rollover'!AR64 -> 2.15840155 | AS89: =RFM_ORAB!AT64 -> 1.768993201 | AT89: =RFM_ORAB!AU64 -> 1.364808565 | AU89: =RFM_ORAB!AV64 -> 0.937945286 | AV89: =RFM_ORAB!AW64 -> 0.495118253 | AW89: ='PTRM-RFM_Rollover'!AW64 -> 0.01192918663 | AX89: =RFM_ORAB!AY64 -> 0.009878252273 | AY89: =RFM_ORAB!AZ64 -> 0.007359370133 | AZ89: =RFM_ORAB!BA64 -> 0.005092798758 | BA89: =RFM_ORAB!BB64 -> 0.002623387184 | BB89: ='PTRM-RFM_Rollover'!BB64 -> 3.717116622e-05
A91: Cash Flow | B91: Nominal | D91: =D85-(Capex_00_Amt_Nom_EY*(1+Real_WACC)^0.5) -> -1038.695681 | E91: =E85-(Capex_01_Amt_Nom_EY*(1+Real_WACC)^0.5) -> -15.39550147 | F91: =F85-(Capex_02_Amt_Nom_EY*(1+Real_WACC)^0.5) -> -14.34015572 | G91: =G85-(Capex_03_Amt_Nom_EY*(1+Real_WACC)^0.5) -> -2.497721146 | H91: =H85-(Capex_04_Amt_Nom_EY*(1+Real_WACC)^0.5) -> 4.666323062 | I91: =I85-(Capex_05_Amt_Nom_EY*(1+Real_WACC)^0.5) -> 12.00524549 | J91: =J85-(Capex_06_Amt_Nom_EY*(1+Real_WACC)^0.5) -> 13.73148446 | K91: =K85-(Capex_07_Amt_Nom_EY*(1+Real_WACC)^0.5) -> 23.60673829 | L91: =L85-(Capex_08_Amt_Nom_EY*(1+Real_WACC)^0.5) -> 27.12854299 | M91: =M85-(Capex_09_Amt_Nom_EY*(1+Real_WACC)^0.5) -> 44.62311016 | N91: =N85-(Capex_10_Amt_Nom_EY*(1+Real_WACC)^0.5) -> 56.83253091 | O91: =O85 -> 191.4900451 | P91: =P85 -> 194.1067512 | Q91: =Q85 -> 192.9855946 | R91: =R85 -> 194.426754 | S91: =S85 -> 194.7278796 | T91: =T85 -> 205.387046 | U91: 207.3474277 | V91: 204.796237 | W91: 201.3783653 | X91: 199.598584 | Y91: 194.637734 | Z91: 193.6411933 | AA91: 190.8906066 | AB91: 190.4652929 | AC91: 190.6271423 | AD91: 189.4916884 | AE91: 190.0445228 | AF91: 187.7740052 | AG91: 186.1750682 | AH91: 184.0901701 | AI91: 103.1597164 | AJ91: 93.33936161 | AK91: 82.52164314 | AL91: 73.44888303 | AM91: 64.08226078 | AN91: 50.99290804 | AO91: 40.38033503 | AP91: 30.21322313 | AQ91: 20.39974624 | AR91: 10.07865672 | AS91: 0.5510422849 | AT91: 0.5416044155 | AU91: 0.5328724708 | AV91: 0.5233369911 | AW91: 0.5170894991 | AX91: 0.003038241917 | AY91: 0.003009542263 | AZ91: 0.002880956774 | BA91: 0.002845048846 | BB91: 0.002778124287
A92: Cash Flow | B92: Real | D92: =D91/D81 -> -1038.695681 | E92: -15.21144242 | F92: -13.50165917 | G92: -2.308286256 | H92: 4.231326084 | I92: 10.68331658 | J92: 11.7017491 | K92: 19.46108356 | L92: 21.14316817 | M92: 34.21415601 | N92: 43.76327306 | O92: 142.0637904 | P92: 141.3719082 | Q92: 136.0893311 | R92: 133.4491807 | S92: 129.3400995 | T92: 131.549502 | U92: 130.7995676 | V92: 127.7066295 | W92: 123.047913 | X92: 119.3878599 | Y92: 113.4457305 | Z92: 110.8842653 | AA92: 105.989667 | AB92: 102.1110601 | AC92: 99.82660959 | AD92: 95.3762047 | AE92: 93.19029241 | AF92: 89.2594443 | AG92: 85.8836156 | AH92: 82.72124489 | AI92: 45.12715932 | AJ92: =AJ91/AJ81 -> 40.16851109 | AK92: 34.20554098 | AL92: 29.3070356 | AM92: 25.38000977 | AN92: 19.93506168 | AO92: 15.44980123 | AP92: 11.07506328 | AQ92: 7.356329784 | AR92: 3.55898703 | AS92: 0.1900564624 | AT92: 0.1819514067 | AU92: 0.1743545164 | AV92: 0.1654259659 | AW92: 0.1604448586 | AX92: 0.0009136407845 | AY92: 0.0009060116164 | AZ92: 0.0008400629018 | BA92: 0.0008109598149 | BB92: 0.0007742828427
A93: NPV end period | I93: =NPV(Real_WACC,$E92:I92)+$D92+I89/I81/POWER(1+Real_WACC,I$3) -> 1.06795856 | N93: =NPV(Real_WACC,$E92:N92)+$D92+N89/N81/POWER(1+Real_WACC,N$3) -> -2.273946896 | S93: =NPV(Real_WACC,$E92:S92)+$D92+S89/S81/POWER(1+Real_WACC,S$3) -> -9.25026425 | X93: =NPV(Real_WACC,$E92:X92)+$D92+X89/X81/POWER(1+Real_WACC,X$3) -> -7.810377506 | AC93: =NPV(Real_WACC,$E92:AC92)+$D92+AC89/AC81/POWER(1+Real_WACC,AC$3) -> -8.152810221 | AH93: =NPV(Real_WACC,$E92:AH92)+$D92+AH89/AH81/POWER(1+Real_WACC,AH$3) -> -8.444822462 | AM93: =NPV(Real_WACC,$E92:AM92)+$D92+AM89/AM81/POWER(1+Real_WACC,AM$3) -> -8.442360399 | AR93: =NPV(Real_WACC,$E92:AR92)+$D92+AR89/AR81/POWER(1+Real_WACC,AR$3) -> -8.468565931 | AW93: =NPV(Real_WACC,$E92:AW92)+$D92+AW89/AW81/POWER(1+Real_WACC,AW$3) -> -8.468681353 | BB93: =NPV(Real_WACC,$E92:BB92)+$D92+BB89/BB81/POWER(1+Real_WACC,BB$3) -> -8.468681563
A94: NPV overall | D94: =NPV(Real_WACC,E92:BB92)+D92 -> -8.468682466
A95: NPV change this period (% of MAR) | I95: =IFERROR((I93-D93)/ROUND(SUM(E84/E81,F84/F81,G84/G81,H84/H81,I84/I81),6),0) -> 0.002126130354 | N95: =IFERROR((N93-I93)/ROUND(SUM(J84/J81,K84/K81,L84/L81,M84/M81,N84/N81),6),0) -> -0.005236745179 | S95: =IFERROR((S93-N93)/ROUND(SUM(O84/O81,P84/P81,Q84/Q81,R84/R81,S84/S81),6),0) -> -0.01000431525 | X95: =IFERROR((X93-S93)/ROUND(SUM(T84/T81,U84/U81,V84/V81,W84/W81,X84/X81),6),0) -> 0.002286658694 | AC95: =IFERROR((AC93-X93)/ROUND(SUM(Y84/Y81,Z84/Z81,AA84/AA81,AB84/AB81,AC84/AC81),6),0) -> -0.0006425030466 | AH95: =IFERROR((AH93-AC93)/ROUND(SUM(AD84/AD81,AE84/AE81,AF84/AF81,AG84/AG81,AH84/AH81),6),0) -> -0.0006604414107 | AM95: =IFERROR((AM93-AH93)/ROUND(SUM(AI84/AI81,AJ84/AJ81,AK84/AK81,AL84/AL81,AM84/AM81),6),0) -> 1.42267076e-05 | AR95: =IFERROR((AR93-AM93)/ROUND(SUM(AN84/AN81,AO84/AO81,AP84/AP81,AQ84/AQ81,AR84/AR81),6),0) -> -0.0004478571703 | AW95: =IFERROR((AW93-AR93)/ROUND(SUM(AS84/AS81,AT84/AT81,AU84/AU81,AV84/AV81,AW84/AW81),6),0) -> -0.0001321960259 | BB95: =IFERROR((BB93-AW93)/ROUND(SUM(AX84/AX81,AY84/AY81,AZ84/AZ81,BA84/BA81,BB84/BB81),6),0) -> -4.903108955e-05
I96: =(I93-D93)/(I89/I81) -> 0.000791919673 | N96: =(N93-I93)/(N89/N81) -> -0.0021205524 | S96: =(S93-N93)/(S89/S81) -> -0.00562139328
A98: Debt | E98: =$C$4*D89 -> 623.2174085 | F98: 672.013866 | G98: 748.3928209 | H98: 802.3825413 | I98: 856.1886525 | J98: 909.2628904 | K98: 987.579068 | L98: 1056.92383 | M98: 1155.370675 | N98: 1206.130672 | O98: 1227.958253 | P98: 1220.797365 | Q98: 1187.736291 | R98: 1169.875145 | S98: 1143.224887 | T98: 1121.058957 | U98: 1097.256352 | V98: 1046.353648 | W98: 989.7439035 | X98: 940.5089829 | Y98: 889.7818576 | Z98: 841.7793929 | AA98: 783.6098473 | AB98: 733.6389722 | AC98: 682.962186 | AD98: 619.5968056 | AE98: 562.666096 | AF98: 492.2508058 | AG98: 420.2398619 | AH98: 342.7268112 | AI98: 258.7812313 | AJ98: 217.2097251 | AK98: =$C$4*AJ89 -> 175.9377777 | AL98: 142.2024335 | AM98: 110.9516698 | AN98: 79.00236891 | AO98: 53.42005143 | AP98: 33.03850321 | AQ98: 17.9978121 | AR98: 6.907797701 | AS98: 1.29504093 | AT98: 1.061395921 | AU98: 0.8188851387 | AV98: 0.5627671716 | AW98: 0.2970709518 | AX98: 0.007157511981 | AY98: 0.005926951364 | AZ98: 0.00441562208 | BA98: 0.003055679255 | BB98: 0.00157403231
A99: Incremental debt raised | D99: =E98-D98 -> 623.2174085 | E99: =F98-E98 -> 48.79645744 | F99: =G98-F98 -> 76.37895495 | G99: =H98-G98 -> 53.98972041 | H99: =I98-H98 -> 53.8061112 | I99: =J98-I98 -> 53.07423788 | J99: =K98-J98 -> 78.31617765 | K99: =L98-K98 -> 69.34476221 | L99: =M98-L98 -> 98.44684474 | M99: =N98-M98 -> 50.75999741 | N99: =O98-N98 -> 21.82758077 | O99: =P98-O98 -> -7.160888188 | P99: =Q98-P98 -> -33.06107368 | Q99: =R98-Q98 -> -17.86114675 | R99: =S98-R98 -> -26.65025762 | S99: =T98-S98 -> -22.1659302 | T99: =U98-T98 -> -23.80260473 | U99: =V98-U98 -> -50.90270372 | V99: =W98-V98 -> -56.60974482 | W99: =X98-W98 -> -49.2349206 | X99: =Y98-X98 -> -50.72712529 | Y99: =Z98-Y98 -> -48.00246464 | Z99: =AA98-Z98 -> -58.1695456 | AA99: =AB98-AA98 -> -49.97087515 | AB99: =AC98-AB98 -> -50.67678618 | AC99: =AD98-AC98 -> -63.36538046 | AD99: =AE98-AD98 -> -56.93070955 | AE99: =AF98-AE98 -> -70.4152902 | AF99: =AG98-AF98 -> -72.01094389 | AG99: =AH98-AG98 -> -77.51305075 | AH99: =AI98-AH98 -> -83.94557983 | AI99: =AJ98-AI98 -> -41.57150626 | AJ99: =AK98-AJ98 -> -41.27194741 | AK99: =AL98-AK98 -> -33.73534418 | AL99: =AM98-AL98 -> -31.25076366 | AM99: =AN98-AM98 -> -31.94930091 | AN99: =AO98-AN98 -> -25.58231748 | AO99: =AP98-AO98 -> -20.38154822 | AP99: =AQ98-AP98 -> -15.04069112 | AQ99: =AR98-AQ98 -> -11.0900144 | AR99: =AS98-AR98 -> -5.612756771 | AS99: =AT98-AS98 -> -0.2336450094 | AT99: =AU98-AT98 -> -0.2425107819 | AU99: =AV98-AU98 -> -0.2561179672 | AV99: =AW98-AV98 -> -0.2656962198 | AW99: =AX98-AW98 -> -0.2899134398 | AX99: =AY98-AX98 -> -0.001230560617 | AY99: =AZ98-AY98 -> -0.001511329284 | AZ99: =BA98-AZ98 -> -0.001359942825 | BA99: =BB98-BA98 -> -0.001481646944 | BB99: =BC98-BB98 -> -0.00157403231
A100: Nominal interest cost | E100: =E98*$C$5 -> 34.27695747 | F100: =F98*$C$5 -> 36.96076263 | G100: 41.16160515 | H100: 44.13103977 | I100: 47.09037589 | J100: 50.00945897 | K100: 54.31684874 | L100: 58.13081066 | M100: 63.54538713 | N100: 66.33718698 | O100: 67.53770392 | P100: 67.14385507 | Q100: 65.32549602 | R100: 64.34313295 | S100: 62.87736878 | T100: 61.65824262 | U100: 60.34909936 | V100: 57.54945066 | W100: 54.43591469 | X100: 51.72799406 | Y100: 48.93800217 | Z100: 46.29786661 | AA100: 43.0985416 | AB100: 40.35014347 | AC100: 37.56292023 | AD100: 34.07782431 | AE100: 30.94663528 | AF100: 27.07379432 | AG100: 23.11319241 | AH100: 18.84997461 | AI100: 14.23296772 | AJ100: 11.94653488 | AK100: 9.676577771 | AL100: 7.821133841 | AM100: 6.10234184 | AN100: 4.34513029 | AO100: 2.938102829 | AP100: 1.817117677 | AQ100: 0.9898796654 | AR100: 0.3799288736 | AS100: 0.07122725116 | AT100: 0.05837677564 | AU100: 0.04503868263 | AV100: 0.03095219444 | AW100: 0.01633890235 | AX100: 0.0003936631589 | AY100: 0.000325982325 | AZ100: 0.0002428592144 | BA100: 0.000168062359 | BB100: 8.657177708e-05
A102: Total cash flow to equity | D102: =D91+D99-D100 -> -415.4782723 | E102: =E91+E99-E100 -> -0.8760014985 | F102: 25.0780366 | G102: 10.33039411 | H102: 14.34139449 | I102: 17.98910749 | J102: 42.03820314 | K102: 38.63465176 | L102: 67.44457707 | M102: 31.83772045 | N102: 12.32292469 | O102: 116.791453 | P102: 93.90182241 | Q102: 109.7989518 | R102: 103.4333634 | S102: 109.6845806 | T102: 119.9261986 | U102: 96.09562465 | V102: 90.63704149 | W102: 97.70753006 | X102: 97.14346463 | Y102: 97.69726719 | Z102: 89.17378104 | AA102: 97.82118987 | AB102: 99.43836323 | AC102: 89.69884158 | AD102: 98.48315458 | AE102: 88.68259731 | AF102: 88.68926702 | AG102: 85.54882507 | AH102: 81.29461561 | AI102: 47.35524244 | AJ102: 40.12087932 | AK102: 39.10972118 | AL102: 34.37698553 | AM102: 26.03061803 | AN102: 21.06546027 | AO102: 17.06068399 | AP102: 13.35541434 | AQ102: 8.319852177 | AR102: 4.085971076 | AS102: 0.2461700243 | AT102: 0.2407168579 | AU102: 0.231715821 | AV102: 0.2266885768 | AW102: 0.2108371569 | AX102: 0.001414018142 | AY102: 0.001172230653 | AZ102: 0.001278154735 | BA102: 0.001195339543 | BB102: 0.0011175202
A103: Total cash flow to debt holders | D103: =-D99+D100 -> -623.2174085 | E103: =-E99+E100 -> -14.51949998 | F103: -39.41819232 | G103: -12.82811526 | H103: -9.675071432 | I103: -5.983861994 | J103: -28.30671868 | K103: -15.02791347 | L103: -40.31603408 | M103: 12.78538972 | N103: 44.50960622 | O103: 74.69859211 | P103: 100.2049288 | Q103: 83.18664277 | R103: 90.99339057 | S103: 85.04329899 | T103: 85.46084735 | U103: 111.2518031 | V103: 114.1591955 | W103: 103.6708353 | X103: 102.4551194 | Y103: 96.94046681 | Z103: 104.4674122 | AA103: 93.06941675 | AB103: 91.02692965 | AC103: 100.9283007 | AD103: 91.00853386 | AE103: 101.3619255 | AF103: 99.08473821 | AG103: 100.6262432 | AH103: 102.7955544 | AI103: 55.80447398 | AJ103: 53.21848229 | AK103: 43.41192196 | AL103: 39.0718975 | AM103: 38.05164275 | AN103: 29.92744777 | AO103: 23.31965105 | AP103: 16.85780879 | AQ103: 12.07989406 | AR103: 5.992685645 | AS103: 0.3048722606 | AT103: 0.3008875576 | AU103: 0.3011566498 | AV103: 0.2966484143 | AW103: 0.3062523421 | AX103: 0.001624223775 | AY103: 0.001837311609 | AZ103: 0.001602802039 | BA103: 0.001649709303 | BB103: 0.001660604088
A104: Real cash flow to equity | D104: =D102/D81 -> -415.4782723 | E104: =E102/E81 -> -0.8655285688 | F104: 23.61167547 | G104: 9.546905098 | H104: 13.0044825 | I104: 16.00827991 | J104: 35.82427719 | K104: 31.84989714 | L104: 52.56426913 | M104: 24.41113428 | N104: 9.489134296 | O104: 86.64594801 | P104: 68.39061362 | Q104: 77.42788235 | R104: 70.99381806 | S104: 72.85353589 | T104: 76.81220417 | U104: 60.61934931 | V104: 56.5193543 | W104: 59.70208186 | X104: 58.10537386 | Y104: 56.94341798 | Z104: 51.06335604 | AA104: 54.31401538 | AB104: 53.31027258 | AC104: 46.97301304 | AD104: 49.56919001 | AE104: 43.48642651 | AF104: 42.15894889 | AG104: 39.46415853 | AH104: 36.52987992 | AI104: 20.71552389 | AJ104: 17.26598466 | AK104: 16.21113104 | AL104: 13.7168531 | AM104: 10.30951986 | AN104: 8.235287337 | AO104: 6.527538126 | AP104: 4.895606745 | AQ104: 3.000212633 | AR104: 1.442842878 | AS104: 0.08490492517 | AT104: 0.08086856322 | AU104: 0.07581682697 | AV104: 0.07165588792 | AW104: 0.0654195026 | AX104: 0.0004252145417 | AY104: 0.0003528957218 | AZ104: 0.0003726992315 | BA104: 0.0003407225628 | BB104: 0.0003114607655
B106: IRR | C106: NPV
A107: All capital | B107: =IRR(D91:BB91) -> 0.07773526435
A108: Nominal Equity | B108: =IRR(D102:BB102) -> 0.1122173182
A109: Nominal Debt | B109: =IRR(D103:BB103) -> 0.05499999999
A110: Real Equity | B110: 0.0828154662 | C110: =NPV(Inputs!$J$17,D104:BB104) -> -3.607995899
A111: Variation from target real RoE | B111: =B110-Inputs!$J$17 -> -0.0007466958173
A112: Approach D
A113: Actual Inflation | B113: Chosen inflation | E113: =INDEX(E$6:E$11,MATCH($A113,$A$6:$A$11,0)) -> 0.01210003925 | F113: =INDEX(F$6:F$11,MATCH($A113,$A$6:$A$11,0)) -> 0.04940537631 | G113: =INDEX(G$6:G$11,MATCH($A113,$A$6:$A$11,0)) -> 0.01879676772 | H113: =INDEX(H$6:H$11,MATCH($A113,$A$6:$A$11,0)) -> 0.01916387812 | I113: =INDEX(I$6:I$11,MATCH($A113,$A$6:$A$11,0)) -> 0.01898229851 | J113: =INDEX(J$6:J$11,MATCH($A113,$A$6:$A$11,0)) -> 0.04424345176 | K113: 0.03371843145 | L113: 0.05776072522 | M113: 0.01647710241 | N113: -0.004289250067 | O113: 0.03794801417 | P113: 0.01862590575 | Q113: 0.03281679668 | R113: 0.02739938407 | S113: 0.03336757525 | T113: 0.03702421163 | U113: 0.01533300458 | V113: 0.01161715552 | W113: 0.02053999578 | X113: 0.0215478861 | Y113: 0.02622264859 | Z113: 0.01786209806 | AA113: 0.03131943821 | AB113: 0.03567152024 | AC113: 0.02375338754 | AD113: 0.04042723729 | AE113: 0.02644233056 | AF113: 0.0315650229 | AG113: 0.03045708836 | AH113: 0.02660254158 | AI113: 0.02720850376 | AJ113: 0.01649898333 | AK113: 0.03822698211 | AL113: 0.03882382243 | AM113: 0.007471423187 | AN113: 0.01308563154 | AO113: 0.02177394872 | AP113: 0.04376762029 | AQ113: 0.01651252234 | AR113: 0.02120439059 | AS113: 0.02382572367 | AT113: 0.02665492232 | AU113: 0.02674667223 | AV113: 0.03511278157 | AW113: 0.01873718692 | AX113: 0.03182717029 | AY113: -0.001105073479 | AZ113: 0.03242438961 | BA113: 0.0229760279 | BB113: 0.0227315242
B114: Constructed index | D114: 1 | E114: =IFERROR(D114*(1+E113),"NA") -> 1.012100039 | F114: 1.062103223 | G114: 1.08206733 | H114: 1.102803937 | I114: 1.12373769 | J114: 1.173455724 | K114: 1.213022811 | L114: 1.283087888 | M114: 1.304229459 | N114: 1.298635292 | O114: 1.347915923 | P114: 1.373022078 | Q114: 1.418080264 | R114: 1.45693479 | S114: 1.505549171 | T114: 1.561290942 | U114: 1.585230223 | V114: 1.603646089 | W114: 1.636584973 | X114: 1.67184992 | Y114: 1.715690253 | Z114: 1.74633608 | AA114: 1.801030345 | AB114: 1.865275836 | AC114: 1.909582456 | AD114: 1.986781599 | AE114: 2.039316734 | AF114: 2.103687814 | AG114: 2.167760019 | AH114: 2.225427945 | AI114: 2.28597851 | AJ114: 2.323694831 | AK114: =IFERROR(AJ114*(1+AK113),"NA") -> 2.412522672 | AL114: 2.506186024 | AM114: 2.5249108 | AN114: 2.557950853 | AO114: 2.613647543 | AP114: 2.728040677 | AQ114: 2.773087509 | AR114: 2.83188914 | AS114: 2.899360948 | AT114: 2.976643189 | AU114: 3.056258489 | AV114: 3.163572226 | AW114: 3.22284867 | AX114: 3.325422823 | AY114: 3.321747986 | AZ114: 3.429453637 | BA114: 3.50824886 | BB114: 3.587996704
A116: Closing RAB (PTRM) | B116: Nominal | D116: =PTRM_ORAB!E82 -> 1038.695681 | E116: =PTRM_ORAB!F82 -> 1135.997101 | F116: =PTRM_ORAB!G82 -> 1236.026936 | G116: =PTRM_ORAB!H82 -> 1335.051404 | H116: =PTRM_ORAB!I82 -> 1434.59532 | I116: ='PTRM-RFM_Rollover'!H82 -> 1534.487204 | J116: =PTRM_ORAB!K82 -> 1618.259917 | K116: =PTRM_ORAB!L82 -> 1720.831896 | L116: =PTRM_ORAB!M82 -> 1825.065834 | M116: =PTRM_ORAB!N82 -> 1926.736999 | N116: ='PTRM-RFM_Rollover'!M82 -> 2026.829143 | O116: =PTRM_ORAB!P82 -> 2007.177784 | P116: =PTRM_ORAB!Q82 -> 1964.354113 | Q116: =PTRM_ORAB!R82 -> 1917.976441 | R116: =PTRM_ORAB!S82 -> 1867.889673 | S116: ='PTRM-RFM_Rollover'!R82 -> 1813.933073 | T116: =PTRM_ORAB!U82 -> 1808.07719 | U116: =PTRM_ORAB!V82 -> 1743.427303 | V116: =PTRM_ORAB!W82 -> 1674.302045 | W116: =PTRM_ORAB!X82 -> 1600.515147 | X116: ='PTRM-RFM_Rollover'!W82 -> 1521.873749 | Y116: =PTRM_ORAB!Z82 -> 1400.327112 | Z116: =PTRM_ORAB!AA82 -> 1312.699551 | AA116: =PTRM_ORAB!AB82 -> 1219.891304 | AB116: =PTRM_ORAB!AC82 -> 1121.699965 | AC116: ='PTRM-RFM_Rollover'!AB82 -> 1017.916294 | AD116: =PTRM_ORAB!AE82 -> 923.2771617 | AE116: =PTRM_ORAB!AF82 -> 807.294611 | AF116: =PTRM_ORAB!AG82 -> 684.4387513 | AG116: =PTRM_ORAB!AH82 -> 554.4246502 | AH116: ='PTRM-RFM_Rollover'!AG82 -> 416.9570443 | AI116: =PTRM_ORAB!AJ82 -> 360.9696898 | AJ116: =PTRM_ORAB!AK82 -> 295.3766982 | AK116: =PTRM_ORAB!AL82 -> 234.9535941 | AL116: =PTRM_ORAB!AM82 -> 180.043684 | AM116: ='PTRM-RFM_Rollover'!AL82 -> 131.1322637 | AN116: =PTRM_ORAB!AO82 -> 89.69168304 | AO116: =PTRM_ORAB!AP82 -> 54.94383644 | AP116: =PTRM_ORAB!AQ82 -> 27.98770532 | AQ116: =PTRM_ORAB!AR82 -> 9.516432261 | AR116: ='PTRM-RFM_Rollover'!AQ82 -> -4.659068825e-15 | AS116: =PTRM_ORAB!AT82 -> 1.769743327 | AT116: =PTRM_ORAB!AU82 -> 1.360377997 | AU116: =PTRM_ORAB!AV82 -> 0.9295149775 | AV116: =PTRM_ORAB!AW82 -> 0.4763371441 | AW116: ='PTRM-RFM_Rollover'!AV82 -> -9.716780806e-17 | AX116: =PTRM_ORAB!AY82 -> 0.009761568809 | AY116: =PTRM_ORAB!AZ82 -> 0.007488550021 | AZ116: =PTRM_ORAB!BA82 -> 0.005106442639 | BA116: =PTRM_ORAB!BB82 -> 0.002611445479 | BB116: ='PTRM-RFM_Rollover'!BA82 -> -3.594595842e-07
A117: MAR (PTRM) | B117: Nominal | E117: =PTRM_MAR!E82 -> 88.81245706 | F117: =PTRM_MAR!F82 -> 98.34710979 | G117: =PTRM_MAR!G82 -> 108.3020715 | H117: =PTRM_MAR!H82 -> 118.3725484 | I117: =PTRM_MAR!I82 -> 128.6998807 | J117: =PTRM_MAR!J82 -> 137.7595171 | K117: =PTRM_MAR!K82 -> 148.8364138 | L117: =PTRM_MAR!L82 -> 160.1530575 | M117: =PTRM_MAR!M82 -> 171.8890106 | N117: =PTRM_MAR!N82 -> 183.7015789 | O117: =PTRM_MAR!O82 -> 197.2850298 | P117: =PTRM_MAR!P82 -> 197.6487604 | Q117: =PTRM_MAR!Q82 -> 197.8995268 | R117: =PTRM_MAR!R82 -> 198.0312473 | S117: =PTRM_MAR!S82 -> 198.0376013 | T117: =PTRM_MAR!T82 -> 203.8255897 | U117: =PTRM_MAR!U82 -> 203.4866416 | V117: =PTRM_MAR!V82 -> 202.9977433 | W117: =PTRM_MAR!W82 -> 202.3514647 | X117: =PTRM_MAR!X82 -> 201.5400939 | Y117: =PTRM_MAR!Y82 -> 195.2364104 | Z117: =PTRM_MAR!Z82 -> 193.9467173 | AA117: =PTRM_MAR!AA82 -> 192.4743236 | AB117: =PTRM_MAR!AB82 -> 190.8109938 | AC117: =PTRM_MAR!AC82 -> 188.9481969 | AD117: =PTRM_MAR!AD82 -> 190.0513328 | AE117: =PTRM_MAR!AE82 -> 188.1050713 | AF117: =PTRM_MAR!AF82 -> 185.9183123 | AG117: =PTRM_MAR!AG82 -> 183.4795718 | AH117: =PTRM_MAR!AH82 -> 180.7769229 | AI117: =PTRM_MAR!AI82 -> 102.9358148 | AJ117: =PTRM_MAR!AJ82 -> 92.87980379 | AK117: =PTRM_MAR!AK82 -> 82.75153976 | AL117: =PTRM_MAR!AL82 -> 72.67077688 | AM117: =PTRM_MAR!AM82 -> 62.5214777 | AN117: =PTRM_MAR!AN82 -> 51.80000632 | AO117: =PTRM_MAR!AO82 -> 41.43778802 | AP117: =PTRM_MAR!AP82 -> 31.05429313 | AQ117: =PTRM_MAR!AQ82 -> 20.55882569 | AR117: =PTRM_MAR!AR82 -> 10.22624584 | AS117: =PTRM_MAR!AS82 -> 0.5530447896 | AT117: =PTRM_MAR!AT82 -> 0.5441511988 | AU117: =PTRM_MAR!AU82 -> 0.5344711121 | AV117: =PTRM_MAR!AV82 -> 0.5239708586 | AW117: =PTRM_MAR!AW82 -> 0.5126155778 | AX117: =PTRM_MAR!AX82 -> 0.00305057645 | AY117: =PTRM_MAR!AY82 -> 0.002995537567 | AZ117: =PTRM_MAR!AZ82 -> 0.002936384888 | BA117: =PTRM_MAR!BA82 -> 0.00287295902 | BB117: =PTRM_MAR!BB82 -> 0.002805095427
A118: MAR (Pricing) | B118: Nominal | E118: =Pricing_MAR!E82 -> 87.60532828 | F118: =Pricing_MAR!F82 -> 99.21897056 | G118: =Pricing_MAR!G82 -> 108.4902304 | H118: =Pricing_MAR!H82 -> 117.7828565 | I118: =Pricing_MAR!I82 -> 127.1771427 | J118: =Pricing_MAR!J82 -> 139.9926623 | K118: =Pricing_MAR!K82 -> 152.1517733 | L118: =Pricing_MAR!L82 -> 168.5281267 | M118: =Pricing_MAR!M82 -> 178.9224232 | N118: =Pricing_MAR!N82 -> 185.2868699 | O118: =Pricing_MAR!O82 -> 199.6129017 | P118: =Pricing_MAR!P82 -> 198.5738983 | Q118: =Pricing_MAR!Q82 -> 200.1773745 | R118: =Pricing_MAR!R82 -> 200.6144127 | S118: =Pricing_MAR!S82 -> 202.0923011 | T118: =Pricing_MAR!T82 -> 206.113821 | U118: =Pricing_MAR!U82 -> 203.7287523 | V118: =Pricing_MAR!V82 -> 200.4856661 | W118: =Pricing_MAR!W82 -> 198.8785801 | X118: =Pricing_MAR!X82 -> 197.3155694 | Y118: =Pricing_MAR!Y82 -> 195.5284266 | Z118: =Pricing_MAR!Z82 -> 192.9425276 | AA118: =Pricing_MAR!AA82 -> 192.7165587 | AB118: =Pricing_MAR!AB82 -> 193.0986125 | AC118: =Pricing_MAR!AC82 -> 191.0387025 | AD118: =Pricing_MAR!AD82 -> 192.5779356 | AE118: =Pricing_MAR!AE82 -> 190.5436849 | AF118: =Pricing_MAR!AF82 -> 189.2067937 | AG118: =Pricing_MAR!AG82 -> 187.3941723 | AH118: =Pricing_MAR!AH82 -> 184.6025017 | AI118: =Pricing_MAR!AI82 -> 103.2206075 | AJ118: =Pricing_MAR!AJ82 -> 92.42073961 | AK118: =Pricing_MAR!AK82 -> 83.45605338 | AL118: =Pricing_MAR!AL82 -> 74.32326177 | AM118: =Pricing_MAR!AM82 -> 62.88806413 | AN118: =Pricing_MAR!AN82 -> 51.27706975 | AO118: =Pricing_MAR!AO82 -> 40.95359276 | AP118: =Pricing_MAR!AP82 -> 31.30171564 | AQ118: =Pricing_MAR!AQ82 -> 20.58281459 | AR118: =Pricing_MAR!AR82 -> 10.21604014 | AS118: =Pricing_MAR!AS82 -> 0.5524567573 | AT118: =Pricing_MAR!AT82 -> 0.5444951512 | AU118: =Pricing_MAR!AU82 -> 0.5357644769 | AV118: =Pricing_MAR!AV82 -> 0.5304646293 | AW118: =Pricing_MAR!AW82 -> 0.5158402241 | AX118: =Pricing_MAR!AX82 -> 0.003077280971 | AY118: =Pricing_MAR!AY82 -> 0.002950924474 | AZ118: =Pricing_MAR!AZ82 -> 0.002919663754 | BA118: =Pricing_MAR!BA82 -> 0.002856886747 | BB118: =Pricing_MAR!BB82 -> 0.002789016955
A119: Opening RAB (RFM) | B119: Nominal | E119: =RFM_ORAB!E82 -> 1038.695681 | F119: =RFM_ORAB!F82 -> 1120.02311 | G119: =RFM_ORAB!G82 -> 1247.321368 | H119: =RFM_ORAB!H82 -> 1337.304236 | I119: =RFM_ORAB!I82 -> 1426.981088 | J119: =RFM_ORAB!J82 -> 1515.438151 | K119: =RFM_ORAB!K82 -> 1645.965113 | L119: =RFM_ORAB!L82 -> 1761.539717 | M119: =RFM_ORAB!M82 -> 1925.617792 | N119: =RFM_ORAB!N82 -> 2010.217787 | O119: =RFM_ORAB!O82 -> 2046.597089 | P119: =RFM_ORAB!P82 -> 2034.662275 | Q119: =RFM_ORAB!Q82 -> 1979.560486 | R119: =RFM_ORAB!R82 -> 1949.791908 | S119: =RFM_ORAB!S82 -> 1905.374812 | T119: =RFM_ORAB!T82 -> 1868.431595 | U119: =RFM_ORAB!U82 -> 1828.760587 | V119: =RFM_ORAB!V82 -> 1743.922747 | W119: =RFM_ORAB!W82 -> 1649.573172 | X119: =RFM_ORAB!X82 -> 1567.514971 | Y119: =RFM_ORAB!Y82 -> 1482.969763 | Z119: =RFM_ORAB!Z82 -> 1402.965655 | AA119: =RFM_ORAB!AA82 -> 1306.016412 | AB119: =RFM_ORAB!AB82 -> 1222.73162 | AC119: =RFM_ORAB!AC82 -> 1138.27031 | AD119: =RFM_ORAB!AD82 -> 1032.661343 | AE119: =RFM_ORAB!AE82 -> 937.7768267 | AF119: =RFM_ORAB!AF82 -> 820.4180097 | AG119: =RFM_ORAB!AG82 -> 700.3997699 | AH119: =RFM_ORAB!AH82 -> 571.2113519 | AI119: =RFM_ORAB!AI82 -> 431.3020522 | AJ119: =RFM_ORAB!AJ82 -> 362.0162085 | AK119: =RFM_ORAB!AK82 -> 293.2296294 | AL119: =RFM_ORAB!AL82 -> 237.0040558 | AM119: =RFM_ORAB!AM82 -> 184.9194497 | AN119: =RFM_ORAB!AN82 -> 131.6706149 | AO119: =RFM_ORAB!AO82 -> 89.03341905 | AP119: =RFM_ORAB!AP82 -> 55.06417202 | AQ119: =RFM_ORAB!AQ82 -> 29.9963535 | AR119: =RFM_ORAB!AR82 -> 11.51299617 | AS119: =RFM_ORAB!AS82 -> 2.15840155 | AT119: =RFM_ORAB!AT82 -> 1.768993201 | AU119: =RFM_ORAB!AU82 -> 1.364808565 | AV119: =RFM_ORAB!AV82 -> 0.937945286 | AW119: =RFM_ORAB!AW82 -> 0.495118253 | AX119: =RFM_ORAB!AX82 -> 0.01192918663 | AY119: =RFM_ORAB!AY82 -> 0.009878252273 | AZ119: =RFM_ORAB!AZ82 -> 0.007359370133 | BA119: =RFM_ORAB!BA82 -> 0.005092798758 | BB119: =RFM_ORAB!BB82 -> 0.002623387184
A120: Capex (RFM) | B120: Nominal | D120: =RFM_NomCapex!D82 -> 1024.695077 | E120: =RFM_NomCapex!E82 -> 104.33495 | F120: =RFM_NomCapex!F82 -> 111.4892563 | G120: =RFM_NomCapex!G82 -> 111.9161376 | H120: =RFM_NomCapex!H82 -> 114.0814332 | I120: =RFM_NomCapex!I82 -> 116.236605 | J120: =RFM_NomCapex!J82 -> 122.8746341 | K120: =RFM_NomCapex!K82 -> 126.3760414 | L120: =RFM_NomCapex!L82 -> 135.2211963 | M120: =RFM_NomCapex!M82 -> 134.7402829 | N120: =RFM_NomCapex!N82 -> 132.784826 | O120: =RFM_NomCapex!O82 -> 0 | P120: =RFM_NomCapex!P82 -> 0 | Q120: =RFM_NomCapex!Q82 -> 0 | R120: =RFM_NomCapex!R82 -> 0 | S120: =RFM_NomCapex!S82 -> 0 | T120: =RFM_NomCapex!T82 -> 0 | U120: =RFM_NomCapex!U82 -> 0 | V120: =RFM_NomCapex!V82 -> 0 | W120: =RFM_NomCapex!W82 -> 0 | X120: =RFM_NomCapex!X82 -> 0 | Y120: =RFM_NomCapex!Y82 -> 0 | Z120: =RFM_NomCapex!Z82 -> 0 | AA120: =RFM_NomCapex!AA82 -> 0 | AB120: =RFM_NomCapex!AB82 -> 0 | AC120: =RFM_NomCapex!AC82 -> 0 | AD120: =RFM_NomCapex!AD82 -> 0 | AE120: =RFM_NomCapex!AE82 -> 0 | AF120: =RFM_NomCapex!AF82 -> 0 | AG120: =RFM_NomCapex!AG82 -> 0 | AH120: =RFM_NomCapex!AH82 -> 0 | AI120: =RFM_NomCapex!AI82 -> 0 | AJ120: =RFM_NomCapex!AJ82 -> 0 | AK120: =RFM_NomCapex!AK82 -> 0 | AL120: =RFM_NomCapex!AL82 -> 0 | AM120: =RFM_NomCapex!AM82 -> 0 | AN120: =RFM_NomCapex!AN82 -> 0 | AO120: =RFM_NomCapex!AO82 -> 0 | AP120: =RFM_NomCapex!AP82 -> 0 | AQ120: =RFM_NomCapex!AQ82 -> 0 | AR120: =RFM_NomCapex!AR82 -> 0 | AS120: =RFM_NomCapex!AS82 -> 0 | AT120: =RFM_NomCapex!AT82 -> 0 | AU120: =RFM_NomCapex!AU82 -> 0 | AV120: =RFM_NomCapex!AV82 -> 0 | AW120: =RFM_NomCapex!AW82 -> 0 | AX120: =RFM_NomCapex!AX82 -> 0 | AY120: =RFM_NomCapex!AY82 -> 0 | AZ120: =RFM_NomCapex!AZ82 -> 0 | BA120: =RFM_NomCapex!BA82 -> 0 | BB120: =RFM_NomCapex!BB82 -> 0
A121: Reg Depreciation (RFM) | B121: Nominal | E121: =RFM_NomSLDepn!E82-RFM_IndexRAB!E82 -> 23.00752089 | F121: =RFM_NomSLDepn!F82-RFM_IndexRAB!F82 -> -15.80900193 | G121: =RFM_NomSLDepn!G82-RFM_IndexRAB!G82 -> 21.9332703 | H121: =RFM_NomSLDepn!H82-RFM_IndexRAB!H82 -> 24.4045812 | I121: =RFM_NomSLDepn!I82-RFM_IndexRAB!I82 -> 27.77954184 | J121: =RFM_NomSLDepn!J82-RFM_IndexRAB!J82 -> -7.652328623 | K121: =RFM_NomSLDepn!K82-RFM_IndexRAB!K82 -> 10.80143768 | L121: =RFM_NomSLDepn!L82-RFM_IndexRAB!L82 -> -28.85687831 | M121: =RFM_NomSLDepn!M82-RFM_IndexRAB!M82 -> 50.14028723 | N121: =RFM_NomSLDepn!N82-RFM_IndexRAB!N82 -> 96.4055247 | O121: =RFM_NomSLDepn!O82-RFM_IndexRAB!O82 -> 11.93481365 | P121: =RFM_NomSLDepn!P82-RFM_IndexRAB!P82 -> 55.10178946 | Q121: =RFM_NomSLDepn!Q82-RFM_IndexRAB!Q82 -> 29.76857791 | R121: =RFM_NomSLDepn!R82-RFM_IndexRAB!R82 -> 44.41709604 | S121: =RFM_NomSLDepn!S82-RFM_IndexRAB!S82 -> 36.94321701 | T121: =RFM_NomSLDepn!T82-RFM_IndexRAB!T82 -> 39.67100788 | U121: =RFM_NomSLDepn!U82-RFM_IndexRAB!U82 -> 84.83783953 | V121: =RFM_NomSLDepn!V82-RFM_IndexRAB!V82 -> 94.34957469 | W121: =RFM_NomSLDepn!W82-RFM_IndexRAB!W82 -> 82.058201 | X121: =RFM_NomSLDepn!X82-RFM_IndexRAB!X82 -> 84.54520882 | Y121: =RFM_NomSLDepn!Y82-RFM_IndexRAB!Y82 -> 80.00410773 | Z121: =RFM_NomSLDepn!Z82-RFM_IndexRAB!Z82 -> 96.94924267 | AA121: =RFM_NomSLDepn!AA82-RFM_IndexRAB!AA82 -> 83.28479191 | AB121: =RFM_NomSLDepn!AB82-RFM_IndexRAB!AB82 -> 84.4613103 | AC121: =RFM_NomSLDepn!AC82-RFM_IndexRAB!AC82 -> 105.6089674 | AD121: =RFM_NomSLDepn!AD82-RFM_IndexRAB!AD82 -> 94.88451592 | AE121: =RFM_NomSLDepn!AE82-RFM_IndexRAB!AE82 -> 117.358817 | AF121: =RFM_NomSLDepn!AF82-RFM_IndexRAB!AF82 -> 120.0182398 | AG121: =RFM_NomSLDepn!AG82-RFM_IndexRAB!AG82 -> 129.1884179 | AH121: =RFM_NomSLDepn!AH82-RFM_IndexRAB!AH82 -> 139.9092997 | AI121: =RFM_NomSLDepn!AI82-RFM_IndexRAB!AI82 -> 69.28584376 | AJ121: =RFM_NomSLDepn!AJ82-RFM_IndexRAB!AJ82 -> 68.78657901 | AK121: =RFM_NomSLDepn!AK82-RFM_IndexRAB!AK82 -> 56.22557364 | AL121: =RFM_NomSLDepn!AL82-RFM_IndexRAB!AL82 -> 52.0846061 | AM121: =RFM_NomSLDepn!AM82-RFM_IndexRAB!AM82 -> 53.24883485 | AN121: =RFM_NomSLDepn!AN82-RFM_IndexRAB!AN82 -> 42.6371958 | AO121: =RFM_NomSLDepn!AO82-RFM_IndexRAB!AO82 -> 33.96924703 | AP121: =RFM_NomSLDepn!AP82-RFM_IndexRAB!AP82 -> 25.06781853 | AQ121: =RFM_NomSLDepn!AQ82-RFM_IndexRAB!AQ82 -> 18.48335733 | AR121: =RFM_NomSLDepn!AR82-RFM_IndexRAB!AR82 -> 9.354594619 | AS121: =RFM_NomSLDepn!AS82-RFM_IndexRAB!AS82 -> 0.389408349 | AT121: =RFM_NomSLDepn!AT82-RFM_IndexRAB!AT82 -> 0.4041846365 | AU121: =RFM_NomSLDepn!AU82-RFM_IndexRAB!AU82 -> 0.4268632786 | AV121: =RFM_NomSLDepn!AV82-RFM_IndexRAB!AV82 -> 0.442827033 | AW121: =RFM_NomSLDepn!AW82-RFM_IndexRAB!AW82 -> 0.4831890663 | AX121: =RFM_NomSLDepn!AX82-RFM_IndexRAB!AX82 -> 0.002050934361 | AY121: =RFM_NomSLDepn!AY82-RFM_IndexRAB!AY82 -> 0.00251888214 | AZ121: =RFM_NomSLDepn!AZ82-RFM_IndexRAB!AZ82 -> 0.002266571375 | BA121: =RFM_NomSLDepn!BA82-RFM_IndexRAB!BA82 -> 0.002469411574 | BB121: =RFM_NomSLDepn!BB82-RFM_IndexRAB!BB82 -> 0.002586216018
A122: Closing RAB (RFM) | B122: Nominal | D122: =RFM_ORAB!E82 -> 1038.695681 | E122: =RFM_ORAB!F82 -> 1120.02311 | F122: =RFM_ORAB!G82 -> 1247.321368 | G122: =RFM_ORAB!H82 -> 1337.304236 | H122: =RFM_ORAB!I82 -> 1426.981088 | I122: ='PTRM-RFM_Rollover'!I82 -> 1515.438151 | J122: =RFM_ORAB!K82 -> 1645.965113 | K122: =RFM_ORAB!L82 -> 1761.539717 | L122: =RFM_ORAB!M82 -> 1925.617792 | M122: =RFM_ORAB!N82 -> 2010.217787 | N122: ='PTRM-RFM_Rollover'!N82 -> 2046.597089 | O122: =RFM_ORAB!P82 -> 2034.662275 | P122: =RFM_ORAB!Q82 -> 1979.560486 | Q122: =RFM_ORAB!R82 -> 1949.791908 | R122: =RFM_ORAB!S82 -> 1905.374812 | S122: ='PTRM-RFM_Rollover'!S82 -> 1868.431595 | T122: =RFM_ORAB!U82 -> 1828.760587 | U122: =RFM_ORAB!V82 -> 1743.922747 | V122: =RFM_ORAB!W82 -> 1649.573172 | W122: =RFM_ORAB!X82 -> 1567.514971 | X122: ='PTRM-RFM_Rollover'!X82 -> 1482.969763 | Y122: =RFM_ORAB!Z82 -> 1402.965655 | Z122: =RFM_ORAB!AA82 -> 1306.016412 | AA122: =RFM_ORAB!AB82 -> 1222.73162 | AB122: =RFM_ORAB!AC82 -> 1138.27031 | AC122: ='PTRM-RFM_Rollover'!AC82 -> 1032.661343 | AD122: =RFM_ORAB!AE82 -> 937.7768267 | AE122: =RFM_ORAB!AF82 -> 820.4180097 | AF122: =RFM_ORAB!AG82 -> 700.3997699 | AG122: =RFM_ORAB!AH82 -> 571.2113519 | AH122: ='PTRM-RFM_Rollover'!AH82 -> 431.3020522 | AI122: =RFM_ORAB!AJ82 -> 362.0162085 | AJ122: =RFM_ORAB!AK82 -> 293.2296294 | AK122: =RFM_ORAB!AL82 -> 237.0040558 | AL122: =RFM_ORAB!AM82 -> 184.9194497 | AM122: ='PTRM-RFM_Rollover'!AM82 -> 131.6706149 | AN122: =RFM_ORAB!AO82 -> 89.03341905 | AO122: =RFM_ORAB!AP82 -> 55.06417202 | AP122: =RFM_ORAB!AQ82 -> 29.9963535 | AQ122: =RFM_ORAB!AR82 -> 11.51299617 | AR122: ='PTRM-RFM_Rollover'!AR82 -> 2.15840155 | AS122: =RFM_ORAB!AT82 -> 1.768993201 | AT122: =RFM_ORAB!AU82 -> 1.364808565 | AU122: =RFM_ORAB!AV82 -> 0.937945286 | AV122: =RFM_ORAB!AW82 -> 0.495118253 | AW122: ='PTRM-RFM_Rollover'!AW82 -> 0.01192918663 | AX122: =RFM_ORAB!AY82 -> 0.009878252273 | AY122: =RFM_ORAB!AZ82 -> 0.007359370133 | AZ122: =RFM_ORAB!BA82 -> 0.005092798758 | BA122: =RFM_ORAB!BB82 -> 0.002623387184 | BB122: ='PTRM-RFM_Rollover'!BB82 -> 3.717116622e-05
A124: Cash Flow | B124: Nominal | D124: =D118-(Capex_00_Amt_Nom_EY*(1+Real_WACC)^0.5) -> -1038.695681 | E124: =E118-(Capex_01_Amt_Nom_EY*(1+Real_WACC)^0.5) -> -16.72962168 | F124: =F118-(Capex_02_Amt_Nom_EY*(1+Real_WACC)^0.5) -> -12.27028575 | G124: =G118-(Capex_03_Amt_Nom_EY*(1+Real_WACC)^0.5) -> -3.425907262 | H124: =H118-(Capex_04_Amt_Nom_EY*(1+Real_WACC)^0.5) -> 3.701423296 | I124: =I118-(Capex_05_Amt_Nom_EY*(1+Real_WACC)^0.5) -> 10.94053769 | J124: =J118-(Capex_06_Amt_Nom_EY*(1+Real_WACC)^0.5) -> 17.11802817 | K124: =K118-(Capex_07_Amt_Nom_EY*(1+Real_WACC)^0.5) -> 25.77573198 | L124: =L118-(Capex_08_Amt_Nom_EY*(1+Real_WACC)^0.5) -> 33.30693046 | M124: =M118-(Capex_09_Amt_Nom_EY*(1+Real_WACC)^0.5) -> 44.18214031 | N124: =N118-(Capex_10_Amt_Nom_EY*(1+Real_WACC)^0.5) -> 52.50204397 | O124: =O118 -> 199.6129017 | P124: =P118 -> 198.5738983 | Q124: =Q118 -> 200.1773745 | R124: =R118 -> 200.6144127 | S124: =S118 -> 202.0923011 | T124: =T118 -> 206.113821 | U124: 203.7287523 | V124: 200.4856661 | W124: 198.8785801 | X124: 197.3155694 | Y124: 195.5284266 | Z124: 192.9425276 | AA124: 192.7165587 | AB124: 193.0986125 | AC124: 191.0387025 | AD124: 192.5779356 | AE124: 190.5436849 | AF124: 189.2067937 | AG124: 187.3941723 | AH124: 184.6025017 | AI124: 103.2206075 | AJ124: 92.42073961 | AK124: 83.45605338 | AL124: 74.32326177 | AM124: 62.88806413 | AN124: 51.27706975 | AO124: 40.95359276 | AP124: 31.30171564 | AQ124: 20.58281459 | AR124: 10.21604014 | AS124: 0.5524567573 | AT124: 0.5444951512 | AU124: 0.5357644769 | AV124: 0.5304646293 | AW124: 0.5158402241 | AX124: 0.003077280971 | AY124: 0.002950924474 | AZ124: 0.002919663754 | BA124: 0.002856886747 | BB124: 0.002789016955
A125: Cash Flow | B125: Real | D125: =D124/D114 -> -1038.695681 | E125: -16.52961272 | F125: -11.55281849 | G125: -3.166075868 | H125: 3.356374759 | I125: 9.735846529 | J125: 14.58770691 | K125: 21.24917335 | L125: 25.95841701 | M125: 33.87604844 | N125: 40.42862864 | O125: 148.0900242 | P125: 144.6254227 | Q125: 141.1608211 | R125: 137.6962195 | S125: 134.231618 | T125: 132.0149982 | U125: 128.5168232 | V125: 125.0186481 | W125: 121.520473 | X125: 118.022298 | Y125: 113.9648758 | Z125: 110.4841902 | AA125: 107.0035045 | AB125: 103.5228189 | AC125: 100.0421332 | AD125: 96.92959492 | AE125: 93.4350617 | AF125: 89.94052847 | AG125: 86.44599525 | AH125: 82.95146202 | AI125: 45.15379606 | AJ125: =AJ124/AJ114 -> 39.77318293 | AK125: 34.59285765 | AL125: 29.6559238 | AM125: 24.90704389 | AN125: 20.04615128 | AO125: 15.66913368 | AP125: 11.47406485 | AQ125: 7.422345857 | AR125: 3.607500022 | AS125: 0.190544319 | AT125: 0.1829225462 | AU125: 0.1753007734 | AV125: 0.1676790007 | AW125: 0.1600572279 | AX125: 0.0009253803606 | AY125: 0.0008883649469 | AZ125: 0.0008513495333 | BA125: 0.0008143341196 | BB125: 0.000777318706
A126: NPV end period | I126: =NPV(Real_WACC,$E125:I125)+$D125+I122/I114/POWER(1+Real_WACC,I$3) -> -0.6229688882 | N126: =NPV(Real_WACC,$E125:N125)+$D125+N122/N114/POWER(1+Real_WACC,N$3) -> 0.4534542265 | S126: =NPV(Real_WACC,$E125:S125)+$D125+S122/S114/POWER(1+Real_WACC,S$3) -> 5.999696259 | X126: =NPV(Real_WACC,$E125:X125)+$D125+X122/X114/POWER(1+Real_WACC,X$3) -> 4.420840821 | AC126: =NPV(Real_WACC,$E125:AC125)+$D125+AC122/AC114/POWER(1+Real_WACC,AC$3) -> 4.959447982 | AH126: =NPV(Real_WACC,$E125:AH125)+$D125+AH122/AH114/POWER(1+Real_WACC,AH$3) -> 5.53350875 | AM126: =NPV(Real_WACC,$E125:AM125)+$D125+AM122/AM114/POWER(1+Real_WACC,AM$3) -> 5.516956858 | AR126: =NPV(Real_WACC,$E125:AR125)+$D125+AR122/AR114/POWER(1+Real_WACC,AR$3) -> 5.625220849 | AW126: =NPV(Real_WACC,$E125:AW125)+$D125+AW122/AW114/POWER(1+Real_WACC,AW$3) -> 5.625632807 | BB126: =NPV(Real_WACC,$E125:BB125)+$D125+BB122/BB114/POWER(1+Real_WACC,BB$3) -> 5.625633719
A127: NPV overall | D127: =NPV(Real_WACC,E125:BB125)+D125 -> 5.625632815
A128: NPV change this period (% of MAR) | I128: =IFERROR((I126-D126)/ROUND(SUM(E117/E114,F117/F114,G117/G114,H117/H114,I117/I114),6),0) -> -0.001240228894 | N128: =IFERROR((N126-I126)/ROUND(SUM(J117/J114,K117/K114,L117/L114,M117/M114,N117/N114),6),0) -> 0.001686748363 | S128: =IFERROR((S126-N126)/ROUND(SUM(O117/O114,P117/P114,Q117/Q114,R117/R114,S117/S114),6),0) -> 0.007953530625 | X128: =IFERROR((X126-S126)/ROUND(SUM(T117/T114,U117/U114,V117/V114,W117/W114,X117/X114),6),0) -> -0.002507352421 | AC128: =IFERROR((AC126-X126)/ROUND(SUM(Y117/Y114,Z117/Z114,AA117/AA114,AB117/AB114,AC117/AC114),6),0) -> 0.00101058318 | AH128: =IFERROR((AH126-AC126)/ROUND(SUM(AD117/AD114,AE117/AE114,AF117/AF114,AG117/AG114,AH117/AH114),6),0) -> 0.001298347978 | AM128: =IFERROR((AM126-AH126)/ROUND(SUM(AI117/AI114,AJ117/AJ114,AK117/AK114,AL117/AL114,AM117/AM114),6),0) -> -9.564294349e-05 | AR128: =IFERROR((AR126-AM126)/ROUND(SUM(AN117/AN114,AO117/AO114,AP117/AP114,AQ117/AQ114,AR117/AR114),6),0) -> 0.001850250763 | AW128: =IFERROR((AW126-AR126)/ROUND(SUM(AS117/AS114,AT117/AT114,AU117/AU114,AV117/AV114,AW117/AW114),6),0) -> 0.0004718250694 | BB128: =IFERROR((BB126-AW126)/ROUND(SUM(AX117/AX114,AY117/AY114,AZ117/AZ114,BA117/BA114,BB117/BB114),6),0) -> 0.0002133080418
I129: =(I126-D126)/(I122/I114) -> -0.0004619479978 | N129: =(N126-I126)/(N122/N114) -> 0.0006830269885 | S129: =(S126-N126)/(S122/S114) -> 0.00446906385
A131: Debt | E131: =$C$4*D122 -> 623.2174085 | F131: 672.013866 | G131: 748.3928209 | H131: 802.3825413 | I131: 856.1886525 | J131: 909.2628904 | K131: 987.579068 | L131: 1056.92383 | M131: 1155.370675 | N131: 1206.130672 | O131: 1227.958253 | P131: 1220.797365 | Q131: 1187.736291 | R131: 1169.875145 | S131: 1143.224887 | T131: 1121.058957 | U131: 1097.256352 | V131: 1046.353648 | W131: 989.7439035 | X131: 940.5089829 | Y131: 889.7818576 | Z131: 841.7793929 | AA131: 783.6098473 | AB131: 733.6389722 | AC131: 682.962186 | AD131: 619.5968056 | AE131: 562.666096 | AF131: 492.2508058 | AG131: 420.2398619 | AH131: 342.7268112 | AI131: 258.7812313 | AJ131: 217.2097251 | AK131: =$C$4*AJ122 -> 175.9377777 | AL131: 142.2024335 | AM131: 110.9516698 | AN131: 79.00236891 | AO131: 53.42005143 | AP131: 33.03850321 | AQ131: 17.9978121 | AR131: 6.907797701 | AS131: 1.29504093 | AT131: 1.061395921 | AU131: 0.8188851387 | AV131: 0.5627671716 | AW131: 0.2970709518 | AX131: 0.007157511981 | AY131: 0.005926951364 | AZ131: 0.00441562208 | BA131: 0.003055679255 | BB131: 0.00157403231
A132: Incremental debt raised | D132: =E131-D131 -> 623.2174085 | E132: =F131-E131 -> 48.79645744 | F132: =G131-F131 -> 76.37895495 | G132: =H131-G131 -> 53.98972041 | H132: =I131-H131 -> 53.8061112 | I132: =J131-I131 -> 53.07423788 | J132: =K131-J131 -> 78.31617765 | K132: =L131-K131 -> 69.34476221 | L132: =M131-L131 -> 98.44684474 | M132: =N131-M131 -> 50.75999741 | N132: =O131-N131 -> 21.82758077 | O132: =P131-O131 -> -7.160888188 | P132: =Q131-P131 -> -33.06107368 | Q132: =R131-Q131 -> -17.86114675 | R132: =S131-R131 -> -26.65025762 | S132: =T131-S131 -> -22.1659302 | T132: =U131-T131 -> -23.80260473 | U132: =V131-U131 -> -50.90270372 | V132: =W131-V131 -> -56.60974482 | W132: =X131-W131 -> -49.2349206 | X132: =Y131-X131 -> -50.72712529 | Y132: =Z131-Y131 -> -48.00246464 | Z132: =AA131-Z131 -> -58.1695456 | AA132: =AB131-AA131 -> -49.97087515 | AB132: =AC131-AB131 -> -50.67678618 | AC132: =AD131-AC131 -> -63.36538046 | AD132: =AE131-AD131 -> -56.93070955 | AE132: =AF131-AE131 -> -70.4152902 | AF132: =AG131-AF131 -> -72.01094389 | AG132: =AH131-AG131 -> -77.51305075 | AH132: =AI131-AH131 -> -83.94557983 | AI132: =AJ131-AI131 -> -41.57150626 | AJ132: =AK131-AJ131 -> -41.27194741 | AK132: =AL131-AK131 -> -33.73534418 | AL132: =AM131-AL131 -> -31.25076366 | AM132: =AN131-AM131 -> -31.94930091 | AN132: =AO131-AN131 -> -25.58231748 | AO132: =AP131-AO131 -> -20.38154822 | AP132: =AQ131-AP131 -> -15.04069112 | AQ132: =AR131-AQ131 -> -11.0900144 | AR132: =AS131-AR131 -> -5.612756771 | AS132: =AT131-AS131 -> -0.2336450094 | AT132: =AU131-AT131 -> -0.2425107819 | AU132: =AV131-AU131 -> -0.2561179672 | AV132: =AW131-AV131 -> -0.2656962198 | AW132: =AX131-AW131 -> -0.2899134398 | AX132: =AY131-AX131 -> -0.001230560617 | AY132: =AZ131-AY131 -> -0.001511329284 | AZ132: =BA131-AZ131 -> -0.001359942825 | BA132: =BB131-BA131 -> -0.001481646944 | BB132: =BC131-BB131 -> -0.00157403231
A133: Nominal interest cost | E133: =E131*$C$5 -> 34.27695747 | F133: =F131*$C$5 -> 36.96076263 | G133: 41.16160515 | H133: 44.13103977 | I133: 47.09037589 | J133: 50.00945897 | K133: 54.31684874 | L133: 58.13081066 | M133: 63.54538713 | N133: 66.33718698 | O133: 67.53770392 | P133: 67.14385507 | Q133: 65.32549602 | R133: 64.34313295 | S133: 62.87736878 | T133: 61.65824262 | U133: 60.34909936 | V133: 57.54945066 | W133: 54.43591469 | X133: 51.72799406 | Y133: 48.93800217 | Z133: 46.29786661 | AA133: 43.0985416 | AB133: 40.35014347 | AC133: 37.56292023 | AD133: 34.07782431 | AE133: 30.94663528 | AF133: 27.07379432 | AG133: 23.11319241 | AH133: 18.84997461 | AI133: 14.23296772 | AJ133: 11.94653488 | AK133: 9.676577771 | AL133: 7.821133841 | AM133: 6.10234184 | AN133: 4.34513029 | AO133: 2.938102829 | AP133: 1.817117677 | AQ133: 0.9898796654 | AR133: 0.3799288736 | AS133: 0.07122725116 | AT133: 0.05837677564 | AU133: 0.04503868263 | AV133: 0.03095219444 | AW133: 0.01633890235 | AX133: 0.0003936631589 | AY133: 0.000325982325 | AZ133: 0.0002428592144 | BA133: 0.000168062359 | BB133: 8.657177708e-05
A135: Total cash flow to equity | D135: =D124+D132-D133 -> -415.4782723 | E135: =E124+E132-E133 -> -2.210121703 | F135: 27.14790657 | G135: 9.402207995 | H135: 13.37649473 | I135: 16.92439968 | J135: 45.42474686 | K135: 40.80364545 | L135: 73.62296454 | M135: 31.3967506 | N135: 7.992437752 | O135: 124.9143096 | P135: 98.36896957 | Q135: 116.9907317 | R135: 109.6210221 | S135: 117.0490022 | T135: 120.6529736 | U135: 92.47694923 | V135: 86.32647068 | W135: 95.20774484 | X135: 94.86045007 | Y135: 98.58795982 | Z135: 88.47511542 | AA135: 99.64714198 | AB135: 102.0716829 | AC135: 90.11040177 | AD135: 101.5694017 | AE135: 89.18175941 | AF135: 90.1220555 | AG135: 86.76792918 | AH135: 81.80694725 | AI135: 47.41613347 | AJ135: 39.20225732 | AK135: 40.04413143 | AL135: 35.25136426 | AM135: 24.83642138 | AN135: 21.34962198 | AO135: 17.63394171 | AP135: 14.44390685 | AQ135: 8.502920525 | AR135: 4.223354491 | AS135: 0.2475844967 | AT135: 0.2436075937 | AU135: 0.2346078271 | AV135: 0.2338162151 | AW135: 0.2095878819 | AX135: 0.001453057196 | AY135: 0.001113612864 | AZ135: 0.001316861714 | BA135: 0.001207177443 | BB135: 0.001128412867
A136: Total cash flow to debt holders | D136: =-D132+D133 -> -623.2174085 | E136: =-E132+E133 -> -14.51949998 | F136: -39.41819232 | G136: -12.82811526 | H136: -9.675071432 | I136: -5.983861994 | J136: -28.30671868 | K136: -15.02791347 | L136: -40.31603408 | M136: 12.78538972 | N136: 44.50960622 | O136: 74.69859211 | P136: 100.2049288 | Q136: 83.18664277 | R136: 90.99339057 | S136: 85.04329899 | T136: 85.46084735 | U136: 111.2518031 | V136: 114.1591955 | W136: 103.6708353 | X136: 102.4551194 | Y136: 96.94046681 | Z136: 104.4674122 | AA136: 93.06941675 | AB136: 91.02692965 | AC136: 100.9283007 | AD136: 91.00853386 | AE136: 101.3619255 | AF136: 99.08473821 | AG136: 100.6262432 | AH136: 102.7955544 | AI136: 55.80447398 | AJ136: 53.21848229 | AK136: 43.41192196 | AL136: 39.0718975 | AM136: 38.05164275 | AN136: 29.92744777 | AO136: 23.31965105 | AP136: 16.85780879 | AQ136: 12.07989406 | AR136: 5.992685645 | AS136: 0.3048722606 | AT136: 0.3008875576 | AU136: 0.3011566498 | AV136: 0.2966484143 | AW136: 0.3062523421 | AX136: 0.001624223775 | AY136: 0.001837311609 | AZ136: 0.001602802039 | BA136: 0.001649709303 | BB136: 0.001660604088
A137: Real cash flow to equity | D137: =D135/D114 -> -415.4782723 | E137: =E135/E114 -> -2.183698861 | F137: 25.56051615 | G137: 8.689115486 | H137: 12.12953118 | I137: 15.06080986 | J137: 38.710235 | K137: 33.63798693 | L137: 57.37951798 | M137: 24.07302671 | N137: 6.154489871 | O137: 92.67218188 | P137: 71.64412806 | Q137: 82.49937232 | R137: 75.24085693 | S137: 77.74505437 | T137: 77.27770039 | U137: 58.33660491 | V137: 53.83137292 | W137: 58.17464195 | X137: 56.73981195 | Y137: 57.46256334 | Z137: 50.66328092 | AA137: 55.32785288 | AB137: 54.72203141 | AC137: 47.18853669 | AD137: 51.12258024 | AE137: 43.7311958 | AF137: 42.84003307 | AG137: 40.02653818 | AH137: 36.76009705 | AI137: 20.74216064 | AJ137: 16.8706565 | AK137: 16.59844771 | AL137: 14.0657413 | AM137: 9.836553979 | AN137: 8.346376929 | AO137: 6.746870577 | AP137: 5.294608316 | AQ137: 3.066228706 | AR137: 1.491355869 | AS137: 0.08539278176 | AT137: 0.08183970272 | AU137: 0.076763084 | AV137: 0.07390892271 | AW137: 0.06503187193 | AX137: 0.0004369541177 | AY137: 0.0003352490523 | AZ137: 0.0003839858629 | BA137: 0.0003440968676 | BB137: 0.0003144966288
B139: IRR | C139: NPV
A140: All capital | B140: =IRR(D124:BB124) -> 0.07855577063
A141: Nominal Equity | B141: =IRR(D135:BB135) -> 0.1141517887
A142: Nominal Debt | B142: =IRR(D136:BB136) -> 0.05499999999
A143: Real Equity | B143: 0.08465930837 | C143: =NPV(Inputs!$J$17,D137:BB137) -> 5.323884248
A144: Variation from target real RoE | B144: =B143-Inputs!$J$17 -> 0.001097146353
A145: Approach E
A146: Actual Inflation | B146: Chosen inflation | E146: =INDEX(E$6:E$11,MATCH($A146,$A$6:$A$11,0)) -> 0.01210003925 | F146: =INDEX(F$6:F$11,MATCH($A146,$A$6:$A$11,0)) -> 0.04940537631 | G146: =INDEX(G$6:G$11,MATCH($A146,$A$6:$A$11,0)) -> 0.01879676772 | H146: =INDEX(H$6:H$11,MATCH($A146,$A$6:$A$11,0)) -> 0.01916387812 | I146: =INDEX(I$6:I$11,MATCH($A146,$A$6:$A$11,0)) -> 0.01898229851 | J146: =INDEX(J$6:J$11,MATCH($A146,$A$6:$A$11,0)) -> 0.04424345176 | K146: 0.03371843145 | L146: 0.05776072522 | M146: 0.01647710241 | N146: -0.004289250067 | O146: 0.03794801417 | P146: 0.01862590575 | Q146: 0.03281679668 | R146: 0.02739938407 | S146: 0.03336757525 | T146: 0.03702421163 | U146: 0.01533300458 | V146: 0.01161715552 | W146: 0.02053999578 | X146: 0.0215478861 | Y146: 0.02622264859 | Z146: 0.01786209806 | AA146: 0.03131943821 | AB146: 0.03567152024 | AC146: 0.02375338754 | AD146: 0.04042723729 | AE146: 0.02644233056 | AF146: 0.0315650229 | AG146: 0.03045708836 | AH146: 0.02660254158 | AI146: 0.02720850376 | AJ146: 0.01649898333 | AK146: 0.03822698211 | AL146: 0.03882382243 | AM146: 0.007471423187 | AN146: 0.01308563154 | AO146: 0.02177394872 | AP146: 0.04376762029 | AQ146: 0.01651252234 | AR146: 0.02120439059 | AS146: 0.02382572367 | AT146: 0.02665492232 | AU146: 0.02674667223 | AV146: 0.03511278157 | AW146: 0.01873718692 | AX146: 0.03182717029 | AY146: -0.001105073479 | AZ146: 0.03242438961 | BA146: 0.0229760279 | BB146: 0.0227315242
B147: Constructed index | D147: 1 | E147: =IFERROR(D147*(1+E146),"NA") -> 1.012100039 | F147: 1.062103223 | G147: 1.08206733 | H147: 1.102803937 | I147: 1.12373769 | J147: 1.173455724 | K147: 1.213022811 | L147: 1.283087888 | M147: 1.304229459 | N147: 1.298635292 | O147: 1.347915923 | P147: 1.373022078 | Q147: 1.418080264 | R147: 1.45693479 | S147: 1.505549171 | T147: 1.561290942 | U147: 1.585230223 | V147: 1.603646089 | W147: 1.636584973 | X147: 1.67184992 | Y147: 1.715690253 | Z147: 1.74633608 | AA147: 1.801030345 | AB147: 1.865275836 | AC147: 1.909582456 | AD147: 1.986781599 | AE147: 2.039316734 | AF147: 2.103687814 | AG147: 2.167760019 | AH147: 2.225427945 | AI147: 2.28597851 | AJ147: 2.323694831 | AK147: =IFERROR(AJ147*(1+AK146),"NA") -> 2.412522672 | AL147: 2.506186024 | AM147: 2.5249108 | AN147: 2.557950853 | AO147: 2.613647543 | AP147: 2.728040677 | AQ147: 2.773087509 | AR147: 2.83188914 | AS147: 2.899360948 | AT147: 2.976643189 | AU147: 3.056258489 | AV147: 3.163572226 | AW147: 3.22284867 | AX147: 3.325422823 | AY147: 3.321747986 | AZ147: 3.429453637 | BA147: 3.50824886 | BB147: 3.587996704
A149: Closing RAB (PTRM) | B149: Nominal | D149: =PTRM_ORAB!E100 -> 1038.695681 | E149: =PTRM_ORAB!F100 -> 1135.997101 | F149: =PTRM_ORAB!G100 -> 1236.026936 | G149: =PTRM_ORAB!H100 -> 1335.051404 | H149: =PTRM_ORAB!I100 -> 1434.59532 | I149: ='PTRM-RFM_Rollover'!H100 -> 1534.487204 | J149: =PTRM_ORAB!K100 -> 1619.142032 | K149: =PTRM_ORAB!L100 -> 1721.701353 | L149: =PTRM_ORAB!M100 -> 1825.921264 | M149: =PTRM_ORAB!N100 -> 1927.576967 | N149: ='PTRM-RFM_Rollover'!M100 -> 2027.652144 | O149: =PTRM_ORAB!P100 -> 2005.775802 | P149: =PTRM_ORAB!Q100 -> 1963.000335 | Q149: =PTRM_ORAB!R100 -> 1916.674295 | R149: =PTRM_ORAB!S100 -> 1866.642732 | S149: ='PTRM-RFM_Rollover'!R100 -> 1812.74506 | T149: =PTRM_ORAB!U100 -> 1790.163836 | U149: =PTRM_ORAB!V100 -> 1726.21795 | V149: =PTRM_ORAB!W100 -> 1657.844272 | W149: =PTRM_ORAB!X100 -> 1584.858502 | X149: ='PTRM-RFM_Rollover'!W100 -> 1507.069818 | Y149: =PTRM_ORAB!Z100 -> 1393.309158 | Z149: =PTRM_ORAB!AA100 -> 1306.18147 | AA149: =PTRM_ORAB!AB100 -> 1213.902057 | AB149: =PTRM_ORAB!AC100 -> 1116.26964 | AC149: ='PTRM-RFM_Rollover'!AB100 -> 1013.07614 | AD149: =PTRM_ORAB!AE100 -> 915.9711316 | AE149: =PTRM_ORAB!AF100 -> 801.1225118 | AF149: =PTRM_ORAB!AG100 -> 679.4665478 | AG149: =PTRM_ORAB!AH100 -> 550.7210268 | AH149: ='PTRM-RFM_Rollover'!AG100 -> 414.5935035 | AI149: =PTRM_ORAB!AJ100 -> 354.7936665 | AJ149: =PTRM_ORAB!AK100 -> 290.6503242 | AK149: =PTRM_ORAB!AL100 -> 231.5394668 | AL149: =PTRM_ORAB!AM100 -> 177.8225777 | AM149: ='PTRM-RFM_Rollover'!AL100 -> 130.0052038 | AN149: =PTRM_ORAB!AO100 -> 89.05335761 | AO149: =PTRM_ORAB!AP100 -> 54.54438037 | AP149: =PTRM_ORAB!AQ100 -> 27.76929209 | AQ149: =PTRM_ORAB!AR100 -> 9.440545941 | AR149: ='PTRM-RFM_Rollover'!AQ100 -> 9.026566923e-16 | AS149: =PTRM_ORAB!AT100 -> 3.691036978e-14 | AT149: =PTRM_ORAB!AU100 -> 3.783000932e-14 | AU149: =PTRM_ORAB!AV100 -> 3.877256212e-14 | AV149: =PTRM_ORAB!AW100 -> 3.973859907e-14 | AW149: ='PTRM-RFM_Rollover'!AV100 -> 4.07287053e-14 | AX149: =PTRM_ORAB!AY100 -> 4.192236076e-14 | AY149: =PTRM_ORAB!AZ100 -> 4.288125156e-14 | AZ149: =PTRM_ORAB!BA100 -> 4.386207509e-14 | BA149: =PTRM_ORAB!BB100 -> 4.486533301e-14 | BB149: ='PTRM-RFM_Rollover'!BA100 -> 4.589153846e-14
A150: MAR (PTRM) | B150: Nominal | E150: =PTRM_MAR!E100 -> 88.81245706 | F150: =PTRM_MAR!F100 -> 98.34710979 | G150: =PTRM_MAR!G100 -> 108.3020715 | H150: =PTRM_MAR!H100 -> 118.3725484 | I150: =PTRM_MAR!I100 -> 128.6998807 | J150: =PTRM_MAR!J100 -> 137.8414209 | K150: =PTRM_MAR!K100 -> 148.9187274 | L150: =PTRM_MAR!L100 -> 160.2357412 | M150: =PTRM_MAR!M100 -> 171.9720222 | N150: =PTRM_MAR!N100 -> 183.7848735 | O150: =PTRM_MAR!O100 -> 197.1285062 | P150: =PTRM_MAR!P100 -> 197.4924135 | Q150: =PTRM_MAR!Q100 -> 197.7434703 | R150: =PTRM_MAR!R100 -> 197.8756006 | S150: =PTRM_MAR!S100 -> 197.8824898 | T150: =PTRM_MAR!T100 -> 201.7412025 | U150: =PTRM_MAR!U100 -> 201.4071285 | V150: =PTRM_MAR!V100 -> 200.9247097 | W150: =PTRM_MAR!W100 -> 200.2865945 | X150: =PTRM_MAR!X100 -> 199.4851528 | Y150: =PTRM_MAR!Y100 -> 194.1957402 | Z150: =PTRM_MAR!Z100 -> 192.9140102 | AA150: =PTRM_MAR!AA100 -> 191.4506072 | AB150: =PTRM_MAR!AB100 -> 189.7973416 | AC150: =PTRM_MAR!AC100 -> 187.94573 | AD150: =PTRM_MAR!AD100 -> 188.326396 | AE150: =PTRM_MAR!AE100 -> 186.4004242 | AF150: =PTRM_MAR!AF100 -> 184.2362782 | AG150: =PTRM_MAR!AG100 -> 181.822584 | AH150: =PTRM_MAR!AH100 -> 179.1475288 | AI150: =PTRM_MAR!AI100 -> 100.5770366 | AJ150: =PTRM_MAR!AJ100 -> 90.96328977 | AK150: =PTRM_MAR!AK100 -> 81.08201191 | AL150: =PTRM_MAR!AL100 -> 71.21967147 | AM150: =PTRM_MAR!AM100 -> 61.25953108 | AN150: =PTRM_MAR!AN100 -> 51.46782524 | AO150: =PTRM_MAR!AO100 -> 41.15130712 | AP150: =PTRM_MAR!AP100 -> 30.84345558 | AQ150: =PTRM_MAR!AQ100 -> 20.40000773 | AR150: =PTRM_MAR!AR100 -> 10.1446993 | AS150: =PTRM_MAR!AS100 -> 1.845518489e-15 | AT150: =PTRM_MAR!AT100 -> 1.891500466e-15 | AU150: =PTRM_MAR!AU100 -> 1.938628106e-15 | AV150: =PTRM_MAR!AV100 -> 1.986929954e-15 | AW150: =PTRM_MAR!AW100 -> 2.036435265e-15 | AX150: =PTRM_MAR!AX100 -> 2.096118038e-15 | AY150: =PTRM_MAR!AY100 -> 2.144062578e-15 | AZ150: =PTRM_MAR!AZ100 -> 2.193103754e-15 | BA150: =PTRM_MAR!BA100 -> 2.24326665e-15 | BB150: =PTRM_MAR!BB100 -> 2.294576923e-15
A151: MAR (Pricing) | B151: Nominal | E151: =Pricing_MAR!E100 -> 87.60532828 | F151: =Pricing_MAR!F100 -> 99.21897056 | G151: =Pricing_MAR!G100 -> 108.4902304 | H151: =Pricing_MAR!H100 -> 117.7828565 | I151: =Pricing_MAR!I100 -> 127.1771427 | J151: =Pricing_MAR!J100 -> 140.0758938 | K151: =Pricing_MAR!K100 -> 152.2359205 | L151: =Pricing_MAR!L100 -> 168.6151343 | M151: =Pricing_MAR!M100 -> 179.0088315 | N151: =Pricing_MAR!N100 -> 185.3708834 | O151: =Pricing_MAR!O100 -> 199.4545312 | P151: =Pricing_MAR!P100 -> 198.4168196 | Q151: =Pricing_MAR!Q100 -> 200.0195217 | R151: =Pricing_MAR!R100 -> 200.4567356 | S151: =Pricing_MAR!S100 -> 201.9340138 | T151: =Pricing_MAR!T100 -> 204.0060336 | U151: =Pricing_MAR!U100 -> 201.646765 | V151: =Pricing_MAR!V100 -> 198.4382861 | W151: =Pricing_MAR!W100 -> 196.8491486 | X151: =Pricing_MAR!X100 -> 195.3037025 | Y151: =Pricing_MAR!Y100 -> 194.4861998 | Z151: =Pricing_MAR!Z100 -> 191.9151675 | AA151: =Pricing_MAR!AA100 -> 191.6915539 | AB151: =Pricing_MAR!AB100 -> 192.0728078 | AC151: =Pricing_MAR!AC100 -> 190.0251443 | AD151: =Pricing_MAR!AD100 -> 190.8300669 | AE151: =Pricing_MAR!AE100 -> 188.8169386 | AF151: =Pricing_MAR!AF100 -> 187.4950082 | AG151: =Pricing_MAR!AG100 -> 185.7018322 | AH151: =Pricing_MAR!AH100 -> 182.9386266 | AI151: =Pricing_MAR!AI100 -> 100.8553032 | AJ151: =Pricing_MAR!AJ100 -> 90.51369808 | AK151: =Pricing_MAR!AK100 -> 81.77231184 | AL151: =Pricing_MAR!AL100 -> 72.8391592 | AM151: =Pricing_MAR!AM100 -> 61.61871825 | AN151: =Pricing_MAR!AN100 -> 50.94824214 | AO151: =Pricing_MAR!AO100 -> 40.67045934 | AP151: =Pricing_MAR!AP100 -> 31.08919826 | AQ151: =Pricing_MAR!AQ100 -> 20.42381131 | AR151: =Pricing_MAR!AR100 -> 10.13457497 | AS151: =Pricing_MAR!AS100 -> 1.843556217e-15 | AT151: =Pricing_MAR!AT100 -> 1.892696064e-15 | AU151: =Pricing_MAR!AU100 -> 1.943319386e-15 | AV151: =Pricing_MAR!AV100 -> 2.011554735e-15 | AW151: =Pricing_MAR!AW100 -> 2.049245612e-15 | AX151: =Pricing_MAR!AX100 -> 2.114467301e-15 | AY151: =Pricing_MAR!AY100 -> 2.112130659e-15 | AZ151: =Pricing_MAR!AZ100 -> 2.180615207e-15 | BA151: =Pricing_MAR!BA100 -> 2.230717082e-15 | BB151: =Pricing_MAR!BB100 -> 2.281424682e-15
A152: Opening RAB (RFM) | B152: Nominal | E152: =RFM_ORAB!E100 -> 1038.695681 | F152: =RFM_ORAB!F100 -> 1120.556758 | G152: =RFM_ORAB!G100 -> 1246.984486 | H152: =RFM_ORAB!H100 -> 1337.37086 | I152: =RFM_ORAB!I100 -> 1427.448652 | J152: =RFM_ORAB!J100 -> 1516.331616 | K152: =RFM_ORAB!K100 -> 1645.389069 | L152: =RFM_ORAB!L100 -> 1760.052579 | M152: =RFM_ORAB!M100 -> 1921.406279 | N152: =RFM_ORAB!N100 -> 2006.450213 | O152: =RFM_ORAB!O100 -> 2045.150191 | P152: =RFM_ORAB!P100 -> 2029.443027 | Q152: =RFM_ORAB!Q100 -> 1972.188584 | R152: =RFM_ORAB!R100 -> 1938.735449 | S152: =RFM_ORAB!S100 -> 1890.991651 | T152: =RFM_ORAB!T100 -> 1849.859916 | U152: =RFM_ORAB!U100 -> 1810.260964 | V152: =RFM_ORAB!V100 -> 1728.271823 | W152: =RFM_ORAB!W100 -> 1637.328611 | X152: =RFM_ORAB!X100 -> 1557.658152 | Y152: =RFM_ORAB!Y100 -> 1475.47981 | Z152: =RFM_ORAB!Z100 -> 1395.393138 | AA152: =RFM_ORAB!AA100 -> 1299.418509 | AB152: =RFM_ORAB!AB100 -> 1215.429791 | AC152: =RFM_ORAB!AC100 -> 1129.652513 | AD152: =RFM_ORAB!AD100 -> 1024.284722 | AE152: =RFM_ORAB!AE100 -> 928.1483428 | AF152: =RFM_ORAB!AF100 -> 811.5083469 | AG152: =RFM_ORAB!AG100 -> 691.4847996 | AH152: =RFM_ORAB!AH100 -> 562.4708518 | AI152: =RFM_ORAB!AI100 -> 423.3670797 | AJ152: =RFM_ORAB!AJ100 -> 355.7752745 | AK152: =RFM_ORAB!AK100 -> 289.213767 | AL152: =RFM_ORAB!AL100 -> 233.5107015 | AM152: =RFM_ORAB!AM100 -> 181.8661443 | AN152: =RFM_ORAB!AN100 -> 130.7674721 | AO152: =RFM_ORAB!AO100 -> 88.1543373 | AP152: =RFM_ORAB!AP100 -> 53.90703625 | AQ152: =RFM_ORAB!AQ100 -> 27.99054162 | AR152: =RFM_ORAB!AR100 -> 9.451561562 | AS152: =RFM_ORAB!AS100 -> 3.601308649e-14 | AT152: =RFM_ORAB!AT100 -> 3.687112433e-14 | AU152: =RFM_ORAB!AU100 -> 3.785392129e-14 | AV152: =RFM_ORAB!AV100 -> 3.886638771e-14 | AW152: =RFM_ORAB!AW100 -> 4.02310947e-14 | AX152: =RFM_ORAB!AX100 -> 4.098491224e-14 | AY152: =RFM_ORAB!AY100 -> 4.228934602e-14 | AZ152: =RFM_ORAB!AZ100 -> 4.224261318e-14 | BA152: =RFM_ORAB!BA100 -> 4.361230413e-14 | BB152: =RFM_ORAB!BB100 -> 4.461434165e-14
A153: Capex (RFM) | B153: Nominal | D153: =RFM_NomCapex!D100 -> 1024.695077 | E153: =RFM_NomCapex!E100 -> 104.33495 | F153: =RFM_NomCapex!F100 -> 111.4892563 | G153: =RFM_NomCapex!G100 -> 111.9161376 | H153: =RFM_NomCapex!H100 -> 114.0814332 | I153: =RFM_NomCapex!I100 -> 116.236605 | J153: =RFM_NomCapex!J100 -> 122.8746341 | K153: =RFM_NomCapex!K100 -> 126.3760414 | L153: =RFM_NomCapex!L100 -> 135.2211963 | M153: =RFM_NomCapex!M100 -> 134.7402829 | N153: =RFM_NomCapex!N100 -> 132.784826 | O153: =RFM_NomCapex!O100 -> 0 | P153: =RFM_NomCapex!P100 -> 0 | Q153: =RFM_NomCapex!Q100 -> 0 | R153: =RFM_NomCapex!R100 -> 0 | S153: =RFM_NomCapex!S100 -> 0 | T153: =RFM_NomCapex!T100 -> 0 | U153: =RFM_NomCapex!U100 -> 0 | V153: =RFM_NomCapex!V100 -> 0 | W153: =RFM_NomCapex!W100 -> 0 | X153: =RFM_NomCapex!X100 -> 0 | Y153: =RFM_NomCapex!Y100 -> 0 | Z153: =RFM_NomCapex!Z100 -> 0 | AA153: =RFM_NomCapex!AA100 -> 0 | AB153: =RFM_NomCapex!AB100 -> 0 | AC153: =RFM_NomCapex!AC100 -> 0 | AD153: =RFM_NomCapex!AD100 -> 0 | AE153: =RFM_NomCapex!AE100 -> 0 | AF153: =RFM_NomCapex!AF100 -> 0 | AG153: =RFM_NomCapex!AG100 -> 0 | AH153: =RFM_NomCapex!AH100 -> 0 | AI153: =RFM_NomCapex!AI100 -> 0 | AJ153: =RFM_NomCapex!AJ100 -> 0 | AK153: =RFM_NomCapex!AK100 -> 0 | AL153: =RFM_NomCapex!AL100 -> 0 | AM153: =RFM_NomCapex!AM100 -> 0 | AN153: =RFM_NomCapex!AN100 -> 0 | AO153: =RFM_NomCapex!AO100 -> 0 | AP153: =RFM_NomCapex!AP100 -> 0 | AQ153: =RFM_NomCapex!AQ100 -> 0 | AR153: =RFM_NomCapex!AR100 -> 0 | AS153: =RFM_NomCapex!AS100 -> 0 | AT153: =RFM_NomCapex!AT100 -> 0 | AU153: =RFM_NomCapex!AU100 -> 0 | AV153: =RFM_NomCapex!AV100 -> 0 | AW153: =RFM_NomCapex!AW100 -> 0 | AX153: =RFM_NomCapex!AX100 -> 0 | AY153: =RFM_NomCapex!AY100 -> 0 | AZ153: =RFM_NomCapex!AZ100 -> 0 | BA153: =RFM_NomCapex!BA100 -> 0 | BB153: =RFM_NomCapex!BB100 -> 0
A154: Reg Depreciation (RFM) | B154: Nominal | E154: =RFM_NomSLDepn!E100-RFM_IndexRAB!E100 -> 22.4738728 | F154: =RFM_NomSLDepn!F100-RFM_IndexRAB!F100 -> -14.93847206 | G154: =RFM_NomSLDepn!G100-RFM_IndexRAB!G100 -> 21.52976444 | H154: =RFM_NomSLDepn!H100-RFM_IndexRAB!H100 -> 24.00364076 | I154: =RFM_NomSLDepn!I100-RFM_IndexRAB!I100 -> 27.35364082 | J154: =RFM_NomSLDepn!J100-RFM_IndexRAB!J100 -> -6.182818952 | K154: =RFM_NomSLDepn!K100-RFM_IndexRAB!K100 -> 11.71253159 | L154: =RFM_NomSLDepn!L100-RFM_IndexRAB!L100 -> -26.13250368 | M154: =RFM_NomSLDepn!M100-RFM_IndexRAB!M100 -> 49.69634916 | N154: =RFM_NomSLDepn!N100-RFM_IndexRAB!N100 -> 94.08484784 | O154: =RFM_NomSLDepn!O100-RFM_IndexRAB!O100 -> 15.70716378 | P154: =RFM_NomSLDepn!P100-RFM_IndexRAB!P100 -> 57.25444297 | Q154: =RFM_NomSLDepn!Q100-RFM_IndexRAB!Q100 -> 33.4531351 | R154: =RFM_NomSLDepn!R100-RFM_IndexRAB!R100 -> 47.74379812 | S154: =RFM_NomSLDepn!S100-RFM_IndexRAB!S100 -> 41.13173472 | T154: =RFM_NomSLDepn!T100-RFM_IndexRAB!T100 -> 39.59895249 | U154: =RFM_NomSLDepn!U100-RFM_IndexRAB!U100 -> 81.98914021 | V154: =RFM_NomSLDepn!V100-RFM_IndexRAB!V100 -> 90.94321225 | W154: =RFM_NomSLDepn!W100-RFM_IndexRAB!W100 -> 79.67045911 | X154: =RFM_NomSLDepn!X100-RFM_IndexRAB!X100 -> 82.1783424 | Y154: =RFM_NomSLDepn!Y100-RFM_IndexRAB!Y100 -> 80.08667136 | Z154: =RFM_NomSLDepn!Z100-RFM_IndexRAB!Z100 -> 95.97462905 | AA154: =RFM_NomSLDepn!AA100-RFM_IndexRAB!AA100 -> 83.98871789 | AB154: =RFM_NomSLDepn!AB100-RFM_IndexRAB!AB100 -> 85.77727835 | AC154: =RFM_NomSLDepn!AC100-RFM_IndexRAB!AC100 -> 105.3677911 | AD154: =RFM_NomSLDepn!AD100-RFM_IndexRAB!AD100 -> 96.13637922 | AE154: =RFM_NomSLDepn!AE100-RFM_IndexRAB!AE100 -> 116.6399959 | AF154: =RFM_NomSLDepn!AF100-RFM_IndexRAB!AF100 -> 120.0235473 | AG154: =RFM_NomSLDepn!AG100-RFM_IndexRAB!AG100 -> 129.0139479 | AH154: =RFM_NomSLDepn!AH100-RFM_IndexRAB!AH100 -> 139.103772 | AI154: =RFM_NomSLDepn!AI100-RFM_IndexRAB!AI100 -> 67.59180519 | AJ154: =RFM_NomSLDepn!AJ100-RFM_IndexRAB!AJ100 -> 66.56150751 | AK154: =RFM_NomSLDepn!AK100-RFM_IndexRAB!AK100 -> 55.70306551 | AL154: =RFM_NomSLDepn!AL100-RFM_IndexRAB!AL100 -> 51.64455721 | AM154: =RFM_NomSLDepn!AM100-RFM_IndexRAB!AM100 -> 51.09867216 | AN154: =RFM_NomSLDepn!AN100-RFM_IndexRAB!AN100 -> 42.61313483 | AO154: =RFM_NomSLDepn!AO100-RFM_IndexRAB!AO100 -> 34.24730106 | AP154: =RFM_NomSLDepn!AP100-RFM_IndexRAB!AP100 -> 25.91649462 | AQ154: =RFM_NomSLDepn!AQ100-RFM_IndexRAB!AQ100 -> 18.53898006 | AR154: =RFM_NomSLDepn!AR100-RFM_IndexRAB!AR100 -> 9.451561562 | AS154: =RFM_NomSLDepn!AS100-RFM_IndexRAB!AS100 -> -8.580378469e-16 | AT154: =RFM_NomSLDepn!AT100-RFM_IndexRAB!AT100 -> -9.82796955e-16 | AU154: =RFM_NomSLDepn!AU100-RFM_IndexRAB!AU100 -> -1.012466425e-15 | AV154: =RFM_NomSLDepn!AV100-RFM_IndexRAB!AV100 -> -1.364706982e-15 | AW154: =RFM_NomSLDepn!AW100-RFM_IndexRAB!AW100 -> -7.538175415e-16 | AX154: =RFM_NomSLDepn!AX100-RFM_IndexRAB!AX100 -> -1.304433781e-15 | AY154: =RFM_NomSLDepn!AY100-RFM_IndexRAB!AY100 -> 4.673283472e-17 | AZ154: =RFM_NomSLDepn!AZ100-RFM_IndexRAB!AZ100 -> -1.369690948e-15 | BA154: =RFM_NomSLDepn!BA100-RFM_IndexRAB!BA100 -> -1.002037516e-15 | BB154: =RFM_NomSLDepn!BB100-RFM_IndexRAB!BB100 -> -1.014151987e-15
A155: Closing RAB (RFM) | B155: Nominal | D155: =RFM_ORAB!E100 -> 1038.695681 | E155: =RFM_ORAB!F100 -> 1120.556758 | F155: =RFM_ORAB!G100 -> 1246.984486 | G155: =RFM_ORAB!H100 -> 1337.37086 | H155: =RFM_ORAB!I100 -> 1427.448652 | I155: ='PTRM-RFM_Rollover'!I100 -> 1516.331616 | J155: =RFM_ORAB!K100 -> 1645.389069 | K155: =RFM_ORAB!L100 -> 1760.052579 | L155: =RFM_ORAB!M100 -> 1921.406279 | M155: =RFM_ORAB!N100 -> 2006.450213 | N155: ='PTRM-RFM_Rollover'!N100 -> 2045.150191 | O155: =RFM_ORAB!P100 -> 2029.443027 | P155: =RFM_ORAB!Q100 -> 1972.188584 | Q155: =RFM_ORAB!R100 -> 1938.735449 | R155: =RFM_ORAB!S100 -> 1890.991651 | S155: ='PTRM-RFM_Rollover'!S100 -> 1849.859916 | T155: =RFM_ORAB!U100 -> 1810.260964 | U155: =RFM_ORAB!V100 -> 1728.271823 | V155: =RFM_ORAB!W100 -> 1637.328611 | W155: =RFM_ORAB!X100 -> 1557.658152 | X155: ='PTRM-RFM_Rollover'!X100 -> 1475.47981 | Y155: =RFM_ORAB!Z100 -> 1395.393138 | Z155: =RFM_ORAB!AA100 -> 1299.418509 | AA155: =RFM_ORAB!AB100 -> 1215.429791 | AB155: =RFM_ORAB!AC100 -> 1129.652513 | AC155: ='PTRM-RFM_Rollover'!AC100 -> 1024.284722 | AD155: =RFM_ORAB!AE100 -> 928.1483428 | AE155: =RFM_ORAB!AF100 -> 811.5083469 | AF155: =RFM_ORAB!AG100 -> 691.4847996 | AG155: =RFM_ORAB!AH100 -> 562.4708518 | AH155: ='PTRM-RFM_Rollover'!AH100 -> 423.3670797 | AI155: =RFM_ORAB!AJ100 -> 355.7752745 | AJ155: =RFM_ORAB!AK100 -> 289.213767 | AK155: =RFM_ORAB!AL100 -> 233.5107015 | AL155: =RFM_ORAB!AM100 -> 181.8661443 | AM155: ='PTRM-RFM_Rollover'!AM100 -> 130.7674721 | AN155: =RFM_ORAB!AO100 -> 88.1543373 | AO155: =RFM_ORAB!AP100 -> 53.90703625 | AP155: =RFM_ORAB!AQ100 -> 27.99054162 | AQ155: =RFM_ORAB!AR100 -> 9.451561562 | AR155: ='PTRM-RFM_Rollover'!AR100 -> 3.601308649e-14 | AS155: =RFM_ORAB!AT100 -> 3.687112433e-14 | AT155: =RFM_ORAB!AU100 -> 3.785392129e-14 | AU155: =RFM_ORAB!AV100 -> 3.886638771e-14 | AV155: =RFM_ORAB!AW100 -> 4.02310947e-14 | AW155: ='PTRM-RFM_Rollover'!AW100 -> 4.098491224e-14 | AX155: =RFM_ORAB!AY100 -> 4.228934602e-14 | AY155: =RFM_ORAB!AZ100 -> 4.224261318e-14 | AZ155: =RFM_ORAB!BA100 -> 4.361230413e-14 | BA155: =RFM_ORAB!BB100 -> 4.461434165e-14 | BB155: ='PTRM-RFM_Rollover'!BB100 -> 4.562849363e-14
A157: Cash Flow | B157: Nominal | D157: =D151-(Capex_00_Amt_Nom_EY*(1+Real_WACC)^0.5) -> -1038.695681 | E157: =E151-(Capex_01_Amt_Nom_EY*(1+Real_WACC)^0.5) -> -16.72962168 | F157: =F151-(Capex_02_Amt_Nom_EY*(1+Real_WACC)^0.5) -> -12.27028575 | G157: =G151-(Capex_03_Amt_Nom_EY*(1+Real_WACC)^0.5) -> -3.425907262 | H157: =H151-(Capex_04_Amt_Nom_EY*(1+Real_WACC)^0.5) -> 3.701423296 | I157: =I151-(Capex_05_Amt_Nom_EY*(1+Real_WACC)^0.5) -> 10.94053769 | J157: =J151-(Capex_06_Amt_Nom_EY*(1+Real_WACC)^0.5) -> 17.20125968 | K157: =K151-(Capex_07_Amt_Nom_EY*(1+Real_WACC)^0.5) -> 25.85987916 | L157: =L151-(Capex_08_Amt_Nom_EY*(1+Real_WACC)^0.5) -> 33.39393806 | M157: =M151-(Capex_09_Amt_Nom_EY*(1+Real_WACC)^0.5) -> 44.26854863 | N157: =N151-(Capex_10_Amt_Nom_EY*(1+Real_WACC)^0.5) -> 52.58605745 | O157: =O151 -> 199.4545312 | P157: =P151 -> 198.4168196 | Q157: =Q151 -> 200.0195217 | R157: =R151 -> 200.4567356 | S157: =S151 -> 201.9340138 | T157: =T151 -> 204.0060336 | U157: 201.646765 | V157: 198.4382861 | W157: 196.8491486 | X157: 195.3037025 | Y157: 194.4861998 | Z157: 191.9151675 | AA157: 191.6915539 | AB157: 192.0728078 | AC157: 190.0251443 | AD157: 190.8300669 | AE157: 188.8169386 | AF157: 187.4950082 | AG157: 185.7018322 | AH157: 182.9386266 | AI157: 100.8553032 | AJ157: 90.51369808 | AK157: 81.77231184 | AL157: 72.8391592 | AM157: 61.61871825 | AN157: 50.94824214 | AO157: 40.67045934 | AP157: 31.08919826 | AQ157: 20.42381131 | AR157: 10.13457497 | AS157: 1.843556217e-15 | AT157: 1.892696064e-15 | AU157: 1.943319386e-15 | AV157: 2.011554735e-15 | AW157: 2.049245612e-15 | AX157: 2.114467301e-15 | AY157: 2.112130659e-15 | AZ157: 2.180615207e-15 | BA157: 2.230717082e-15 | BB157: 2.281424682e-15
A158: Cash Flow | B158: Real | D158: =D157/D147 -> -1038.695681 | E158: -16.52961272 | F158: -11.55281849 | G158: -3.166075868 | H158: 3.356374759 | I158: 9.735846529 | J158: 14.65863545 | K158: 21.31854317 | L158: 26.02622811 | M158: 33.94230083 | N158: 40.49332231 | O158: 147.9725314 | P158: 144.511019 | Q158: 141.0495067 | R158: 137.5879943 | S158: 134.126482 | T158: 130.6649696 | U158: 127.2034573 | V158: 123.7419449 | W158: 120.2804326 | X158: 116.8189203 | Y158: 113.3574079 | Z158: 109.8958956 | AA158: 106.4343832 | AB158: 102.9728709 | AC158: 99.51135851 | AD158: 96.04984616 | AE158: 92.58833381 | AF158: 89.12682147 | AG158: 85.66530912 | AH158: 82.20379677 | AI158: 44.11909506 | AJ158: =AJ157/AJ147 -> 38.95248931 | AK158: 33.89494025 | AL158: 29.06374806 | AM158: 24.40431489 | AN158: 19.91760009 | AO158: 15.56080484 | AP158: 11.39616375 | AQ158: 7.365007862 | AR158: 3.578732949 | AS158: 6.358491576e-16 | AT158: 6.358491576e-16 | AU158: 6.358491576e-16 | AV158: 6.358491576e-16 | AW158: 6.358491576e-16 | AX158: 6.358491576e-16 | AY158: 6.358491576e-16 | AZ158: 6.358491576e-16 | BA158: 6.358491576e-16 | BB158: 6.358491576e-16
A159: NPV end period | I159: =NPV(Real_WACC,$E158:I158)+$D158+I155/I147/POWER(1+Real_WACC,I$3) -> 0 | N159: =NPV(Real_WACC,$E158:N158)+$D158+N155/N147/POWER(1+Real_WACC,N$3) -> 0 | S159: =NPV(Real_WACC,$E158:S158)+$D158+S155/S147/POWER(1+Real_WACC,S$3) -> 0 | X159: =NPV(Real_WACC,$E158:X158)+$D158+X155/X147/POWER(1+Real_WACC,X$3) -> 0 | AC159: =NPV(Real_WACC,$E158:AC158)+$D158+AC155/AC147/POWER(1+Real_WACC,AC$3) -> -3.126388037e-13 | AH159: =NPV(Real_WACC,$E158:AH158)+$D158+AH155/AH147/POWER(1+Real_WACC,AH$3) -> -3.97903932e-13 | AM159: =NPV(Real_WACC,$E158:AM158)+$D158+AM155/AM147/POWER(1+Real_WACC,AM$3) -> -5.009326287e-13 | AR159: =NPV(Real_WACC,$E158:AR158)+$D158+AR155/AR147/POWER(1+Real_WACC,AR$3) -> -6.803146338e-13 | AW159: =NPV(Real_WACC,$E158:AW158)+$D158+AW155/AW147/POWER(1+Real_WACC,AW$3) -> -6.807056705e-13 | BB159: =NPV(Real_WACC,$E158:BB158)+$D158+BB155/BB147/POWER(1+Real_WACC,BB$3) -> -6.81012058e-13
A160: NPV overall | D160: =NPV(Real_WACC,E158:BB158)+D158 -> 0
A161: NPV change this period (% of MAR) | I161: =IFERROR((I159-D159)/ROUND(SUM(E150/E147,F150/F147,G150/G147,H150/H147,I150/I147),6),0) -> 0 | N161: =IFERROR((N159-I159)/ROUND(SUM(J150/J147,K150/K147,L150/L147,M150/M147,N150/N147),6),0) -> 0 | S161: =IFERROR((S159-N159)/ROUND(SUM(O150/O147,P150/P147,Q150/Q147,R150/R147,S150/S147),6),0) -> 0 | X161: =IFERROR((X159-S159)/ROUND(SUM(T150/T147,U150/U147,V150/V147,W150/W147,X150/X147),6),0) -> 0 | AC161: =IFERROR((AC159-X159)/ROUND(SUM(Y150/Y147,Z150/Z147,AA150/AA147,AB150/AB147,AC150/AC147),6),0) -> -5.897377051e-16 | AH161: =IFERROR((AH159-AC159)/ROUND(SUM(AD150/AD147,AE150/AE147,AF150/AF147,AG150/AG147,AH150/AH147),6),0) -> -1.946039886e-16 | AM161: =IFERROR((AM159-AH159)/ROUND(SUM(AI150/AI147,AJ150/AJ147,AK150/AK147,AL150/AL147,AM150/AM147),6),0) -> -6.080837449e-16 | AR161: =IFERROR((AR159-AM159)/ROUND(SUM(AN150/AN147,AO150/AO147,AP150/AP147,AQ150/AQ147,AR150/AR147),6),0) -> -3.0869216e-15 | AW161: =IFERROR((AW159-AR159)/ROUND(SUM(AS150/AS147,AT150/AT147,AU150/AU147,AV150/AV147,AW150/AW147),6),0) -> 0 | BB161: =IFERROR((BB159-AW159)/ROUND(SUM(AX150/AX147,AY150/AY147,AZ150/AZ147,BA150/BA147,BB150/BB147),6),0) -> 0
I162: =(I159-D159)/(I155/I147) -> 0 | N162: =(N159-I159)/(N155/N147) -> 0 | S162: =(S159-N159)/(S155/S147) -> 0
A164: Debt | E164: =$C$4*D155 -> 623.2174085 | F164: 672.3340548 | G164: 748.1906918 | H164: 802.4225157 | I164: 856.4691912 | J164: 909.7989697 | K164: 987.2334416 | L164: 1056.031547 | M164: 1152.843767 | N164: 1203.870128 | O164: 1227.090115 | P164: 1217.665816 | Q164: 1183.31315 | R164: 1163.241269 | S164: 1134.594991 | T164: 1109.91595 | U164: 1086.156578 | V164: 1036.963094 | W164: 982.3971667 | X164: 934.5948913 | Y164: 885.2878858 | Z164: 837.235883 | AA164: 779.6511056 | AB164: 729.2578749 | AC164: 677.7915079 | AD164: 614.5708332 | AE164: 556.8890057 | AF164: 486.9050082 | AG164: 414.8908798 | AH164: 337.4825111 | AI164: 254.0202478 | AJ164: 213.4651647 | AK164: =$C$4*AJ155 -> 173.5282602 | AL164: 140.1064209 | AM164: 109.1196866 | AN164: 78.46048328 | AO164: 52.89260238 | AP164: 32.34422175 | AQ164: 16.79432497 | AR164: 5.670936937 | AS164: 2.160785189e-14 | AT164: 2.21226746e-14 | AU164: 2.271235277e-14 | AV164: 2.331983263e-14 | AW164: 2.413865682e-14 | AX164: 2.459094734e-14 | AY164: 2.537360761e-14 | AZ164: 2.534556791e-14 | BA164: 2.616738248e-14 | BB164: 2.676860499e-14
A165: Incremental debt raised | D165: =E164-D164 -> 623.2174085 | E165: =F164-E164 -> 49.11664629 | F165: =G164-F164 -> 75.85663702 | G165: =H164-G164 -> 54.23182392 | H165: =I164-H164 -> 54.04667547 | I165: =J164-I164 -> 53.3297785 | J165: =K164-J164 -> 77.43447185 | K165: =L164-K164 -> 68.79810586 | L165: =M164-L164 -> 96.81221997 | M165: =N164-M164 -> 51.02636025 | N165: =O164-N164 -> 23.21998688 | O165: =P164-O164 -> -9.424298268 | P165: =Q164-P164 -> -34.35266578 | Q165: =R164-Q164 -> -20.07188106 | R165: =S164-R164 -> -28.64627887 | S165: =T164-S164 -> -24.67904083 | T165: =U164-T164 -> -23.75937149 | U165: =V164-U164 -> -49.19348412 | V165: =W164-V164 -> -54.56592735 | W165: =X164-W164 -> -47.80227547 | X165: =Y164-X164 -> -49.30700544 | Y165: =Z164-Y164 -> -48.05200282 | Z165: =AA164-Z164 -> -57.58477743 | AA165: =AB164-AA164 -> -50.39323073 | AB165: =AC164-AB164 -> -51.46636701 | AC165: =AD164-AC164 -> -63.22067464 | AD165: =AE164-AD164 -> -57.68182753 | AE165: =AF164-AE164 -> -69.98399752 | AF165: =AG164-AF164 -> -72.01412839 | AG165: =AH164-AG164 -> -77.40836871 | AH165: =AI164-AH164 -> -83.46226322 | AI165: =AJ164-AI164 -> -40.55508311 | AJ165: =AK164-AJ164 -> -39.93690451 | AK165: =AL164-AK164 -> -33.42183931 | AL165: =AM164-AL164 -> -30.98673433 | AM165: =AN164-AM164 -> -30.6592033 | AN165: =AO164-AN164 -> -25.5678809 | AO165: =AP164-AO164 -> -20.54838064 | AP165: =AQ164-AP164 -> -15.54989677 | AQ165: =AR164-AQ164 -> -11.12338804 | AR165: =AS164-AR164 -> -5.670936937 | AS165: =AT164-AS164 -> 5.148227082e-16 | AT165: =AU164-AT164 -> 5.89678173e-16 | AU165: =AV164-AU164 -> 6.074798551e-16 | AV165: =AW164-AV164 -> 8.188241894e-16 | AW165: =AX164-AW164 -> 4.522905249e-16 | AX165: =AY164-AX164 -> 7.826602685e-16 | AY165: =AZ164-AY164 -> -2.803970083e-17 | AZ165: =BA164-AZ164 -> 8.218145688e-16 | BA165: =BB164-BA164 -> 6.012225099e-16 | BB165: =BC164-BB164 -> -2.676860499e-14
A166: Nominal interest cost | E166: =E164*$C$5 -> 34.27695747 | F166: =F164*$C$5 -> 36.97837301 | G166: 41.15048805 | H166: 44.13323837 | I166: 47.10580552 | J166: 50.03894333 | K166: 54.29783929 | L166: 58.08173511 | M166: 63.40640721 | N166: 66.21285702 | O166: 67.4899563 | P166: 66.97161989 | Q166: 65.08222328 | R166: 63.97826982 | S166: 62.40272448 | T166: 61.04537723 | U166: 59.7386118 | V166: 57.03297018 | W166: 54.03184417 | X166: 51.40271902 | Y166: 48.69083372 | Z166: 46.04797357 | AA166: 42.88081081 | AB166: 40.10918312 | AC166: 37.27853293 | AD166: 33.80139583 | AE166: 30.62889531 | AF166: 26.77977545 | AG166: 22.81899839 | AH166: 18.56153811 | AI166: 13.97111363 | AJ166: 11.74058406 | AK166: 9.544054312 | AL166: 7.70585315 | AM166: 6.001582762 | AN166: 4.31532658 | AO166: 2.909093131 | AP166: 1.778932196 | AQ166: 0.9236878736 | AR166: 0.3119015316 | AS166: 1.188431854e-15 | AT166: 1.216747103e-15 | AU166: 1.249179402e-15 | AV166: 1.282590795e-15 | AW166: 1.327626125e-15 | AX166: 1.352502104e-15 | AY166: 1.395548419e-15 | AZ166: 1.394006235e-15 | BA166: 1.439206036e-15 | BB166: 1.472273274e-15
A168: Total cash flow to equity | D168: =D157+D165-D166 -> -415.4782723 | E168: =E157+E165-E166 -> -1.889932854 | F168: 26.60797826 | G168: 9.655428611 | H168: 13.6148604 | I168: 17.16451067 | J168: 44.59678819 | K168: 40.36014573 | L168: 72.12442293 | M168: 31.88850167 | N168: 9.593187315 | O168: 122.5402766 | P168: 97.09253393 | Q168: 114.8654173 | R168: 107.8321869 | S168: 114.8522485 | T168: 119.2012848 | U168: 92.71466909 | V168: 86.83938858 | W168: 95.01502894 | X168: 94.59397801 | Y168: 97.74336329 | Z168: 88.2824165 | AA168: 98.4175124 | AB168: 100.4972576 | AC168: 89.52593677 | AD168: 99.34684354 | AE168: 88.20404572 | AF168: 88.70110436 | AG168: 85.47446506 | AH168: 80.91482523 | AI168: 46.32910645 | AJ168: 38.83620951 | AK168: 38.80641822 | AL168: 34.14657172 | AM168: 24.95793219 | AN168: 21.06503466 | AO168: 17.21298558 | AP168: 13.76036929 | AQ168: 8.376735398 | AR168: 4.151736505 | AS168: 1.169947071e-15 | AT168: 1.265627134e-15 | AU168: 1.301619838e-15 | AV168: 1.54778813e-15 | AW168: 1.173910012e-15 | AX168: 1.544625466e-15 | AY168: 6.885425397e-16 | AZ168: 1.60842354e-15 | BA168: 1.392733556e-15 | BB168: -2.595945358e-14
A169: Total cash flow to debt holders | D169: =-D165+D166 -> -623.2174085 | E169: =-E165+E166 -> -14.83968883 | F169: -38.87826401 | G169: -13.08133587 | H169: -9.913437099 | I169: -6.223972979 | J169: -27.39552852 | K169: -14.50026658 | L169: -38.73048486 | M169: 12.38004696 | N169: 42.99287014 | O169: 76.91425457 | P169: 101.3242857 | Q169: 85.15410434 | R169: 92.62454869 | S169: 87.08176531 | T169: 84.80474873 | U169: 108.9320959 | V169: 111.5988975 | W169: 101.8341196 | X169: 100.7097245 | Y169: 96.74283654 | Z169: 103.632751 | AA169: 93.27404154 | AB169: 91.57555013 | AC169: 100.4992076 | AD169: 91.48322336 | AE169: 100.6128928 | AF169: 98.79390384 | AG169: 100.2273671 | AH169: 102.0238013 | AI169: 54.52619674 | AJ169: 51.67748857 | AK169: 42.96589362 | AL169: 38.69258748 | AM169: 36.66078606 | AN169: 29.88320748 | AO169: 23.45747377 | AP169: 17.32882897 | AQ169: 12.04707591 | AR169: 5.982838469 | AS169: 6.736091459e-16 | AT169: 6.2706893e-16 | AU169: 6.416995474e-16 | AV169: 4.637666051e-16 | AW169: 8.753356001e-16 | AX169: 5.698418353e-16 | AY169: 1.423588119e-15 | AZ169: 5.721916662e-16 | BA169: 8.379835264e-16 | BB169: 2.824087826e-14
A170: Real cash flow to equity | D170: =D168/D147 -> -415.4782723 | E170: =E168/E147 -> -1.867337991 | F170: 25.05215848 | G170: 8.923131068 | H170: 12.34567628 | I170: 15.2744816 | J170: 38.00466202 | K170: 33.27237161 | L170: 56.21159984 | M170: 24.45007009 | N170: 7.387129683 | O170: 90.91091999 | P170: 70.71447394 | Q170: 81.00064592 | R170: 74.01304964 | S170: 76.28594979 | T170: 76.34790007 | U170: 58.48656411 | V170: 54.15121775 | W170: 58.05688705 | X170: 56.5804244 | Y170: 56.97028536 | Z170: 50.55293623 | AA170: 54.64511615 | AB170: 53.8779604 | AC170: 46.88246716 | AD170: 50.00390763 | AE170: 43.25176381 | AF170: 42.16457584 | AG170: 39.42985584 | AH170: 36.35922043 | AI170: 20.26664129 | AJ170: 16.71312816 | AK170: 16.08541079 | AL170: 13.62491507 | AM170: 9.884678773 | AN170: 8.235120953 | AO170: 6.58580979 | AP170: 5.04404843 | AQ170: 3.020725228 | AR170: 1.466066043 | AS170: 4.035189449e-16 | AT170: 4.251860415e-16 | AU170: 4.258866987e-16 | AV170: 4.892532932e-16 | AW170: 3.642460854e-16 | AX170: 4.644899454e-16 | AY170: 2.072831962e-16 | AZ170: 4.690028531e-16 | BA170: 3.969882444e-16 | BB170: -7.235082896e-15
B172: IRR | C172: NPV
A173: All capital | B173: =IRR(D157:BB157) -> 0.07823540351
A174: Nominal Equity | B174: =IRR(D168:BB168) -> 0.1134169346
A175: Nominal Debt | B175: =IRR(D169:BB169) -> 0.05499999999
A176: Real Equity | B176: 0.08395209301 | C176: =NPV(Inputs!$J$17,D170:BB170) -> 1.883922522
A177: Variation from target real RoE | B177: =B176-Inputs!$J$17 -> 0.0003899309889
A178: Approach F
A179: Actual Inflation | B179: Chosen inflation | E179: =INDEX(E$6:E$11,MATCH($A179,$A$6:$A$11,0)) -> 0.01210003925 | F179: =INDEX(F$6:F$11,MATCH($A179,$A$6:$A$11,0)) -> 0.04940537631 | G179: =INDEX(G$6:G$11,MATCH($A179,$A$6:$A$11,0)) -> 0.01879676772 | H179: =INDEX(H$6:H$11,MATCH($A179,$A$6:$A$11,0)) -> 0.01916387812 | I179: =INDEX(I$6:I$11,MATCH($A179,$A$6:$A$11,0)) -> 0.01898229851 | J179: =INDEX(J$6:J$11,MATCH($A179,$A$6:$A$11,0)) -> 0.04424345176 | K179: 0.03371843145 | L179: 0.05776072522 | M179: 0.01647710241 | N179: -0.004289250067 | O179: 0.03794801417 | P179: 0.01862590575 | Q179: 0.03281679668 | R179: 0.02739938407 | S179: 0.03336757525 | T179: 0.03702421163 | U179: 0.01533300458 | V179: 0.01161715552 | W179: 0.02053999578 | X179: 0.0215478861 | Y179: 0.02622264859 | Z179: 0.01786209806 | AA179: 0.03131943821 | AB179: 0.03567152024 | AC179: 0.02375338754 | AD179: 0.04042723729 | AE179: 0.02644233056 | AF179: 0.0315650229 | AG179: 0.03045708836 | AH179: 0.02660254158 | AI179: 0.02720850376 | AJ179: 0.01649898333 | AK179: 0.03822698211 | AL179: 0.03882382243 | AM179: 0.007471423187 | AN179: 0.01308563154 | AO179: 0.02177394872 | AP179: 0.04376762029 | AQ179: 0.01651252234 | AR179: 0.02120439059 | AS179: 0.02382572367 | AT179: 0.02665492232 | AU179: 0.02674667223 | AV179: 0.03511278157 | AW179: 0.01873718692 | AX179: 0.03182717029 | AY179: -0.001105073479 | AZ179: 0.03242438961 | BA179: 0.0229760279 | BB179: 0.0227315242
B180: Constructed index | D180: 1 | E180: =IFERROR(D180*(1+E179),"NA") -> 1.012100039 | F180: 1.062103223 | G180: 1.08206733 | H180: 1.102803937 | I180: 1.12373769 | J180: 1.173455724 | K180: 1.213022811 | L180: 1.283087888 | M180: 1.304229459 | N180: 1.298635292 | O180: 1.347915923 | P180: 1.373022078 | Q180: 1.418080264 | R180: 1.45693479 | S180: 1.505549171 | T180: 1.561290942 | U180: 1.585230223 | V180: 1.603646089 | W180: 1.636584973 | X180: 1.67184992 | Y180: 1.715690253 | Z180: 1.74633608 | AA180: 1.801030345 | AB180: 1.865275836 | AC180: 1.909582456 | AD180: 1.986781599 | AE180: 2.039316734 | AF180: 2.103687814 | AG180: 2.167760019 | AH180: 2.225427945 | AI180: 2.28597851 | AJ180: 2.323694831 | AK180: =IFERROR(AJ180*(1+AK179),"NA") -> 2.412522672 | AL180: 2.506186024 | AM180: 2.5249108 | AN180: 2.557950853 | AO180: 2.613647543 | AP180: 2.728040677 | AQ180: 2.773087509 | AR180: 2.83188914 | AS180: 2.899360948 | AT180: 2.976643189 | AU180: 3.056258489 | AV180: 3.163572226 | AW180: 3.22284867 | AX180: 3.325422823 | AY180: 3.321747986 | AZ180: 3.429453637 | BA180: 3.50824886 | BB180: 3.587996704
A182: Closing RAB (PTRM) | B182: Nominal | D182: =PTRM_ORAB!E118 -> 1038.695681 | E182: =PTRM_ORAB!F118 -> 1135.997101 | F182: =PTRM_ORAB!G118 -> 1236.026936 | G182: =PTRM_ORAB!H118 -> 1335.051404 | H182: =PTRM_ORAB!I118 -> 1434.59532 | I182: ='PTRM-RFM_Rollover'!H118 -> 1534.487204 | J182: =PTRM_ORAB!K118 -> 1619.142032 | K182: =PTRM_ORAB!L118 -> 1721.701353 | L182: =PTRM_ORAB!M118 -> 1825.921264 | M182: =PTRM_ORAB!N118 -> 1927.576967 | N182: ='PTRM-RFM_Rollover'!M118 -> 2027.652144 | O182: =PTRM_ORAB!P118 -> 2005.775802 | P182: =PTRM_ORAB!Q118 -> 1963.000335 | Q182: =PTRM_ORAB!R118 -> 1916.674295 | R182: =PTRM_ORAB!S118 -> 1866.642732 | S182: ='PTRM-RFM_Rollover'!R118 -> 1812.74506 | T182: =PTRM_ORAB!U118 -> 1790.163836 | U182: =PTRM_ORAB!V118 -> 1726.21795 | V182: =PTRM_ORAB!W118 -> 1657.844272 | W182: =PTRM_ORAB!X118 -> 1584.858502 | X182: ='PTRM-RFM_Rollover'!W118 -> 1507.069818 | Y182: =PTRM_ORAB!Z118 -> 1393.309158 | Z182: =PTRM_ORAB!AA118 -> 1306.18147 | AA182: =PTRM_ORAB!AB118 -> 1213.902057 | AB182: =PTRM_ORAB!AC118 -> 1116.26964 | AC182: ='PTRM-RFM_Rollover'!AB118 -> 1013.07614 | AD182: =PTRM_ORAB!AE118 -> 915.9711316 | AE182: =PTRM_ORAB!AF118 -> 801.1225118 | AF182: =PTRM_ORAB!AG118 -> 679.4665478 | AG182: =PTRM_ORAB!AH118 -> 550.7210268 | AH182: ='PTRM-RFM_Rollover'!AG118 -> 414.5935035 | AI182: =PTRM_ORAB!AJ118 -> 354.7936665 | AJ182: =PTRM_ORAB!AK118 -> 290.6503242 | AK182: =PTRM_ORAB!AL118 -> 231.5394668 | AL182: =PTRM_ORAB!AM118 -> 177.8225777 | AM182: ='PTRM-RFM_Rollover'!AL118 -> 130.0052038 | AN182: =PTRM_ORAB!AO118 -> 89.05335761 | AO182: =PTRM_ORAB!AP118 -> 54.54438037 | AP182: =PTRM_ORAB!AQ118 -> 27.76929209 | AQ182: =PTRM_ORAB!AR118 -> 9.440545941 | AR182: ='PTRM-RFM_Rollover'!AQ118 -> 9.026566923e-16 | AS182: =PTRM_ORAB!AT118 -> 3.691036978e-14 | AT182: =PTRM_ORAB!AU118 -> 3.783000932e-14 | AU182: =PTRM_ORAB!AV118 -> 3.877256212e-14 | AV182: =PTRM_ORAB!AW118 -> 3.973859907e-14 | AW182: ='PTRM-RFM_Rollover'!AV118 -> 4.07287053e-14 | AX182: =PTRM_ORAB!AY118 -> 4.192236076e-14 | AY182: =PTRM_ORAB!AZ118 -> 4.288125156e-14 | AZ182: =PTRM_ORAB!BA118 -> 4.386207509e-14 | BA182: =PTRM_ORAB!BB118 -> 4.486533301e-14 | BB182: ='PTRM-RFM_Rollover'!BA118 -> 4.589153846e-14
A183: MAR (PTRM) | B183: Nominal | E183: =PTRM_MAR!E118 -> 88.81245706 | F183: =PTRM_MAR!F118 -> 98.34710979 | G183: =PTRM_MAR!G118 -> 108.3020715 | H183: =PTRM_MAR!H118 -> 118.3725484 | I183: =PTRM_MAR!I118 -> 128.6998807 | J183: =PTRM_MAR!J118 -> 137.8414209 | K183: =PTRM_MAR!K118 -> 148.9187274 | L183: =PTRM_MAR!L118 -> 160.2357412 | M183: =PTRM_MAR!M118 -> 171.9720222 | N183: =PTRM_MAR!N118 -> 183.7848735 | O183: =PTRM_MAR!O118 -> 197.1285062 | P183: =PTRM_MAR!P118 -> 197.4924135 | Q183: =PTRM_MAR!Q118 -> 197.7434703 | R183: =PTRM_MAR!R118 -> 197.8756006 | S183: =PTRM_MAR!S118 -> 197.8824898 | T183: =PTRM_MAR!T118 -> 201.7412025 | U183: =PTRM_MAR!U118 -> 201.4071285 | V183: =PTRM_MAR!V118 -> 200.9247097 | W183: =PTRM_MAR!W118 -> 200.2865945 | X183: =PTRM_MAR!X118 -> 199.4851528 | Y183: =PTRM_MAR!Y118 -> 194.1957402 | Z183: =PTRM_MAR!Z118 -> 192.9140102 | AA183: =PTRM_MAR!AA118 -> 191.4506072 | AB183: =PTRM_MAR!AB118 -> 189.7973416 | AC183: =PTRM_MAR!AC118 -> 187.94573 | AD183: =PTRM_MAR!AD118 -> 188.326396 | AE183: =PTRM_MAR!AE118 -> 186.4004242 | AF183: =PTRM_MAR!AF118 -> 184.2362782 | AG183: =PTRM_MAR!AG118 -> 181.822584 | AH183: =PTRM_MAR!AH118 -> 179.1475288 | AI183: =PTRM_MAR!AI118 -> 100.5770366 | AJ183: =PTRM_MAR!AJ118 -> 90.96328977 | AK183: =PTRM_MAR!AK118 -> 81.08201191 | AL183: =PTRM_MAR!AL118 -> 71.21967147 | AM183: =PTRM_MAR!AM118 -> 61.25953108 | AN183: =PTRM_MAR!AN118 -> 51.46782524 | AO183: =PTRM_MAR!AO118 -> 41.15130712 | AP183: =PTRM_MAR!AP118 -> 30.84345558 | AQ183: =PTRM_MAR!AQ118 -> 20.40000773 | AR183: =PTRM_MAR!AR118 -> 10.1446993 | AS183: =PTRM_MAR!AS118 -> 1.845518489e-15 | AT183: =PTRM_MAR!AT118 -> 1.891500466e-15 | AU183: =PTRM_MAR!AU118 -> 1.938628106e-15 | AV183: =PTRM_MAR!AV118 -> 1.986929954e-15 | AW183: =PTRM_MAR!AW118 -> 2.036435265e-15 | AX183: =PTRM_MAR!AX118 -> 2.096118038e-15 | AY183: =PTRM_MAR!AY118 -> 2.144062578e-15 | AZ183: =PTRM_MAR!AZ118 -> 2.193103754e-15 | BA183: =PTRM_MAR!BA118 -> 2.24326665e-15 | BB183: =PTRM_MAR!BB118 -> 2.294576923e-15
A184: MAR (Pricing) | B184: Nominal | E184: =Pricing_MAR!E118 -> 88.81245706 | F184: =Pricing_MAR!F118 -> 97.01038709 | G184: =Pricing_MAR!G118 -> 109.2621844 | H184: =Pricing_MAR!H118 -> 118.5782033 | I184: =Pricing_MAR!I118 -> 128.0587415 | J184: =Pricing_MAR!J118 -> 137.8414209 | K184: =Pricing_MAR!K118 -> 151.3327685 | L184: =Pricing_MAR!L118 -> 163.8050229 | M184: =Pricing_MAR!M118 -> 180.9651543 | N184: =Pricing_MAR!N118 -> 191.3050451 | O184: =Pricing_MAR!O118 -> 197.1285062 | P184: =Pricing_MAR!P118 -> 199.8227324 | Q184: =Pricing_MAR!Q118 -> 198.6690515 | R184: =Pricing_MAR!R118 -> 200.1531728 | S184: =Pricing_MAR!S118 -> 200.4637146 | T184: =Pricing_MAR!T118 -> 201.7412025 | U184: =Pricing_MAR!U118 -> 203.6682091 | V184: =Pricing_MAR!V118 -> 201.1637722 | W184: =Pricing_MAR!W118 -> 197.8080675 | X184: =Pricing_MAR!X118 -> 196.0614618 | Y184: =Pricing_MAR!Y118 -> 194.1957402 | Z184: =Pricing_MAR!Z118 -> 193.2025527 | AA184: =Pricing_MAR!AA118 -> 190.4593415 | AB184: =Pricing_MAR!AB118 -> 190.0362076 | AC184: =Pricing_MAR!AC118 -> 190.1989973 | AD184: =Pricing_MAR!AD118 -> 188.326396 | AE184: =Pricing_MAR!AE118 -> 188.8784906 | AF184: =Pricing_MAR!AF118 -> 186.6247364 | AG184: =Pricing_MAR!AG118 -> 185.0386211 | AH184: =Pricing_MAR!AH118 -> 182.9697038 | AI184: =Pricing_MAR!AI118 -> 100.5770366 | AJ184: =Pricing_MAR!AJ118 -> 91.21495801 | AK184: =Pricing_MAR!AK118 -> 80.68125905 | AL184: =Pricing_MAR!AL118 -> 71.82600737 | AM184: =Pricing_MAR!AM118 -> 62.65253186 | AN184: =Pricing_MAR!AN118 -> 51.46782524 | AO184: =Pricing_MAR!AO118 -> 40.73587236 | AP184: =Pricing_MAR!AP118 -> 30.48305374 | AQ184: =Pricing_MAR!AQ118 -> 20.56254311 | AR184: =Pricing_MAR!AR118 -> 10.15653655 | AS184: =Pricing_MAR!AS118 -> 1.845518489e-15 | AT184: =Pricing_MAR!AT118 -> 1.889489303e-15 | AU184: =Pricing_MAR!AU118 -> 1.939853493e-15 | AV184: =Pricing_MAR!AV118 -> 1.991738119e-15 | AW184: =Pricing_MAR!AW118 -> 2.061673584e-15 | AX184: =Pricing_MAR!AX118 -> 2.096118038e-15 | AY184: =Pricing_MAR!AY118 -> 2.162831544e-15 | AZ184: =Pricing_MAR!AZ118 -> 2.160441456e-15 | BA184: =Pricing_MAR!BA118 -> 2.230492452e-15 | BB184: =Pricing_MAR!BB118 -> 2.281740308e-15
A185: Opening RAB (RFM) | B185: Nominal | E185: =RFM_ORAB!E118 -> 1038.695681 | F185: =RFM_ORAB!F118 -> 1120.556758 | G185: =RFM_ORAB!G118 -> 1246.984486 | H185: =RFM_ORAB!H118 -> 1337.37086 | I185: =RFM_ORAB!I118 -> 1427.448652 | J185: =RFM_ORAB!J118 -> 1516.331616 | K185: =RFM_ORAB!K118 -> 1645.389069 | L185: =RFM_ORAB!L118 -> 1760.052579 | M185: =RFM_ORAB!M118 -> 1921.406279 | N185: =RFM_ORAB!N118 -> 2006.450213 | O185: =RFM_ORAB!O118 -> 2045.150191 | P185: =RFM_ORAB!P118 -> 2029.443027 | Q185: =RFM_ORAB!Q118 -> 1972.188584 | R185: =RFM_ORAB!R118 -> 1938.735449 | S185: =RFM_ORAB!S118 -> 1890.991651 | T185: =RFM_ORAB!T118 -> 1849.859916 | U185: =RFM_ORAB!U118 -> 1810.260964 | V185: =RFM_ORAB!V118 -> 1728.271823 | W185: =RFM_ORAB!W118 -> 1637.328611 | X185: =RFM_ORAB!X118 -> 1557.658152 | Y185: =RFM_ORAB!Y118 -> 1475.47981 | Z185: =RFM_ORAB!Z118 -> 1395.393138 | AA185: =RFM_ORAB!AA118 -> 1299.418509 | AB185: =RFM_ORAB!AB118 -> 1215.429791 | AC185: =RFM_ORAB!AC118 -> 1129.652513 | AD185: =RFM_ORAB!AD118 -> 1024.284722 | AE185: =RFM_ORAB!AE118 -> 928.1483428 | AF185: =RFM_ORAB!AF118 -> 811.5083469 | AG185: =RFM_ORAB!AG118 -> 691.4847996 | AH185: =RFM_ORAB!AH118 -> 562.4708518 | AI185: =RFM_ORAB!AI118 -> 423.3670797 | AJ185: =RFM_ORAB!AJ118 -> 355.7752745 | AK185: =RFM_ORAB!AK118 -> 289.213767 | AL185: =RFM_ORAB!AL118 -> 233.5107015 | AM185: =RFM_ORAB!AM118 -> 181.8661443 | AN185: =RFM_ORAB!AN118 -> 130.7674721 | AO185: =RFM_ORAB!AO118 -> 88.1543373 | AP185: =RFM_ORAB!AP118 -> 53.90703625 | AQ185: =RFM_ORAB!AQ118 -> 27.99054162 | AR185: =RFM_ORAB!AR118 -> 9.451561562 | AS185: =RFM_ORAB!AS118 -> 3.601308649e-14 | AT185: =RFM_ORAB!AT118 -> 3.687112433e-14 | AU185: =RFM_ORAB!AU118 -> 3.785392129e-14 | AV185: =RFM_ORAB!AV118 -> 3.886638771e-14 | AW185: =RFM_ORAB!AW118 -> 4.02310947e-14 | AX185: =RFM_ORAB!AX118 -> 4.098491224e-14 | AY185: =RFM_ORAB!AY118 -> 4.228934602e-14 | AZ185: =RFM_ORAB!AZ118 -> 4.224261318e-14 | BA185: =RFM_ORAB!BA118 -> 4.361230413e-14 | BB185: =RFM_ORAB!BB118 -> 4.461434165e-14
A186: Capex (RFM) | B186: Nominal | D186: =RFM_NomCapex!D118 -> 1024.695077 | E186: =RFM_NomCapex!E118 -> 104.33495 | F186: =RFM_NomCapex!F118 -> 111.4892563 | G186: =RFM_NomCapex!G118 -> 111.9161376 | H186: =RFM_NomCapex!H118 -> 114.0814332 | I186: =RFM_NomCapex!I118 -> 116.236605 | J186: =RFM_NomCapex!J118 -> 122.8746341 | K186: =RFM_NomCapex!K118 -> 126.3760414 | L186: =RFM_NomCapex!L118 -> 135.2211963 | M186: =RFM_NomCapex!M118 -> 134.7402829 | N186: =RFM_NomCapex!N118 -> 132.784826 | O186: =RFM_NomCapex!O118 -> 0 | P186: =RFM_NomCapex!P118 -> 0 | Q186: =RFM_NomCapex!Q118 -> 0 | R186: =RFM_NomCapex!R118 -> 0 | S186: =RFM_NomCapex!S118 -> 0 | T186: =RFM_NomCapex!T118 -> 0 | U186: =RFM_NomCapex!U118 -> 0 | V186: =RFM_NomCapex!V118 -> 0 | W186: =RFM_NomCapex!W118 -> 0 | X186: =RFM_NomCapex!X118 -> 0 | Y186: =RFM_NomCapex!Y118 -> 0 | Z186: =RFM_NomCapex!Z118 -> 0 | AA186: =RFM_NomCapex!AA118 -> 0 | AB186: =RFM_NomCapex!AB118 -> 0 | AC186: =RFM_NomCapex!AC118 -> 0 | AD186: =RFM_NomCapex!AD118 -> 0 | AE186: =RFM_NomCapex!AE118 -> 0 | AF186: =RFM_NomCapex!AF118 -> 0 | AG186: =RFM_NomCapex!AG118 -> 0 | AH186: =RFM_NomCapex!AH118 -> 0 | AI186: =RFM_NomCapex!AI118 -> 0 | AJ186: =RFM_NomCapex!AJ118 -> 0 | AK186: =RFM_NomCapex!AK118 -> 0 | AL186: =RFM_NomCapex!AL118 -> 0 | AM186: =RFM_NomCapex!AM118 -> 0 | AN186: =RFM_NomCapex!AN118 -> 0 | AO186: =RFM_NomCapex!AO118 -> 0 | AP186: =RFM_NomCapex!AP118 -> 0 | AQ186: =RFM_NomCapex!AQ118 -> 0 | AR186: =RFM_NomCapex!AR118 -> 0 | AS186: =RFM_NomCapex!AS118 -> 0 | AT186: =RFM_NomCapex!AT118 -> 0 | AU186: =RFM_NomCapex!AU118 -> 0 | AV186: =RFM_NomCapex!AV118 -> 0 | AW186: =RFM_NomCapex!AW118 -> 0 | AX186: =RFM_NomCapex!AX118 -> 0 | AY186: =RFM_NomCapex!AY118 -> 0 | AZ186: =RFM_NomCapex!AZ118 -> 0 | BA186: =RFM_NomCapex!BA118 -> 0 | BB186: =RFM_NomCapex!BB118 -> 0
A187: Reg Depreciation (RFM) | B187: Nominal | E187: =RFM_NomSLDepn!E118-RFM_IndexRAB!E118 -> 22.4738728 | F187: =RFM_NomSLDepn!F118-RFM_IndexRAB!F118 -> -14.93847206 | G187: =RFM_NomSLDepn!G118-RFM_IndexRAB!G118 -> 21.52976444 | H187: =RFM_NomSLDepn!H118-RFM_IndexRAB!H118 -> 24.00364076 | I187: =RFM_NomSLDepn!I118-RFM_IndexRAB!I118 -> 27.35364082 | J187: =RFM_NomSLDepn!J118-RFM_IndexRAB!J118 -> -6.182818952 | K187: =RFM_NomSLDepn!K118-RFM_IndexRAB!K118 -> 11.71253159 | L187: =RFM_NomSLDepn!L118-RFM_IndexRAB!L118 -> -26.13250368 | M187: =RFM_NomSLDepn!M118-RFM_IndexRAB!M118 -> 49.69634916 | N187: =RFM_NomSLDepn!N118-RFM_IndexRAB!N118 -> 94.08484784 | O187: =RFM_NomSLDepn!O118-RFM_IndexRAB!O118 -> 15.70716378 | P187: =RFM_NomSLDepn!P118-RFM_IndexRAB!P118 -> 57.25444297 | Q187: =RFM_NomSLDepn!Q118-RFM_IndexRAB!Q118 -> 33.4531351 | R187: =RFM_NomSLDepn!R118-RFM_IndexRAB!R118 -> 47.74379812 | S187: =RFM_NomSLDepn!S118-RFM_IndexRAB!S118 -> 41.13173472 | T187: =RFM_NomSLDepn!T118-RFM_IndexRAB!T118 -> 39.59895249 | U187: =RFM_NomSLDepn!U118-RFM_IndexRAB!U118 -> 81.98914021 | V187: =RFM_NomSLDepn!V118-RFM_IndexRAB!V118 -> 90.94321225 | W187: =RFM_NomSLDepn!W118-RFM_IndexRAB!W118 -> 79.67045911 | X187: =RFM_NomSLDepn!X118-RFM_IndexRAB!X118 -> 82.1783424 | Y187: =RFM_NomSLDepn!Y118-RFM_IndexRAB!Y118 -> 80.08667136 | Z187: =RFM_NomSLDepn!Z118-RFM_IndexRAB!Z118 -> 95.97462905 | AA187: =RFM_NomSLDepn!AA118-RFM_IndexRAB!AA118 -> 83.98871789 | AB187: =RFM_NomSLDepn!AB118-RFM_IndexRAB!AB118 -> 85.77727835 | AC187: =RFM_NomSLDepn!AC118-RFM_IndexRAB!AC118 -> 105.3677911 | AD187: =RFM_NomSLDepn!AD118-RFM_IndexRAB!AD118 -> 96.13637922 | AE187: =RFM_NomSLDepn!AE118-RFM_IndexRAB!AE118 -> 116.6399959 | AF187: =RFM_NomSLDepn!AF118-RFM_IndexRAB!AF118 -> 120.0235473 | AG187: =RFM_NomSLDepn!AG118-RFM_IndexRAB!AG118 -> 129.0139479 | AH187: =RFM_NomSLDepn!AH118-RFM_IndexRAB!AH118 -> 139.103772 | AI187: =RFM_NomSLDepn!AI118-RFM_IndexRAB!AI118 -> 67.59180519 | AJ187: =RFM_NomSLDepn!AJ118-RFM_IndexRAB!AJ118 -> 66.56150751 | AK187: =RFM_NomSLDepn!AK118-RFM_IndexRAB!AK118 -> 55.70306551 | AL187: =RFM_NomSLDepn!AL118-RFM_IndexRAB!AL118 -> 51.64455721 | AM187: =RFM_NomSLDepn!AM118-RFM_IndexRAB!AM118 -> 51.09867216 | AN187: =RFM_NomSLDepn!AN118-RFM_IndexRAB!AN118 -> 42.61313483 | AO187: =RFM_NomSLDepn!AO118-RFM_IndexRAB!AO118 -> 34.24730106 | AP187: =RFM_NomSLDepn!AP118-RFM_IndexRAB!AP118 -> 25.91649462 | AQ187: =RFM_NomSLDepn!AQ118-RFM_IndexRAB!AQ118 -> 18.53898006 | AR187: =RFM_NomSLDepn!AR118-RFM_IndexRAB!AR118 -> 9.451561562 | AS187: =RFM_NomSLDepn!AS118-RFM_IndexRAB!AS118 -> -8.580378469e-16 | AT187: =RFM_NomSLDepn!AT118-RFM_IndexRAB!AT118 -> -9.82796955e-16 | AU187: =RFM_NomSLDepn!AU118-RFM_IndexRAB!AU118 -> -1.012466425e-15 | AV187: =RFM_NomSLDepn!AV118-RFM_IndexRAB!AV118 -> -1.364706982e-15 | AW187: =RFM_NomSLDepn!AW118-RFM_IndexRAB!AW118 -> -7.538175415e-16 | AX187: =RFM_NomSLDepn!AX118-RFM_IndexRAB!AX118 -> -1.304433781e-15 | AY187: =RFM_NomSLDepn!AY118-RFM_IndexRAB!AY118 -> 4.673283472e-17 | AZ187: =RFM_NomSLDepn!AZ118-RFM_IndexRAB!AZ118 -> -1.369690948e-15 | BA187: =RFM_NomSLDepn!BA118-RFM_IndexRAB!BA118 -> -1.002037516e-15 | BB187: =RFM_NomSLDepn!BB118-RFM_IndexRAB!BB118 -> -1.014151987e-15
A188: Closing RAB (RFM) | B188: Nominal | D188: =RFM_ORAB!E118 -> 1038.695681 | E188: =RFM_ORAB!F118 -> 1120.556758 | F188: =RFM_ORAB!G118 -> 1246.984486 | G188: =RFM_ORAB!H118 -> 1337.37086 | H188: =RFM_ORAB!I118 -> 1427.448652 | I188: ='PTRM-RFM_Rollover'!I118 -> 1516.331616 | J188: =RFM_ORAB!K118 -> 1645.389069 | K188: =RFM_ORAB!L118 -> 1760.052579 | L188: =RFM_ORAB!M118 -> 1921.406279 | M188: =RFM_ORAB!N118 -> 2006.450213 | N188: ='PTRM-RFM_Rollover'!N118 -> 2045.150191 | O188: =RFM_ORAB!P118 -> 2029.443027 | P188: =RFM_ORAB!Q118 -> 1972.188584 | Q188: =RFM_ORAB!R118 -> 1938.735449 | R188: =RFM_ORAB!S118 -> 1890.991651 | S188: ='PTRM-RFM_Rollover'!S118 -> 1849.859916 | T188: =RFM_ORAB!U118 -> 1810.260964 | U188: =RFM_ORAB!V118 -> 1728.271823 | V188: =RFM_ORAB!W118 -> 1637.328611 | W188: =RFM_ORAB!X118 -> 1557.658152 | X188: ='PTRM-RFM_Rollover'!X118 -> 1475.47981 | Y188: =RFM_ORAB!Z118 -> 1395.393138 | Z188: =RFM_ORAB!AA118 -> 1299.418509 | AA188: =RFM_ORAB!AB118 -> 1215.429791 | AB188: =RFM_ORAB!AC118 -> 1129.652513 | AC188: ='PTRM-RFM_Rollover'!AC118 -> 1024.284722 | AD188: =RFM_ORAB!AE118 -> 928.1483428 | AE188: =RFM_ORAB!AF118 -> 811.5083469 | AF188: =RFM_ORAB!AG118 -> 691.4847996 | AG188: =RFM_ORAB!AH118 -> 562.4708518 | AH188: ='PTRM-RFM_Rollover'!AH118 -> 423.3670797 | AI188: =RFM_ORAB!AJ118 -> 355.7752745 | AJ188: =RFM_ORAB!AK118 -> 289.213767 | AK188: =RFM_ORAB!AL118 -> 233.5107015 | AL188: =RFM_ORAB!AM118 -> 181.8661443 | AM188: ='PTRM-RFM_Rollover'!AM118 -> 130.7674721 | AN188: =RFM_ORAB!AO118 -> 88.1543373 | AO188: =RFM_ORAB!AP118 -> 53.90703625 | AP188: =RFM_ORAB!AQ118 -> 27.99054162 | AQ188: =RFM_ORAB!AR118 -> 9.451561562 | AR188: ='PTRM-RFM_Rollover'!AR118 -> 3.601308649e-14 | AS188: =RFM_ORAB!AT118 -> 3.687112433e-14 | AT188: =RFM_ORAB!AU118 -> 3.785392129e-14 | AU188: =RFM_ORAB!AV118 -> 3.886638771e-14 | AV188: =RFM_ORAB!AW118 -> 4.02310947e-14 | AW188: ='PTRM-RFM_Rollover'!AW118 -> 4.098491224e-14 | AX188: =RFM_ORAB!AY118 -> 4.228934602e-14 | AY188: =RFM_ORAB!AZ118 -> 4.224261318e-14 | AZ188: =RFM_ORAB!BA118 -> 4.361230413e-14 | BA188: =RFM_ORAB!BB118 -> 4.461434165e-14 | BB188: ='PTRM-RFM_Rollover'!BB118 -> 4.562849363e-14
A190: Cash Flow | B190: Nominal | D190: =D184-(Capex_00_Amt_Nom_EY*(1+Real_WACC)^0.5) -> -1038.695681 | E190: =E184-(Capex_01_Amt_Nom_EY*(1+Real_WACC)^0.5) -> -15.5224929 | F190: =F184-(Capex_02_Amt_Nom_EY*(1+Real_WACC)^0.5) -> -14.47886922 | G190: =G184-(Capex_03_Amt_Nom_EY*(1+Real_WACC)^0.5) -> -2.653953284 | H190: =H184-(Capex_04_Amt_Nom_EY*(1+Real_WACC)^0.5) -> 4.496770107 | I190: =I184-(Capex_05_Amt_Nom_EY*(1+Real_WACC)^0.5) -> 11.82213648 | J190: =J184-(Capex_06_Amt_Nom_EY*(1+Real_WACC)^0.5) -> 14.9667868 | K190: =K184-(Capex_07_Amt_Nom_EY*(1+Real_WACC)^0.5) -> 24.95672718 | L190: =L184-(Capex_08_Amt_Nom_EY*(1+Real_WACC)^0.5) -> 28.58382667 | M190: =M184-(Capex_09_Amt_Nom_EY*(1+Real_WACC)^0.5) -> 46.22487136 | N190: =N184-(Capex_10_Amt_Nom_EY*(1+Real_WACC)^0.5) -> 58.52021911 | O190: =O184 -> 197.1285062 | P190: =P184 -> 199.8227324 | Q190: =Q184 -> 198.6690515 | R190: =R184 -> 200.1531728 | S190: =S184 -> 200.4637146 | T190: =T184 -> 201.7412025 | U190: 203.6682091 | V190: 201.1637722 | W190: 197.8080675 | X190: 196.0614618 | Y190: 194.1957402 | Z190: 193.2025527 | AA190: 190.4593415 | AB190: 190.0362076 | AC190: 190.1989973 | AD190: 188.326396 | AE190: 188.8784906 | AF190: 186.6247364 | AG190: 185.0386211 | AH190: 182.9697038 | AI190: 100.5770366 | AJ190: 91.21495801 | AK190: 80.68125905 | AL190: 71.82600737 | AM190: 62.65253186 | AN190: 51.46782524 | AO190: 40.73587236 | AP190: 30.48305374 | AQ190: 20.56254311 | AR190: 10.15653655 | AS190: 1.845518489e-15 | AT190: 1.889489303e-15 | AU190: 1.939853493e-15 | AV190: 1.991738119e-15 | AW190: 2.061673584e-15 | AX190: 2.096118038e-15 | AY190: 2.162831544e-15 | AZ190: 2.160441456e-15 | BA190: 2.230492452e-15 | BB190: 2.281740308e-15
A191: Cash Flow | B191: Real | D191: =D190/D180 -> -1038.695681 | E191: -15.33691561 | F191: -13.63226183 | G191: -2.452669266 | H191: 4.077578941 | I191: 10.52037017 | J191: 12.75445378 | K191: 20.57399659 | L191: 22.27737238 | M191: 35.44228438 | N191: 45.06285904 | O191: 146.2468859 | P191: 145.534974 | Q191: 140.0971839 | R191: 137.3796372 | S191: 133.1498954 | T191: 129.2143553 | U191: 128.4786311 | V191: 125.4415008 | W191: 120.8663594 | X191: 117.2721663 | Y191: 113.1881118 | Z191: 110.6330877 | AA191: 105.7502124 | AB191: 101.8810216 | AC191: 99.60240092 | AD191: 94.78968202 | AE191: 92.6185165 | AF191: 88.71313281 | AG191: 85.35936608 | AH191: 82.21776137 | AI191: 43.99736749 | AJ191: 39.2542759 | AK191: 33.44269464 | AL191: 28.65948763 | AM191: 24.81376049 | AN191: 20.12072483 | AO191: 15.58583232 | AP191: 11.17397332 | AQ191: 7.415035781 | AR191: 3.586488047 | AS191: 6.365259525e-16 | AT191: 6.347718496e-16 | AU191: 6.347151265e-16 | AV191: 6.295851578e-16 | AW191: 6.397053649e-16 | AX191: 6.303312841e-16 | AY191: 6.511124723e-16 | AZ191: 6.299666607e-16 | BA191: 6.357851283e-16 | BB191: 6.35937125e-16
A192: NPV end period | I192: =NPV(Real_WACC,$E191:I191)+$D191+I188/I180/POWER(1+Real_WACC,I$3) -> 1.074084315 | N192: =NPV(Real_WACC,$E191:N191)+$D191+N188/N180/POWER(1+Real_WACC,N$3) -> 0.3588480902 | S192: =NPV(Real_WACC,$E191:S191)+$D191+S188/S180/POWER(1+Real_WACC,S$3) -> -1.159951091 | X192: =NPV(Real_WACC,$E191:X191)+$D191+X188/X180/POWER(1+Real_WACC,X$3) -> -0.1592447841 | AC192: =NPV(Real_WACC,$E191:AC191)+$D191+AC188/AC180/POWER(1+Real_WACC,AC$3) -> -0.5024120263 | AH192: =NPV(Real_WACC,$E191:AH191)+$D191+AH188/AH180/POWER(1+Real_WACC,AH$3) -> -1.025363121 | AM192: =NPV(Real_WACC,$E191:AM191)+$D191+AM188/AM180/POWER(1+Real_WACC,AM$3) -> -1.081968032 | AR192: =NPV(Real_WACC,$E191:AR191)+$D191+AR188/AR180/POWER(1+Real_WACC,AR$3) -> -1.069014703 | AW192: =NPV(Real_WACC,$E191:AW191)+$D191+AW188/AW180/POWER(1+Real_WACC,AW$3) -> -1.069014703 | BB192: =NPV(Real_WACC,$E191:BB191)+$D191+BB188/BB180/POWER(1+Real_WACC,BB$3) -> -1.069014703
A193: NPV overall | D193: =NPV(Real_WACC,E191:BB191)+D191 -> -1.069014703
A194: NPV change this period (% of MAR) | I194: =IFERROR((I192-D192)/ROUND(SUM(E183/E180,F183/F180,G183/G180,H183/H180,I183/I180),6),0) -> 0.002138325728 | N194: =IFERROR((N192-I192)/ROUND(SUM(J183/J180,K183/K180,L183/L180,M183/M180,N183/N180),6),0) -> -0.001120191682 | S194: =IFERROR((S192-N192)/ROUND(SUM(O183/O180,P183/P180,Q183/Q180,R183/R180,S183/S180),6),0) -> -0.002179737041 | X194: =IFERROR((X192-S192)/ROUND(SUM(T183/T180,U183/U180,V183/V180,W183/W180,X183/X180),6),0) -> 0.001605600357 | AC194: =IFERROR((AC192-X192)/ROUND(SUM(Y183/Y180,Z183/Z180,AA183/AA180,AB183/AB180,AC183/AC180),6),0) -> -0.0006473241948 | AH194: =IFERROR((AH192-AC192)/ROUND(SUM(AD183/AD180,AE183/AE180,AF183/AF180,AG183/AG180,AH183/AH180),6),0) -> -0.001193552053 | AM194: =IFERROR((AM192-AH192)/ROUND(SUM(AI183/AI180,AJ183/AJ180,AK183/AK180,AL183/AL180,AM183/AM180),6),0) -> -0.000334086787 | AR194: =IFERROR((AR192-AM192)/ROUND(SUM(AN183/AN180,AO183/AO180,AP183/AP180,AQ183/AQ180,AR183/AR180),6),0) -> 0.0002229092749 | AW194: =IFERROR((AW192-AR192)/ROUND(SUM(AS183/AS180,AT183/AT180,AU183/AU180,AV183/AV180,AW183/AW180),6),0) -> 0 | BB194: =IFERROR((BB192-AW192)/ROUND(SUM(AX183/AX180,AY183/AY180,AZ183/AZ180,BA183/BA180,BB183/BB180),6),0) -> 0
I195: =(I192-D192)/(I188/I180) -> 0.0007959927852 | N195: =(N192-I192)/(N188/N180) -> -0.0004541627345 | S195: =(S192-N192)/(S188/S180) -> -0.001236108112
A197: Debt | E197: =$C$4*D188 -> 623.2174085 | F197: 672.3340548 | G197: 748.1906918 | H197: 802.4225157 | I197: 856.4691912 | J197: 909.7989697 | K197: 987.2334416 | L197: 1056.031547 | M197: 1152.843767 | N197: 1203.870128 | O197: 1227.090115 | P197: 1217.665816 | Q197: 1183.31315 | R197: 1163.241269 | S197: 1134.594991 | T197: 1109.91595 | U197: 1086.156578 | V197: 1036.963094 | W197: 982.3971667 | X197: 934.5948913 | Y197: 885.2878858 | Z197: 837.235883 | AA197: 779.6511056 | AB197: 729.2578749 | AC197: 677.7915079 | AD197: 614.5708332 | AE197: 556.8890057 | AF197: 486.9050082 | AG197: 414.8908798 | AH197: 337.4825111 | AI197: 254.0202478 | AJ197: 213.4651647 | AK197: =$C$4*AJ188 -> 173.5282602 | AL197: 140.1064209 | AM197: 109.1196866 | AN197: 78.46048328 | AO197: 52.89260238 | AP197: 32.34422175 | AQ197: 16.79432497 | AR197: 5.670936937 | AS197: 2.160785189e-14 | AT197: 2.21226746e-14 | AU197: 2.271235277e-14 | AV197: 2.331983263e-14 | AW197: 2.413865682e-14 | AX197: 2.459094734e-14 | AY197: 2.537360761e-14 | AZ197: 2.534556791e-14 | BA197: 2.616738248e-14 | BB197: 2.676860499e-14
A198: Incremental debt raised | D198: =E197-D197 -> 623.2174085 | E198: =F197-E197 -> 49.11664629 | F198: =G197-F197 -> 75.85663702 | G198: =H197-G197 -> 54.23182392 | H198: =I197-H197 -> 54.04667547 | I198: =J197-I197 -> 53.3297785 | J198: =K197-J197 -> 77.43447185 | K198: =L197-K197 -> 68.79810586 | L198: =M197-L197 -> 96.81221997 | M198: =N197-M197 -> 51.02636025 | N198: =O197-N197 -> 23.21998688 | O198: =P197-O197 -> -9.424298268 | P198: =Q197-P197 -> -34.35266578 | Q198: =R197-Q197 -> -20.07188106 | R198: =S197-R197 -> -28.64627887 | S198: =T197-S197 -> -24.67904083 | T198: =U197-T197 -> -23.75937149 | U198: =V197-U197 -> -49.19348412 | V198: =W197-V197 -> -54.56592735 | W198: =X197-W197 -> -47.80227547 | X198: =Y197-X197 -> -49.30700544 | Y198: =Z197-Y197 -> -48.05200282 | Z198: =AA197-Z197 -> -57.58477743 | AA198: =AB197-AA197 -> -50.39323073 | AB198: =AC197-AB197 -> -51.46636701 | AC198: =AD197-AC197 -> -63.22067464 | AD198: =AE197-AD197 -> -57.68182753 | AE198: =AF197-AE197 -> -69.98399752 | AF198: =AG197-AF197 -> -72.01412839 | AG198: =AH197-AG197 -> -77.40836871 | AH198: =AI197-AH197 -> -83.46226322 | AI198: =AJ197-AI197 -> -40.55508311 | AJ198: =AK197-AJ197 -> -39.93690451 | AK198: =AL197-AK197 -> -33.42183931 | AL198: =AM197-AL197 -> -30.98673433 | AM198: =AN197-AM197 -> -30.6592033 | AN198: =AO197-AN197 -> -25.5678809 | AO198: =AP197-AO197 -> -20.54838064 | AP198: =AQ197-AP197 -> -15.54989677 | AQ198: =AR197-AQ197 -> -11.12338804 | AR198: =AS197-AR197 -> -5.670936937 | AS198: =AT197-AS197 -> 5.148227082e-16 | AT198: =AU197-AT197 -> 5.89678173e-16 | AU198: =AV197-AU197 -> 6.074798551e-16 | AV198: =AW197-AV197 -> 8.188241894e-16 | AW198: =AX197-AW197 -> 4.522905249e-16 | AX198: =AY197-AX197 -> 7.826602685e-16 | AY198: =AZ197-AY197 -> -2.803970083e-17 | AZ198: =BA197-AZ197 -> 8.218145688e-16 | BA198: =BB197-BA197 -> 6.012225099e-16 | BB198: =BC197-BB197 -> -2.676860499e-14
A199: Nominal interest cost | E199: =E197*$C$5 -> 34.27695747 | F199: =F197*$C$5 -> 36.97837301 | G199: 41.15048805 | H199: 44.13323837 | I199: 47.10580552 | J199: 50.03894333 | K199: 54.29783929 | L199: 58.08173511 | M199: 63.40640721 | N199: 66.21285702 | O199: 67.4899563 | P199: 66.97161989 | Q199: 65.08222328 | R199: 63.97826982 | S199: 62.40272448 | T199: 61.04537723 | U199: 59.7386118 | V199: 57.03297018 | W199: 54.03184417 | X199: 51.40271902 | Y199: 48.69083372 | Z199: 46.04797357 | AA199: 42.88081081 | AB199: 40.10918312 | AC199: 37.27853293 | AD199: 33.80139583 | AE199: 30.62889531 | AF199: 26.77977545 | AG199: 22.81899839 | AH199: 18.56153811 | AI199: 13.97111363 | AJ199: 11.74058406 | AK199: 9.544054312 | AL199: 7.70585315 | AM199: 6.001582762 | AN199: 4.31532658 | AO199: 2.909093131 | AP199: 1.778932196 | AQ199: 0.9236878736 | AR199: 0.3119015316 | AS199: 1.188431854e-15 | AT199: 1.216747103e-15 | AU199: 1.249179402e-15 | AV199: 1.282590795e-15 | AW199: 1.327626125e-15 | AX199: 1.352502104e-15 | AY199: 1.395548419e-15 | AZ199: 1.394006235e-15 | BA199: 1.439206036e-15 | BB199: 1.472273274e-15
A201: Total cash flow to equity | D201: =D190+D198-D199 -> -415.4782723 | E201: =E190+E198-E199 -> -0.6828040703 | F201: 24.39939479 | G201: 10.42738259 | H201: 14.41020721 | I201: 18.04610946 | J201: 42.36231532 | K201: 39.45699375 | L201: 67.31431153 | M201: 33.84482441 | N201: 15.52734898 | O201: 120.2142516 | P201: 98.49844677 | Q201: 113.5149472 | R201: 107.5286241 | S201: 113.3819493 | T201: 116.9364538 | U201: 94.73611321 | V201: 89.56487469 | W201: 95.97394789 | X201: 95.3517373 | Y201: 97.45290364 | Z201: 89.56980174 | AA201: 97.18529998 | AB201: 98.46065751 | AC201: 89.69978976 | AD201: 96.84317261 | AE201: 88.26559779 | AF201: 87.83083258 | AG201: 84.81125397 | AH201: 80.94590243 | AI201: 46.05083984 | AJ201: 39.53746945 | AK201: 37.71536543 | AL201: 33.13341989 | AM201: 25.9917458 | AN201: 21.58461777 | AO201: 17.27839859 | AP201: 13.15422477 | AQ201: 8.515467195 | AR201: 4.173698083 | AS201: 1.171909343e-15 | AT201: 1.262420373e-15 | AU201: 1.298153946e-15 | AV201: 1.527971514e-15 | AW201: 1.186337984e-15 | AX201: 1.526276203e-15 | AY201: 7.392434245e-16 | AZ201: 1.58824979e-15 | BA201: 1.392508925e-15 | BB201: -2.595913795e-14
A202: Total cash flow to debt holders | D202: =-D198+D199 -> -623.2174085 | E202: =-E198+E199 -> -14.83968883 | F202: -38.87826401 | G202: -13.08133587 | H202: -9.913437099 | I202: -6.223972979 | J202: -27.39552852 | K202: -14.50026658 | L202: -38.73048486 | M202: 12.38004696 | N202: 42.99287014 | O202: 76.91425457 | P202: 101.3242857 | Q202: 85.15410434 | R202: 92.62454869 | S202: 87.08176531 | T202: 84.80474873 | U202: 108.9320959 | V202: 111.5988975 | W202: 101.8341196 | X202: 100.7097245 | Y202: 96.74283654 | Z202: 103.632751 | AA202: 93.27404154 | AB202: 91.57555013 | AC202: 100.4992076 | AD202: 91.48322336 | AE202: 100.6128928 | AF202: 98.79390384 | AG202: 100.2273671 | AH202: 102.0238013 | AI202: 54.52619674 | AJ202: 51.67748857 | AK202: 42.96589362 | AL202: 38.69258748 | AM202: 36.66078606 | AN202: 29.88320748 | AO202: 23.45747377 | AP202: 17.32882897 | AQ202: 12.04707591 | AR202: 5.982838469 | AS202: 6.736091459e-16 | AT202: 6.2706893e-16 | AU202: 6.416995474e-16 | AV202: 4.637666051e-16 | AW202: 8.753356001e-16 | AX202: 5.698418353e-16 | AY202: 1.423588119e-15 | AZ202: 5.721916662e-16 | BA202: 8.379835264e-16 | BB202: 2.824087826e-14
A203: Real cash flow to equity | D203: =D201/D180 -> -415.4782723 | E203: =E201/E180 -> -0.674640889 | F203: 22.97271515 | G203: 9.63653767 | H203: 13.06688046 | I203: 16.05900524 | J203: 36.10048035 | K203: 32.52782504 | L203: 52.46274411 | M203: 25.95005364 | N203: 11.95666641 | O203: 89.18527453 | P203: 71.73842895 | Q203: 80.04832312 | R203: 73.80469248 | S203: 75.3093632 | T203: 74.89728572 | U203: 59.76173795 | V203: 55.85077361 | W203: 58.64281382 | X203: 57.03367041 | Y203: 56.80098927 | Z203: 51.29012837 | AA203: 53.96094532 | AB203: 52.78611111 | AC203: 46.97350957 | AD203: 48.74374349 | AE203: 43.2819465 | AF203: 41.75088718 | AG203: 39.1239128 | AH203: 36.37318503 | AI203: 20.14491372 | AJ203: 17.01491474 | AK203: 15.63316518 | AL203: 13.22065464 | AM203: 10.29412437 | AN203: 8.438245692 | AO203: 6.610837269 | AP203: 4.821858003 | AQ203: 3.070753147 | AR203: 1.473821141 | AS203: 4.041957397e-16 | AT203: 4.241087334e-16 | AU203: 4.247526676e-16 | AV203: 4.829892934e-16 | AW203: 3.681022927e-16 | AX203: 4.589720719e-16 | AY203: 2.225465109e-16 | AZ203: 4.631203561e-16 | BA203: 3.969242151e-16 | BB203: -7.234994928e-15
B205: IRR | C205: NPV
A206: All capital | B206: =IRR(D190:BB190) -> 0.07816474102
A207: Nominal Equity | B207: =IRR(D201:BB201) -> 0.1132471963
A208: Nominal Debt | B208: =IRR(D202:BB202) -> 0.05499999999
A209: Real Equity | B209: 0.08381161511 | C209: =NPV(Inputs!$J$17,D203:BB203) -> 1.205048066
A210: Variation from target real RoE | B210: =B209-Inputs!$J$17 -> 0.0002494530942
A211: Approach G
A212: Actual Inflation | B212: Chosen inflation | E212: =INDEX(E$6:E$11,MATCH($A212,$A$6:$A$11,0)) -> 0.01210003925 | F212: =INDEX(F$6:F$11,MATCH($A212,$A$6:$A$11,0)) -> 0.04940537631 | G212: =INDEX(G$6:G$11,MATCH($A212,$A$6:$A$11,0)) -> 0.01879676772 | H212: =INDEX(H$6:H$11,MATCH($A212,$A$6:$A$11,0)) -> 0.01916387812 | I212: =INDEX(I$6:I$11,MATCH($A212,$A$6:$A$11,0)) -> 0.01898229851 | J212: =INDEX(J$6:J$11,MATCH($A212,$A$6:$A$11,0)) -> 0.04424345176 | K212: 0.03371843145 | L212: 0.05776072522 | M212: 0.01647710241 | N212: -0.004289250067 | O212: 0.03794801417 | P212: 0.01862590575 | Q212: 0.03281679668 | R212: 0.02739938407 | S212: 0.03336757525 | T212: 0.03702421163 | U212: 0.01533300458 | V212: 0.01161715552 | W212: 0.02053999578 | X212: 0.0215478861 | Y212: 0.02622264859 | Z212: 0.01786209806 | AA212: 0.03131943821 | AB212: 0.03567152024 | AC212: 0.02375338754 | AD212: 0.04042723729 | AE212: 0.02644233056 | AF212: 0.0315650229 | AG212: 0.03045708836 | AH212: 0.02660254158 | AI212: 0.02720850376 | AJ212: 0.01649898333 | AK212: 0.03822698211 | AL212: 0.03882382243 | AM212: 0.007471423187 | AN212: 0.01308563154 | AO212: 0.02177394872 | AP212: 0.04376762029 | AQ212: 0.01651252234 | AR212: 0.02120439059 | AS212: 0.02382572367 | AT212: 0.02665492232 | AU212: 0.02674667223 | AV212: 0.03511278157 | AW212: 0.01873718692 | AX212: 0.03182717029 | AY212: -0.001105073479 | AZ212: 0.03242438961 | BA212: 0.0229760279 | BB212: 0.0227315242
B213: Constructed index | D213: 1 | E213: =IFERROR(D213*(1+E212),"NA") -> 1.012100039 | F213: 1.062103223 | G213: 1.08206733 | H213: 1.102803937 | I213: 1.12373769 | J213: 1.173455724 | K213: 1.213022811 | L213: 1.283087888 | M213: 1.304229459 | N213: 1.298635292 | O213: 1.347915923 | P213: 1.373022078 | Q213: 1.418080264 | R213: 1.45693479 | S213: 1.505549171 | T213: 1.561290942 | U213: 1.585230223 | V213: 1.603646089 | W213: 1.636584973 | X213: 1.67184992 | Y213: 1.715690253 | Z213: 1.74633608 | AA213: 1.801030345 | AB213: 1.865275836 | AC213: 1.909582456 | AD213: 1.986781599 | AE213: 2.039316734 | AF213: 2.103687814 | AG213: 2.167760019 | AH213: 2.225427945 | AI213: 2.28597851 | AJ213: 2.323694831 | AK213: =IFERROR(AJ213*(1+AK212),"NA") -> 2.412522672 | AL213: 2.506186024 | AM213: 2.5249108 | AN213: 2.557950853 | AO213: 2.613647543 | AP213: 2.728040677 | AQ213: 2.773087509 | AR213: 2.83188914 | AS213: 2.899360948 | AT213: 2.976643189 | AU213: 3.056258489 | AV213: 3.163572226 | AW213: 3.22284867 | AX213: 3.325422823 | AY213: 3.321747986 | AZ213: 3.429453637 | BA213: 3.50824886 | BB213: 3.587996704
A215: Closing RAB (PTRM) | B215: Nominal | D215: =PTRM_ORAB!E136 -> 1038.695681 | E215: =PTRM_ORAB!F136 -> 1135.997101 | F215: =PTRM_ORAB!G136 -> 1236.026936 | G215: =PTRM_ORAB!H136 -> 1335.051404 | H215: =PTRM_ORAB!I136 -> 1434.59532 | I215: ='PTRM-RFM_Rollover'!H136 -> 1534.487204 | J215: =PTRM_ORAB!K136 -> 1630.041543 | K215: =PTRM_ORAB!L136 -> 1732.446538 | L215: =PTRM_ORAB!M136 -> 1836.495316 | M215: =PTRM_ORAB!N136 -> 1937.962265 | N215: ='PTRM-RFM_Rollover'!M136 -> 2037.830229 | O215: =PTRM_ORAB!P136 -> 2070.777398 | P215: =PTRM_ORAB!Q136 -> 2026.625992 | Q215: =PTRM_ORAB!R136 -> 1978.809482 | R215: =PTRM_ORAB!S136 -> 1927.167915 | S215: ='PTRM-RFM_Rollover'!R136 -> 1871.535524 | T215: =PTRM_ORAB!U136 -> 1780.884848 | U215: =PTRM_ORAB!V136 -> 1717.285337 | V215: =PTRM_ORAB!W136 -> 1649.281747 | W215: =PTRM_ORAB!X136 -> 1576.690762 | X215: ='PTRM-RFM_Rollover'!W136 -> 1499.322579 | Y215: =PTRM_ORAB!Z136 -> 1402.206409 | Z215: =PTRM_ORAB!AA136 -> 1314.54621 | AA215: =PTRM_ORAB!AB136 -> 1221.702568 | AB215: =PTRM_ORAB!AC136 -> 1123.472961 | AC215: ='PTRM-RFM_Rollover'!AB136 -> 1019.648028 | AD215: =PTRM_ORAB!AE136 -> 919.9673125 | AE215: =PTRM_ORAB!AF136 -> 804.6651725 | AF215: =PTRM_ORAB!AG136 -> 682.5285352 | AG215: =PTRM_ORAB!AH136 -> 553.274059 | AH215: ='PTRM-RFM_Rollover'!AG136 -> 416.6081285 | AI215: =PTRM_ORAB!AJ136 -> 355.5666617 | AJ215: =PTRM_ORAB!AK136 -> 291.2608281 | AK215: =PTRM_ORAB!AL136 -> 232.0115602 | AL215: =PTRM_ORAB!AM136 -> 178.2099263 | AM215: ='PTRM-RFM_Rollover'!AL136 -> 130.2391296 | AN215: =PTRM_ORAB!AO136 -> 90.75236818 | AO215: =PTRM_ORAB!AP136 -> 55.39048918 | AP215: =PTRM_ORAB!AQ136 -> 28.0154575 | AQ215: =PTRM_ORAB!AR136 -> 9.427135983 | AR215: ='PTRM-RFM_Rollover'!AQ136 -> -4.919875864e-15 | AS215: =PTRM_ORAB!AT136 -> 4.271242371e-15 | AT215: =PTRM_ORAB!AU136 -> 4.37766242e-15 | AU215: =PTRM_ORAB!AV136 -> 4.486733976e-15 | AV215: =PTRM_ORAB!AW136 -> 4.598523102e-15 | AW215: ='PTRM-RFM_Rollover'!AV136 -> 4.713097507e-15 | AX215: =PTRM_ORAB!AY136 -> 4.862975313e-15 | AY215: =PTRM_ORAB!AZ136 -> 4.974206222e-15 | AZ215: =PTRM_ORAB!BA136 -> 5.087981317e-15 | BA215: =PTRM_ORAB!BB136 -> 5.204358791e-15 | BB215: ='PTRM-RFM_Rollover'!BA136 -> 5.32339817e-15
A216: MAR (PTRM) | B216: Nominal | E216: =PTRM_MAR!E136 -> 88.81245706 | F216: =PTRM_MAR!F136 -> 98.34710979 | G216: =PTRM_MAR!G136 -> 108.3020715 | H216: =PTRM_MAR!H136 -> 118.3725484 | I216: =PTRM_MAR!I136 -> 128.6998807 | J216: =PTRM_MAR!J136 -> 138.8513187 | K216: =PTRM_MAR!K136 -> 149.9337341 | L216: =PTRM_MAR!L136 -> 161.2553702 | M216: =PTRM_MAR!M136 -> 172.9957562 | N216: =PTRM_MAR!N136 -> 184.812163 | O216: =PTRM_MAR!O136 -> 203.5063535 | P216: =PTRM_MAR!P136 -> 203.8822965 | Q216: =PTRM_MAR!Q136 -> 204.1417513 | R216: =PTRM_MAR!R136 -> 204.278446 | S216: =PTRM_MAR!S136 -> 204.2858621 | T216: =PTRM_MAR!T136 -> 200.6802333 | U216: =PTRM_MAR!U136 -> 200.3482473 | V216: =PTRM_MAR!V136 -> 199.8687135 | W216: =PTRM_MAR!W136 -> 199.2343197 | X216: =PTRM_MAR!X136 -> 198.4374766 | Y216: =PTRM_MAR!Y136 -> 195.4113651 | Z216: =PTRM_MAR!Z136 -> 194.1220397 | AA216: =PTRM_MAR!AA136 -> 192.6499252 | AB216: =PTRM_MAR!AB136 -> 190.9867816 | AC216: =PTRM_MAR!AC136 -> 189.1240731 | AD216: =PTRM_MAR!AD136 -> 189.0994084 | AE216: =PTRM_MAR!AE136 -> 187.1661092 | AF216: =PTRM_MAR!AF136 -> 184.9936892 | AG216: =PTRM_MAR!AG136 -> 182.5707288 | AH216: =PTRM_MAR!AH136 -> 179.8853682 | AI216: =PTRM_MAR!AI136 -> 100.7468719 | AJ216: =PTRM_MAR!AJ136 -> 91.18421418 | AK216: =PTRM_MAR!AK136 -> 81.26657226 | AL216: =PTRM_MAR!AL136 -> 71.34010331 | AM216: =PTRM_MAR!AM136 -> 61.44223464 | AN216: =PTRM_MAR!AN136 -> 52.69485463 | AO216: =PTRM_MAR!AO136 -> 42.13093503 | AP216: =PTRM_MAR!AP136 -> 31.50650871 | AQ216: =PTRM_MAR!AQ136 -> 20.67794414 | AR216: =PTRM_MAR!AR136 -> 10.13028911 | AS216: =PTRM_MAR!AS136 -> 2.135621186e-16 | AT216: =PTRM_MAR!AT136 -> 2.18883121e-16 | AU216: =PTRM_MAR!AU136 -> 2.243366988e-16 | AV216: =PTRM_MAR!AV136 -> 2.299261551e-16 | AW216: =PTRM_MAR!AW136 -> 2.356548754e-16 | AX216: =PTRM_MAR!AX136 -> 2.431487656e-16 | AY216: =PTRM_MAR!AY136 -> 2.487103111e-16 | AZ216: =PTRM_MAR!AZ136 -> 2.543990658e-16 | BA216: =PTRM_MAR!BA136 -> 2.602179396e-16 | BB216: =PTRM_MAR!BB136 -> 2.661699085e-16
A217: MAR (Pricing) | B217: Nominal | E217: =Pricing_MAR!E136 -> 88.81245706 | F217: =Pricing_MAR!F136 -> 97.01038709 | G217: =Pricing_MAR!G136 -> 109.2621844 | H217: =Pricing_MAR!H136 -> 118.5782033 | I217: =Pricing_MAR!I136 -> 128.0587415 | J217: =Pricing_MAR!J136 -> 138.8513187 | K217: =Pricing_MAR!K136 -> 152.364229 | L217: =Pricing_MAR!L136 -> 164.8473644 | M217: =Pricing_MAR!M136 -> 182.0424236 | N217: =Pricing_MAR!N136 -> 192.3743696 | O217: =Pricing_MAR!O136 -> 203.5063535 | P217: =Pricing_MAR!P136 -> 206.2880131 | Q217: =Pricing_MAR!Q136 -> 205.0972811 | R217: =Pricing_MAR!R136 -> 206.6297157 | S217: =Pricing_MAR!S136 -> 206.9506141 | T217: =Pricing_MAR!T136 -> 200.6802333 | U217: =Pricing_MAR!U136 -> 202.5974404 | V217: =Pricing_MAR!V136 -> 200.1065196 | W217: =Pricing_MAR!W136 -> 196.7688145 | X217: =Pricing_MAR!X136 -> 195.0317664 | Y217: =Pricing_MAR!Y136 -> 195.4113651 | Z217: =Pricing_MAR!Z136 -> 194.4123891 | AA217: =Pricing_MAR!AA136 -> 191.6524499 | AB217: =Pricing_MAR!AB136 -> 191.2271446 | AC217: =Pricing_MAR!AC136 -> 191.3914675 | AD217: =Pricing_MAR!AD136 -> 189.0994084 | AE217: =Pricing_MAR!AE136 -> 189.6543549 | AF217: =Pricing_MAR!AF136 -> 187.3919666 | AG217: =Pricing_MAR!AG136 -> 185.7999989 | AH217: =Pricing_MAR!AH136 -> 183.7232852 | AI217: =Pricing_MAR!AI136 -> 100.7468719 | AJ217: =Pricing_MAR!AJ136 -> 91.43649365 | AK217: =Pricing_MAR!AK136 -> 80.8649072 | AL217: =Pricing_MAR!AL136 -> 71.94746451 | AM217: =Pricing_MAR!AM136 -> 62.83938999 | AN217: =Pricing_MAR!AN136 -> 52.69485463 | AO217: =Pricing_MAR!AO136 -> 41.70561063 | AP217: =Pricing_MAR!AP136 -> 31.13835918 | AQ217: =Pricing_MAR!AQ136 -> 20.84269395 | AR217: =Pricing_MAR!AR136 -> 10.14210955 | AS217: =Pricing_MAR!AS136 -> 2.135621186e-16 | AT217: =Pricing_MAR!AT136 -> 2.186503906e-16 | AU217: =Pricing_MAR!AU136 -> 2.244784998e-16 | AV217: =Pricing_MAR!AV136 -> 2.304825526e-16 | AW217: =Pricing_MAR!AW136 -> 2.385754361e-16 | AX217: =Pricing_MAR!AX136 -> 2.431487656e-16 | AY217: =Pricing_MAR!AY136 -> 2.508875028e-16 | AZ217: =Pricing_MAR!AZ136 -> 2.506102537e-16 | BA217: =Pricing_MAR!BA136 -> 2.587361382e-16 | BB217: =Pricing_MAR!BB136 -> 2.646808669e-16
A218: Opening RAB (RFM) | B218: Nominal | E218: =RFM_ORAB!E136 -> 1038.695681 | F218: =RFM_ORAB!F136 -> 1136.823996 | G218: =RFM_ORAB!G136 -> 1220.516407 | H218: =RFM_ORAB!H136 -> 1349.064419 | I218: =RFM_ORAB!I136 -> 1438.436882 | J218: =RFM_ORAB!J136 -> 1527.369424 | K218: =RFM_ORAB!K136 -> 1617.871061 | L218: =RFM_ORAB!L136 -> 1749.724507 | M218: =RFM_ORAB!M136 -> 1869.026349 | N218: =RFM_ORAB!N136 -> 2032.108949 | O218: =RFM_ORAB!O136 -> 2111.418018 | P218: =RFM_ORAB!P136 -> 2009.951073 | Q218: =RFM_ORAB!Q136 -> 1990.307384 | R218: =RFM_ORAB!R136 -> 1929.674773 | S218: =RFM_ORAB!S136 -> 1892.0903 | T218: =RFM_ORAB!T136 -> 1840.257313 | U218: =RFM_ORAB!U136 -> 1794.527756 | V218: =RFM_ORAB!V136 -> 1749.86768 | W218: =RFM_ORAB!W136 -> 1663.893844 | X218: =RFM_ORAB!X136 -> 1569.108525 | Y218: =RFM_ORAB!Y136 -> 1484.879053 | Z218: =RFM_ORAB!Z136 -> 1397.906658 | AA218: =RFM_ORAB!AA136 -> 1312.475407 | AB218: =RFM_ORAB!AB136 -> 1211.650157 | AC218: =RFM_ORAB!AC136 -> 1121.437515 | AD218: =RFM_ORAB!AD136 -> 1028.708359 | AE218: =RFM_ORAB!AE136 -> 917.258284 | AF218: =RFM_ORAB!AF136 -> 812.9616478 | AG218: =RFM_ORAB!AG136 -> 689.3410076 | AH218: =RFM_ORAB!AH136 -> 561.4022024 | AI218: =RFM_ORAB!AI136 -> 424.2436478 | AJ218: =RFM_ORAB!AJ136 -> 356.3400752 | AK218: =RFM_ORAB!AK136 -> 292.7019508 | AL218: =RFM_ORAB!AL136 -> 231.366996 | AM218: =RFM_ORAB!AM136 -> 180.1180694 | AN218: =RFM_ORAB!AN136 -> 133.4904128 | AO218: =RFM_ORAB!AO136 -> 89.33835135 | AP218: =RFM_ORAB!AP136 -> 53.97697651 | AQ218: =RFM_ORAB!AQ136 -> 27.25669088 | AR218: =RFM_ORAB!AR136 -> 9.354190978 | AS218: =RFM_ORAB!AS136 -> 4.167409371e-15 | AT218: =RFM_ORAB!AT136 -> 4.255776747e-15 | AU218: =RFM_ORAB!AU136 -> 4.357173708e-15 | AV218: =RFM_ORAB!AV136 -> 4.473313835e-15 | AW218: =RFM_ORAB!AW136 -> 4.592960093e-15 | AX218: =RFM_ORAB!AX136 -> 4.754231698e-15 | AY218: =RFM_ORAB!AY136 -> 4.843312626e-15 | AZ218: =RFM_ORAB!AZ136 -> 4.997461562e-15 | BA218: =RFM_ORAB!BA136 -> 4.991938999e-15 | BB218: =RFM_ORAB!BB136 -> 5.153799575e-15
A219: Capex (RFM) | B219: Nominal | D219: =RFM_NomCapex!D136 -> 1024.695077 | E219: =RFM_NomCapex!E136 -> 105.1263939 | F219: =RFM_NomCapex!F136 -> 109.4896574 | G219: =RFM_NomCapex!G136 -> 113.584894 | H219: =RFM_NomCapex!H136 -> 114.0608849 | I219: =RFM_NomCapex!I136 -> 116.246961 | J219: =RFM_NomCapex!J136 -> 121.3793136 | K219: =RFM_NomCapex!K136 -> 127.0177741 | L219: =RFM_NomCapex!L136 -> 133.6756132 | M219: =RFM_NomCapex!M136 -> 137.4492498 | N219: =RFM_NomCapex!N136 -> 134.1623481 | O219: =RFM_NomCapex!O136 -> 0 | P219: =RFM_NomCapex!P136 -> 0 | Q219: =RFM_NomCapex!Q136 -> 0 | R219: =RFM_NomCapex!R136 -> 0 | S219: =RFM_NomCapex!S136 -> 0 | T219: =RFM_NomCapex!T136 -> 0 | U219: =RFM_NomCapex!U136 -> 0 | V219: =RFM_NomCapex!V136 -> 0 | W219: =RFM_NomCapex!W136 -> 0 | X219: =RFM_NomCapex!X136 -> 0 | Y219: =RFM_NomCapex!Y136 -> 0 | Z219: =RFM_NomCapex!Z136 -> 0 | AA219: =RFM_NomCapex!AA136 -> 0 | AB219: =RFM_NomCapex!AB136 -> 0 | AC219: =RFM_NomCapex!AC136 -> 0 | AD219: =RFM_NomCapex!AD136 -> 0 | AE219: =RFM_NomCapex!AE136 -> 0 | AF219: =RFM_NomCapex!AF136 -> 0 | AG219: =RFM_NomCapex!AG136 -> 0 | AH219: =RFM_NomCapex!AH136 -> 0 | AI219: =RFM_NomCapex!AI136 -> 0 | AJ219: =RFM_NomCapex!AJ136 -> 0 | AK219: =RFM_NomCapex!AK136 -> 0 | AL219: =RFM_NomCapex!AL136 -> 0 | AM219: =RFM_NomCapex!AM136 -> 0 | AN219: =RFM_NomCapex!AN136 -> 0 | AO219: =RFM_NomCapex!AO136 -> 0 | AP219: =RFM_NomCapex!AP136 -> 0 | AQ219: =RFM_NomCapex!AQ136 -> 0 | AR219: =RFM_NomCapex!AR136 -> 0 | AS219: =RFM_NomCapex!AS136 -> 0 | AT219: =RFM_NomCapex!AT136 -> 0 | AU219: =RFM_NomCapex!AU136 -> 0 | AV219: =RFM_NomCapex!AV136 -> 0 | AW219: =RFM_NomCapex!AW136 -> 0 | AX219: =RFM_NomCapex!AX136 -> 0 | AY219: =RFM_NomCapex!AY136 -> 0 | AZ219: =RFM_NomCapex!AZ136 -> 0 | BA219: =RFM_NomCapex!BA136 -> 0 | BB219: =RFM_NomCapex!BB136 -> 0
A220: Reg Depreciation (RFM) | B220: Nominal | E220: =RFM_NomSLDepn!E136-RFM_IndexRAB!E136 -> 6.998078435 | F220: =RFM_NomSLDepn!F136-RFM_IndexRAB!F136 -> 25.79724699 | G220: =RFM_NomSLDepn!G136-RFM_IndexRAB!G136 -> -14.96311853 | H220: =RFM_NomSLDepn!H136-RFM_IndexRAB!H136 -> 24.68842226 | I220: =RFM_NomSLDepn!I136-RFM_IndexRAB!I136 -> 27.31441933 | J220: =RFM_NomSLDepn!J136-RFM_IndexRAB!J136 -> 30.87767632 | K220: =RFM_NomSLDepn!K136-RFM_IndexRAB!K136 -> -4.835671872 | L220: =RFM_NomSLDepn!L136-RFM_IndexRAB!L136 -> 14.37377048 | M220: =RFM_NomSLDepn!M136-RFM_IndexRAB!M136 -> -25.63334927 | N220: =RFM_NomSLDepn!N136-RFM_IndexRAB!N136 -> 54.85327869 | O220: =RFM_NomSLDepn!O136-RFM_IndexRAB!O136 -> 101.4669447 | P220: =RFM_NomSLDepn!P136-RFM_IndexRAB!P136 -> 19.64368966 | Q220: =RFM_NomSLDepn!Q136-RFM_IndexRAB!Q136 -> 60.6326111 | R220: =RFM_NomSLDepn!R136-RFM_IndexRAB!R136 -> 37.58447282 | S220: =RFM_NomSLDepn!S136-RFM_IndexRAB!S136 -> 51.83298649 | T220: =RFM_NomSLDepn!T136-RFM_IndexRAB!T136 -> 45.72955748 | U220: =RFM_NomSLDepn!U136-RFM_IndexRAB!U136 -> 44.66007618 | V220: =RFM_NomSLDepn!V136-RFM_IndexRAB!V136 -> 85.97383537 | W220: =RFM_NomSLDepn!W136-RFM_IndexRAB!W136 -> 94.78531912 | X220: =RFM_NomSLDepn!X136-RFM_IndexRAB!X136 -> 84.22947249 | Y220: =RFM_NomSLDepn!Y136-RFM_IndexRAB!Y136 -> 86.97239458 | Z220: =RFM_NomSLDepn!Z136-RFM_IndexRAB!Z136 -> 85.43125074 | AA220: =RFM_NomSLDepn!AA136-RFM_IndexRAB!AA136 -> 100.8252504 | AB220: =RFM_NomSLDepn!AB136-RFM_IndexRAB!AB136 -> 90.21264205 | AC220: =RFM_NomSLDepn!AC136-RFM_IndexRAB!AC136 -> 92.72915541 | AD220: =RFM_NomSLDepn!AD136-RFM_IndexRAB!AD136 -> 111.4500755 | AE220: =RFM_NomSLDepn!AE136-RFM_IndexRAB!AE136 -> 104.2966361 | AF220: =RFM_NomSLDepn!AF136-RFM_IndexRAB!AF136 -> 123.6206402 | AG220: =RFM_NomSLDepn!AG136-RFM_IndexRAB!AG136 -> 127.9388052 | AH220: =RFM_NomSLDepn!AH136-RFM_IndexRAB!AH136 -> 137.1585546 | AI220: =RFM_NomSLDepn!AI136-RFM_IndexRAB!AI136 -> 67.90357261 | AJ220: =RFM_NomSLDepn!AJ136-RFM_IndexRAB!AJ136 -> 63.63812438 | AK220: =RFM_NomSLDepn!AK136-RFM_IndexRAB!AK136 -> 61.33495473 | AL220: =RFM_NomSLDepn!AL136-RFM_IndexRAB!AL136 -> 51.24892665 | AM220: =RFM_NomSLDepn!AM136-RFM_IndexRAB!AM136 -> 46.62765655 | AN220: =RFM_NomSLDepn!AN136-RFM_IndexRAB!AN136 -> 44.15206149 | AO220: =RFM_NomSLDepn!AO136-RFM_IndexRAB!AO136 -> 35.36137484 | AP220: =RFM_NomSLDepn!AP136-RFM_IndexRAB!AP136 -> 26.72028563 | AQ220: =RFM_NomSLDepn!AQ136-RFM_IndexRAB!AQ136 -> 17.9024999 | AR220: =RFM_NomSLDepn!AR136-RFM_IndexRAB!AR136 -> 9.354190978 | AS220: =RFM_NomSLDepn!AS136-RFM_IndexRAB!AS136 -> -8.836737606e-17 | AT220: =RFM_NomSLDepn!AT136-RFM_IndexRAB!AT136 -> -1.013969608e-16 | AU220: =RFM_NomSLDepn!AU136-RFM_IndexRAB!AU136 -> -1.161401267e-16 | AV220: =RFM_NomSLDepn!AV136-RFM_IndexRAB!AV136 -> -1.196462589e-16 | AW220: =RFM_NomSLDepn!AW136-RFM_IndexRAB!AW136 -> -1.612716045e-16 | AX220: =RFM_NomSLDepn!AX136-RFM_IndexRAB!AX136 -> -8.908092801e-17 | AY220: =RFM_NomSLDepn!AY136-RFM_IndexRAB!AY136 -> -1.541489357e-16 | AZ220: =RFM_NomSLDepn!AZ136-RFM_IndexRAB!AZ136 -> 5.522562233e-18 | BA220: =RFM_NomSLDepn!BA136-RFM_IndexRAB!BA136 -> -1.61860575e-16 | BB220: =RFM_NomSLDepn!BB136-RFM_IndexRAB!BB136 -> -1.184138428e-16
A221: Closing RAB (RFM) | B221: Nominal | D221: =RFM_ORAB!E136 -> 1038.695681 | E221: =RFM_ORAB!F136 -> 1136.823996 | F221: =RFM_ORAB!G136 -> 1220.516407 | G221: =RFM_ORAB!H136 -> 1349.064419 | H221: =RFM_ORAB!I136 -> 1438.436882 | I221: ='PTRM-RFM_Rollover'!I136 -> 1527.369424 | J221: =RFM_ORAB!K136 -> 1617.871061 | K221: =RFM_ORAB!L136 -> 1749.724507 | L221: =RFM_ORAB!M136 -> 1869.026349 | M221: =RFM_ORAB!N136 -> 2032.108949 | N221: ='PTRM-RFM_Rollover'!N136 -> 2111.418018 | O221: =RFM_ORAB!P136 -> 2009.951073 | P221: =RFM_ORAB!Q136 -> 1990.307384 | Q221: =RFM_ORAB!R136 -> 1929.674773 | R221: =RFM_ORAB!S136 -> 1892.0903 | S221: ='PTRM-RFM_Rollover'!S136 -> 1840.257313 | T221: =RFM_ORAB!U136 -> 1794.527756 | U221: =RFM_ORAB!V136 -> 1749.86768 | V221: =RFM_ORAB!W136 -> 1663.893844 | W221: =RFM_ORAB!X136 -> 1569.108525 | X221: ='PTRM-RFM_Rollover'!X136 -> 1484.879053 | Y221: =RFM_ORAB!Z136 -> 1397.906658 | Z221: =RFM_ORAB!AA136 -> 1312.475407 | AA221: =RFM_ORAB!AB136 -> 1211.650157 | AB221: =RFM_ORAB!AC136 -> 1121.437515 | AC221: ='PTRM-RFM_Rollover'!AC136 -> 1028.708359 | AD221: =RFM_ORAB!AE136 -> 917.258284 | AE221: =RFM_ORAB!AF136 -> 812.9616478 | AF221: =RFM_ORAB!AG136 -> 689.3410076 | AG221: =RFM_ORAB!AH136 -> 561.4022024 | AH221: ='PTRM-RFM_Rollover'!AH136 -> 424.2436478 | AI221: =RFM_ORAB!AJ136 -> 356.3400752 | AJ221: =RFM_ORAB!AK136 -> 292.7019508 | AK221: =RFM_ORAB!AL136 -> 231.366996 | AL221: =RFM_ORAB!AM136 -> 180.1180694 | AM221: ='PTRM-RFM_Rollover'!AM136 -> 133.4904128 | AN221: =RFM_ORAB!AO136 -> 89.33835135 | AO221: =RFM_ORAB!AP136 -> 53.97697651 | AP221: =RFM_ORAB!AQ136 -> 27.25669088 | AQ221: =RFM_ORAB!AR136 -> 9.354190978 | AR221: ='PTRM-RFM_Rollover'!AR136 -> 4.167409371e-15 | AS221: =RFM_ORAB!AT136 -> 4.255776747e-15 | AT221: =RFM_ORAB!AU136 -> 4.357173708e-15 | AU221: =RFM_ORAB!AV136 -> 4.473313835e-15 | AV221: =RFM_ORAB!AW136 -> 4.592960093e-15 | AW221: ='PTRM-RFM_Rollover'!AW136 -> 4.754231698e-15 | AX221: =RFM_ORAB!AY136 -> 4.843312626e-15 | AY221: =RFM_ORAB!AZ136 -> 4.997461562e-15 | AZ221: =RFM_ORAB!BA136 -> 4.991938999e-15 | BA221: =RFM_ORAB!BB136 -> 5.153799575e-15 | BB221: ='PTRM-RFM_Rollover'!BB136 -> 5.272213417e-15
A223: Cash Flow | B223: Nominal | D223: =D217-(Capex_00_Amt_Nom_EY*(1+Real_WACC)^0.5) -> -1038.695681 | E223: =E217-(Capex_01_Amt_Nom_EY*(1+Real_WACC)^0.5) -> -15.5224929 | F223: =F217-(Capex_02_Amt_Nom_EY*(1+Real_WACC)^0.5) -> -14.47886922 | G223: =G217-(Capex_03_Amt_Nom_EY*(1+Real_WACC)^0.5) -> -2.653953284 | H223: =H217-(Capex_04_Amt_Nom_EY*(1+Real_WACC)^0.5) -> 4.496770107 | I223: =I217-(Capex_05_Amt_Nom_EY*(1+Real_WACC)^0.5) -> 11.82213648 | J223: =J217-(Capex_06_Amt_Nom_EY*(1+Real_WACC)^0.5) -> 15.97668452 | K223: =K217-(Capex_07_Amt_Nom_EY*(1+Real_WACC)^0.5) -> 25.98818759 | L223: =L217-(Capex_08_Amt_Nom_EY*(1+Real_WACC)^0.5) -> 29.62616813 | M223: =M217-(Capex_09_Amt_Nom_EY*(1+Real_WACC)^0.5) -> 47.30214065 | N223: =N217-(Capex_10_Amt_Nom_EY*(1+Real_WACC)^0.5) -> 59.5895436 | O223: =O217 -> 203.5063535 | P223: =P217 -> 206.2880131 | Q223: =Q217 -> 205.0972811 | R223: =R217 -> 206.6297157 | S223: =S217 -> 206.9506141 | T223: =T217 -> 200.6802333 | U223: 202.5974404 | V223: 200.1065196 | W223: 196.7688145 | X223: 195.0317664 | Y223: 195.4113651 | Z223: 194.4123891 | AA223: 191.6524499 | AB223: 191.2271446 | AC223: 191.3914675 | AD223: 189.0994084 | AE223: 189.6543549 | AF223: 187.3919666 | AG223: 185.7999989 | AH223: 183.7232852 | AI223: 100.7468719 | AJ223: 91.43649365 | AK223: 80.8649072 | AL223: 71.94746451 | AM223: 62.83938999 | AN223: 52.69485463 | AO223: 41.70561063 | AP223: 31.13835918 | AQ223: 20.84269395 | AR223: 10.14210955 | AS223: 2.135621186e-16 | AT223: 2.186503906e-16 | AU223: 2.244784998e-16 | AV223: 2.304825526e-16 | AW223: 2.385754361e-16 | AX223: 2.431487656e-16 | AY223: 2.508875028e-16 | AZ223: 2.506102537e-16 | BA223: 2.587361382e-16 | BB223: 2.646808669e-16
A224: Cash Flow | B224: Real | D224: =D223/D213 -> -1038.695681 | E224: -15.33691561 | F224: -13.63226183 | G224: -2.452669266 | H224: 4.077578941 | I224: 10.52037017 | J224: 13.61507229 | K224: 21.42431895 | L224: 23.08974187 | M224: 36.26826579 | N224: 45.88628074 | O224: 150.9785218 | P224: 150.2437699 | Q224: 144.6302345 | R224: 141.8249583 | S224: 137.4585554 | T224: 128.5348091 | U224: 127.8031654 | V224: 124.7822203 | W224: 120.2313462 | X224: 116.6562644 | Y224: 113.8966458 | Z224: 111.3258732 | AA224: 106.4126712 | AB224: 102.5194992 | AC224: 100.2268673 | AD224: 95.17875971 | AE224: 92.99896956 | AF224: 89.07784003 | AG224: 85.710594 | AH224: 82.55638452 | AI224: 44.07166186 | AJ224: 39.34961356 | AK224: 33.51881751 | AL224: 28.70795057 | AM224: 24.88776632 | AN224: 20.60041715 | AO224: 15.95686103 | AP224: 11.41418434 | AQ224: 7.516060663 | AR224: 3.581393569 | AS224: 7.36583414e-17 | AT224: 7.345535783e-17 | AU224: 7.344879387e-17 | AV224: 7.285515746e-17 | AW224: 7.40262608e-17 | AX224: 7.311815025e-17 | AY224: 7.55287589e-17 | AZ224: 7.307585411e-17 | BA224: 7.375079378e-17 | BB224: 7.376842533e-17
A225: NPV end period | I225: =NPV(Real_WACC,$E224:I224)+$D224+I221/I213/POWER(1+Real_WACC,I$3) -> 8.770196125 | N225: =NPV(Real_WACC,$E224:N224)+$D224+N221/N213/POWER(1+Real_WACC,N$3) -> 34.52042037 | S225: =NPV(Real_WACC,$E224:S224)+$D224+S221/S213/POWER(1+Real_WACC,S$3) -> 10.71658281 | X225: =NPV(Real_WACC,$E224:X224)+$D224+X221/X213/POWER(1+Real_WACC,X$3) -> 15.54079993 | AC225: =NPV(Real_WACC,$E224:AC224)+$D224+AC221/AC213/POWER(1+Real_WACC,AC$3) -> 14.85202681 | AH225: =NPV(Real_WACC,$E224:AH224)+$D224+AH221/AH213/POWER(1+Real_WACC,AH$3) -> 14.20417164 | AM225: =NPV(Real_WACC,$E224:AM224)+$D224+AM221/AM213/POWER(1+Real_WACC,AM$3) -> 14.32617521 | AR225: =NPV(Real_WACC,$E224:AR224)+$D224+AR221/AR213/POWER(1+Real_WACC,AR$3) -> 14.33941469 | AW225: =NPV(Real_WACC,$E224:AW224)+$D224+AW221/AW213/POWER(1+Real_WACC,AW$3) -> 14.33941469 | BB225: =NPV(Real_WACC,$E224:BB224)+$D224+BB221/BB213/POWER(1+Real_WACC,BB$3) -> 14.33941469
A226: NPV overall | D226: =NPV(Real_WACC,E224:BB224)+D224 -> 14.33941469
A227: NPV change this period (% of MAR) | I227: =IFERROR((I225-D225)/ROUND(SUM(E216/E213,F216/F213,G216/G213,H216/H213,I216/I213),6),0) -> 0.01746002223 | N227: =IFERROR((N225-I225)/ROUND(SUM(J216/J213,K216/K213,L216/L213,M216/M213,N216/N213),6),0) -> 0.04007426995 | S227: =IFERROR((S225-N225)/ROUND(SUM(O216/O213,P216/P213,Q216/Q213,R216/R213,S216/S213),6),0) -> -0.03309184992 | X227: =IFERROR((X225-S225)/ROUND(SUM(T216/T213,U216/U213,V216/V213,W216/W213,X216/X213),6),0) -> 0.007781192951 | AC227: =IFERROR((AC225-X225)/ROUND(SUM(Y216/Y213,Z216/Z213,AA216/AA213,AB216/AB213,AC216/AC213),6),0) -> -0.001291160155 | AH227: =IFERROR((AH225-AC225)/ROUND(SUM(AD216/AD213,AE216/AE213,AF216/AF213,AG216/AG213,AH216/AH213),6),0) -> -0.001472571748 | AM227: =IFERROR((AM225-AH225)/ROUND(SUM(AI216/AI213,AJ216/AJ213,AK216/AK213,AL216/AL213,AM216/AM213),6),0) -> 0.0007185216802 | AR227: =IFERROR((AR225-AM225)/ROUND(SUM(AN216/AN213,AO216/AO213,AP216/AP213,AQ216/AQ213,AR216/AR213),6),0) -> 0.0002232514357 | AW227: =IFERROR((AW225-AR225)/ROUND(SUM(AS216/AS213,AT216/AT213,AU216/AU213,AV216/AV213,AW216/AW213),6),0) -> 0 | BB227: =IFERROR((BB225-AW225)/ROUND(SUM(AX216/AX213,AY216/AY213,AZ216/AZ213,BA216/BA213,BB216/BB213),6),0) -> 0
I228: =(I225-D225)/(I221/I213) -> 0.006452531904 | N228: =(N225-I225)/(N221/N213) -> 0.0158377686 | S228: =(S225-N225)/(S221/S213) -> -0.01947436788
A230: Debt | E230: =$C$4*D221 -> 623.2174085 | F230: 682.0943978 | G230: 732.3098441 | H230: 809.4386516 | I230: 863.0621291 | J230: 916.4216541 | K230: 970.7226365 | L230: 1049.834704 | M230: 1121.41581 | N230: 1219.265369 | O230: 1266.850811 | P230: 1205.970644 | Q230: 1194.18443 | R230: 1157.804864 | S230: 1135.25418 | T230: 1104.154388 | U230: 1076.716653 | V230: 1049.920608 | W230: 998.3363065 | X230: 941.465115 | Y230: 890.9274315 | Z230: 838.7439948 | AA230: 787.4852443 | AB230: 726.9900941 | AC230: 672.8625089 | AD230: 617.2250157 | AE230: 550.3549704 | AF230: 487.7769887 | AG230: 413.6046046 | AH230: 336.8413214 | AI230: 254.5461887 | AJ230: 213.8040451 | AK230: =$C$4*AJ221 -> 175.6211705 | AL230: 138.8201976 | AM230: 108.0708416 | AN230: 80.0942477 | AO230: 53.60301081 | AP230: 32.38618591 | AQ230: 16.35401453 | AR230: 5.612514587 | AS230: 2.500445623e-15 | AT230: 2.553466048e-15 | AU230: 2.614304225e-15 | AV230: 2.683988301e-15 | AW230: 2.755776056e-15 | AX230: 2.852539019e-15 | AY230: 2.905987576e-15 | AZ230: 2.998476937e-15 | BA230: 2.9951634e-15 | BB230: 3.092279745e-15
A231: Incremental debt raised | D231: =E230-D230 -> 623.2174085 | E231: =F230-E230 -> 58.8769893 | F231: =G230-F230 -> 50.21544626 | G231: =H230-G230 -> 77.1288075 | H231: =I230-H230 -> 53.62347756 | I231: =J230-I230 -> 53.35952501 | J231: =K230-J230 -> 54.30098237 | K231: =L230-K230 -> 79.11206756 | L231: =M230-L230 -> 71.58110561 | M231: =N230-M230 -> 97.84955942 | N231: =O230-N230 -> 47.58544167 | O231: =P230-O230 -> -60.88016682 | P231: =Q230-P230 -> -11.7862138 | Q231: =R230-Q230 -> -36.37956666 | R231: =S230-R230 -> -22.55068369 | S231: =T230-S230 -> -31.09979189 | T231: =U230-T230 -> -27.43773449 | U231: =V230-U230 -> -26.79604571 | V231: =W230-V230 -> -51.58430122 | W231: =X230-W230 -> -56.87119147 | X231: =Y230-X230 -> -50.53768349 | Y231: =Z230-Y230 -> -52.18343675 | Z231: =AA230-Z230 -> -51.25875045 | AA231: =AB230-AA230 -> -60.49515022 | AB231: =AC230-AB230 -> -54.12758523 | AC231: =AD230-AC230 -> -55.63749324 | AD231: =AE230-AD230 -> -66.87004528 | AE231: =AF230-AE230 -> -62.57798169 | AF231: =AG230-AF230 -> -74.17238414 | AG231: =AH230-AG230 -> -76.76328311 | AH231: =AI230-AH230 -> -82.29513279 | AI231: =AJ230-AI230 -> -40.74214357 | AJ231: =AK230-AJ230 -> -38.18287463 | AK231: =AL230-AK230 -> -36.80097284 | AL231: =AM230-AL230 -> -30.74935599 | AM231: =AN230-AM230 -> -27.97659393 | AN231: =AO230-AN230 -> -26.49123689 | AO231: =AP230-AO230 -> -21.2168249 | AP231: =AQ230-AP230 -> -16.03217138 | AQ231: =AR230-AQ230 -> -10.74149994 | AR231: =AS230-AR230 -> -5.612514587 | AS231: =AT230-AS230 -> 5.302042564e-17 | AT231: =AU230-AT230 -> 6.083817645e-17 | AU231: =AV230-AU230 -> 6.968407603e-17 | AV231: =AW230-AV230 -> 7.178775534e-17 | AW231: =AX230-AW230 -> 9.676296273e-17 | AX231: =AY230-AX230 -> 5.34485568e-17 | AY231: =AZ230-AY230 -> 9.248936142e-17 | AZ231: =BA230-AZ230 -> -3.31353734e-18 | BA231: =BB230-BA230 -> 9.711634502e-17 | BB231: =BC230-BB230 -> -3.092279745e-15
A232: Nominal interest cost | E232: =E230*$C$5 -> 34.27695747 | F232: =F230*$C$5 -> 37.51519188 | G232: 40.27704142 | H232: 44.51912584 | I232: 47.4684171 | J232: 50.40319098 | K232: 53.38974501 | L232: 57.74090872 | M232: 61.67786953 | N232: 67.0595953 | O232: 69.67679459 | P232: 66.32838542 | Q232: 65.68014366 | R232: 63.67926749 | S232: 62.43897989 | T232: 60.72849134 | U232: 59.21941594 | V232: 57.74563343 | W232: 54.90849686 | X232: 51.78058133 | Y232: 49.00100873 | Z232: 46.13091971 | AA232: 43.31168844 | AB232: 39.98445518 | AC232: 37.00743799 | AD232: 33.94737586 | AE232: 30.26952337 | AF232: 26.82773438 | AG232: 22.74825325 | AH232: 18.52627268 | AI232: 14.00004038 | AJ232: 11.75922248 | AK232: 9.659164376 | AL232: 7.635110869 | AM232: 5.94389629 | AN232: 4.405183624 | AO232: 2.948165595 | AP232: 1.781240225 | AQ232: 0.8994707991 | AR232: 0.3086883023 | AS232: 1.375245092e-16 | AT232: 1.404406327e-16 | AU232: 1.437867324e-16 | AV232: 1.476193565e-16 | AW232: 1.515676831e-16 | AX232: 1.56889646e-16 | AY232: 1.598293167e-16 | AZ232: 1.649162315e-16 | BA232: 1.64733987e-16 | BB232: 1.70075386e-16
A234: Total cash flow to equity | D234: =D223+D231-D232 -> -415.4782723 | E234: =E223+E231-E232 -> 9.077538937 | F234: -1.778614836 | G234: 34.19781279 | H234: 13.60112183 | I234: 17.71324439 | J234: 19.87447591 | K234: 51.71051014 | L234: 43.46636502 | M234: 83.47383054 | N234: 40.11538997 | O234: 72.9493921 | P234: 128.1734138 | Q234: 103.0375708 | R234: 120.3997646 | S234: 113.4118423 | T234: 112.5140075 | U234: 116.5819788 | V234: 90.77658492 | W234: 84.98912617 | X234: 92.71350155 | Y234: 94.22691958 | Z234: 97.02271894 | AA234: 87.84561125 | AB234: 97.11510418 | AC234: 98.74653622 | AD234: 88.28198723 | AE234: 96.80684984 | AF234: 86.39184804 | AG234: 86.28846255 | AH234: 82.90187973 | AI234: 46.00468798 | AJ234: 41.49439654 | AK234: 34.40476998 | AL234: 33.56299765 | AM234: 28.91889977 | AN234: 21.79843411 | AO234: 17.54062013 | AP234: 13.32494758 | AQ234: 9.201723204 | AR234: 4.220906666 | AS234: 1.29058035e-16 | AT234: 1.390479344e-16 | AU234: 1.503758434e-16 | AV234: 1.546509514e-16 | AW234: 1.837707158e-16 | AX234: 1.397076764e-16 | AY234: 1.835475476e-16 | AZ234: 8.23804848e-17 | BA234: 1.911184962e-16 | BB234: -2.997674264e-15
A235: Total cash flow to debt holders | D235: =-D231+D232 -> -623.2174085 | E235: =-E231+E232 -> -24.60003183 | F235: -12.70025438 | G235: -36.85176607 | H235: -9.104351724 | I235: -5.891107912 | J235: -3.897791394 | K235: -25.72232255 | L235: -13.84019689 | M235: -36.17168989 | N235: 19.47415363 | O235: 130.5569614 | P235: 78.11459922 | Q235: 102.0597103 | R235: 86.22995119 | S235: 93.53877178 | T235: 88.16622582 | U235: 86.01546165 | V235: 109.3299346 | W235: 111.7796883 | X235: 102.3182648 | Y235: 101.1844455 | Z235: 97.38967016 | AA235: 103.8068387 | AB235: 94.11204041 | AC235: 92.64493123 | AD235: 100.8174211 | AE235: 92.84750506 | AF235: 101.0001185 | AG235: 99.51153636 | AH235: 100.8214055 | AI235: 54.74218394 | AJ235: 49.94209711 | AK235: 46.46013721 | AL235: 38.38446686 | AM235: 33.92049022 | AN235: 30.89642052 | AO235: 24.1649905 | AP235: 17.8134116 | AQ235: 11.64097074 | AR235: 5.921202889 | AS235: 8.450408361e-17 | AT235: 7.96024562e-17 | AU235: 7.410265632e-17 | AV235: 7.58316012e-17 | AW235: 5.480472036e-17 | AX235: 1.034410892e-16 | AY235: 6.733995524e-17 | AZ235: 1.682297689e-16 | BA235: 6.761764196e-17 | BB235: 3.262355131e-15
A236: Real cash flow to equity | D236: =D234/D213 -> -415.4782723 | E236: =E234/E213 -> 8.969013521 | F236: -1.674615799 | G236: 31.60414499 | H236: 12.33321843 | I236: 15.76279282 | J236: 16.93670711 | K236: 42.62946227 | L236: 33.87637388 | M236: 64.00241153 | N236: 30.89042028 | O236: 54.12013529 | P236: 93.35131309 | Q236: 72.65990041 | R236: 82.63908955 | S236: 75.32921839 | T236: 72.06472824 | U236: 73.54261676 | V236: 56.60637065 | W236: 51.93077509 | X236: 55.45563656 | Y236: 54.92070578 | Z236: 55.55787344 | AA236: 48.77519775 | AB236: 52.06474148 | AC236: 51.71106172 | AD236: 44.43467128 | AE236: 47.47023756 | AF236: 41.06685768 | AG236: 39.8053575 | AH236: 37.2521069 | AI236: 20.12472461 | AJ236: 17.85707658 | AK236: 14.26091053 | AL236: 13.39206161 | AM236: 11.45343422 | AN236: 8.52183461 | AO236: 6.711165084 | AP236: 4.884438744 | AQ236: 3.318223162 | AR236: 1.490491491 | AS236: 4.451257959e-17 | AT236: 4.671300037e-17 | AU236: 4.92025933e-17 | AV236: 4.88849125e-17 | AW236: 5.702120534e-17 | AX236: 4.201200384e-17 | AY236: 5.525631333e-17 | AZ236: 2.402146042e-17 | BA236: 5.447689256e-17 | BB236: -8.354729704e-16
... 34 more rows

Sheet Summary
A1: Summary of results
A3: Current inflation scenario | B3: =Inputs!B42 -> 10
A6: Year | D6: 0 | E6: 1 | F6: 2 | G6: 3 | H6: 4 | I6: 5 | J6: 6 | K6: 7 | L6: 8 | M6: 9 | N6: 10 | O6: 11 | P6: 12 | Q6: 13 | R6: 14 | S6: 15 | T6: 16 | U6: 17 | V6: 18 | W6: 19 | X6: 20 | Y6: 21 | Z6: 22 | AA6: 23 | AB6: 24 | AC6: 25 | AD6: 26 | AE6: 27 | AF6: 28 | AG6: 29 | AH6: 30 | AI6: 31 | AJ6: 32 | AK6: 33 | AL6: 34 | AM6: 35 | AN6: 36 | AO6: 37 | AP6: 38 | AQ6: 39 | AR6: 40 | AS6: 41 | AT6: 42 | AU6: 43 | AV6: 44 | AW6: 45 | AX6: 46 | AY6: 47 | AZ6: 48 | BA6: 49 | BB6: 50
A7: Capex Amount | D7: =Inputs!D21 -> 1000 | E7: =Inputs!E21 -> 100 | F7: =Inputs!F21 -> 100 | G7: =Inputs!G21 -> 100 | H7: =Inputs!H21 -> 100 | I7: =Inputs!I21 -> 100 | J7: =Inputs!J21 -> 100 | K7: =Inputs!K21 -> 100 | L7: =Inputs!L21 -> 100 | M7: =Inputs!M21 -> 100 | N7: =Inputs!N21 -> 100
A8: Capex Life | D8: =Inputs!D22 -> 30 | E8: =Inputs!E22 -> 30 | F8: =Inputs!F22 -> 30 | G8: =Inputs!G22 -> 30 | H8: =Inputs!H22 -> 30 | I8: =Inputs!I22 -> 30 | J8: =Inputs!J22 -> 30 | K8: =Inputs!K22 -> 30 | L8: =Inputs!L22 -> 30 | M8: =Inputs!M22 -> 30 | N8: =Inputs!N22 -> 30
A21: Inflation forecast | E21: =INDEX(Inputs!E$59:E$68,Inputs!$B$42) -> 0.02604593858 | F21: =INDEX(Inputs!F$59:F$68,Inputs!$B$42) -> 0.02604593858 | G21: =INDEX(Inputs!G$59:G$68,Inputs!$B$42) -> 0.02604593858 | H21: =INDEX(Inputs!H$59:H$68,Inputs!$B$42) -> 0.02604593858 | I21: =INDEX(Inputs!I$59:I$68,Inputs!$B$42) -> 0.02604593858 | J21: =INDEX(Inputs!J$59:J$68,Inputs!$B$42) -> 0.02758581278 | K21: =INDEX(Inputs!K$59:K$68,Inputs!$B$42) -> 0.02758581278 | L21: =INDEX(Inputs!L$59:L$68,Inputs!$B$42) -> 0.02758581278 | M21: =INDEX(Inputs!M$59:M$68,Inputs!$B$42) -> 0.02758581278 | N21: =INDEX(Inputs!N$59:N$68,Inputs!$B$42) -> 0.02758581278 | O21: =INDEX(Inputs!O$59:O$68,Inputs!$B$42) -> 0.02584353599 | P21: =INDEX(Inputs!P$59:P$68,Inputs!$B$42) -> 0.02584353599 | Q21: =INDEX(Inputs!Q$59:Q$68,Inputs!$B$42) -> 0.02584353599 | R21: =INDEX(Inputs!R$59:R$68,Inputs!$B$42) -> 0.02584353599 | S21: =INDEX(Inputs!S$59:S$68,Inputs!$B$42) -> 0.02584353599 | T21: =INDEX(Inputs!T$59:T$68,Inputs!$B$42) -> 0.02551139214 | U21: =INDEX(Inputs!U$59:U$68,Inputs!$B$42) -> 0.02551139214 | V21: =INDEX(Inputs!V$59:V$68,Inputs!$B$42) -> 0.02551139214 | W21: =INDEX(Inputs!W$59:W$68,Inputs!$B$42) -> 0.02551139214 | X21: =INDEX(Inputs!X$59:X$68,Inputs!$B$42) -> 0.02551139214 | Y21: =INDEX(Inputs!Y$59:Y$68,Inputs!$B$42) -> 0.02469001404 | Z21: =INDEX(Inputs!Z$59:Z$68,Inputs!$B$42) -> 0.02469001404 | AA21: =INDEX(Inputs!AA$59:AA$68,Inputs!$B$42) -> 0.02469001404 | AB21: =INDEX(Inputs!AB$59:AB$68,Inputs!$B$42) -> 0.02469001404 | AC21: =INDEX(Inputs!AC$59:AC$68,Inputs!$B$42) -> 0.02469001404 | AD21: =INDEX(Inputs!AD$59:AD$68,Inputs!$B$42) -> 0.02677693849 | AE21: =INDEX(Inputs!AE$59:AE$68,Inputs!$B$42) -> 0.02677693849 | AF21: =INDEX(Inputs!AF$59:AF$68,Inputs!$B$42) -> 0.02677693849 | AG21: =INDEX(Inputs!AG$59:AG$68,Inputs!$B$42) -> 0.02677693849 | AH21: =INDEX(Inputs!AH$59:AH$68,Inputs!$B$42) -> 0.02677693849 | AI21: =INDEX(Inputs!AI$59:AI$68,Inputs!$B$42) -> 0.02437436599 | AJ21: =INDEX(Inputs!AJ$59:AJ$68,Inputs!$B$42) -> 0.02437436599 | AK21: =INDEX(Inputs!AK$59:AK$68,Inputs!$B$42) -> 0.02437436599 | AL21: =INDEX(Inputs!AL$59:AL$68,Inputs!$B$42) -> 0.02437436599 | AM21: =INDEX(Inputs!AM$59:AM$68,Inputs!$B$42) -> 0.02437436599 | AN21: =INDEX(Inputs!AN$59:AN$68,Inputs!$B$42) -> 0.02341733587 | AO21: =INDEX(Inputs!AO$59:AO$68,Inputs!$B$42) -> 0.02341733587 | AP21: =INDEX(Inputs!AP$59:AP$68,Inputs!$B$42) -> 0.02341733587 | AQ21: =INDEX(Inputs!AQ$59:AQ$68,Inputs!$B$42) -> 0.02341733587 | AR21: =INDEX(Inputs!AR$59:AR$68,Inputs!$B$42) -> 0.02341733587 | AS21: =INDEX(Inputs!AS$59:AS$68,Inputs!$B$42) -> 0.0249154789 | AT21: =INDEX(Inputs!AT$59:AT$68,Inputs!$B$42) -> 0.0249154789 | AU21: =INDEX(Inputs!AU$59:AU$68,Inputs!$B$42) -> 0.0249154789 | AV21: =INDEX(Inputs!AV$59:AV$68,Inputs!$B$42) -> 0.0249154789 | AW21: =INDEX(Inputs!AW$59:AW$68,Inputs!$B$42) -> 0.0249154789 | AX21: =INDEX(Inputs!AX$59:AX$68,Inputs!$B$42) -> 0.02287301534 | AY21: =INDEX(Inputs!AY$59:AY$68,Inputs!$B$42) -> 0.02287301534 | AZ21: =INDEX(Inputs!AZ$59:AZ$68,Inputs!$B$42) -> 0.02287301534 | BA21: =INDEX(Inputs!BA$59:BA$68,Inputs!$B$42) -> 0.02287301534 | BB21: =INDEX(Inputs!BB$59:BB$68,Inputs!$B$42) -> 0.02287301534
A22: Inflation actual | D22: =INDEX(Inputs!D$46:D$55,Inputs!$B$42) -> 0.02751306421 | E22: =INDEX(Inputs!E$46:E$55,Inputs!$B$42) -> 0.01210003925 | F22: =INDEX(Inputs!F$46:F$55,Inputs!$B$42) -> 0.04940537631 | G22: =INDEX(Inputs!G$46:G$55,Inputs!$B$42) -> 0.01879676772 | H22: =INDEX(Inputs!H$46:H$55,Inputs!$B$42) -> 0.01916387812 | I22: =INDEX(Inputs!I$46:I$55,Inputs!$B$42) -> 0.01898229851 | J22: =INDEX(Inputs!J$46:J$55,Inputs!$B$42) -> 0.04424345176 | K22: =INDEX(Inputs!K$46:K$55,Inputs!$B$42) -> 0.03371843145 | L22: =INDEX(Inputs!L$46:L$55,Inputs!$B$42) -> 0.05776072522 | M22: =INDEX(Inputs!M$46:M$55,Inputs!$B$42) -> 0.01647710241 | N22: =INDEX(Inputs!N$46:N$55,Inputs!$B$42) -> -0.004289250067 | O22: =INDEX(Inputs!O$46:O$55,Inputs!$B$42) -> 0.03794801417 | P22: =INDEX(Inputs!P$46:P$55,Inputs!$B$42) -> 0.01862590575 | Q22: =INDEX(Inputs!Q$46:Q$55,Inputs!$B$42) -> 0.03281679668 | R22: =INDEX(Inputs!R$46:R$55,Inputs!$B$42) -> 0.02739938407 | S22: =INDEX(Inputs!S$46:S$55,Inputs!$B$42) -> 0.03336757525 | T22: =INDEX(Inputs!T$46:T$55,Inputs!$B$42) -> 0.03702421163 | U22: =INDEX(Inputs!U$46:U$55,Inputs!$B$42) -> 0.01533300458 | V22: =INDEX(Inputs!V$46:V$55,Inputs!$B$42) -> 0.01161715552 | W22: =INDEX(Inputs!W$46:W$55,Inputs!$B$42) -> 0.02053999578 | X22: =INDEX(Inputs!X$46:X$55,Inputs!$B$42) -> 0.0215478861 | Y22: =INDEX(Inputs!Y$46:Y$55,Inputs!$B$42) -> 0.02622264859 | Z22: =INDEX(Inputs!Z$46:Z$55,Inputs!$B$42) -> 0.01786209806 | AA22: =INDEX(Inputs!AA$46:AA$55,Inputs!$B$42) -> 0.03131943821 | AB22: =INDEX(Inputs!AB$46:AB$55,Inputs!$B$42) -> 0.03567152024 | AC22: =INDEX(Inputs!AC$46:AC$55,Inputs!$B$42) -> 0.02375338754 | AD22: =INDEX(Inputs!AD$46:AD$55,Inputs!$B$42) -> 0.04042723729 | AE22: =INDEX(Inputs!AE$46:AE$55,Inputs!$B$42) -> 0.02644233056 | AF22: =INDEX(Inputs!AF$46:AF$55,Inputs!$B$42) -> 0.0315650229 | AG22: =INDEX(Inputs!AG$46:AG$55,Inputs!$B$42) -> 0.03045708836 | AH22: =INDEX(Inputs!AH$46:AH$55,Inputs!$B$42) -> 0.02660254158 | AI22: =INDEX(Inputs!AI$46:AI$55,Inputs!$B$42) -> 0.02720850376 | AJ22: =INDEX(Inputs!AJ$46:AJ$55,Inputs!$B$42) -> 0.01649898333 | AK22: =INDEX(Inputs!AK$46:AK$55,Inputs!$B$42) -> 0.03822698211 | AL22: =INDEX(Inputs!AL$46:AL$55,Inputs!$B$42) -> 0.03882382243 | AM22: =INDEX(Inputs!AM$46:AM$55,Inputs!$B$42) -> 0.007471423187 | AN22: =INDEX(Inputs!AN$46:AN$55,Inputs!$B$42) -> 0.01308563154 | AO22: =INDEX(Inputs!AO$46:AO$55,Inputs!$B$42) -> 0.02177394872 | AP22: =INDEX(Inputs!AP$46:AP$55,Inputs!$B$42) -> 0.04376762029 | AQ22: =INDEX(Inputs!AQ$46:AQ$55,Inputs!$B$42) -> 0.01651252234 | AR22: =INDEX(Inputs!AR$46:AR$55,Inputs!$B$42) -> 0.02120439059 | AS22: =INDEX(Inputs!AS$46:AS$55,Inputs!$B$42) -> 0.02382572367 | AT22: =INDEX(Inputs!AT$46:AT$55,Inputs!$B$42) -> 0.02665492232 | AU22: =INDEX(Inputs!AU$46:AU$55,Inputs!$B$42) -> 0.02674667223 | AV22: =INDEX(Inputs!AV$46:AV$55,Inputs!$B$42) -> 0.03511278157 | AW22: =INDEX(Inputs!AW$46:AW$55,Inputs!$B$42) -> 0.01873718692 | AX22: =INDEX(Inputs!AX$46:AX$55,Inputs!$B$42) -> 0.03182717029 | AY22: =INDEX(Inputs!AY$46:AY$55,Inputs!$B$42) -> -0.001105073479 | AZ22: =INDEX(Inputs!AZ$46:AZ$55,Inputs!$B$42) -> 0.03242438961 | BA22: =INDEX(Inputs!BA$46:BA$55,Inputs!$B$42) -> 0.0229760279 | BB22: =INDEX(Inputs!BB$46:BB$55,Inputs!$B$42) -> 0.0227315242
A34: Key outcome table | D34: NPV and RAB outcomes | J34: Indexation Applied Under Each Approach | Q34: IRR outcomes
D35: Total NPV | E35: NPV as % of investment | F35: Residual asset base year 50 | G35: Greatest (ABS) end period NPV | H35: Year of max NPV | J35: PTRM | K35: Pricing | L35: RFM (New capex) | M35: RFM(Half WACC) | N35: RFM (Indexing RAB) | O35: RFM (SL Depn) | Q35: WACC | R35: Nominal equity | S35: Debt | T35: Real cash flow to equity
A37: Approach A | D37: =Outcomes!D28 -> 0 | E37: =D37/Inputs!$B$34 -> 0 | F37: =Outcomes!BB23 -> 4.562849363e-14 | G37: =IF(ABS(MAX(ROUND(Outcomes!E27:BB27,6)))>ABS(MIN(ROUND(Outcomes!E27:BB27,6))),MAX(ROUND(Outcomes!E27:BB27,6)),MIN(ROUND(Outcomes!E27:BB27,6))) -> 0 | H37: =MATCH(G37,ROUND(Outcomes!E27:BB27,6),0) -> 1 | J37: =Inputs!A74 -> Actual Inflation | K37: =Inputs!A75 -> Actual Inflation | L37: =Inputs!A76 -> Actual Inflation | M37: =Inputs!A77 -> Actual Inflation | N37: =Inputs!A78 -> Actual Inflation | O37: =Inputs!A79 -> Actual Inflation | Q37: =Outcomes!B41 -> 0.07823540351 | R37: =Outcomes!B42 -> 0.1134169346 | S37: =Outcomes!B43 -> 0.05499999999 | T37: =Outcomes!B44 -> 0.08395209301
A38: Approach B | D38: =Outcomes!D61 -> 4.558579502 | E38: =D38/Inputs!$B$34 -> 0.002538038945 | F38: =Outcomes!BB56 -> 3.717116622e-05 | G38: =IF(ABS(MAX(ROUND(Outcomes!E60:BB60,6)))>ABS(MIN(ROUND(Outcomes!E60:BB60,6))),MAX(ROUND(Outcomes!E60:BB60,6)),MIN(ROUND(Outcomes!E60:BB60,6))) -> 4.839254 | H38: =MATCH(G38,ROUND(Outcomes!E60:BB60,6),0) -> 15 | J38: =Inputs!A83 -> Forecast Inflation | K38: =Inputs!A84 -> Forecast Yr 1, Lagged Inflation Yrs 2-5 | L38: =Inputs!A85 -> Lagged Inflation | M38: =Inputs!A86 -> Actual Inflation | N38: =Inputs!A87 -> Actual Inflation | O38: =Inputs!A88 -> Lagged Inflation | Q38: =Outcomes!B74 -> 0.07848552676 | R38: =Outcomes!B75 -> 0.1139832486 | S38: =Outcomes!B76 -> 0.05499999999 | T38: =Outcomes!B77 -> 0.0845199361
A39: Approach C | D39: =Outcomes!D94 -> -8.468682466 | E39: =D39/Inputs!$B$34 -> -0.004715031492 | F39: =Outcomes!BB89 -> 3.717116622e-05 | G39: =IF(ABS(MAX(ROUND(Outcomes!E93:BB93,6)))>ABS(MIN(ROUND(Outcomes!E93:BB93,6))),MAX(ROUND(Outcomes!E93:BB93,6)),MIN(ROUND(Outcomes!E93:BB93,6))) -> -9.250264 | H39: =MATCH(G39,ROUND(Outcomes!E93:BB93,6),0) -> 15 | J39: =Inputs!A92 -> Forecast Inflation | K39: =Inputs!A93 -> Lagged Inflation | L39: =Inputs!A94 -> Lagged Inflation | M39: =Inputs!A95 -> Actual Inflation | N39: =Inputs!A96 -> Actual Inflation | O39: =Inputs!A97 -> Lagged Inflation | Q39: =Outcomes!B107 -> 0.07773526435 | R39: =Outcomes!B108 -> 0.1122173182 | S39: =Outcomes!B109 -> 0.05499999999 | T39: =Outcomes!B110 -> 0.0828154662
A40: Approach D | D40: =Outcomes!D127 -> 5.625632815 | E40: =D40/Inputs!$B$34 -> 0.003132132536 | F40: =Outcomes!BB122 -> 3.717116622e-05 | G40: =IF(ABS(MAX(ROUND(Outcomes!E126:BB126,6)))>ABS(MIN(ROUND(Outcomes!E126:BB126,6))),MAX(ROUND(Outcomes!E126:BB126,6)),MIN(ROUND(Outcomes!E126:BB126,6))) -> 5.999696 | H40: =MATCH(G40,ROUND(Outcomes!E126:BB126,6),0) -> 15 | J40: =Inputs!A101 -> Forecast Inflation | K40: =Inputs!A102 -> Actual Inflation | L40: =Inputs!A103 -> Lagged Inflation | M40: =Inputs!A104 -> Actual Inflation | N40: =Inputs!A105 -> Actual Inflation | O40: =Inputs!A106 -> Lagged Inflation | Q40: =Outcomes!B140 -> 0.07855577063 | R40: =Outcomes!B141 -> 0.1141517887 | S40: =Outcomes!B142 -> 0.05499999999 | T40: =Outcomes!B143 -> 0.08465930837
A41: Approach E | D41: =Outcomes!D160 -> 0 | E41: =D41/Inputs!$B$34 -> 0 | F41: =Outcomes!BB155 -> 4.562849363e-14 | G41: =IF(ABS(MAX(ROUND(Outcomes!E159:BB159,6)))>ABS(MIN(ROUND(Outcomes!E159:BB159,6))),MAX(ROUND(Outcomes!E159:BB159,6)),MIN(ROUND(Outcomes!E159:BB159,6))) -> 0 | H41: =MATCH(G41,ROUND(Outcomes!E159:BB159,6),0) -> 1 | J41: =Inputs!A110 -> Forecast Inflation | K41: =Inputs!A111 -> Actual Inflation | L41: =Inputs!A112 -> Actual Inflation | M41: =Inputs!A113 -> Actual Inflation | N41: =Inputs!A114 -> Actual Inflation | O41: =Inputs!A115 -> Actual Inflation | Q41: =Outcomes!B173 -> 0.07823540351 | R41: =Outcomes!B174 -> 0.1134169346 | S41: =Outcomes!B175 -> 0.05499999999 | T41: =Outcomes!B176 -> 0.08395209301
A42: Approach F | D42: =Outcomes!D193 -> -1.069014703 | E42: =D42/Inputs!$B$34 -> -0.0005951856158 | F42: =Outcomes!BB188 -> 4.562849363e-14 | G42: =IF(ABS(MAX(ROUND(Outcomes!E192:BB192,6)))>ABS(MIN(ROUND(Outcomes!E192:BB192,6))),MAX(ROUND(Outcomes!E192:BB192,6)),MIN(ROUND(Outcomes!E192:BB192,6))) -> -1.159951 | H42: =MATCH(G42,ROUND(Outcomes!E192:BB192,6),0) -> 15 | J42: =Inputs!A119 -> Forecast Inflation | K42: =Inputs!A120 -> Forecast Yr 1, Lagged Inflation Yrs 2-5 | L42: =Inputs!A121 -> Actual Inflation | M42: =Inputs!A122 -> Actual Inflation | N42: =Inputs!A123 -> Actual Inflation | O42: =Inputs!A124 -> Actual Inflation | Q42: =Outcomes!B206 -> 0.07816474102 | R42: =Outcomes!B207 -> 0.1132471963 | S42: =Outcomes!B208 -> 0.05499999999 | T42: =Outcomes!B209 -> 0.08381161511
A43: Approach G | D43: =Outcomes!D226 -> 14.33941469 | E43: =D43/Inputs!$B$34 -> 0.007983625804 | F43: =Outcomes!BB221 -> 5.272213417e-15 | G43: =IF(ABS(MAX(ROUND(Outcomes!E225:BB225,6)))>ABS(MIN(ROUND(Outcomes!E225:BB225,6))),MAX(ROUND(Outcomes!E225:BB225,6)),MIN(ROUND(Outcomes!E225:BB225,6))) -> 34.52042 | H43: =MATCH(G43,ROUND(Outcomes!E225:BB225,6),0) -> 10 | J43: =Inputs!A128 -> Forecast Inflation | K43: =Inputs!A129 -> Forecast Yr 1, Lagged Inflation Yrs 2-5 | L43: =Inputs!A130 -> Lagged Inflation | M43: =Inputs!A131 -> Lagged Inflation | N43: =Inputs!A132 -> Lagged Inflation | O43: =Inputs!A133 -> Lagged Inflation | Q43: =Outcomes!B239 -> 0.07905105306 | R43: =Outcomes!B240 -> 0.115329568 | S43: =Outcomes!B241 -> 0.05499999999 | T43: =Outcomes!B242 -> 0.08588123885
A44: Approach H | D44: =Outcomes!D259 -> -3.438574067 | E44: =D44/Inputs!$B$34 -> -0.001914463682 | F44: =Outcomes!BB254 -> 0 | G44: =IF(ABS(MAX(ROUND(Outcomes!E258:BB258,6)))>ABS(MIN(ROUND(Outcomes!E258:BB258,6))),MAX(ROUND(Outcomes!E258:BB258,6)),MIN(ROUND(Outcomes!E258:BB258,6))) -> 7.485417 | H44: =MATCH(G44,ROUND(Outcomes!E258:BB258,6),0) -> 5 | J44: various | K44: =Inputs!A138 -> Gearing*Actual +(1-Gearing)*Forecast | L44: =Inputs!A140 -> Lagged Inflation | M44: =Inputs!A141 -> Actual Inflation | N44: =Inputs!A142 -> Actual Inflation | O44: =Inputs!A143 -> Lagged Inflation | Q44: =Outcomes!B272 -> 0.07796941908 | R44: =Outcomes!B273 -> 0.1126105722 | S44: =Outcomes!B274 -> 0.05499999999 | T44: =Outcomes!B275 -> 0.08334331736
A46: Capex input valuation difference lagged vs unlagged | D46: =Inputs!B38 -> -0.3955710355
A48: Single-line Log of results
D49: Inf forecast | E49: Inf Outcome | F49: Inf Diff | G49: Inf Diff | H49: Inf Diff | I49: Capex Input | J49: NPV | Q49: NPV % | X49: Residual Asset Base year 50 | AE49: Greatest (ABS) NPV | AL49: PTRM Approach | AS49: Pricing Approach | AZ49: RFM (New capex) | BG49: RFM(Half WACC) | BN49: RFM(Indexing) | BU49: RFM(SL Depn) | CB49: WACC | CC49: Capex Amounts | CN49: Capex Life | CY49: Inflation Forecast | EW49: Inflation Actuals
A50: Inflation scenario description | D50: Ave (all) | E50: Ave (all) | F50: Ave (all) | G50: Year 0 | H50: All year 5 | I50: NPV Diff (lagged) | J50: A | K50: B | L50: C | M50: D | N50: E | O50: F | P50: G | Q50: A | R50: B | S50: C | T50: D | U50: E | V50: F | W50: G | X50: A | Y50: B | Z50: C | AA50: D | AB50: E | AC50: F | AD50: G | AE50: A | AF50: B | AG50: C | AH50: D | AI50: E | AJ50: F | AK50: G | AL50: A | AM50: B | AN50: C | AO50: D | AP50: E | AQ50: F | AR50: G | AS50: A | AT50: B | AU50: C | AV50: D | AW50: E | AX50: F | AY50: G | AZ50: A | BA50: B | BB50: C | BC50: D | BD50: E | BE50: F | BF50: G | BG50: A | BH50: B | BI50: C | BJ50: D | BK50: E | BL50: F | BM50: G | BN50: A | BO50: B | BP50: C | BQ50: D | BR50: E | BS50: F | BT50: G | BU50: A | BV50: B | BW50: C | BX50: D | BY50: E | BZ50: F | CA50: G | CB50: Constant | CC50: 0 | CD50: 1 | CE50: 2 | CF50: 3 | CG50: 4 | CH50: 5 | CI50: 6 | CJ50: 7 | CK50: 8 | CL50: 9 | CM50: 10 | CN50: 0 | CO50: 1 | CP50: 2 | CQ50: 3 | CR50: 4 | CS50: 5 | CT50: 6 | CU50: 7 | CV50: 8 | CW50: 9 | CX50: 10 | CY50: 1 | CZ50: 2 | DA50: 3 | DB50: 4 | DC50: 5 | DD50: 6 | DE50: 7 | DF50: 8 | DG50: 9 | DH50: 10 | DI50: 11 | DJ50: 12 | DK50: 13 | DL50: 14 | DM50: 15 | DN50: 16 | DO50: 17 | DP50: 18 | DQ50: 19 | DR50: 20 | DS50: 21 | DT50: 22 | DU50: 23 | DV50: 24 | DW50: 25 | DX50: 26 | DY50: 27 | DZ50: 28 | EA50: 29 | EB50: 30 | EC50: 31 | ED50: 32 | EE50: 33 | EF50: 34 | EG50: 35 | EH50: 36 | EI50: 37 | EJ50: 38 | EK50: 39 | EL50: 40 | EM50: 41 | EN50: 42 | EO50: 43 | EP50: 44 | EQ50: 45 | ER50: 46 | ES50: 47 | ET50: 48 | EU50: 49 | EV50: 50 | EW50: 0 | EX50: 1 | EY50: 2 | EZ50: 3 | FA50: 4 | FB50: 5 | FC50: 6 | FD50: 7 | FE50: 8 | FF50: 9 | FG50: 10 | FH50: 11 | FI50: 12 | FJ50: 13 | FK50: 14 | FL50: 15 | FM50: 16 | FN50: 17 | FO50: 18 | FP50: 19 | FQ50: 20 | FR50: 21 | FS50: 22 | FT50: 23 | FU50: 24 | FV50: 25 | FW50: 26 | FX50: 27 | FY50: 28 | FZ50: 29 | GA50: 30 | GB50: 31 | GC50: 32 | GD50: 33 | GE50: 34 | GF50: 35 | GG50: 36 | GH50: 37 | GI50: 38 | GJ50: 39 | GK50: 40 | GL50: 41 | GM50: 42 | GN50: 43 | GO50: 44 | GP50: 45 | GQ50: 46 | GR50: 47 | GS50: 48 | GT50: 49 | GU50: 50
